Workbook

Sheet Info

Sheet Trial (hidden)

Sheet Instructions (hidden)
A1: Excel Skills | Fixed Assets Register Template
A2: Instructions
A3: www.excel-skills.com
A5: This comprehensive template enables users to compile a complete fixed assets register which incorporates an unlimited number of fixed asset classes and categories; facilitates recording additions, disposals, revaluations and impairments; automatically calculates monthly and year-to-date depreciation charges; calculates tax values based on user defined tax codes; calculates deferred tax balances and includes a comprehensive automated journal report. The template has been designed specifically for the requirements of IFRS but can also be used to compile a simple fixed asset register which is only based on historical costs.
A7: Note: This template only accommodates depreciation calculations on a straight line basis. If you therefore need to calculate depreciation on a reducing balance or other depreciation basis, the template will unfortunately not be suitable for your requirements.
A9: The following sheets are included in this template:
A10: Set-up - the input cells on this sheet enable you to customize the template for your business. You can enter your business name, select a year end period, specify an income tax percentage, maintain the default fixed asset classes, maintain the default fixed asset categories and maintain the default tax codes. A complete list of user input error codes are also included on this sheet for information purposes.
A11: Assets - this sheet enables users to create a unique asset code for all fixed assets and the columns with the light blue column headings contain all the comprehensive, automated calculations that form part of the fixed asset register. User input is limited to entering an asset identification number, asset description, asset type, asset category and tax code. The period for which the fixed asset register is compiled is determined by the review date that is specified at the top of the sheet.
A12: Transact - all asset transactions need to be recorded on this sheet. Asset transactions include acquisitions, revaluations and disposals. User input is limited to entering the transaction date, transaction type, asset number, supplier, document number, transaction amount, asset lifetime, residual value and proceeds on disposal. The columns with light blue column headings contain the formulas that form the basis of all the calculations required to produce a comprehensive, accurate fixed asset register.
A13: Category - this sheet contains a fixed assets summary which is based on the fixed asset categories that are created on the Set-up sheet. No user input is required on this sheet and 30 fixed asset categories are accommodated. Additional fixed asset categories can be added by simply copying the formulas in the last row into the required number of additional rows.
A14: Class - this sheet contains a fixed assets summary which is based on the asset classes that are created on the Set-up sheet. No user input is required on this sheet and a maximum of 30 asset classes are accommodated.
A15: Journals - this sheet contains an automated journal report for all fixed asset transactions. The journal report can be compiled on a monthly or year-to-date basis and is based on the account numbers that are specified in the asset category set-up on the Set-up sheet. The journal report accommodates 30 asset categories but additional categories can be added by simply copying the formulas in the last row into the required number of additional rows.
A17: Template Set-up
A19: The template can be customized for your business by editing the default business details, asset categories, asset classes and tax codes on the Set-up sheet. The business name that is entered in cell C5 is used as a heading on all the other sheets, the year-end month that is selected in cell C7 is used in order to calculate year-to-date balances and the income tax percentage that is specified in cell C9 is used to calculate deferred tax balances.
A21: Asset Classes
A23: The template includes 6 default fixed asset classes which can be customized in the cell range from cell A13 to cell B18. The default asset class codes in column A and the default asset class descriptions in column B can be amended and you can add additional asset classes by simply inserting a new row between the first and last class codes, entering a new code for the asset class in column A and entering a description for the new class in column B.
A25: Note: All new asset classes must be inserted above the "ZZ" asset class code and a maximum of 30 asset classes can be accommodated in the template.
A27: The asset classes that are created on the Set-up sheet should be representative of the asset classes included on the financial statements. Some businesses however require more asset classes than what is disclosed on the financial statements in order to accommodate separate allocation in the business accounts. We have therefore created separate asset categories for this purpose.
A29: Asset Categories
A31: The template includes 11 asset categories which can be customized in the cell range from cell A23 to cell K33. Each asset category contains a unique code in column A, is linked to an asset class in column B, contains a description in column C and contains an account number in each of the columns from column D to K.
A33: The asset category codes can be in any format but we suggest using a combination of letters and numbers as illustrated with the default category codes. Each category that is created will be included separately on the Category sheet and needs to be linked to one of the asset class codes in cells A13 to A18 by selecting the appropriate asset class code from the list box in column B. The asset categories are therefore in fact sub classes of the main asset classes that are included on the financial statements.
A35: The account numbers that need to be entered in columns D to K are included in the automated journal report on the Journal sheet. All fixed asset journals are therefore based on the asset categories that are created which means that a separate asset category is required for each fixed asset account group or depreciation cost centre. The accounts that need to be entered in each column are better described as follows:
A36: ■ Cost - the general ledger accounts that are entered in this column reflect the cost or gross carrying value of each asset category. These accounts should therefore be balance sheet accounts.
A37: ■ Accum Depr - the accounts in this column reflect the accumulated depreciation that has been written off against each asset category. These accounts should therefore be balance sheet accounts.
A38: ■ Depr - the total depreciation charges for each asset category is allocated to the accounts in this column. These accounts should therefore be income statement accounts.
A39: ■ Revalue - if a revaluation reserve is created after an asset revaluation, the revaluation surpluses for each asset category are allocated to these accounts. Separate revaluation reserve accounts can be added for each category or a single account can be used for all fixed assets by simply entering the same account number for all asset categories. The accounts that are specified should be balance sheet accounts.
A40: ■ Impairment - if an asset is valued at less than the current net carrying value, the impairment amounts for each asset category are allocated to these accounts. You can use separate impairment accounts for each asset category or enter the same account for all categories in order to allocate all asset impairment amounts to the same account. The accounts that are specified should be income statement accounts because asset impairment amounts are written off to the income statement.
A41: ■ Profit - if assets are sold, the profits or losses on the disposal of assets are allocated to the accounts that are specified in this column. You can again use a single account for all asset categories or enter separate accounts for each asset category. These accounts should be income statement accounts.
A42: ■ Def Tax BS - enter the accounts to which deferred tax assets or liabilities should be allocated. In most instances, only one balance sheet account is used for this purpose but you can specify separate accounts if you want to be able to view the deferred tax asset or liability for each asset category separately.
A43: ■ Def Tax IS - enter the accounts to which deferred tax charges for the year should be allocated. In most instances, only one income statement account is used for this purpose but you can specify separate accounts if you want to be able to view the deferred charges for each asset category separately.
A45: Note: All new asset categories must be inserted above the "ZZ" asset category code. The template accommodates 30 asset categories on the Category sheet but you can add additional asset categories by copying the formulas in the last row into the appropriate number of additional rows. An unlimited number of asset categories are therefore accommodated.
A47: Tax Codes
A49: The template includes 10 default tax codes in the cell range from cell A38 to J47 but you can add as many additional tax codes as required. The tax codes are used to calculate the tax allowances that can be claimed for each fixed asset and the tax values at the beginning and the end of each financial year. These tax balances are then used in order to calculate the deferred tax balances and charges for each financial year.
A51: A single alphabetical letter is used as the tax code in column A and a description for each tax code can be entered in column C. All the tax codes that are created on the Set-up sheet are available for selection in column F on the Assets sheet.
A53: Note: You can create additional tax codes by inserting a new row anywhere between the first and last rows, entering a new tax code in column A and specifying the appropriate annual tax percentages.
A55: Column B in the tax codes section contains a list box which enables users to specify whether appropriation needs to be applied in the tax allowance calculations for the particular tax code. If appropriation is applied (the "Yes" option is selected), it means that the tax allowance calculation will take the effect of partial years into account. If appropriation is not applicable (the "No" option is selected), the tax allowance will be based on a full year regardless of when an asset is acquired.
A57: Example: An asset with a cost of 10,000 is acquired in December by a business with a February year-end. The tax code that is assigned to the asset is B which has "No" appropriation specified in column B and a tax percentage of 20% in year 1. A full year's tax allowance will therefore be written off in December (and each subsequent year) which means that the tax allowance for the first year would be 2,000.
A59: If the tax code of the asset had been A (which has a "Yes" option in column B) and the tax percentage in the first year is also 20%, it means that the tax allowance in the first year would only be 333.33 (10,000 x 20% ÷ 12 x 2). This is because appropriation would apply and the tax allowance calculation will therefore only include 2 months.
A61: The tax allowance percentages in column D to H are used to calculate the appropriate tax allowance amounts for the assets that are linked to the particular tax codes. You will therefore only be able to specify tax percentages for 5 years and if a longer period is applicable, the year 5 percentage will be used for all subsequent annual periods until an asset is fully written off for tax purposes.
A63: Example: If a tax code is created for buildings and a tax allowance percentage of 2% is applicable, the year 1 to 5 tax percentages need to be entered as 2% and the year 5 percentage (which is 2%) will be applied to all the annual periods after year 5. This means that a tax allowance of 2% per year will be written off until the asset is fully written off after 50 years.
A65: Note: The 5Y Total and AF columns contain formulas which should be copied for all new tax codes that are added to the Set-up sheet. It is imperative that these formulas are copied for all new tax codes otherwise some of the tax calculations may not be accurate.
A67: The 5Y Total column contains the total percentage value of the tax allowance percentages that are entered in the Year 1 to 5 columns and will automatically be highlighted in red if the value exceeds 100%. The maximum percentage that can be written off on an asset is 100% - if you therefore specify tax allowances of more than 100%, only the tax allowances that make up the first 100% will be taken into account in determining the appropriate tax values of the asset. The AF column contains an appropriation value which is based on the selection in column B.
A69: Input Error Codes
A71: The input error codes at the bottom of the Set-up sheet are included for information purposes only and provide users with a reason for the error codes that may be encountered when entering transactions on the Assets and Transact sheets. These error codes are covered in more detail in the Error Codes section of these instructions.
A73: Asset Set-up
A75: Each individual fixed asset must be added to the Assets sheet by assigning an asset number to the fixed asset. The Assets sheet is in actual fact a comprehensive fixed asset register which contains all the individual assets that form part of the fixed assets register. All fixed asset transactions need to be recorded on the Transact sheet and the Category and Class sheets contains summaries of all the appropriate asset groups.
A77: A unique asset number must be created for each fixed asset on the Assets sheet. You can use any asset numbering convention but we strongly recommend using a combination of letters and numbers as illustrated in our example data. We have used an asset numbering convention which starts with two letters followed by a hyphen and five numbers. The letters can be used to distinguish between different asset categories or classes.
A79: Note: All fixed assets must be added to the Assets sheet by assigning a unique asset code to the particular asset. The acquisition of the asset then needs to be recorded on the Transact sheet after which the appropriate values will be reflected on the Assets sheet. Users therefore need to create asset codes for all their assets and record acquisition transactions for all assets on the Transact sheet.
A81: All the columns on the Assets sheet with yellow column headings require user input while the columns with light blue column headings contain formulas which are automatically copied for each new asset that is added to the sheet. The following user input is required on the Assets sheet:
A82: Asset Number - enter a unique asset number for each fixed asset in this column. Duplicate asset numbers may result in inaccurate calculations and it is therefore imperative that each fixed asset has a unique asset number. Similar assets or asset components can be distinguished by adding a "/1" and "/2" at the end of the asset number.
A83: Asset ID Number - enter an asset identification number in this column. This number should preferably be applied to the asset in order to facilitate physical verification of assets and assist in identifying each fixed asset that is included in the fixed asset register.
A84: Description - enter a comprehensive description of the asset in this column. The asset description should enable users to easily identify the asset and should assist users in distinguishing between similar assets.
A85: Asset Type - select an asset type from the list box. This column assists in identifying leased assets and the list boxes in this column therefore include an owned and leased option.
A86: Category - select an asset category from the list box in this column. All the asset categories that are created on the Set-up sheet are available for selection. Each asset needs to be linked to an asset category which is linked to an asset class in the Asset Category section on the Set-up sheet.
A87: Tax Code - select a tax code from the list box in this column. All the tax codes that are created on the Set-up sheet are available for selection.
A89: Note: All the columns on the Assets sheet have been included in an Excel table. This feature is extremely useful when entering data in a table format because the formulas that are included in calculated columns (the columns with a light blue column heading) are automatically copied when new rows are inserted into the table or when data is entered into the first blank row below the table. You can therefore enter a new transaction by simply entering an asset number in column A - the table will then automatically be extended to include the new asset number.
A91: All the columns with light blue column headings contain calculations which are based on the review date that is entered in cell E2. The date that is entered in this cell therefore determines which transactions are included in the asset balance and depreciation calculations. It is therefore imperative that you enter the correct date in this cell when reviewing the fixed asset register.
A93: The cell range from cell H2 to cell K2 displays the appropriate year-to-date (YTD) and month-to-date (MTD) from and to dates which are in effect based on the review date that is specified in cell E2. Note that all the template calculations are based on month end dates - even if you enter a review date that does not fall on a month end, the template calculations will still include all the transactions and depreciation calculations for the entire month.
A95: The YTD periods are determined based on the year-end period that is selected in cell C7 on the Set-up sheet. All the YTD asset balances and depreciation calculations will therefore be calculated automatically based on the review date and the year-end period that has been specified.
A97: Note: The review date makes it easy to roll the template forward or back for any subsequent or previous month and all the template calculations are updated automatically. You can therefore simply enter a new date in cell E2 and all the calculations on all the sheets in the template are automatically updated.
A99: The Assets sheet contains 52 calculated columns which all have light blue column headings. The calculations in these columns are all based on the transactions that are entered on the Transact sheet and some of the calculations are for information purposes only while others form an integral part of the fixed asset register. We'll now briefly cover the purpose of each calculated column:
A100: The following columns are included for information purposes only:
A101: Error Code - if there is a problem with the input in any of the user input columns, an error code will be displayed in this column. Refer to the Set-up sheet for a description of each error code and to the Error Code section of these instructions for more information about the reason for the error code that is displayed.
A102: Class - this column contains the asset class that the asset is linked to. The asset class is determined by the asset category that is selected in column E and each asset category is linked to a single asset class in the Asset Category section on the Set-up sheet.
A103: Acquisition Date - the asset acquisition date is displayed in this column. After creating an asset number, an acquisition transaction needs to be recorded on the Transact sheet in order to record the acquisition of the asset. If an acquisition transaction has not been recorded for the particular asset, this column will contain an "add!" message.
A104: Last Trn Date - this column contains the date of the last transaction that has been recorded for the appropriate asset. If no transaction has been recorded, the column will contain an "add!" message which indicates that an asset acquisition transaction still needs to be recorded.
A105: Current Trn Date - this column contains the date of the last transaction for the asset that is dated before the YTD To Date which is displayed in cell I2. It therefore represents the last transaction that has been recorded before the current period end.
A106: Last PY Trn Date - this column contains the date of the last transaction for the asset dated before the YTD From Date which is displayed in cell H2. It represents the last transaction that has been recorded before the end of the previous financial period.
A107: Last PM Trn Date - this column contains the date of the last transaction for the asset dated before the MTD From Date which is displayed in cell J2. It represents the last transaction that has been recorded before the end of the previous month.
A108: Disposal Date - if an asset has been disposed of, the date of disposal as per the Transact sheet will be displayed in this column. Note that a disposal transaction has to be recorded on the Transact sheet for all asset disposals.
A109: Proceeds on Disposal - if an asset has been disposed of, the proceeds on disposal as per the Transact sheet will be displayed in this column.
A110: Historical Cost - the historical cost of all assets that have been acquired before the end of the current financial period is displayed in this column. The historical cost is defined as the transaction amount of the acquisition transaction that is recorded on the Transact sheet for the particular asset.
A111: Active Lifetime - the lifetime that has been recorded on the Transact sheet for the most recent transaction that is dated before the current period end is displayed in this column.
A112: Active Res Value - the residual value that has been recorded on the Transact sheet for the most recent transaction that is dated before the current period end is displayed in this column.
A113: Tax Cost - the tax cost of the asset is displayed in this column. The tax cost is the same as the historical cost of the asset. This column will only contain a value if the asset has been acquired before the current period end.
A114: Current Tax % - the tax allowance percentage for the current period is displayed in this column. This percentage is dependent on the tax code that has been selected in column F and the annual tax percentages that have been defined for the particular tax code on the Set-up sheet. If a tax code has not been selected in column F, a "code?" message will be displayed in this column.
A115: Elapsed Months PY - the value in this column indicates the number of months that have elapsed since the acquisition of the asset up to the end of the previous financial period. A value will only be displayed for assets that have not been disposed of before the end of the previous financial period.
A116: Elapsed Months CY - the value in this column indicates the number of months that have elapsed since the acquisition of the asset up to the end of the current financial period. A value will only be displayed for assets that have not been disposed of before the end of the current financial period.
A117: Elapsed Months PM - the value in this column indicates the number of months that have elapsed since the acquisition of the asset up to the end of the previous month. A value will only be displayed for assets that have not been disposed of before the end of the previous month.
A118: Assets at Cost:
A119: AC Opening Balance - the opening cost or gross carrying value of the asset at the beginning of the current financial period is included in this column.
A120: Additions - if an asset has been acquired during the current financial period, the cost of the asset is included in this column. The cost of the asset is entered as the transaction amount when recording an acquisition type transaction on the Transact sheet.
A121: Revaluations - if an asset has been revalued during the current financial period, the adjustment in the gross carrying value (or the cost of the asset if the asset has not been revalued previously) is included in this column. Note that this adjustment is only calculated based on the gross carrying value of the asset - if you want to recalculate the revaluation surplus or impairment, the Revaluation column in the Accumulated Depreciation section also needs to be taken into account.
A122: Disposals - if an asset has been disposed of during the current financial period, the gross carrying value (or the cost of the asset if the asset has not been revalued previously) is included in this column as a negative value. This effectively means that the gross carrying value of the asset is removed from the fixed asset register.
A123: Impairment - if an asset has been revalued during the current financial period at a value that is lower than the current net carrying value, the impairment amount is included in this column. Note that in some instances, a negative value may also be displayed in the Revaluations column which will be offset by a negative value in the Revaluations column in the Accumulated Depreciation section. This is simply because the impairment is calculated based on the net carrying value which therefore necessitates adjustments to the Cost and Accumulated Depreciation values in order to adjust the gross carrying value (the Cost section) to the correct values after revaluation.
A124: AC Closing Balance - the closing cost or gross carrying value of the asset at the end of the current financial period is included in this column.
A125: Accumulated Depreciation:
A126: AD Opening Balance - the opening accumulated depreciation balance of the asset at the beginning of the current financial period is included in this column.
A127: Depreciation - Cost - the year-to-date depreciation on the historical cost of the asset is included in this column. The amounts in this column are calculated on the Transact sheet. For revalued assets, only the portion of the depreciation that relates to the historical cost of the asset will be included in this column.
A128: Depreciation - Revaluation - the year-to-date depreciation on the revaluation of the asset is included in this column. The amounts are calculated by deducting the depreciation on the historical cost of the asset from the total year-to-date depreciation. Both of these amounts are calculated on the Transact sheet. If an asset has not been revalued, the value in this column will be nil.
A129: Depreciation - Total - the total year-to-date depreciation on the asset is included in this column. All the amounts in this column are calculated on the Transact sheet.
A130: Acc Depr - Revaluations - if an asset has been revalued during the current financial period, the accumulated depreciation as at the date of the revaluation is included in this column as a negative value. This is because we write off the accumulated depreciation to a revaluation reserve and this value and the revaluation adjustment in the Cost section form the revaluation surplus for an asset.
A131: Acc Depr - Disposals - if an asset has been disposed of during the current financial period, the accumulated depreciation as at the date of the disposal is included in this column as a negative value. This effectively means that the accumulated depreciation of the asset is removed from the fixed asset register.
A132: AD Closing Balance - the closing accumulated depreciation balance of the asset at the end of the current financial period is included in this column.
A133: Total Net Carrying Value:
A134: Closing Carrying Value - the difference between the closing cost (or gross carrying value) of an asset and the closing accumulated depreciation balance is included in this column. The amounts in this column reflect the "book value" of an asset at the end of the financial period.
A135: Revaluation Reserve:
A136: RR Opening Balance - the amounts in this column reflect the revaluation reserve opening balances at the beginning of the current financial period.
A137: Revaluation Surplus - if an asset has been revalued during the current financial period at a value that is higher than its net carrying value at the date of revaluation, the revaluation surplus is included in this column. Note that if an asset is revalued at a value that is less than its net carrying value, an asset impairment amount will be included in the Impairment Write-Offs column and the revaluation surplus will be nil.
A138: RR Depreciation - Revaluation - the year-to-date depreciation on any revaluations that may have been made to an asset in the past is included in this column. This means that we effectively write-off the depreciation on revaluations against the revaluation reserve balance instead of allocating these depreciation amounts to the income statement.
A139: RR Closing Balance - the amounts in this column reflect the revaluation reserve closing balances at the end of the current financial period.
A140: Income Statement Items:
A141: Impairment Write-Offs - if an asset has been revalued during the current financial period at a value that is lower than its net carrying value at the date of revaluation, the asset impairment amount is included in this column. Note that if an asset is revalued at a value that is higher than its net carrying value, a revaluation surplus will be included in the Revaluation Reserve section and the asset impairment amount will be nil.
A142: Profit / (Loss) on Disposal - if an asset has been disposed of during the current financial period, the profit or loss on disposal as at the date of the disposal is included in this column. The profit or loss on disposal is calculated as the difference between the proceeds on disposal which is recorded on the Transact sheet and the net carrying value (book value) of the asset. If the asset has been revalued, any revaluation reserve that may exist on the date of disposal is also included in the profit or loss calculation.
A143: Current Month Depreciation:
A144: Cost - this column includes the depreciation on the historical cost of an asset for the current month. The appropriate month is determined by the review date that is specified in cell E2. The current month depreciation on historical cost is calculated on the Transact sheet. Note that this column will only contain a value if the historical cost of an asset has not been fully depreciated.
A145: Revaluation - this column includes the depreciation on any revaluations performed on an asset and is calculated as the difference between the total depreciation for the current month and the depreciation based on the historical cost of an asset.
A146: Total - this column includes the total depreciation of an asset for the current month. The appropriate month is determined by the review date that is specified in cell E2. The current month total depreciation is calculated on the Transact sheet. Note that this column will only contain a value if the gross carrying value (or historical cost for assets that have not been revalued) of an asset has not been fully depreciated.
A147: Carrying Value at Historical Cost:
A148: HC Opening Balance - this column includes the book value of an asset based only on historical cost calculations at the beginning of the current financial period.
A149: HC YTD Movement - this column includes the YTD movement in the book value of an asset based only on historical cost calculations. All revaluations are ignored for the purpose of this calculation.
A150: HC Closing Balance - this column includes the book value of an asset based only on historical cost calculations at the end of the current financial period.
A151: HC MTD Movement - this column includes the MTD movement in the book value of an asset based only on historical cost calculations. All revaluations are ignored for the purpose of this calculation.
A152: Tax Values:
A153: TV Opening Balance - this column includes the tax value of the appropriate asset at the beginning of the current financial period. All tax value balances are calculated by deducting the appropriate tax allowances (based on the tax code that is selected in column F) from the tax cost (historical cost) of an asset.
A154: TV YTD Movement - this column contains the YTD movement in the tax value of an asset. For most assets acquired before the beginning of the financial period, these amounts will equal the tax allowances for the period. If an asset has been acquired during the current financial period, the YTD movement will equal the cost of the asset less the appropriate tax allowances for the period. If an asset has been disposed of during the current financial period, the YTD movement will equal the opening tax value.
A155: TV Closing Balance - this column includes the tax value of the appropriate asset at the end of the current financial period. All tax value balances are calculated by deducting the appropriate tax allowances (based on the tax code that is selected in column F) from the tax cost (historical cost) of an asset.
A156: TV MTD Movement - this column contains the MTD movement in the tax value of an asset. For most assets acquired before the beginning of the current month, these amounts will equal the tax allowances for the period. If an asset has been acquired during the current month, the MTD movement will equal the cost of the asset less the appropriate tax allowance for the month. If an asset has been disposed of during the current month, the MTD movement will equal the tax value at the beginning of the month.
A157: Deferred Taxation:
A158: DT Opening Balance - this column includes the deferred tax balance at the beginning of the current financial period. Deferred tax balances are calculated as the difference between the carrying values at historical cost and the tax values multiplied by the appropriate tax rate which is specified on the Set-up sheet. Positive values represent deferred tax assets and negative values represent deferred tax liabilities.
A159: DT YTD Movement - this column includes the YTD movement in the deferred tax balances.
A160: DT Closing Balance - this column includes the deferred tax balance at the end of the current financial period. Deferred tax balances are calculated as the difference between the carrying values at historical cost and the tax values multiplied by the appropriate tax rate which is specified on the Set-up sheet. Positive values represent deferred tax assets and negative values represent deferred tax liabilities.
A161: DT MTD Movement - this column includes the MTD movement in the deferred tax balances.
A163: All the column headings on the Assets sheet contain a filter selection arrow. These selection arrows indicate that the Filter feature has been activated on the sheet. The Filter feature can be used to filter the data on the sheet in order to display only certain asset records on the sheet.
A165: We have also included totals above all the column headings that contain amounts. These totals have been calculated by using the SUBTOTAL function which means that if the data on the sheet is filtered, the totals that are calculated will only include the filtered records. The Filter feature can therefore be used to obtain totals based on the filter criteria that are specified by the user and also enables users to view the detailed fixed asset records that make up the summary totals on the Category and Class sheets.
A167: Example: If you want to obtain the fixed asset register totals for all leased assets, you can simply click the selection arrow next to the Asset Type column heading and select the Leased option. The sheet will be filtered and only the leased assets will be visible on the sheet. The totals will also only include the leased assets.
A169: Example: If you want to view the detailed asset records that make up one of the category or class totals on the Category or Class sheets, simply click the filter selection arrow next to the Category or Class column headings (column E or column H) and select the appropriate category or class. The sheet will be filtered and only the asset records for the selected category or class will be visible on the sheet. The totals will also only include the appropriate amounts for the selected category or class.
A171: Note: After reviewing the filtered data, you need to clear the filter to display all the asset records on the sheet. A filter can be cleared by simply clicking the selection arrow next to the appropriate column heading again and clicking the "Select All" option.
A173: Recording Asset Transactions
A175: All asset transactions must be recorded on the Transact sheet. There are basically 3 types of transactions that can be recorded namely acquisitions, disposals and revaluations. An asset transaction can be recorded by entering the required data into the user input columns - the column headings of all user input columns contain a yellow cell background while the column headings with a light blue cell background indicate that these columns contain formulas which are automatically copied for all new transactions that are added to the sheet.
A177: Note: Recording an asset number on the Assets sheet will have no effect in terms of recording the cost of an asset in the fixed asset register. An acquisition transaction needs to be recorded on the Transact sheet for each fixed asset that is acquired before the appropriate asset values will be included in the fixed asset register on the Assets sheet and the summaries on the Category and Class sheets.
A179: Note: All the columns on the Transact sheet have been included in an Excel table. This feature is extremely useful when entering data in a table format because the formulas that are included in calculated columns (the columns with a light blue column heading) are automatically copied when new rows are inserted into the table or when data is entered into the first blank row below the table. You can therefore enter a new transaction by simply entering a transaction date in column A - the table will then automatically be extended to include the new transaction.
A181: The following user input is required in the user input columns on the Transact sheet (the columns with yellow column headings):
A182: Transaction Date - enter the date of the transaction.
A183: Transaction Type - select the transaction type from the list box. The ACQ option should be selected for all asset acquisitions, the DIS option should be selected for all asset disposals and the REV option should be selected for all revaluations of fixed assets.
A184: Asset Number - select the appropriate asset number of the asset to which the transaction relates from the list box in this column. All the asset numbers that have been added to the Assets sheet will be available for selection. You therefore need to create an asset number for the appropriate fixed asset on the Assets sheet before you will be able to record any transactions for the particular fixed asset.
A185: Supplier - enter the name of the supplier from which the asset has been acquired. If a disposal transaction is recorded, you can enter the name of the customer in this column. For revaluations, you can simply enter "None".
A186: Document Number - enter the document number of a supporting document which will enable you to trace the transaction back to its supporting documentation. For acquisitions, this should be the supplier invoice number and for disposals, the customer invoice number. For revaluations, you can simply enter text like "Revalue".
A187: Amount - enter the transaction amount in this column. For acquisitions, the supplier invoice amount should be entered exclusive of any sales tax that may be applicable. For disposals, a nil amount should be entered in this column. For revaluations, the value of the asset should be entered in this column - this should be the new value of the fixed asset and not the difference between the valuation and the previous historical cost or gross carrying amount!
A188: Lifetime in Years - enter the estimated lifetime of the asset in years for all acquisition and revaluation transactions in this column. For disposals, enter a nil value in this column. Note that if an asset should not be depreciated, a nil lifetime also needs to be specified in this column.
A189: Residual Value - this value should be the estimated valuation of an asset at the end of the lifetime that is specified in the previous column. If the asset will have no value at the end of its estimated lifetime, enter nil. A nil value should also be entered for all disposal transactions.
A190: Proceeds on Sale - if a disposal transaction is being recorded, enter the proceeds on the disposal of the asset in this column. The proceeds should equal the total amount that is received for the asset. If an asset is being scrapped, enter nil in this column. A nil value should also be entered for all acquisition and revaluation transactions.
A192: The Transact sheet also includes 38 calculated columns - the column headings of all the calculated columns contain a light blue cell background. All of these columns contain formulas which are automatically copied for all new transactions that are added to the sheet. We'll now briefly cover the purpose of each calculated column:
A193: Error Code - if there is a problem with the input in any of the user input columns, an error code will be displayed in this column. Refer to the Set-up sheet for a description of each error code and to the Error Code section of these instructions for more information about the reason for the error code that is displayed.
A194: Category - the asset category is looked up on the Assets sheet based on the asset number that is specified in column C. This column is included for information purposes only.
A195: Transaction Date ID - the formula in this column assigns a time to each transaction date based on the row number of the transaction. This means that each transaction will have a unique date even if two transactions that relate to the same asset are recorded on the same date.
A196: Previous Trn Date - this column indicates the date of the previous transaction for the specified asset number. If there is no previous transaction for the asset, a date of 1900/01/00 will be displayed.
A197: Next Trn Date - this column contains the next transaction date for the selected asset. If there is no transaction after the current transaction, the day after the YTD To date on the Assets sheet will be included in this column.
A198: Depr End Date - this column contains the date on which the depreciation period for the transaction will end. This date is determined by adding the lifetime of the asset to the transaction date.
A199: Depr YTD From Date - the date from which the current financial period depreciation is calculated is included in this column. Note that if there is a subsequent transaction for an asset, a date of 1900/01/00 or the YTD From date may be included in this column.
A200: Depr YTD To Date - the date up to which the current financial period depreciation is calculated is included in this column. Note that if there is a subsequent transaction for an asset, a date of 1900/01/00 or the YTD From date may be included in this column.
A201: Depr YTD Months - this column includes the number of months on which the YTD depreciation for the transaction is based.
A202: Transaction Amount - this column contains the transaction amount that is specified in column F.
A203: Asset Historical Cost - this column contains the historical cost of the appropriate asset. The historical cost is defined as the transaction amount of the acquisition transaction that is recorded for an asset.
A204: Current Lifetime - the current lifetime of the asset as specified in column G is included in this column.
A205: Current Residual - the current residual value of the asset as specified in column H is included in this column.
A206: Previous Deemed Cost - the gross carrying value of the previous transaction for the selected asset is included in this column.
A207: Previous Residual Value - the residual value that was specified in the previous transaction for the selected asset is included in this column.
A208: Previous Lifetime - the previous lifetime specified in the previous transaction for the selected asset is included in this column.
A209: Current Accum Depr - the total accumulated depreciation that has been written off between the previous transaction date and the current transaction date for the selected asset is included in this column.
A210: Current Carrying Value - the amounts in this column are calculated as the difference between the previous deemed cost and the current accumulated depreciation.
A211: Accum Depr: Cost - the accumulated depreciation based only on the historical cost of the asset which has been written off between the previous transaction date and the current transaction date for the selected asset is included in this column.
A212: Accum Depr: Revaluation - the difference between the total accumulated depreciation and the accumulated depreciation based on only the historical cost of the asset is included in this column and represents the accumulated depreciation written of on the revaluations that have been applied to the selected asset between the previous transaction date and the current transaction date.
A213: Accum Depr: Rev <PY - the accumulated depreciation on revaluations as at the beginning of the financial period is included in this column.
A214: Previous Revaluation - this column contains the revaluation reserve balance before taking any effect that the current transaction may have on the revaluation reserve balance into account.
A215: Revaluation Surplus - if the selected transaction is a revaluation and the transaction amount that is specified in column F is greater than the current carrying value in column AA, the revaluation surplus amount is included in this column. Note that this calculation may also be influenced by any previous impairments that may have been recorded against the selected asset number.
A216: Current Revaluation - this column includes the revaluation reserve balance after taking the effect of the current transaction into account.
A217: Previous Impairment - this column contains the total of any impairment amounts that have been recorded for the selected asset (before taking the effect that the current transaction may have) into account.
A218: Impairment Value - if the selected transaction is a revaluation and the transaction amount that is specified in column F is less than the current carrying value in column AA, the asset impairment amount is included in this column as a positive value. If an asset is revalued at a value that is greater than the current carrying value and an asset impairment was previously recorded for the selected asset, the impairment will be reversed to the extent that the revaluation reserve is greater than the previous impairment value and the amount of the reversal will be reflected as a negative value in this column.
A219: Profit / (Loss) on Disposal - if the selected transaction is a disposal, the profit or loss on the disposal of the asset is included in this column. The profit or loss is calculated by deducting the current carrying value of the asset from the proceeds on disposal that is recorded in column I. Note that if the revaluation reserve for the asset is greater than nil, the revaluation reserve will also be included in the calculation of the profit or loss on disposal. This means that the reserve balance is effectively released when an asset is disposed of.
A220: YTD Total Depreciation - the YTD total depreciation for the asset is calculated in this column. This calculation is based on the gross carrying value of the asset, the lifetime of the asset and the YTD depreciation months which is calculated in column R.
A221: YTD Total Depr at Cost - the calculation in this column forms part of the YTD depreciation on the historical cost of an asset which is calculated in column AM.
A222: YTD Cost Depreciation - the YTD depreciation on the historical cost of the asset is calculated in this column. This calculation is based on the historical cost of the asset, the current lifetime of the asset and the YTD depreciation months calculated in column R.
A223: Accum Depr at PY Cost Bal - the calculations in this column forms part of the calculation of the accumulated depreciation on the historical cost of an asset as at the beginning of the financial period.
A224: Accum Depr at Cost PY - the calculations in this column forms part of the calculation of the accumulated depreciation on the historical cost of an asset as at the beginning of the financial period.
A225: Depr: Cost by Transaction - the calculations in this column indicate how much of the historical cost of an asset is depreciated as a result of each transaction. This calculation forms an integral part of the YTD and accumulated depreciation on historical cost calculations.
A226: MTD Total Depreciation - this column includes the calculation of the total MTD depreciation. Note that the month to which the calculation is applied is determined by the review date that is entered in cell E2 on the Assets sheet.
A227: Accum Depr Total at PM - the amounts in this column reflect the total accumulated depreciation as at the beginning of the current month. This calculation forms part of the total depreciation for the current month calculation.
A228: MTD Total Depr at Cost - the calculation in this column forms part of the calculation of the depreciation on historical cost for the current month.
A229: MTD Cost Depreciation - this column contains the calculation of the depreciation on the historical cost of an asset for the current month. Note that the current month is determined by the review date that is specified in cell E2 on the Assets sheet.
A230: Accum Depr Cost at PM - this calculation reflects the accumulated depreciation on the historical cost of an asset as at the beginning of the current month. The calculation forms an integral part of the calculation of the depreciation on historical cost for the current month.
A232: Note: Only one acquisition transaction can be recorded for each asset because an asset can only be acquired once. If an asset is scrapped (which is recorded as a disposal) and subsequently needs to be added back to the fixed asset register, a new asset number should be used for this purpose. The recording of duplicate asset acquisitions will result in an input error in the Error Code column and may also result in inaccurate template calculations.
A234: Note: All the depreciation, accumulated depreciation, tax allowance and deferred tax calculations that form part of the fixed asset register are automated and you therefore do not need to record any transactions in order to record any of these amounts. Also note that all the automated calculations in this template are based on the review date that is specified on the Assets sheet. You can therefore roll the template forward for subsequent periods or back to previous periods by simply changing the review date on the Assets sheet.
A236: All the column headings on the Transact sheet contain a filter selection arrow. These selection arrows indicate that the Filter feature has been activated on the sheet. The Filter feature can be used to filter the data on the sheet in order to display only certain asset records on the sheet.
A238: Error Codes
A240: The following error codes may result from inaccurate input on the Assets and Transact sheets and will be displayed in the Error Code columns on the appropriate sheet. The heading of the affected input column will also be highlighted in orange in order to indicate that an error is present in the appropriate column:
A242: ■ E1 - this error code means that a duplicate asset number has been created on the Assets sheet. If you delete the row that contains the duplicate asset number, the error is resolved.
A243: ■ E2 - this error code means that the asset category that needs to be selected in column E on the Assets sheet is blank or does not exist. Select a valid asset category from the list box in order to resolve the error. Note that all the asset categories that are included on the Set-up sheet are included in the list box.
A244: ■ E3 - this error code means that the asset number that needs to be selected in column C on the Transact sheet is blank or does not exist. Select a valid asset number from the list box in order to resolve the error. Note that all the asset numbers that are recorded on the Assets sheet are included in the list box.
A245: ■ E4 - this error code means that the transaction type that needs to be selected in column B on the Transact sheet is blank or does not exist. Select a valid transaction type from the list box in order to resolve the error. Note that this error may also be displayed in you attempt to record a transaction for an asset that has been disposed of previously. Once a disposal is recorded for an asset (even if the asset has only been scrapped and not actually disposed of), any subsequent transactions need to be recorded by using a new asset number.
A246: ■ E5 - this error code means that more than one acquisition transaction has been recorded for the same asset. An asset can only be acquired once. If you therefore need to bring the asset back into the fixed asset register after perhaps recording a disposal transaction, a new asset number must be used.
A247: ■ E6 - this error code means that an invalid transaction amount has been recorded for the selected transaction type. All transaction amounts should be recorded as positive amounts and a nil amount needs to be entered for all disposal transactions.
A248: ■ E7 - this error code means that an invalid lifetime has been recorded for the selected transaction type. All asset lifetimes should be recorded as positive values and a nil value needs to be entered for all disposal transactions. Note that you can also enter a nil value for acquisition or revaluation type transactions but this means that the asset will not be depreciated.
A249: ■ E8 - this error code means that an invalid residual value has been recorded for the selected transaction type. All residual values should be recorded as positive values and a nil residual value needs to be entered for all disposal transactions. Note that the residual value of an asset can also not be greater than the transaction amount that is entered in column F.
A250: ■ E9 - this error code means that an invalid proceeds on disposal amount has been recorded for the selected transaction type. All proceeds on disposal amounts should be recorded as positive values and you only need to record an amount in this column if a disposal type transaction is recorded. Note that the proceeds on the disposal of an asset can never be less than nil (even if a loss is made on the disposal of an asset) because the proceeds equal the amount that is received after selling the asset. A nil value may however need to be entered if an asset is scrapped without any compensation being received.
A251: ■ E10 - this error code means that a revaluation or disposal type transaction has been recorded for the appropriate asset on the Transact sheet before an acquisition transaction has been recorded. The first step after adding an asset number to the Assets sheet should be to record an acquisition transaction for the asset on the Transact sheet even if the asset has been donated to the business (use a transaction amount of nil).
A252: ■ E11 - this error code means that the tax code that needs to be selected in column F on the Assets sheet is blank or does not exist. Select a valid tax code from the list box in order to resolve the error. Note that all the tax codes that are recorded on the Set-up sheet are included in the list box.
A254: Note: Input errors may result in inaccurate template calculations and it is therefore imperative that all errors are resolved before reviewing the fixed asset register balances and processing any general ledger journal entries.
A256: Calculation Methodology
A258: In this section of the instructions, we'll cover the calculation methodology that is applied in order to compile a fixed asset register with this template. We cover all the different types of transactions that are included in the template and we'll explain the reasoning behind how each type of transaction is incorporated into the template calculations.
... 78 more rows

Sheet Set-up (hidden)
A1: =$C$5 -> Example (Pty) Ltd
A2: Template Set-up
A4: Business Details
A5: Business Name | C5: Example (Pty) Ltd
A7: Year-End Month | C7: 2014-02-01
A9: Income Tax % | C9: 0.28
A11: Asset Classes
A12: Code | B12: Description
A13: LB | B13: Land & Buildings
A14: PM | B14: Plant & Equipment
A15: CE | B15: Computer Equipment
A16: OE | B16: Office Equipment
A17: FF | B17: Furniture & Fixtures
A18: MV | B18: Motor Vehicles
A19: ZZ | B19: End of list
A21: Asset Categories
A22: Code | B22: Class | C22: Description | D22: Cost | E22: Acc Depr | F22: Depr | G22: Revalue | H22: Impairment | I22: Profit | J22: Def Tax BS | K22: Def Tax IS
A23: LBU01 | B23: LB | C23: Land & Buildings | D23: BS-101 | E23: BS-151 | F23: IS-401 | G23: BS-801 | H23: IS-457 | I23: IS-408 | J23: BS-750 | K23: IS-610
A24: PPM01 | B24: PM | C24: Main Production Plant | D24: BS-102 | E24: BS-152 | F24: IS-402 | G24: BS-801 | H24: IS-457 | I24: IS-408 | J24: BS-750 | K24: IS-610
A25: PPS02 | B25: PM | C25: Secondary Plant | D25: BS-103 | E25: BS-153 | F25: IS-403 | G25: BS-801 | H25: IS-457 | I25: IS-408 | J25: BS-750 | K25: IS-610
A26: EQP01 | B26: PM | C26: Primary Equipment | D26: BS-104 | E26: BS-154 | F26: IS-404 | G26: BS-801 | H26: IS-457 | I26: IS-408 | J26: BS-750 | K26: IS-610
A27: EQS01 | B27: PM | C27: Secondary Equipment | D27: BS-105 | E27: BS-155 | F27: IS-405 | G27: BS-801 | H27: IS-457 | I27: IS-408 | J27: BS-750 | K27: IS-610
A28: SMA01 | B28: PM | C28: Small Assets | D28: BS-106 | E28: BS-156 | F28: IS-406 | G28: BS-801 | H28: IS-457 | I28: IS-408 | J28: BS-750 | K28: IS-610
A29: CHW01 | B29: CE | C29: Computer Hardware | D29: BS-111 | E29: BS-161 | F29: IS-411 | G29: BS-801 | H29: IS-457 | I29: IS-408 | J29: BS-750 | K29: IS-610
A30: CSW01 | B30: CE | C30: Computer Software | D30: BS-112 | E30: BS-162 | F30: IS-412 | G30: BS-801 | H30: IS-457 | I30: IS-408 | J30: BS-750 | K30: IS-610
A31: OFE01 | B31: OE | C31: Office Equipment | D31: BS-121 | E31: BS-171 | F31: IS-421 | G31: BS-801 | H31: IS-457 | I31: IS-408 | J31: BS-750 | K31: IS-610
A32: FFX01 | B32: FF | C32: Furniture & Fixtures | D32: BS-131 | E32: BS-181 | F32: IS-431 | G32: BS-801 | H32: IS-457 | I32: IS-408 | J32: BS-750 | K32: IS-610
A33: MVH01 | B33: MV | C33: Motor Vehicles | D33: BS-142 | E33: BS-192 | F33: IS-442 | G33: BS-801 | H33: IS-457 | I33: IS-408 | J33: BS-750 | K33: IS-610
A34: ZZ | B34: End of list
A36: Tax Codes
A37: Code | B37: App | C37: Description | D37: Year 1 % | E37: Year 2 % | F37: Year 3 % | G37: Year 4 % | H37: Year 5 % | I37: 5Y Total | J37: AF
A38: A | B38: Yes | C38: Plant & Equipment - General | D38: 0.2 | E38: 0.2 | F38: 0.2 | G38: 0.2 | H38: 0.2 | I38: =SUM(D38:H38) -> 1 | J38: =IF($B38="Yes",1,0) -> 1
A39: B | B39: No | C39: Plant & Equipment - Special | D39: 0.5 | E39: 0.3 | F39: 0.2 | G39: 0 | H39: 0 | I39: =SUM(D39:H39) -> 1 | J39: =IF($B39="Yes",1,0) -> 0
A40: C | B40: Yes | C40: Buildings | D40: 0.05 | E40: 0.05 | F40: 0.05 | G40: 0.05 | H40: 0.05 | I40: 0.25 | J40: 1
A41: D | B41: Yes | C41: Small Assets | D41: 1 | E41: 0 | F41: 0 | G41: 0 | H41: 0 | I41: 1 | J41: 1
A42: E | B42: Yes | C42: Computer Equipment - Hardware | D42: 0.3333333333 | E42: 0.3333333333 | F42: 0.3333333333 | G42: 0 | H42: 0 | I42: 1 | J42: 1
A43: F | B43: Yes | C43: Computer Equipment - Software | D43: 0.5 | E43: 0.5 | F43: 0 | G43: 0 | H43: 0 | I43: 1 | J43: 1
A44: G | B44: Yes | C44: Office Equipment | D44: 0.25 | E44: 0.25 | F44: 0.25 | G44: 0.25 | H44: 0 | I44: 1 | J44: 1
A45: H | B45: Yes | C45: Furniture & Fixtures | D45: 0.1666666667 | E45: 0.1666666667 | F45: 0.1666666667 | G45: 0.1666666667 | H45: 0.1666666667 | I45: 0.8333333333 | J45: 1
A46: I | B46: Yes | C46: Motor Vehicles | D46: 0.2 | E46: 0.2 | F46: 0.2 | G46: 0.2 | H46: 0.2 | I46: 1 | J46: 1
A47: J | B47: Yes | C47: No Tax Allowance | D47: 0 | E47: 0 | F47: 0 | G47: 0 | H47: 0 | I47: 0 | J47: 1
A48: ZZ | B48: End of list
A50: Input Error Codes
A51: Code | B51: Reason
A52: E1 | B52: Duplicate asset number.
A53: E2 | B53: Asset category does not exist.
A54: E3 | B54: Asset number does not exist.
A55: E4 | B55: Transaction type is blank or invalid.
A56: E5 | B56: Duplicate asset additions recorded.
A57: E6 | B57: Invalid transaction amount for the selected transaction type.
A58: E7 | B58: Invalid asset lifetime for the selected transaction type.
A59: E8 | B59: Invalid residual value for the selected transaction type.
A60: E9 | B60: Invalid proceeds from disposal of asset.
A61: E10 | B61: Asset acquisition not recorded.
A62: E11 | B62: Tax Code does not exist.
A64: =DATE(YEAR(TODAY()),1,1) -> 2021-01-01
A65: =DATE(YEAR(TODAY()),2,1) -> 2021-02-01
A66: =DATE(YEAR(TODAY()),3,1) -> 2021-03-01
A67: =DATE(YEAR(TODAY()),4,1) -> 2021-04-01
A68: =DATE(YEAR(TODAY()),5,1) -> 2021-05-01
A69: =DATE(YEAR(TODAY()),6,1) -> 2021-06-01
A70: =DATE(YEAR(TODAY()),7,1) -> 2021-07-01
A71: =DATE(YEAR(TODAY()),8,1) -> 2021-08-01
A72: =DATE(YEAR(TODAY()),9,1) -> 2021-09-01
A73: =DATE(YEAR(TODAY()),10,1) -> 2021-10-01
A74: =DATE(YEAR(TODAY()),11,1) -> 2021-11-01
A75: =DATE(YEAR(TODAY()),12,1) -> 2021-12-01

Sheet Assets (hidden)
A1: ='Set-up'!$C$5 -> Example (Pty) Ltd | H1: YTD From | I1: YTD To | J1: MTD From | K1: MTD To
A2: Asset Set-up | D2: Review Date | E2: 2021-02-28 | H2: =IF(OR(ISBLANK($E$2)=TRUE,ISNUMBER($E$2)=FALSE),IF(MONTH(TODAY())<=MONTH('Set-up'!$C$7),DATE(YEAR(TODAY())-1,MONTH('Set-up'!$C$7)+1,1),DATE(YEAR(TODAY()),MONTH('Set-up'!$C$7)+1,1)),IF(MONTH($E$2)<=MONTH('Set-up'!$C$7),DATE(YEAR($E$2)-1,MONTH('Set-up'!$C$7)+1,1),DATE(YEAR($E$2),MONTH('Set-up'!$C$7)+1,1))) -> 2020-03-01 | I2: =IF(OR(ISBLANK($E$2)=TRUE,ISNUMBER($E$2)=FALSE),DATE(YEAR(TODAY()),MONTH(TODAY())+1,0),DATE(YEAR($E$2),MONTH($E$2)+1,0)) -> 2021-02-28 | J2: =DATE(YEAR(I2),MONTH(I2),0)+1 -> 2021-02-01 | K2: =I2 -> 2021-02-28 | X2: =SUBTOTAL(109,OFFSET(X$4,1,0,AssetCount,1)) -> 7397870 | Y2: =SUBTOTAL(109,OFFSET(Y$4,1,0,AssetCount,1)) -> 375919 | Z2: =SUBTOTAL(109,OFFSET(Z$4,1,0,AssetCount,1)) -> -4076950 | AA2: =SUBTOTAL(109,OFFSET(AA$4,1,0,AssetCount,1)) -> -235000 | AB2: =SUBTOTAL(109,OFFSET(AB$4,1,0,AssetCount,1)) -> -200000 | AC2: =SUBTOTAL(109,OFFSET(AC$4,1,0,AssetCount,1)) -> 3261839 | AD2: =SUBTOTAL(109,OFFSET(AD$4,1,0,AssetCount,1)) -> 5397789.361 | AE2: =SUBTOTAL(109,OFFSET(AE$4,1,0,AssetCount,1)) -> 391165.1167 | AF2: =SUBTOTAL(109,OFFSET(AF$4,1,0,AssetCount,1)) -> 8654.5 | AG2: =SUBTOTAL(109,OFFSET(AG$4,1,0,AssetCount,1)) -> 399819.6167 | AH2: =SUBTOTAL(109,OFFSET(AH$4,1,0,AssetCount,1)) -> -5397789.361 | AI2: =SUBTOTAL(109,OFFSET(AI$4,1,0,AssetCount,1)) -> -35833.33333 | AJ2: =SUBTOTAL(109,OFFSET(AJ$4,1,0,AssetCount,1)) -> 363986.2833 | AK2: =SUBTOTAL(109,OFFSET(AK$4,1,0,AssetCount,1)) -> 2897852.717 | AL2: =SUBTOTAL(109,OFFSET(AL$4,1,0,AssetCount,1)) -> 0 | AM2: =SUBTOTAL(109,OFFSET(AM$4,1,0,AssetCount,1)) -> 1160682.694 | AN2: =SUBTOTAL(109,OFFSET(AN$4,1,0,AssetCount,1)) -> -8654.5 | AO2: =SUBTOTAL(109,OFFSET(AO$4,1,0,AssetCount,1)) -> 1152028.194 | AP2: =SUBTOTAL(109,OFFSET(AP$4,1,0,AssetCount,1)) -> -200000 | AQ2: =SUBTOTAL(109,OFFSET(AQ$4,1,0,AssetCount,1)) -> 151990 | AR2: =SUBTOTAL(109,OFFSET(AR$4,1,0,AssetCount,1)) -> 31728.19167 | AS2: =SUBTOTAL(109,OFFSET(AS$4,1,0,AssetCount,1)) -> 808.9861111 | AT2: =SUBTOTAL(109,OFFSET(AT$4,1,0,AssetCount,1)) -> 32537.17778 | AU2: =SUBTOTAL(109,OFFSET(AU$4,1,0,AssetCount,1)) -> 2000080.639 | AV2: =SUBTOTAL(109,OFFSET(AV$4,1,0,AssetCount,1)) -> -254256.1167 | AW2: =SUBTOTAL(109,OFFSET(AW$4,1,0,AssetCount,1)) -> 1745824.522 | AX2: =SUBTOTAL(109,OFFSET(AX$4,1,0,AssetCount,1)) -> -40924.85833 | AY2: =SUBTOTAL(109,OFFSET(AY$4,1,0,AssetCount,1)) -> 1619763.972 | AZ2: =SUBTOTAL(109,OFFSET(AZ$4,1,0,AssetCount,1)) -> 226843.2167 | BA2: =SUBTOTAL(109,OFFSET(BA$4,1,0,AssetCount,1)) -> 1846607.189 | BB2: =SUBTOTAL(109,OFFSET(BB$4,1,0,AssetCount,1)) -> -6873.497222 | BC2: =SUBTOTAL(109,OFFSET(BC$4,1,0,AssetCount,1)) -> 106488.67 | BD2: =SUBTOTAL(109,OFFSET(BD$4,1,0,AssetCount,1)) -> -78707.82 | BE2: =SUBTOTAL(109,OFFSET(BE$4,1,0,AssetCount,1)) -> 27780.85 | BF2: =SUBTOTAL(109,OFFSET(BF$4,1,0,AssetCount,1)) -> -9534.39
A3: © www.excel-skills.com | X3: Assets at Cost | AD3: Accumulated Depreciation | AL3: Revaluation Reserve | AR3: Current Month Depreciation | AU3: Carrying Value at Historical Cost | AY3: Tax Values | BC3: Deferred Taxation
A4: Asset Number | B4: Asset ID Number | C4: Description | D4: Asset Type | E4: Category | F4: Tax Code | G4: Error Code | H4: Class | I4: Acquisition Date | J4: Last Trn Date | K4: Current Trn Date | L4: Last PY Trn Date | M4: Last PM Trn Date | N4: Disposal Date | O4: Proceeds on Disposal | P4: Historical Cost | Q4: Active Lifetime | R4: Active Res Value | S4: Tax Cost | T4: Current Tax % | U4: Elapsed Months PY | V4: Elapsed Months CY | W4: Elapsed Months PM | X4: AC Opening Balance | Y4: Additions | Z4: Revaluations | AA4: Disposals | AB4: Impairment | AC4: AC Closing Balance | AD4: AD Opening Balance | AE4: Depreciation - Cost | AF4: Depreciation - Revaluation | AG4: Depreciation - Total | AH4: Acc Depr - Revaluations | AI4: Acc Depr - Disposals | AJ4: AD Closing Balance | AK4: Closing Carrying Value | AL4: RR Opening Balance | AM4: Revaluation Surplus | AN4: RR Depr - Revaluation | AO4: RR Closing Balance | AP4: Impairment Write-Offs | AQ4: Profit / (Loss) on Disposal | AR4: Cost | AS4: Revaluation | AT4: Total | AU4: HC Opening Balance | AV4: HC YTD Movement | AW4: HC Closing Balance | AX4: HC MTD Movement | AY4: TV Opening Balance | AZ4: TV YTD Movement | BA4: TV Closing Balance | BB4: TV MTD Movement | BC4: DT Opening Balance | BD4: DT YTD Movement | BE4: DT Closing Balance | BF4: DT MTD Movement
A5: LB-00001 | B5: 99843 | C5: Factory Land & Buildings | D5: Owned | E5: LBU01 | F5: J | G5: =IF(COUNTIF(AssetCode,$A5)>1,"E1",IF(ISNA(VLOOKUP($E5,CatAll,1,0))=TRUE,"E2",IF(AND($I5="add!",$J5<>"add!"),"E10",IF(ISNA(VLOOKUP($F5,TaxCode,1,0))=TRUE,"E11","-")))) -> - | H5: =IF(ISNA(VLOOKUP($E5,CatAll,2,0))=TRUE,"error!",VLOOKUP($E5,CatAll,2,0)) -> LB | I5: =IF(ISERROR(LARGE(IF(TransAsset=$A5,IF(TransType="ACQ",TransIDDate,"add!"),"add!"),1)),"add!",LARGE(IF(TransAsset=$A5,IF(TransType="ACQ",TransIDDate,"add!"),"add!"),1)) -> 2015-07-20T00:00:11 | J5: =IF(ISERROR(LARGE(IF(TransAsset=$A5,TransIDDate,"add!"),1)),"add!",LARGE(IF(TransAsset=$A5,TransIDDate,"add!"),1)) -> 2020-03-01T00:00:48 | K5: =IF(ISERROR(LARGE(IF(TransAsset=$A5,IF(TransDate<($I$2+1),TransIDDate,"-"),"-"),1)),"-",LARGE(IF(TransAsset=$A5,IF(TransDate<($I$2+1),TransIDDate,"-"),"-"),1)) -> 2020-03-01T00:00:48 | L5: =IF(ISERROR(LARGE(IF(TransAsset=$A5,IF(TransDate<$H$2,TransIDDate,"-"),"-"),1)),"-",LARGE(IF(TransAsset=$A5,IF(TransDate<$H$2,TransIDDate,"-"),"-"),1)) -> 2015-07-20T00:00:11 | M5: =IF(ISERROR(LARGE(IF(TransAsset=$A5,IF(TransDate<$J$2,TransIDDate,"-"),"-"),1)),"-",LARGE(IF(TransAsset=$A5,IF(TransDate<$J$2,TransIDDate,"-"),"-"),1)) -> 2020-03-01T00:00:48 | N5: =IF(ISERROR(LARGE(IF(TransAsset=$A5,IF(TransType="DIS",TransIDDate,"-"),"-"),1)),"-",LARGE(IF(TransAsset=$A5,IF(TransType="DIS",TransIDDate,"-"),"-"),1)) -> - | O5: =IF($N5<=$I$2,SUMIFS(TransProceeds,TransAsset,$A5,TransType,"DIS"),0) -> 0 | P5: =IF($I5<=($I$2+1),SUMIFS(TransHCost,TransAsset,$A5,TransIDDate,$J5),0) -> 1500000 | Q5: =SUMIFS(TransCLife,TransAsset,$A5,TransIDDate,$K5) -> 0 | R5: =SUMIFS(TransCRes,TransAsset,$A5,TransIDDate,$K5) -> 0 | S5: =IF($I5<=($I$2+1),$P5,0) -> 1500000 | T5: =IF(ISNA(MATCH($F5,TaxCode,0))=TRUE,"code?",OFFSET('Set-up'!$D$37,MATCH($F5,TaxCode,0),MATCH($V5,TaxCurMonth,1)-1,1,1)) -> 0 | U5: =IF(ISNUMBER($I5)=FALSE,0,IF(AND($N5<>"-",$N5<$H$2),0,MAX((((YEAR($H$2)*12)+MONTH($H$2)-1)-((YEAR($I5)*12)+MONTH($I5)-1)),0))) -> 56 | V5: =IF(ISNUMBER($I5)=FALSE,0,IF(AND($N5<>"-",$N5<($I$2+1)),0,MAX((((YEAR($I$2)*12)+MONTH($I$2))-((YEAR($I5)*12)+MONTH($I5)-1)),0))) -> 68 | W5: =IF(ISNUMBER($I5)=FALSE,0,IF(AND($N5<>"-",$N5<$J$2),0,MAX((((YEAR($J$2)*12)+MONTH($J$2)-1)-((YEAR($I5)*12)+MONTH($I5)-1)),0))) -> 67 | X5: =SUMIFS(TransAmount,TransAsset,$A5,TransIDDate,$L5) -> 1500000 | Y5: =SUMIFS(TransAmount,TransAsset,$A5,TransIDDate,">="&$H$2,TransIDDate,"<"&($I$2+1),TransType,"ACQ") -> 0 | Z5: =SUMIFS(TransAmount,TransAsset,$A5,TransIDDate,">="&$H$2,TransIDDate,"<"&($I$2+1),TransType,"REV")+SUMIFS(TransImpair,TransAsset,$A5,TransIDDate,">="&$H$2,TransIDDate,"<"&($I$2+1),TransType,"REV")-SUMIFS(TransPCost,TransAsset,$A5,TransIDDate,">="&$H$2,TransIDDate,"<"&($I$2+1),TransType,"REV") -> 0 | AA5: =-SUMIFS(TransPCost,TransAsset,$A5,TransIDDate,">="&$H$2,TransIDDate,"<"&($I$2+1),TransType,"DIS") -> 0 | AB5: =-SUMIFS(TransImpair,TransAsset,$A5,TransIDDate,">="&$H$2,TransIDDate,"<"&($I$2+1),TransType,"REV") -> -200000 | AC5: =SUM(X5:AB5) -> 1300000 | AD5: =IF($L5=0,0,IF(SUMIFS(TransCLife,TransAsset,$A5,TransIDDate,$L5)=0,0,IF(($X5-(SUMIFS(TransCRes,TransAsset,$A5,TransIDDate,$L5)))/(SUMIFS(TransCLife,TransAsset,$A5,TransIDDate,$L5)*12)*(((YEAR($H$2)*12)+MONTH($H$2))-((YEAR($L5)*12)+MONTH($L5)))>=($X5-SUMIFS(TransCRes,TransAsset,$A5,TransIDDate,$L5)),$X5-SUMIFS(TransCRes,TransAsset,$A5,TransIDDate,$L5),($X5-(SUMIFS(TransCRes,TransAsset,$A5,TransIDDate,$L5)))/(SUMIFS(TransCLife,TransAsset,$A5,TransIDDate,$L5)*12)*(((YEAR($H$2)*12)+MONTH($H$2))-((YEAR($L5)*12)+MONTH($L5)))))) -> 0 | AE5: =SUMIFS(TransCCYDep,TransAsset,$A5) -> 0 | AF5: =AG5-AE5 -> 0 | AG5: =SUMIFS(TransCTYDep,TransAsset,$A5) -> 0 | AH5: =-SUMIFS(TransCAccDep,TransAsset,$A5,TransIDDate,">="&$H$2,TransIDDate,"<"&($I$2+1),TransType,"REV") -> 0 | AI5: =-SUMIFS(TransCAccDep,TransAsset,$A5,TransIDDate,">="&$H$2,TransIDDate,"<"&($I$2+1),TransType,"DIS") -> 0 | AJ5: =SUM(AD5,AG5:AI5) -> 0 | AK5: =SUM(AC5,-AJ5) -> 1300000 | AL5: =SUMIFS(TransRSurplus,TransAsset,$A5,TransIDDate,"<"&$H$2)-SUMIFS(TransRPAccDep,TransAsset,$A5,TransIDDate,"<"&$H$2) -> 0 | AM5: =AO5-AN5-AL5 -> 0 | AN5: =-AF5 -> 0 | AO5: =SUMIFS(TransRSurplus,TransAsset,$A5,TransIDDate,"<"&($I$2+1))-SUMIFS(TransRPAccDep,TransAsset,$A5,TransIDDate,"<"&$H$2)-AF5 -> 0 | AP5: =-SUMIFS(TransImpair,TransAsset,$A5,TransIDDate,">="&$H$2,TransIDDate,"<"&($I$2+1),TransType,"REV") -> -200000 | AQ5: =SUMIFS(TransProfit,TransAsset,$A5,TransIDDate,">="&$H$2,TransIDDate,"<"&($I$2+1),TransType,"DIS") -> 0 | AR5: =SUMIFS(TransCCMDep,TransAsset,$A5) -> 0 | AS5: =AT5-AR5 -> 0 | AT5: =SUMIFS(TransCTMDep,TransAsset,$A5) -> 0 | AU5: =IF($I5<$H$2,IF(AND($N5<>"-",$N5<$H$2),0,SUMIFS(TransHCost,TransAsset,$A5,TransIDDate,$J5)-SUMIFS(TransPCAccDep,TransAsset,$A5)-SUMIFS(TransImpair,TransAsset,$A5,TransIDDate,"<"&$H$2,TransType,"REV")),0) -> 1500000 | AV5: =AW5-AU5 -> -200000 | AW5: =IF($I5<($I$2+1),IF(AND($N5<>"-",$N5<($I$2+1)),0,$AU5+$Y5-$AE5+$AB5),0) -> 1300000 | AX5: =$AW5-IF($I5<$J$2,IF(AND($N5<>"-",$N5<$J$2),0,SUMIFS(TransHCost,TransAsset,$A5,TransIDDate,$J5)-SUMIFS(TransPMAccDep,TransAsset,$A5)-SUMIFS(TransImpair,TransAsset,$A5,TransIDDate,"<"&$J$2,TransType,"REV")),0) -> 0 | AY5: =IF(ISNA(MATCH($F5,TaxCode,0))=TRUE,$S5*($U5>0),MAX(($S5*($U5>0))-(($S5-SUMIFS(TransCRes,TransAsset,$A5,TransIDDate,$L5))*(IF($U5<=11,0,MIN(SUM(OFFSET('Set-up'!$D$37,MATCH($F5,TaxCode,0),0,1,MATCH($U5,TaxCumMonth,1)))+MAX(TRUNC(($U5-60)/12)*SUM(OFFSET('Set-up'!$H$37,MATCH($F5,TaxCode,0),0,1,1)),0%),100%))))-(($S5-SUMIFS(TransCRes,TransAsset,$A5,TransIDDate,$L5))*OFFSET('Set-up'!$D$37,MATCH($F5,TaxCode,0),MATCH($U5,TaxCurMonth,1)-1,1,1)*IF(AND($U5-(TRUNC($U5/12)*12)<>0,OFFSET('Set-up'!$J$37,MATCH($F5,TaxCode,0),0,1,1)=0),1,(($U5-(TRUNC($U5/12)*12))/12))),SUMIFS(TransCRes,TransAsset,$A5,TransIDDate,$L5))) -> 1500000 | AZ5: =BA5-AY5 -> 0 | BA5: =IF(ISNA(MATCH($F5,TaxCode,0))=TRUE,$S5*($V5>0),MAX(($S5*($V5>0))-(($S5-$R5)*(IF($V5<=11,0,MIN(SUM(OFFSET('Set-up'!$D$37,MATCH($F5,TaxCode,0),0,1,MATCH($V5,TaxCumMonth,1)))+MAX(TRUNC(($V5-60)/12)*SUM(OFFSET('Set-up'!$H$37,MATCH($F5,TaxCode,0),0,1,1)),0%),100%))))-(($S5-$R5)*OFFSET('Set-up'!$D$37,MATCH($F5,TaxCode,0),MATCH($V5,TaxCurMonth,1)-1,1,1)*IF(AND($V5-(TRUNC($V5/12)*12)<>0,OFFSET('Set-up'!$J$37,MATCH($F5,TaxCode,0),0,1,1)=0),1,(($V5-(TRUNC($V5/12)*12))/12))),$R5*($V5>0))) -> 1500000 | BB5: =$BA5-IF(ISNA(MATCH($F5,TaxCode,0))=TRUE,$S5*($W5>0),MAX(($S5*($W5>0))-(($S5-SUMIFS(TransCRes,TransAsset,$A5,TransIDDate,$M5))*(IF($W5<=11,0,MIN(SUM(OFFSET('Set-up'!$D$37,MATCH($F5,TaxCode,0),0,1,MATCH($W5,TaxCumMonth,1)))+MAX(TRUNC(($W5-60)/12)*SUM(OFFSET('Set-up'!$H$37,MATCH($F5,TaxCode,0),0,1,1)),0%),100%))))-(($S5-SUMIFS(TransCRes,TransAsset,$A5,TransIDDate,$M5))*OFFSET('Set-up'!$D$37,MATCH($F5,TaxCode,0),MATCH($W5,TaxCurMonth,1)-1,1,1)*IF(AND($W5-(TRUNC($W5/12)*12)<>0,OFFSET('Set-up'!$J$37,MATCH($F5,TaxCode,0),0,1,1)=0),1,(($W5-(TRUNC($W5/12)*12))/12))),SUMIFS(TransCRes,TransAsset,$A5,TransIDDate,$M5)*($W5>0))) -> 0 | BC5: =IF(ISNUMBER('Set-up'!$C$9)=FALSE,0,IF($F5="J",0,ROUND(($AU5-$AY5)*'Set-up'!$C$9,2))) -> 0 | BD5: =BE5-BC5 -> 0 | BE5: =IF(ISNUMBER('Set-up'!$C$9)=FALSE,0,IF($F5="J",0,ROUND(($AW5-$BA5)*'Set-up'!$C$9,2))) -> 0 | BF5: =IF(ISNUMBER('Set-up'!$C$9)=FALSE,0,IF($F5="J",0,ROUND(($AX5-$BB5)*'Set-up'!$C$9,2))) -> 0
A6: PP-00001 | B6: 87978921 | C6: Aquino V40 X 1 (Melda control) | D6: Owned | E6: PPM01 | F6: B | G6: =IF(COUNTIF(AssetCode,$A6)>1,"E1",IF(ISNA(VLOOKUP($E6,CatAll,1,0))=TRUE,"E2",IF(AND($I6="add!",$J6<>"add!"),"E10",IF(ISNA(VLOOKUP($F6,TaxCode,1,0))=TRUE,"E11","-")))) -> - | H6: PM | I6: =IF(ISERROR(LARGE(IF(TransAsset=$A6,IF(TransType="ACQ",TransIDDate,"add!"),"add!"),1)),"add!",LARGE(IF(TransAsset=$A6,IF(TransType="ACQ",TransIDDate,"add!"),"add!"),1)) -> 2015-07-20T00:00:14 | J6: =IF(ISERROR(LARGE(IF(TransAsset=$A6,TransIDDate,"add!"),1)),"add!",LARGE(IF(TransAsset=$A6,TransIDDate,"add!"),1)) -> 2020-03-01T00:00:52 | K6: =IF(ISERROR(LARGE(IF(TransAsset=$A6,IF(TransDate<($I$2+1),TransIDDate,"-"),"-"),1)),"-",LARGE(IF(TransAsset=$A6,IF(TransDate<($I$2+1),TransIDDate,"-"),"-"),1)) -> 2020-03-01T00:00:52 | L6: =IF(ISERROR(LARGE(IF(TransAsset=$A6,IF(TransDate<$H$2,TransIDDate,"-"),"-"),1)),"-",LARGE(IF(TransAsset=$A6,IF(TransDate<$H$2,TransIDDate,"-"),"-"),1)) -> 2015-07-20T00:00:14 | M6: =IF(ISERROR(LARGE(IF(TransAsset=$A6,IF(TransDate<$J$2,TransIDDate,"-"),"-"),1)),"-",LARGE(IF(TransAsset=$A6,IF(TransDate<$J$2,TransIDDate,"-"),"-"),1)) -> 2020-03-01T00:00:52 | N6: =IF(ISERROR(LARGE(IF(TransAsset=$A6,IF(TransType="DIS",TransIDDate,"-"),"-"),1)),"-",LARGE(IF(TransAsset=$A6,IF(TransType="DIS",TransIDDate,"-"),"-"),1)) -> - | O6: =IF($N6<=$I$2,SUMIFS(TransProceeds,TransAsset,$A6,TransType,"DIS"),0) -> 0 | P6: =IF($I6<=($I$2+1),SUMIFS(TransHCost,TransAsset,$A6,TransIDDate,$J6),0) -> 120000 | Q6: 5 | R6: 0 | S6: 120000 | T6: =IF(ISNA(MATCH($F6,TaxCode,0))=TRUE,"code?",OFFSET('Set-up'!$D$37,MATCH($F6,TaxCode,0),MATCH($V6,TaxCurMonth,1)-1,1,1)) -> 0 | U6: 56 | V6: 68 | W6: 67 | X6: 120000 | Y6: 0 | Z6: -80000 | AA6: 0 | AB6: 0 | AC6: =SUM(X6:AB6) -> 40000 | AD6: =IF($L6=0,0,IF(SUMIFS(TransCLife,TransAsset,$A6,TransIDDate,$L6)=0,0,IF(($X6-(SUMIFS(TransCRes,TransAsset,$A6,TransIDDate,$L6)))/(SUMIFS(TransCLife,TransAsset,$A6,TransIDDate,$L6)*12)*(((YEAR($H$2)*12)+MONTH($H$2))-((YEAR($L6)*12)+MONTH($L6)))>=($X6-SUMIFS(TransCRes,TransAsset,$A6,TransIDDate,$L6)),$X6-SUMIFS(TransCRes,TransAsset,$A6,TransIDDate,$L6),($X6-(SUMIFS(TransCRes,TransAsset,$A6,TransIDDate,$L6)))/(SUMIFS(TransCLife,TransAsset,$A6,TransIDDate,$L6)*12)*(((YEAR($H$2)*12)+MONTH($H$2))-((YEAR($L6)*12)+MONTH($L6)))))) -> 112000 | AE6: 8000 | AF6: =AG6-AE6 -> 0 | AG6: 8000 | AH6: -112000 | AI6: 0 | AJ6: =SUM(AD6,AG6:AI6) -> 8000 | AK6: =SUM(AC6,-AJ6) -> 32000 | AL6: 0 | AM6: =AO6-AN6-AL6 -> 32000 | AN6: =-AF6 -> 0 | AO6: 32000 | AP6: 0 | AQ6: 0 | AR6: 666.6666667 | AS6: =AT6-AR6 -> 0 | AT6: 666.6666667 | AU6: =IF($I6<$H$2,IF(AND($N6<>"-",$N6<$H$2),0,SUMIFS(TransHCost,TransAsset,$A6,TransIDDate,$J6)-SUMIFS(TransPCAccDep,TransAsset,$A6)-SUMIFS(TransImpair,TransAsset,$A6,TransIDDate,"<"&$H$2,TransType,"REV")),0) -> 8000 | AV6: =AW6-AU6 -> -8000 | AW6: 0 | AX6: =$AW6-IF($I6<$J$2,IF(AND($N6<>"-",$N6<$J$2),0,SUMIFS(TransHCost,TransAsset,$A6,TransIDDate,$J6)-SUMIFS(TransPMAccDep,TransAsset,$A6)-SUMIFS(TransImpair,TransAsset,$A6,TransIDDate,"<"&$J$2,TransType,"REV")),0) -> -666.6666667 | AY6: =IF(ISNA(MATCH($F6,TaxCode,0))=TRUE,$S6*($U6>0),MAX(($S6*($U6>0))-(($S6-SUMIFS(TransCRes,TransAsset,$A6,TransIDDate,$L6))*(IF($U6<=11,0,MIN(SUM(OFFSET('Set-up'!$D$37,MATCH($F6,TaxCode,0),0,1,MATCH($U6,TaxCumMonth,1)))+MAX(TRUNC(($U6-60)/12)*SUM(OFFSET('Set-up'!$H$37,MATCH($F6,TaxCode,0),0,1,1)),0%),100%))))-(($S6-SUMIFS(TransCRes,TransAsset,$A6,TransIDDate,$L6))*OFFSET('Set-up'!$D$37,MATCH($F6,TaxCode,0),MATCH($U6,TaxCurMonth,1)-1,1,1)*IF(AND($U6-(TRUNC($U6/12)*12)<>0,OFFSET('Set-up'!$J$37,MATCH($F6,TaxCode,0),0,1,1)=0),1,(($U6-(TRUNC($U6/12)*12))/12))),SUMIFS(TransCRes,TransAsset,$A6,TransIDDate,$L6))) -> 0 | AZ6: =BA6-AY6 -> 0 | BA6: =IF(ISNA(MATCH($F6,TaxCode,0))=TRUE,$S6*($V6>0),MAX(($S6*($V6>0))-(($S6-$R6)*(IF($V6<=11,0,MIN(SUM(OFFSET('Set-up'!$D$37,MATCH($F6,TaxCode,0),0,1,MATCH($V6,TaxCumMonth,1)))+MAX(TRUNC(($V6-60)/12)*SUM(OFFSET('Set-up'!$H$37,MATCH($F6,TaxCode,0),0,1,1)),0%),100%))))-(($S6-$R6)*OFFSET('Set-up'!$D$37,MATCH($F6,TaxCode,0),MATCH($V6,TaxCurMonth,1)-1,1,1)*IF(AND($V6-(TRUNC($V6/12)*12)<>0,OFFSET('Set-up'!$J$37,MATCH($F6,TaxCode,0),0,1,1)=0),1,(($V6-(TRUNC($V6/12)*12))/12))),$R6*($V6>0))) -> 0 | BB6: =$BA6-IF(ISNA(MATCH($F6,TaxCode,0))=TRUE,$S6*($W6>0),MAX(($S6*($W6>0))-(($S6-SUMIFS(TransCRes,TransAsset,$A6,TransIDDate,$M6))*(IF($W6<=11,0,MIN(SUM(OFFSET('Set-up'!$D$37,MATCH($F6,TaxCode,0),0,1,MATCH($W6,TaxCumMonth,1)))+MAX(TRUNC(($W6-60)/12)*SUM(OFFSET('Set-up'!$H$37,MATCH($F6,TaxCode,0),0,1,1)),0%),100%))))-(($S6-SUMIFS(TransCRes,TransAsset,$A6,TransIDDate,$M6))*OFFSET('Set-up'!$D$37,MATCH($F6,TaxCode,0),MATCH($W6,TaxCurMonth,1)-1,1,1)*IF(AND($W6-(TRUNC($W6/12)*12)<>0,OFFSET('Set-up'!$J$37,MATCH($F6,TaxCode,0),0,1,1)=0),1,(($W6-(TRUNC($W6/12)*12))/12))),SUMIFS(TransCRes,TransAsset,$A6,TransIDDate,$M6)*($W6>0))) -> 0 | BC6: =IF(ISNUMBER('Set-up'!$C$9)=FALSE,0,IF($F6="J",0,ROUND(($AU6-$AY6)*'Set-up'!$C$9,2))) -> 2240 | BD6: =BE6-BC6 -> -2240 | BE6: =IF(ISNUMBER('Set-up'!$C$9)=FALSE,0,IF($F6="J",0,ROUND(($AW6-$BA6)*'Set-up'!$C$9,2))) -> 0 | BF6: =IF(ISNUMBER('Set-up'!$C$9)=FALSE,0,IF($F6="J",0,ROUND(($AX6-$BB6)*'Set-up'!$C$9,2))) -> -186.67
A7: PP-00002 | B7: 87879827 | C7: Aquino LTC-10 x 1 | D7: Owned | E7: PPM01 | F7: B | G7: =IF(COUNTIF(AssetCode,$A7)>1,"E1",IF(ISNA(VLOOKUP($E7,CatAll,1,0))=TRUE,"E2",IF(AND($I7="add!",$J7<>"add!"),"E10",IF(ISNA(VLOOKUP($F7,TaxCode,1,0))=TRUE,"E11","-")))) -> - | H7: PM | I7: =IF(ISERROR(LARGE(IF(TransAsset=$A7,IF(TransType="ACQ",TransIDDate,"add!"),"add!"),1)),"add!",LARGE(IF(TransAsset=$A7,IF(TransType="ACQ",TransIDDate,"add!"),"add!"),1)) -> 2015-07-20T00:00:15 | J7: =IF(ISERROR(LARGE(IF(TransAsset=$A7,TransIDDate,"add!"),1)),"add!",LARGE(IF(TransAsset=$A7,TransIDDate,"add!"),1)) -> 2020-03-01T00:00:53 | K7: =IF(ISERROR(LARGE(IF(TransAsset=$A7,IF(TransDate<($I$2+1),TransIDDate,"-"),"-"),1)),"-",LARGE(IF(TransAsset=$A7,IF(TransDate<($I$2+1),TransIDDate,"-"),"-"),1)) -> 2020-03-01T00:00:53 | L7: =IF(ISERROR(LARGE(IF(TransAsset=$A7,IF(TransDate<$H$2,TransIDDate,"-"),"-"),1)),"-",LARGE(IF(TransAsset=$A7,IF(TransDate<$H$2,TransIDDate,"-"),"-"),1)) -> 2015-07-20T00:00:15 | M7: =IF(ISERROR(LARGE(IF(TransAsset=$A7,IF(TransDate<$J$2,TransIDDate,"-"),"-"),1)),"-",LARGE(IF(TransAsset=$A7,IF(TransDate<$J$2,TransIDDate,"-"),"-"),1)) -> 2020-03-01T00:00:53 | N7: =IF(ISERROR(LARGE(IF(TransAsset=$A7,IF(TransType="DIS",TransIDDate,"-"),"-"),1)),"-",LARGE(IF(TransAsset=$A7,IF(TransType="DIS",TransIDDate,"-"),"-"),1)) -> - | O7: =IF($N7<=$I$2,SUMIFS(TransProceeds,TransAsset,$A7,TransType,"DIS"),0) -> 0 | P7: =IF($I7<=($I$2+1),SUMIFS(TransHCost,TransAsset,$A7,TransIDDate,$J7),0) -> 200000 | Q7: 5 | R7: 0 | S7: 200000 | T7: =IF(ISNA(MATCH($F7,TaxCode,0))=TRUE,"code?",OFFSET('Set-up'!$D$37,MATCH($F7,TaxCode,0),MATCH($V7,TaxCurMonth,1)-1,1,1)) -> 0 | U7: 56 | V7: 68 | W7: 67 | X7: 200000 | Y7: 0 | Z7: -140000 | AA7: 0 | AB7: 0 | AC7: 60000 | AD7: =IF($L7=0,0,IF(SUMIFS(TransCLife,TransAsset,$A7,TransIDDate,$L7)=0,0,IF(($X7-(SUMIFS(TransCRes,TransAsset,$A7,TransIDDate,$L7)))/(SUMIFS(TransCLife,TransAsset,$A7,TransIDDate,$L7)*12)*(((YEAR($H$2)*12)+MONTH($H$2))-((YEAR($L7)*12)+MONTH($L7)))>=($X7-SUMIFS(TransCRes,TransAsset,$A7,TransIDDate,$L7)),$X7-SUMIFS(TransCRes,TransAsset,$A7,TransIDDate,$L7),($X7-(SUMIFS(TransCRes,TransAsset,$A7,TransIDDate,$L7)))/(SUMIFS(TransCLife,TransAsset,$A7,TransIDDate,$L7)*12)*(((YEAR($H$2)*12)+MONTH($H$2))-((YEAR($L7)*12)+MONTH($L7)))))) -> 186666.6667 | AE7: 12000 | AF7: 0 | AG7: 12000 | AH7: -186666.6667 | AI7: 0 | AJ7: 12000 | AK7: 48000 | AL7: 0 | AM7: 46666.66667 | AN7: 0 | AO7: 46666.66667 | AP7: 0 | AQ7: 0 | AR7: 1000 | AS7: 0 | AT7: 1000 | AU7: =IF($I7<$H$2,IF(AND($N7<>"-",$N7<$H$2),0,SUMIFS(TransHCost,TransAsset,$A7,TransIDDate,$J7)-SUMIFS(TransPCAccDep,TransAsset,$A7)-SUMIFS(TransImpair,TransAsset,$A7,TransIDDate,"<"&$H$2,TransType,"REV")),0) -> 13333.33333 | AV7: -12000 | AW7: 1333.333333 | AX7: =$AW7-IF($I7<$J$2,IF(AND($N7<>"-",$N7<$J$2),0,SUMIFS(TransHCost,TransAsset,$A7,TransIDDate,$J7)-SUMIFS(TransPMAccDep,TransAsset,$A7)-SUMIFS(TransImpair,TransAsset,$A7,TransIDDate,"<"&$J$2,TransType,"REV")),0) -> -1000 | AY7: =IF(ISNA(MATCH($F7,TaxCode,0))=TRUE,$S7*($U7>0),MAX(($S7*($U7>0))-(($S7-SUMIFS(TransCRes,TransAsset,$A7,TransIDDate,$L7))*(IF($U7<=11,0,MIN(SUM(OFFSET('Set-up'!$D$37,MATCH($F7,TaxCode,0),0,1,MATCH($U7,TaxCumMonth,1)))+MAX(TRUNC(($U7-60)/12)*SUM(OFFSET('Set-up'!$H$37,MATCH($F7,TaxCode,0),0,1,1)),0%),100%))))-(($S7-SUMIFS(TransCRes,TransAsset,$A7,TransIDDate,$L7))*OFFSET('Set-up'!$D$37,MATCH($F7,TaxCode,0),MATCH($U7,TaxCurMonth,1)-1,1,1)*IF(AND($U7-(TRUNC($U7/12)*12)<>0,OFFSET('Set-up'!$J$37,MATCH($F7,TaxCode,0),0,1,1)=0),1,(($U7-(TRUNC($U7/12)*12))/12))),SUMIFS(TransCRes,TransAsset,$A7,TransIDDate,$L7))) -> 0 | AZ7: 0 | BA7: =IF(ISNA(MATCH($F7,TaxCode,0))=TRUE,$S7*($V7>0),MAX(($S7*($V7>0))-(($S7-$R7)*(IF($V7<=11,0,MIN(SUM(OFFSET('Set-up'!$D$37,MATCH($F7,TaxCode,0),0,1,MATCH($V7,TaxCumMonth,1)))+MAX(TRUNC(($V7-60)/12)*SUM(OFFSET('Set-up'!$H$37,MATCH($F7,TaxCode,0),0,1,1)),0%),100%))))-(($S7-$R7)*OFFSET('Set-up'!$D$37,MATCH($F7,TaxCode,0),MATCH($V7,TaxCurMonth,1)-1,1,1)*IF(AND($V7-(TRUNC($V7/12)*12)<>0,OFFSET('Set-up'!$J$37,MATCH($F7,TaxCode,0),0,1,1)=0),1,(($V7-(TRUNC($V7/12)*12))/12))),$R7*($V7>0))) -> 0 | BB7: =$BA7-IF(ISNA(MATCH($F7,TaxCode,0))=TRUE,$S7*($W7>0),MAX(($S7*($W7>0))-(($S7-SUMIFS(TransCRes,TransAsset,$A7,TransIDDate,$M7))*(IF($W7<=11,0,MIN(SUM(OFFSET('Set-up'!$D$37,MATCH($F7,TaxCode,0),0,1,MATCH($W7,TaxCumMonth,1)))+MAX(TRUNC(($W7-60)/12)*SUM(OFFSET('Set-up'!$H$37,MATCH($F7,TaxCode,0),0,1,1)),0%),100%))))-(($S7-SUMIFS(TransCRes,TransAsset,$A7,TransIDDate,$M7))*OFFSET('Set-up'!$D$37,MATCH($F7,TaxCode,0),MATCH($W7,TaxCurMonth,1)-1,1,1)*IF(AND($W7-(TRUNC($W7/12)*12)<>0,OFFSET('Set-up'!$J$37,MATCH($F7,TaxCode,0),0,1,1)=0),1,(($W7-(TRUNC($W7/12)*12))/12))),SUMIFS(TransCRes,TransAsset,$A7,TransIDDate,$M7)*($W7>0))) -> 0 | BC7: =IF(ISNUMBER('Set-up'!$C$9)=FALSE,0,IF($F7="J",0,ROUND(($AU7-$AY7)*'Set-up'!$C$9,2))) -> 3733.33 | BD7: -3360 | BE7: =IF(ISNUMBER('Set-up'!$C$9)=FALSE,0,IF($F7="J",0,ROUND(($AW7-$BA7)*'Set-up'!$C$9,2))) -> 373.33 | BF7: =IF(ISNUMBER('Set-up'!$C$9)=FALSE,0,IF($F7="J",0,ROUND(($AX7-$BB7)*'Set-up'!$C$9,2))) -> -280
A8: PP-00003 | B8: 98099812 | C8: V25 Machining centre x 1 | D8: Owned | E8: PPM01 | F8: B | G8: =IF(COUNTIF(AssetCode,$A8)>1,"E1",IF(ISNA(VLOOKUP($E8,CatAll,1,0))=TRUE,"E2",IF(AND($I8="add!",$J8<>"add!"),"E10",IF(ISNA(VLOOKUP($F8,TaxCode,1,0))=TRUE,"E11","-")))) -> - | H8: PM | I8: =IF(ISERROR(LARGE(IF(TransAsset=$A8,IF(TransType="ACQ",TransIDDate,"add!"),"add!"),1)),"add!",LARGE(IF(TransAsset=$A8,IF(TransType="ACQ",TransIDDate,"add!"),"add!"),1)) -> 2015-07-20T00:00:16 | J8: =IF(ISERROR(LARGE(IF(TransAsset=$A8,TransIDDate,"add!"),1)),"add!",LARGE(IF(TransAsset=$A8,TransIDDate,"add!"),1)) -> 2020-03-01T00:00:54 | K8: =IF(ISERROR(LARGE(IF(TransAsset=$A8,IF(TransDate<($I$2+1),TransIDDate,"-"),"-"),1)),"-",LARGE(IF(TransAsset=$A8,IF(TransDate<($I$2+1),TransIDDate,"-"),"-"),1)) -> 2020-03-01T00:00:54 | L8: =IF(ISERROR(LARGE(IF(TransAsset=$A8,IF(TransDate<$H$2,TransIDDate,"-"),"-"),1)),"-",LARGE(IF(TransAsset=$A8,IF(TransDate<$H$2,TransIDDate,"-"),"-"),1)) -> 2015-07-20T00:00:16 | M8: =IF(ISERROR(LARGE(IF(TransAsset=$A8,IF(TransDate<$J$2,TransIDDate,"-"),"-"),1)),"-",LARGE(IF(TransAsset=$A8,IF(TransDate<$J$2,TransIDDate,"-"),"-"),1)) -> 2020-03-01T00:00:54 | N8: =IF(ISERROR(LARGE(IF(TransAsset=$A8,IF(TransType="DIS",TransIDDate,"-"),"-"),1)),"-",LARGE(IF(TransAsset=$A8,IF(TransType="DIS",TransIDDate,"-"),"-"),1)) -> - | O8: =IF($N8<=$I$2,SUMIFS(TransProceeds,TransAsset,$A8,TransType,"DIS"),0) -> 0 | P8: =IF($I8<=($I$2+1),SUMIFS(TransHCost,TransAsset,$A8,TransIDDate,$J8),0) -> 250000 | Q8: 5 | R8: 0 | S8: 250000 | T8: =IF(ISNA(MATCH($F8,TaxCode,0))=TRUE,"code?",OFFSET('Set-up'!$D$37,MATCH($F8,TaxCode,0),MATCH($V8,TaxCurMonth,1)-1,1,1)) -> 0 | U8: 56 | V8: 68 | W8: 67 | X8: 250000 | Y8: 0 | Z8: -175000 | AA8: 0 | AB8: 0 | AC8: 75000 | AD8: =IF($L8=0,0,IF(SUMIFS(TransCLife,TransAsset,$A8,TransIDDate,$L8)=0,0,IF(($X8-(SUMIFS(TransCRes,TransAsset,$A8,TransIDDate,$L8)))/(SUMIFS(TransCLife,TransAsset,$A8,TransIDDate,$L8)*12)*(((YEAR($H$2)*12)+MONTH($H$2))-((YEAR($L8)*12)+MONTH($L8)))>=($X8-SUMIFS(TransCRes,TransAsset,$A8,TransIDDate,$L8)),$X8-SUMIFS(TransCRes,TransAsset,$A8,TransIDDate,$L8),($X8-(SUMIFS(TransCRes,TransAsset,$A8,TransIDDate,$L8)))/(SUMIFS(TransCLife,TransAsset,$A8,TransIDDate,$L8)*12)*(((YEAR($H$2)*12)+MONTH($H$2))-((YEAR($L8)*12)+MONTH($L8)))))) -> 233333.3333 | AE8: 15000 | AF8: 0 | AG8: 15000 | AH8: -233333.3333 | AI8: 0 | AJ8: 15000 | AK8: 60000 | AL8: 0 | AM8: 58333.33333 | AN8: 0 | AO8: 58333.33333 | AP8: 0 | AQ8: 0 | AR8: 1250 | AS8: 0 | AT8: 1250 | AU8: =IF($I8<$H$2,IF(AND($N8<>"-",$N8<$H$2),0,SUMIFS(TransHCost,TransAsset,$A8,TransIDDate,$J8)-SUMIFS(TransPCAccDep,TransAsset,$A8)-SUMIFS(TransImpair,TransAsset,$A8,TransIDDate,"<"&$H$2,TransType,"REV")),0) -> 16666.66667 | AV8: -15000 | AW8: 1666.666667 | AX8: =$AW8-IF($I8<$J$2,IF(AND($N8<>"-",$N8<$J$2),0,SUMIFS(TransHCost,TransAsset,$A8,TransIDDate,$J8)-SUMIFS(TransPMAccDep,TransAsset,$A8)-SUMIFS(TransImpair,TransAsset,$A8,TransIDDate,"<"&$J$2,TransType,"REV")),0) -> -1250 | AY8: =IF(ISNA(MATCH($F8,TaxCode,0))=TRUE,$S8*($U8>0),MAX(($S8*($U8>0))-(($S8-SUMIFS(TransCRes,TransAsset,$A8,TransIDDate,$L8))*(IF($U8<=11,0,MIN(SUM(OFFSET('Set-up'!$D$37,MATCH($F8,TaxCode,0),0,1,MATCH($U8,TaxCumMonth,1)))+MAX(TRUNC(($U8-60)/12)*SUM(OFFSET('Set-up'!$H$37,MATCH($F8,TaxCode,0),0,1,1)),0%),100%))))-(($S8-SUMIFS(TransCRes,TransAsset,$A8,TransIDDate,$L8))*OFFSET('Set-up'!$D$37,MATCH($F8,TaxCode,0),MATCH($U8,TaxCurMonth,1)-1,1,1)*IF(AND($U8-(TRUNC($U8/12)*12)<>0,OFFSET('Set-up'!$J$37,MATCH($F8,TaxCode,0),0,1,1)=0),1,(($U8-(TRUNC($U8/12)*12))/12))),SUMIFS(TransCRes,TransAsset,$A8,TransIDDate,$L8))) -> 0 | AZ8: 0 | BA8: =IF(ISNA(MATCH($F8,TaxCode,0))=TRUE,$S8*($V8>0),MAX(($S8*($V8>0))-(($S8-$R8)*(IF($V8<=11,0,MIN(SUM(OFFSET('Set-up'!$D$37,MATCH($F8,TaxCode,0),0,1,MATCH($V8,TaxCumMonth,1)))+MAX(TRUNC(($V8-60)/12)*SUM(OFFSET('Set-up'!$H$37,MATCH($F8,TaxCode,0),0,1,1)),0%),100%))))-(($S8-$R8)*OFFSET('Set-up'!$D$37,MATCH($F8,TaxCode,0),MATCH($V8,TaxCurMonth,1)-1,1,1)*IF(AND($V8-(TRUNC($V8/12)*12)<>0,OFFSET('Set-up'!$J$37,MATCH($F8,TaxCode,0),0,1,1)=0),1,(($V8-(TRUNC($V8/12)*12))/12))),$R8*($V8>0))) -> 0 | BB8: =$BA8-IF(ISNA(MATCH($F8,TaxCode,0))=TRUE,$S8*($W8>0),MAX(($S8*($W8>0))-(($S8-SUMIFS(TransCRes,TransAsset,$A8,TransIDDate,$M8))*(IF($W8<=11,0,MIN(SUM(OFFSET('Set-up'!$D$37,MATCH($F8,TaxCode,0),0,1,MATCH($W8,TaxCumMonth,1)))+MAX(TRUNC(($W8-60)/12)*SUM(OFFSET('Set-up'!$H$37,MATCH($F8,TaxCode,0),0,1,1)),0%),100%))))-(($S8-SUMIFS(TransCRes,TransAsset,$A8,TransIDDate,$M8))*OFFSET('Set-up'!$D$37,MATCH($F8,TaxCode,0),MATCH($W8,TaxCurMonth,1)-1,1,1)*IF(AND($W8-(TRUNC($W8/12)*12)<>0,OFFSET('Set-up'!$J$37,MATCH($F8,TaxCode,0),0,1,1)=0),1,(($W8-(TRUNC($W8/12)*12))/12))),SUMIFS(TransCRes,TransAsset,$A8,TransIDDate,$M8)*($W8>0))) -> 0 | BC8: =IF(ISNUMBER('Set-up'!$C$9)=FALSE,0,IF($F8="J",0,ROUND(($AU8-$AY8)*'Set-up'!$C$9,2))) -> 4666.67 | BD8: -4200 | BE8: =IF(ISNUMBER('Set-up'!$C$9)=FALSE,0,IF($F8="J",0,ROUND(($AW8-$BA8)*'Set-up'!$C$9,2))) -> 466.67 | BF8: =IF(ISNUMBER('Set-up'!$C$9)=FALSE,0,IF($F8="J",0,ROUND(($AX8-$BB8)*'Set-up'!$C$9,2))) -> -350
A9: PP-00004 | B9: 89098801 | C9: Supertech Grinder Mod G30A-50 x1 | D9: Owned | E9: PPM01 | F9: B | G9: =IF(COUNTIF(AssetCode,$A9)>1,"E1",IF(ISNA(VLOOKUP($E9,CatAll,1,0))=TRUE,"E2",IF(AND($I9="add!",$J9<>"add!"),"E10",IF(ISNA(VLOOKUP($F9,TaxCode,1,0))=TRUE,"E11","-")))) -> - | H9: PM | I9: =IF(ISERROR(LARGE(IF(TransAsset=$A9,IF(TransType="ACQ",TransIDDate,"add!"),"add!"),1)),"add!",LARGE(IF(TransAsset=$A9,IF(TransType="ACQ",TransIDDate,"add!"),"add!"),1)) -> 2015-07-20T00:00:17 | J9: =IF(ISERROR(LARGE(IF(TransAsset=$A9,TransIDDate,"add!"),1)),"add!",LARGE(IF(TransAsset=$A9,TransIDDate,"add!"),1)) -> 2020-03-01T00:00:55 | K9: =IF(ISERROR(LARGE(IF(TransAsset=$A9,IF(TransDate<($I$2+1),TransIDDate,"-"),"-"),1)),"-",LARGE(IF(TransAsset=$A9,IF(TransDate<($I$2+1),TransIDDate,"-"),"-"),1)) -> 2020-03-01T00:00:55 | L9: =IF(ISERROR(LARGE(IF(TransAsset=$A9,IF(TransDate<$H$2,TransIDDate,"-"),"-"),1)),"-",LARGE(IF(TransAsset=$A9,IF(TransDate<$H$2,TransIDDate,"-"),"-"),1)) -> 2015-07-20T00:00:17 | M9: =IF(ISERROR(LARGE(IF(TransAsset=$A9,IF(TransDate<$J$2,TransIDDate,"-"),"-"),1)),"-",LARGE(IF(TransAsset=$A9,IF(TransDate<$J$2,TransIDDate,"-"),"-"),1)) -> 2020-03-01T00:00:55 | N9: =IF(ISERROR(LARGE(IF(TransAsset=$A9,IF(TransType="DIS",TransIDDate,"-"),"-"),1)),"-",LARGE(IF(TransAsset=$A9,IF(TransType="DIS",TransIDDate,"-"),"-"),1)) -> - | O9: =IF($N9<=$I$2,SUMIFS(TransProceeds,TransAsset,$A9,TransType,"DIS"),0) -> 0 | P9: =IF($I9<=($I$2+1),SUMIFS(TransHCost,TransAsset,$A9,TransIDDate,$J9),0) -> 915000 | Q9: 5 | R9: 0 | S9: 915000 | T9: =IF(ISNA(MATCH($F9,TaxCode,0))=TRUE,"code?",OFFSET('Set-up'!$D$37,MATCH($F9,TaxCode,0),MATCH($V9,TaxCurMonth,1)-1,1,1)) -> 0 | U9: 56 | V9: 68 | W9: 67 | X9: 915000 | Y9: 0 | Z9: -675000 | AA9: 0 | AB9: 0 | AC9: 240000 | AD9: =IF($L9=0,0,IF(SUMIFS(TransCLife,TransAsset,$A9,TransIDDate,$L9)=0,0,IF(($X9-(SUMIFS(TransCRes,TransAsset,$A9,TransIDDate,$L9)))/(SUMIFS(TransCLife,TransAsset,$A9,TransIDDate,$L9)*12)*(((YEAR($H$2)*12)+MONTH($H$2))-((YEAR($L9)*12)+MONTH($L9)))>=($X9-SUMIFS(TransCRes,TransAsset,$A9,TransIDDate,$L9)),$X9-SUMIFS(TransCRes,TransAsset,$A9,TransIDDate,$L9),($X9-(SUMIFS(TransCRes,TransAsset,$A9,TransIDDate,$L9)))/(SUMIFS(TransCLife,TransAsset,$A9,TransIDDate,$L9)*12)*(((YEAR($H$2)*12)+MONTH($H$2))-((YEAR($L9)*12)+MONTH($L9)))))) -> 854000 | AE9: 48000 | AF9: 0 | AG9: 48000 | AH9: -854000 | AI9: 0 | AJ9: 48000 | AK9: 192000 | AL9: 0 | AM9: 179000 | AN9: 0 | AO9: 179000 | AP9: 0 | AQ9: 0 | AR9: 4000 | AS9: 0 | AT9: 4000 | AU9: =IF($I9<$H$2,IF(AND($N9<>"-",$N9<$H$2),0,SUMIFS(TransHCost,TransAsset,$A9,TransIDDate,$J9)-SUMIFS(TransPCAccDep,TransAsset,$A9)-SUMIFS(TransImpair,TransAsset,$A9,TransIDDate,"<"&$H$2,TransType,"REV")),0) -> 61000 | AV9: -48000 | AW9: 13000 | AX9: =$AW9-IF($I9<$J$2,IF(AND($N9<>"-",$N9<$J$2),0,SUMIFS(TransHCost,TransAsset,$A9,TransIDDate,$J9)-SUMIFS(TransPMAccDep,TransAsset,$A9)-SUMIFS(TransImpair,TransAsset,$A9,TransIDDate,"<"&$J$2,TransType,"REV")),0) -> -4000 | AY9: =IF(ISNA(MATCH($F9,TaxCode,0))=TRUE,$S9*($U9>0),MAX(($S9*($U9>0))-(($S9-SUMIFS(TransCRes,TransAsset,$A9,TransIDDate,$L9))*(IF($U9<=11,0,MIN(SUM(OFFSET('Set-up'!$D$37,MATCH($F9,TaxCode,0),0,1,MATCH($U9,TaxCumMonth,1)))+MAX(TRUNC(($U9-60)/12)*SUM(OFFSET('Set-up'!$H$37,MATCH($F9,TaxCode,0),0,1,1)),0%),100%))))-(($S9-SUMIFS(TransCRes,TransAsset,$A9,TransIDDate,$L9))*OFFSET('Set-up'!$D$37,MATCH($F9,TaxCode,0),MATCH($U9,TaxCurMonth,1)-1,1,1)*IF(AND($U9-(TRUNC($U9/12)*12)<>0,OFFSET('Set-up'!$J$37,MATCH($F9,TaxCode,0),0,1,1)=0),1,(($U9-(TRUNC($U9/12)*12))/12))),SUMIFS(TransCRes,TransAsset,$A9,TransIDDate,$L9))) -> 0 | AZ9: 0 | BA9: =IF(ISNA(MATCH($F9,TaxCode,0))=TRUE,$S9*($V9>0),MAX(($S9*($V9>0))-(($S9-$R9)*(IF($V9<=11,0,MIN(SUM(OFFSET('Set-up'!$D$37,MATCH($F9,TaxCode,0),0,1,MATCH($V9,TaxCumMonth,1)))+MAX(TRUNC(($V9-60)/12)*SUM(OFFSET('Set-up'!$H$37,MATCH($F9,TaxCode,0),0,1,1)),0%),100%))))-(($S9-$R9)*OFFSET('Set-up'!$D$37,MATCH($F9,TaxCode,0),MATCH($V9,TaxCurMonth,1)-1,1,1)*IF(AND($V9-(TRUNC($V9/12)*12)<>0,OFFSET('Set-up'!$J$37,MATCH($F9,TaxCode,0),0,1,1)=0),1,(($V9-(TRUNC($V9/12)*12))/12))),$R9*($V9>0))) -> 0 | BB9: =$BA9-IF(ISNA(MATCH($F9,TaxCode,0))=TRUE,$S9*($W9>0),MAX(($S9*($W9>0))-(($S9-SUMIFS(TransCRes,TransAsset,$A9,TransIDDate,$M9))*(IF($W9<=11,0,MIN(SUM(OFFSET('Set-up'!$D$37,MATCH($F9,TaxCode,0),0,1,MATCH($W9,TaxCumMonth,1)))+MAX(TRUNC(($W9-60)/12)*SUM(OFFSET('Set-up'!$H$37,MATCH($F9,TaxCode,0),0,1,1)),0%),100%))))-(($S9-SUMIFS(TransCRes,TransAsset,$A9,TransIDDate,$M9))*OFFSET('Set-up'!$D$37,MATCH($F9,TaxCode,0),MATCH($W9,TaxCurMonth,1)-1,1,1)*IF(AND($W9-(TRUNC($W9/12)*12)<>0,OFFSET('Set-up'!$J$37,MATCH($F9,TaxCode,0),0,1,1)=0),1,(($W9-(TRUNC($W9/12)*12))/12))),SUMIFS(TransCRes,TransAsset,$A9,TransIDDate,$M9)*($W9>0))) -> 0 | BC9: =IF(ISNUMBER('Set-up'!$C$9)=FALSE,0,IF($F9="J",0,ROUND(($AU9-$AY9)*'Set-up'!$C$9,2))) -> 17080 | BD9: -13440 | BE9: =IF(ISNUMBER('Set-up'!$C$9)=FALSE,0,IF($F9="J",0,ROUND(($AW9-$BA9)*'Set-up'!$C$9,2))) -> 3640 | BF9: =IF(ISNUMBER('Set-up'!$C$9)=FALSE,0,IF($F9="J",0,ROUND(($AX9-$BB9)*'Set-up'!$C$9,2))) -> -1120
A10: PP-00005 | B10: 90393132 | C10: Aquino V40 Cnc Mill | D10: Owned | E10: PPM01 | F10: B | G10: =IF(COUNTIF(AssetCode,$A10)>1,"E1",IF(ISNA(VLOOKUP($E10,CatAll,1,0))=TRUE,"E2",IF(AND($I10="add!",$J10<>"add!"),"E10",IF(ISNA(VLOOKUP($F10,TaxCode,1,0))=TRUE,"E11","-")))) -> - | H10: PM | I10: =IF(ISERROR(LARGE(IF(TransAsset=$A10,IF(TransType="ACQ",TransIDDate,"add!"),"add!"),1)),"add!",LARGE(IF(TransAsset=$A10,IF(TransType="ACQ",TransIDDate,"add!"),"add!"),1)) -> 2015-07-20T00:00:18 | J10: =IF(ISERROR(LARGE(IF(TransAsset=$A10,TransIDDate,"add!"),1)),"add!",LARGE(IF(TransAsset=$A10,TransIDDate,"add!"),1)) -> 2020-03-01T00:00:56 | K10: =IF(ISERROR(LARGE(IF(TransAsset=$A10,IF(TransDate<($I$2+1),TransIDDate,"-"),"-"),1)),"-",LARGE(IF(TransAsset=$A10,IF(TransDate<($I$2+1),TransIDDate,"-"),"-"),1)) -> 2020-03-01T00:00:56 | L10: =IF(ISERROR(LARGE(IF(TransAsset=$A10,IF(TransDate<$H$2,TransIDDate,"-"),"-"),1)),"-",LARGE(IF(TransAsset=$A10,IF(TransDate<$H$2,TransIDDate,"-"),"-"),1)) -> 2015-07-20T00:00:18 | M10: =IF(ISERROR(LARGE(IF(TransAsset=$A10,IF(TransDate<$J$2,TransIDDate,"-"),"-"),1)),"-",LARGE(IF(TransAsset=$A10,IF(TransDate<$J$2,TransIDDate,"-"),"-"),1)) -> 2020-03-01T00:00:56 | N10: =IF(ISERROR(LARGE(IF(TransAsset=$A10,IF(TransType="DIS",TransIDDate,"-"),"-"),1)),"-",LARGE(IF(TransAsset=$A10,IF(TransType="DIS",TransIDDate,"-"),"-"),1)) -> - | O10: =IF($N10<=$I$2,SUMIFS(TransProceeds,TransAsset,$A10,TransType,"DIS"),0) -> 0 | P10: =IF($I10<=($I$2+1),SUMIFS(TransHCost,TransAsset,$A10,TransIDDate,$J10),0) -> 500000 | Q10: 5 | R10: 0 | S10: 500000 | T10: =IF(ISNA(MATCH($F10,TaxCode,0))=TRUE,"code?",OFFSET('Set-up'!$D$37,MATCH($F10,TaxCode,0),MATCH($V10,TaxCurMonth,1)-1,1,1)) -> 0 | U10: 56 | V10: 68 | W10: 67 | X10: 500000 | Y10: 0 | Z10: -358000 | AA10: 0 | AB10: 0 | AC10: 142000 | AD10: =IF($L10=0,0,IF(SUMIFS(TransCLife,TransAsset,$A10,TransIDDate,$L10)=0,0,IF(($X10-(SUMIFS(TransCRes,TransAsset,$A10,TransIDDate,$L10)))/(SUMIFS(TransCLife,TransAsset,$A10,TransIDDate,$L10)*12)*(((YEAR($H$2)*12)+MONTH($H$2))-((YEAR($L10)*12)+MONTH($L10)))>=($X10-SUMIFS(TransCRes,TransAsset,$A10,TransIDDate,$L10)),$X10-SUMIFS(TransCRes,TransAsset,$A10,TransIDDate,$L10),($X10-(SUMIFS(TransCRes,TransAsset,$A10,TransIDDate,$L10)))/(SUMIFS(TransCLife,TransAsset,$A10,TransIDDate,$L10)*12)*(((YEAR($H$2)*12)+MONTH($H$2))-((YEAR($L10)*12)+MONTH($L10)))))) -> 466666.6667 | AE10: 28400 | AF10: 0 | AG10: 28400 | AH10: -466666.6667 | AI10: 0 | AJ10: 28400 | AK10: 113600 | AL10: 0 | AM10: 108666.6667 | AN10: 0 | AO10: 108666.6667 | AP10: 0 | AQ10: 0 | AR10: 2366.666667 | AS10: 0 | AT10: 2366.666667 | AU10: =IF($I10<$H$2,IF(AND($N10<>"-",$N10<$H$2),0,SUMIFS(TransHCost,TransAsset,$A10,TransIDDate,$J10)-SUMIFS(TransPCAccDep,TransAsset,$A10)-SUMIFS(TransImpair,TransAsset,$A10,TransIDDate,"<"&$H$2,TransType,"REV")),0) -> 33333.33333 | AV10: -28400 | AW10: 4933.333333 | AX10: =$AW10-IF($I10<$J$2,IF(AND($N10<>"-",$N10<$J$2),0,SUMIFS(TransHCost,TransAsset,$A10,TransIDDate,$J10)-SUMIFS(TransPMAccDep,TransAsset,$A10)-SUMIFS(TransImpair,TransAsset,$A10,TransIDDate,"<"&$J$2,TransType,"REV")),0) -> -2366.666667 | AY10: =IF(ISNA(MATCH($F10,TaxCode,0))=TRUE,$S10*($U10>0),MAX(($S10*($U10>0))-(($S10-SUMIFS(TransCRes,TransAsset,$A10,TransIDDate,$L10))*(IF($U10<=11,0,MIN(SUM(OFFSET('Set-up'!$D$37,MATCH($F10,TaxCode,0),0,1,MATCH($U10,TaxCumMonth,1)))+MAX(TRUNC(($U10-60)/12)*SUM(OFFSET('Set-up'!$H$37,MATCH($F10,TaxCode,0),0,1,1)),0%),100%))))-(($S10-SUMIFS(TransCRes,TransAsset,$A10,TransIDDate,$L10))*OFFSET('Set-up'!$D$37,MATCH($F10,TaxCode,0),MATCH($U10,TaxCurMonth,1)-1,1,1)*IF(AND($U10-(TRUNC($U10/12)*12)<>0,OFFSET('Set-up'!$J$37,MATCH($F10,TaxCode,0),0,1,1)=0),1,(($U10-(TRUNC($U10/12)*12))/12))),SUMIFS(TransCRes,TransAsset,$A10,TransIDDate,$L10))) -> 0 | AZ10: 0 | BA10: =IF(ISNA(MATCH($F10,TaxCode,0))=TRUE,$S10*($V10>0),MAX(($S10*($V10>0))-(($S10-$R10)*(IF($V10<=11,0,MIN(SUM(OFFSET('Set-up'!$D$37,MATCH($F10,TaxCode,0),0,1,MATCH($V10,TaxCumMonth,1)))+MAX(TRUNC(($V10-60)/12)*SUM(OFFSET('Set-up'!$H$37,MATCH($F10,TaxCode,0),0,1,1)),0%),100%))))-(($S10-$R10)*OFFSET('Set-up'!$D$37,MATCH($F10,TaxCode,0),MATCH($V10,TaxCurMonth,1)-1,1,1)*IF(AND($V10-(TRUNC($V10/12)*12)<>0,OFFSET('Set-up'!$J$37,MATCH($F10,TaxCode,0),0,1,1)=0),1,(($V10-(TRUNC($V10/12)*12))/12))),$R10*($V10>0))) -> 0 | BB10: =$BA10-IF(ISNA(MATCH($F10,TaxCode,0))=TRUE,$S10*($W10>0),MAX(($S10*($W10>0))-(($S10-SUMIFS(TransCRes,TransAsset,$A10,TransIDDate,$M10))*(IF($W10<=11,0,MIN(SUM(OFFSET('Set-up'!$D$37,MATCH($F10,TaxCode,0),0,1,MATCH($W10,TaxCumMonth,1)))+MAX(TRUNC(($W10-60)/12)*SUM(OFFSET('Set-up'!$H$37,MATCH($F10,TaxCode,0),0,1,1)),0%),100%))))-(($S10-SUMIFS(TransCRes,TransAsset,$A10,TransIDDate,$M10))*OFFSET('Set-up'!$D$37,MATCH($F10,TaxCode,0),MATCH($W10,TaxCurMonth,1)-1,1,1)*IF(AND($W10-(TRUNC($W10/12)*12)<>0,OFFSET('Set-up'!$J$37,MATCH($F10,TaxCode,0),0,1,1)=0),1,(($W10-(TRUNC($W10/12)*12))/12))),SUMIFS(TransCRes,TransAsset,$A10,TransIDDate,$M10)*($W10>0))) -> 0 | BC10: =IF(ISNUMBER('Set-up'!$C$9)=FALSE,0,IF($F10="J",0,ROUND(($AU10-$AY10)*'Set-up'!$C$9,2))) -> 9333.33 | BD10: -7952 | BE10: =IF(ISNUMBER('Set-up'!$C$9)=FALSE,0,IF($F10="J",0,ROUND(($AW10-$BA10)*'Set-up'!$C$9,2))) -> 1381.33 | BF10: =IF(ISNUMBER('Set-up'!$C$9)=FALSE,0,IF($F10="J",0,ROUND(($AX10-$BB10)*'Set-up'!$C$9,2))) -> -662.67
A11: PP-00006 | B11: 90937839 | C11: LTC-20B Cnc Turning Centre | D11: Owned | E11: PPM01 | F11: B | G11: =IF(COUNTIF(AssetCode,$A11)>1,"E1",IF(ISNA(VLOOKUP($E11,CatAll,1,0))=TRUE,"E2",IF(AND($I11="add!",$J11<>"add!"),"E10",IF(ISNA(VLOOKUP($F11,TaxCode,1,0))=TRUE,"E11","-")))) -> - | H11: PM | I11: =IF(ISERROR(LARGE(IF(TransAsset=$A11,IF(TransType="ACQ",TransIDDate,"add!"),"add!"),1)),"add!",LARGE(IF(TransAsset=$A11,IF(TransType="ACQ",TransIDDate,"add!"),"add!"),1)) -> 2015-07-20T00:00:19 | J11: =IF(ISERROR(LARGE(IF(TransAsset=$A11,TransIDDate,"add!"),1)),"add!",LARGE(IF(TransAsset=$A11,TransIDDate,"add!"),1)) -> 2020-03-01T00:00:57 | K11: =IF(ISERROR(LARGE(IF(TransAsset=$A11,IF(TransDate<($I$2+1),TransIDDate,"-"),"-"),1)),"-",LARGE(IF(TransAsset=$A11,IF(TransDate<($I$2+1),TransIDDate,"-"),"-"),1)) -> 2020-03-01T00:00:57 | L11: =IF(ISERROR(LARGE(IF(TransAsset=$A11,IF(TransDate<$H$2,TransIDDate,"-"),"-"),1)),"-",LARGE(IF(TransAsset=$A11,IF(TransDate<$H$2,TransIDDate,"-"),"-"),1)) -> 2015-07-20T00:00:19 | M11: =IF(ISERROR(LARGE(IF(TransAsset=$A11,IF(TransDate<$J$2,TransIDDate,"-"),"-"),1)),"-",LARGE(IF(TransAsset=$A11,IF(TransDate<$J$2,TransIDDate,"-"),"-"),1)) -> 2020-03-01T00:00:57 | N11: =IF(ISERROR(LARGE(IF(TransAsset=$A11,IF(TransType="DIS",TransIDDate,"-"),"-"),1)),"-",LARGE(IF(TransAsset=$A11,IF(TransType="DIS",TransIDDate,"-"),"-"),1)) -> - | O11: =IF($N11<=$I$2,SUMIFS(TransProceeds,TransAsset,$A11,TransType,"DIS"),0) -> 0 | P11: =IF($I11<=($I$2+1),SUMIFS(TransHCost,TransAsset,$A11,TransIDDate,$J11),0) -> 400000 | Q11: 5 | R11: 0 | S11: 400000 | T11: =IF(ISNA(MATCH($F11,TaxCode,0))=TRUE,"code?",OFFSET('Set-up'!$D$37,MATCH($F11,TaxCode,0),MATCH($V11,TaxCurMonth,1)-1,1,1)) -> 0 | U11: 56 | V11: 68 | W11: 67 | X11: 400000 | Y11: 0 | Z11: -270000 | AA11: 0 | AB11: 0 | AC11: 130000 | AD11: =IF($L11=0,0,IF(SUMIFS(TransCLife,TransAsset,$A11,TransIDDate,$L11)=0,0,IF(($X11-(SUMIFS(TransCRes,TransAsset,$A11,TransIDDate,$L11)))/(SUMIFS(TransCLife,TransAsset,$A11,TransIDDate,$L11)*12)*(((YEAR($H$2)*12)+MONTH($H$2))-((YEAR($L11)*12)+MONTH($L11)))>=($X11-SUMIFS(TransCRes,TransAsset,$A11,TransIDDate,$L11)),$X11-SUMIFS(TransCRes,TransAsset,$A11,TransIDDate,$L11),($X11-(SUMIFS(TransCRes,TransAsset,$A11,TransIDDate,$L11)))/(SUMIFS(TransCLife,TransAsset,$A11,TransIDDate,$L11)*12)*(((YEAR($H$2)*12)+MONTH($H$2))-((YEAR($L11)*12)+MONTH($L11)))))) -> 373333.3333 | AE11: 26000 | AF11: 0 | AG11: 26000 | AH11: -373333.3333 | AI11: 0 | AJ11: 26000 | AK11: 104000 | AL11: 0 | AM11: 103333.3333 | AN11: 0 | AO11: 103333.3333 | AP11: 0 | AQ11: 0 | AR11: 2166.666667 | AS11: 0 | AT11: 2166.666667 | AU11: =IF($I11<$H$2,IF(AND($N11<>"-",$N11<$H$2),0,SUMIFS(TransHCost,TransAsset,$A11,TransIDDate,$J11)-SUMIFS(TransPCAccDep,TransAsset,$A11)-SUMIFS(TransImpair,TransAsset,$A11,TransIDDate,"<"&$H$2,TransType,"REV")),0) -> 26666.66667 | AV11: -26000 | AW11: 666.6666667 | AX11: =$AW11-IF($I11<$J$2,IF(AND($N11<>"-",$N11<$J$2),0,SUMIFS(TransHCost,TransAsset,$A11,TransIDDate,$J11)-SUMIFS(TransPMAccDep,TransAsset,$A11)-SUMIFS(TransImpair,TransAsset,$A11,TransIDDate,"<"&$J$2,TransType,"REV")),0) -> -2166.666667 | AY11: =IF(ISNA(MATCH($F11,TaxCode,0))=TRUE,$S11*($U11>0),MAX(($S11*($U11>0))-(($S11-SUMIFS(TransCRes,TransAsset,$A11,TransIDDate,$L11))*(IF($U11<=11,0,MIN(SUM(OFFSET('Set-up'!$D$37,MATCH($F11,TaxCode,0),0,1,MATCH($U11,TaxCumMonth,1)))+MAX(TRUNC(($U11-60)/12)*SUM(OFFSET('Set-up'!$H$37,MATCH($F11,TaxCode,0),0,1,1)),0%),100%))))-(($S11-SUMIFS(TransCRes,TransAsset,$A11,TransIDDate,$L11))*OFFSET('Set-up'!$D$37,MATCH($F11,TaxCode,0),MATCH($U11,TaxCurMonth,1)-1,1,1)*IF(AND($U11-(TRUNC($U11/12)*12)<>0,OFFSET('Set-up'!$J$37,MATCH($F11,TaxCode,0),0,1,1)=0),1,(($U11-(TRUNC($U11/12)*12))/12))),SUMIFS(TransCRes,TransAsset,$A11,TransIDDate,$L11))) -> 0 | AZ11: 0 | BA11: =IF(ISNA(MATCH($F11,TaxCode,0))=TRUE,$S11*($V11>0),MAX(($S11*($V11>0))-(($S11-$R11)*(IF($V11<=11,0,MIN(SUM(OFFSET('Set-up'!$D$37,MATCH($F11,TaxCode,0),0,1,MATCH($V11,TaxCumMonth,1)))+MAX(TRUNC(($V11-60)/12)*SUM(OFFSET('Set-up'!$H$37,MATCH($F11,TaxCode,0),0,1,1)),0%),100%))))-(($S11-$R11)*OFFSET('Set-up'!$D$37,MATCH($F11,TaxCode,0),MATCH($V11,TaxCurMonth,1)-1,1,1)*IF(AND($V11-(TRUNC($V11/12)*12)<>0,OFFSET('Set-up'!$J$37,MATCH($F11,TaxCode,0),0,1,1)=0),1,(($V11-(TRUNC($V11/12)*12))/12))),$R11*($V11>0))) -> 0 | BB11: =$BA11-IF(ISNA(MATCH($F11,TaxCode,0))=TRUE,$S11*($W11>0),MAX(($S11*($W11>0))-(($S11-SUMIFS(TransCRes,TransAsset,$A11,TransIDDate,$M11))*(IF($W11<=11,0,MIN(SUM(OFFSET('Set-up'!$D$37,MATCH($F11,TaxCode,0),0,1,MATCH($W11,TaxCumMonth,1)))+MAX(TRUNC(($W11-60)/12)*SUM(OFFSET('Set-up'!$H$37,MATCH($F11,TaxCode,0),0,1,1)),0%),100%))))-(($S11-SUMIFS(TransCRes,TransAsset,$A11,TransIDDate,$M11))*OFFSET('Set-up'!$D$37,MATCH($F11,TaxCode,0),MATCH($W11,TaxCurMonth,1)-1,1,1)*IF(AND($W11-(TRUNC($W11/12)*12)<>0,OFFSET('Set-up'!$J$37,MATCH($F11,TaxCode,0),0,1,1)=0),1,(($W11-(TRUNC($W11/12)*12))/12))),SUMIFS(TransCRes,TransAsset,$A11,TransIDDate,$M11)*($W11>0))) -> 0 | BC11: =IF(ISNUMBER('Set-up'!$C$9)=FALSE,0,IF($F11="J",0,ROUND(($AU11-$AY11)*'Set-up'!$C$9,2))) -> 7466.67 | BD11: -7280 | BE11: =IF(ISNUMBER('Set-up'!$C$9)=FALSE,0,IF($F11="J",0,ROUND(($AW11-$BA11)*'Set-up'!$C$9,2))) -> 186.67 | BF11: =IF(ISNUMBER('Set-up'!$C$9)=FALSE,0,IF($F11="J",0,ROUND(($AX11-$BB11)*'Set-up'!$C$9,2))) -> -606.67
A12: PP-00007 | B12: 13800981 | C12: Leaderway 450 M/centre | D12: Owned | E12: PPM01 | F12: B | G12: =IF(COUNTIF(AssetCode,$A12)>1,"E1",IF(ISNA(VLOOKUP($E12,CatAll,1,0))=TRUE,"E2",IF(AND($I12="add!",$J12<>"add!"),"E10",IF(ISNA(VLOOKUP($F12,TaxCode,1,0))=TRUE,"E11","-")))) -> - | H12: PM | I12: =IF(ISERROR(LARGE(IF(TransAsset=$A12,IF(TransType="ACQ",TransIDDate,"add!"),"add!"),1)),"add!",LARGE(IF(TransAsset=$A12,IF(TransType="ACQ",TransIDDate,"add!"),"add!"),1)) -> 2015-07-20T00:00:20 | J12: =IF(ISERROR(LARGE(IF(TransAsset=$A12,TransIDDate,"add!"),1)),"add!",LARGE(IF(TransAsset=$A12,TransIDDate,"add!"),1)) -> 2020-03-01T00:00:58 | K12: =IF(ISERROR(LARGE(IF(TransAsset=$A12,IF(TransDate<($I$2+1),TransIDDate,"-"),"-"),1)),"-",LARGE(IF(TransAsset=$A12,IF(TransDate<($I$2+1),TransIDDate,"-"),"-"),1)) -> 2020-03-01T00:00:58 | L12: =IF(ISERROR(LARGE(IF(TransAsset=$A12,IF(TransDate<$H$2,TransIDDate,"-"),"-"),1)),"-",LARGE(IF(TransAsset=$A12,IF(TransDate<$H$2,TransIDDate,"-"),"-"),1)) -> 2015-07-20T00:00:20 | M12: =IF(ISERROR(LARGE(IF(TransAsset=$A12,IF(TransDate<$J$2,TransIDDate,"-"),"-"),1)),"-",LARGE(IF(TransAsset=$A12,IF(TransDate<$J$2,TransIDDate,"-"),"-"),1)) -> 2020-03-01T00:00:58 | N12: =IF(ISERROR(LARGE(IF(TransAsset=$A12,IF(TransType="DIS",TransIDDate,"-"),"-"),1)),"-",LARGE(IF(TransAsset=$A12,IF(TransType="DIS",TransIDDate,"-"),"-"),1)) -> - | O12: =IF($N12<=$I$2,SUMIFS(TransProceeds,TransAsset,$A12,TransType,"DIS"),0) -> 0 | P12: =IF($I12<=($I$2+1),SUMIFS(TransHCost,TransAsset,$A12,TransIDDate,$J12),0) -> 260000 | Q12: 5 | R12: 0 | S12: 260000 | T12: =IF(ISNA(MATCH($F12,TaxCode,0))=TRUE,"code?",OFFSET('Set-up'!$D$37,MATCH($F12,TaxCode,0),MATCH($V12,TaxCurMonth,1)-1,1,1)) -> 0 | U12: 56 | V12: 68 | W12: 67 | X12: 260000 | Y12: 0 | Z12: -185000 | AA12: 0 | AB12: 0 | AC12: 75000 | AD12: =IF($L12=0,0,IF(SUMIFS(TransCLife,TransAsset,$A12,TransIDDate,$L12)=0,0,IF(($X12-(SUMIFS(TransCRes,TransAsset,$A12,TransIDDate,$L12)))/(SUMIFS(TransCLife,TransAsset,$A12,TransIDDate,$L12)*12)*(((YEAR($H$2)*12)+MONTH($H$2))-((YEAR($L12)*12)+MONTH($L12)))>=($X12-SUMIFS(TransCRes,TransAsset,$A12,TransIDDate,$L12)),$X12-SUMIFS(TransCRes,TransAsset,$A12,TransIDDate,$L12),($X12-(SUMIFS(TransCRes,TransAsset,$A12,TransIDDate,$L12)))/(SUMIFS(TransCLife,TransAsset,$A12,TransIDDate,$L12)*12)*(((YEAR($H$2)*12)+MONTH($H$2))-((YEAR($L12)*12)+MONTH($L12)))))) -> 242666.6667 | AE12: 15000 | AF12: 0 | AG12: 15000 | AH12: -242666.6667 | AI12: 0 | AJ12: 15000 | AK12: 60000 | AL12: 0 | AM12: 57666.66667 | AN12: 0 | AO12: 57666.66667 | AP12: 0 | AQ12: 0 | AR12: 1250 | AS12: 0 | AT12: 1250 | AU12: =IF($I12<$H$2,IF(AND($N12<>"-",$N12<$H$2),0,SUMIFS(TransHCost,TransAsset,$A12,TransIDDate,$J12)-SUMIFS(TransPCAccDep,TransAsset,$A12)-SUMIFS(TransImpair,TransAsset,$A12,TransIDDate,"<"&$H$2,TransType,"REV")),0) -> 17333.33333 | AV12: -15000 | AW12: 2333.333333 | AX12: =$AW12-IF($I12<$J$2,IF(AND($N12<>"-",$N12<$J$2),0,SUMIFS(TransHCost,TransAsset,$A12,TransIDDate,$J12)-SUMIFS(TransPMAccDep,TransAsset,$A12)-SUMIFS(TransImpair,TransAsset,$A12,TransIDDate,"<"&$J$2,TransType,"REV")),0) -> -1250 | AY12: =IF(ISNA(MATCH($F12,TaxCode,0))=TRUE,$S12*($U12>0),MAX(($S12*($U12>0))-(($S12-SUMIFS(TransCRes,TransAsset,$A12,TransIDDate,$L12))*(IF($U12<=11,0,MIN(SUM(OFFSET('Set-up'!$D$37,MATCH($F12,TaxCode,0),0,1,MATCH($U12,TaxCumMonth,1)))+MAX(TRUNC(($U12-60)/12)*SUM(OFFSET('Set-up'!$H$37,MATCH($F12,TaxCode,0),0,1,1)),0%),100%))))-(($S12-SUMIFS(TransCRes,TransAsset,$A12,TransIDDate,$L12))*OFFSET('Set-up'!$D$37,MATCH($F12,TaxCode,0),MATCH($U12,TaxCurMonth,1)-1,1,1)*IF(AND($U12-(TRUNC($U12/12)*12)<>0,OFFSET('Set-up'!$J$37,MATCH($F12,TaxCode,0),0,1,1)=0),1,(($U12-(TRUNC($U12/12)*12))/12))),SUMIFS(TransCRes,TransAsset,$A12,TransIDDate,$L12))) -> 0 | AZ12: 0 | BA12: =IF(ISNA(MATCH($F12,TaxCode,0))=TRUE,$S12*($V12>0),MAX(($S12*($V12>0))-(($S12-$R12)*(IF($V12<=11,0,MIN(SUM(OFFSET('Set-up'!$D$37,MATCH($F12,TaxCode,0),0,1,MATCH($V12,TaxCumMonth,1)))+MAX(TRUNC(($V12-60)/12)*SUM(OFFSET('Set-up'!$H$37,MATCH($F12,TaxCode,0),0,1,1)),0%),100%))))-(($S12-$R12)*OFFSET('Set-up'!$D$37,MATCH($F12,TaxCode,0),MATCH($V12,TaxCurMonth,1)-1,1,1)*IF(AND($V12-(TRUNC($V12/12)*12)<>0,OFFSET('Set-up'!$J$37,MATCH($F12,TaxCode,0),0,1,1)=0),1,(($V12-(TRUNC($V12/12)*12))/12))),$R12*($V12>0))) -> 0 | BB12: =$BA12-IF(ISNA(MATCH($F12,TaxCode,0))=TRUE,$S12*($W12>0),MAX(($S12*($W12>0))-(($S12-SUMIFS(TransCRes,TransAsset,$A12,TransIDDate,$M12))*(IF($W12<=11,0,MIN(SUM(OFFSET('Set-up'!$D$37,MATCH($F12,TaxCode,0),0,1,MATCH($W12,TaxCumMonth,1)))+MAX(TRUNC(($W12-60)/12)*SUM(OFFSET('Set-up'!$H$37,MATCH($F12,TaxCode,0),0,1,1)),0%),100%))))-(($S12-SUMIFS(TransCRes,TransAsset,$A12,TransIDDate,$M12))*OFFSET('Set-up'!$D$37,MATCH($F12,TaxCode,0),MATCH($W12,TaxCurMonth,1)-1,1,1)*IF(AND($W12-(TRUNC($W12/12)*12)<>0,OFFSET('Set-up'!$J$37,MATCH($F12,TaxCode,0),0,1,1)=0),1,(($W12-(TRUNC($W12/12)*12))/12))),SUMIFS(TransCRes,TransAsset,$A12,TransIDDate,$M12)*($W12>0))) -> 0 | BC12: =IF(ISNUMBER('Set-up'!$C$9)=FALSE,0,IF($F12="J",0,ROUND(($AU12-$AY12)*'Set-up'!$C$9,2))) -> 4853.33 | BD12: -4200 | BE12: =IF(ISNUMBER('Set-up'!$C$9)=FALSE,0,IF($F12="J",0,ROUND(($AW12-$BA12)*'Set-up'!$C$9,2))) -> 653.33 | BF12: =IF(ISNUMBER('Set-up'!$C$9)=FALSE,0,IF($F12="J",0,ROUND(($AX12-$BB12)*'Set-up'!$C$9,2))) -> -350
A13: PP-00008 | B13: 38838389 | C13: Leaderway V650 CNC | D13: Owned | E13: PPM01 | F13: B | G13: =IF(COUNTIF(AssetCode,$A13)>1,"E1",IF(ISNA(VLOOKUP($E13,CatAll,1,0))=TRUE,"E2",IF(AND($I13="add!",$J13<>"add!"),"E10",IF(ISNA(VLOOKUP($F13,TaxCode,1,0))=TRUE,"E11","-")))) -> - | H13: PM | I13: =IF(ISERROR(LARGE(IF(TransAsset=$A13,IF(TransType="ACQ",TransIDDate,"add!"),"add!"),1)),"add!",LARGE(IF(TransAsset=$A13,IF(TransType="ACQ",TransIDDate,"add!"),"add!"),1)) -> 2015-07-20T00:00:21 | J13: =IF(ISERROR(LARGE(IF(TransAsset=$A13,TransIDDate,"add!"),1)),"add!",LARGE(IF(TransAsset=$A13,TransIDDate,"add!"),1)) -> 2020-03-01T00:00:59 | K13: =IF(ISERROR(LARGE(IF(TransAsset=$A13,IF(TransDate<($I$2+1),TransIDDate,"-"),"-"),1)),"-",LARGE(IF(TransAsset=$A13,IF(TransDate<($I$2+1),TransIDDate,"-"),"-"),1)) -> 2020-03-01T00:00:59 | L13: =IF(ISERROR(LARGE(IF(TransAsset=$A13,IF(TransDate<$H$2,TransIDDate,"-"),"-"),1)),"-",LARGE(IF(TransAsset=$A13,IF(TransDate<$H$2,TransIDDate,"-"),"-"),1)) -> 2015-07-20T00:00:21 | M13: =IF(ISERROR(LARGE(IF(TransAsset=$A13,IF(TransDate<$J$2,TransIDDate,"-"),"-"),1)),"-",LARGE(IF(TransAsset=$A13,IF(TransDate<$J$2,TransIDDate,"-"),"-"),1)) -> 2020-03-01T00:00:59 | N13: =IF(ISERROR(LARGE(IF(TransAsset=$A13,IF(TransType="DIS",TransIDDate,"-"),"-"),1)),"-",LARGE(IF(TransAsset=$A13,IF(TransType="DIS",TransIDDate,"-"),"-"),1)) -> - | O13: =IF($N13<=$I$2,SUMIFS(TransProceeds,TransAsset,$A13,TransType,"DIS"),0) -> 0 | P13: =IF($I13<=($I$2+1),SUMIFS(TransHCost,TransAsset,$A13,TransIDDate,$J13),0) -> 295000 | Q13: 5 | R13: 0 | S13: 295000 | T13: =IF(ISNA(MATCH($F13,TaxCode,0))=TRUE,"code?",OFFSET('Set-up'!$D$37,MATCH($F13,TaxCode,0),MATCH($V13,TaxCurMonth,1)-1,1,1)) -> 0 | U13: 56 | V13: 68 | W13: 67 | X13: 295000 | Y13: 0 | Z13: -205000 | AA13: 0 | AB13: 0 | AC13: 90000 | AD13: =IF($L13=0,0,IF(SUMIFS(TransCLife,TransAsset,$A13,TransIDDate,$L13)=0,0,IF(($X13-(SUMIFS(TransCRes,TransAsset,$A13,TransIDDate,$L13)))/(SUMIFS(TransCLife,TransAsset,$A13,TransIDDate,$L13)*12)*(((YEAR($H$2)*12)+MONTH($H$2))-((YEAR($L13)*12)+MONTH($L13)))>=($X13-SUMIFS(TransCRes,TransAsset,$A13,TransIDDate,$L13)),$X13-SUMIFS(TransCRes,TransAsset,$A13,TransIDDate,$L13),($X13-(SUMIFS(TransCRes,TransAsset,$A13,TransIDDate,$L13)))/(SUMIFS(TransCLife,TransAsset,$A13,TransIDDate,$L13)*12)*(((YEAR($H$2)*12)+MONTH($H$2))-((YEAR($L13)*12)+MONTH($L13)))))) -> 275333.3333 | AE13: 18000 | AF13: 0 | AG13: 18000 | AH13: -275333.3333 | AI13: 0 | AJ13: 18000 | AK13: 72000 | AL13: 0 | AM13: 70333.33333 | AN13: 0 | AO13: 70333.33333 | AP13: 0 | AQ13: 0 | AR13: 1500 | AS13: 0 | AT13: 1500 | AU13: =IF($I13<$H$2,IF(AND($N13<>"-",$N13<$H$2),0,SUMIFS(TransHCost,TransAsset,$A13,TransIDDate,$J13)-SUMIFS(TransPCAccDep,TransAsset,$A13)-SUMIFS(TransImpair,TransAsset,$A13,TransIDDate,"<"&$H$2,TransType,"REV")),0) -> 19666.66667 | AV13: -18000 | AW13: 1666.666667 | AX13: =$AW13-IF($I13<$J$2,IF(AND($N13<>"-",$N13<$J$2),0,SUMIFS(TransHCost,TransAsset,$A13,TransIDDate,$J13)-SUMIFS(TransPMAccDep,TransAsset,$A13)-SUMIFS(TransImpair,TransAsset,$A13,TransIDDate,"<"&$J$2,TransType,"REV")),0) -> -1500 | AY13: =IF(ISNA(MATCH($F13,TaxCode,0))=TRUE,$S13*($U13>0),MAX(($S13*($U13>0))-(($S13-SUMIFS(TransCRes,TransAsset,$A13,TransIDDate,$L13))*(IF($U13<=11,0,MIN(SUM(OFFSET('Set-up'!$D$37,MATCH($F13,TaxCode,0),0,1,MATCH($U13,TaxCumMonth,1)))+MAX(TRUNC(($U13-60)/12)*SUM(OFFSET('Set-up'!$H$37,MATCH($F13,TaxCode,0),0,1,1)),0%),100%))))-(($S13-SUMIFS(TransCRes,TransAsset,$A13,TransIDDate,$L13))*OFFSET('Set-up'!$D$37,MATCH($F13,TaxCode,0),MATCH($U13,TaxCurMonth,1)-1,1,1)*IF(AND($U13-(TRUNC($U13/12)*12)<>0,OFFSET('Set-up'!$J$37,MATCH($F13,TaxCode,0),0,1,1)=0),1,(($U13-(TRUNC($U13/12)*12))/12))),SUMIFS(TransCRes,TransAsset,$A13,TransIDDate,$L13))) -> 0 | AZ13: 0 | BA13: =IF(ISNA(MATCH($F13,TaxCode,0))=TRUE,$S13*($V13>0),MAX(($S13*($V13>0))-(($S13-$R13)*(IF($V13<=11,0,MIN(SUM(OFFSET('Set-up'!$D$37,MATCH($F13,TaxCode,0),0,1,MATCH($V13,TaxCumMonth,1)))+MAX(TRUNC(($V13-60)/12)*SUM(OFFSET('Set-up'!$H$37,MATCH($F13,TaxCode,0),0,1,1)),0%),100%))))-(($S13-$R13)*OFFSET('Set-up'!$D$37,MATCH($F13,TaxCode,0),MATCH($V13,TaxCurMonth,1)-1,1,1)*IF(AND($V13-(TRUNC($V13/12)*12)<>0,OFFSET('Set-up'!$J$37,MATCH($F13,TaxCode,0),0,1,1)=0),1,(($V13-(TRUNC($V13/12)*12))/12))),$R13*($V13>0))) -> 0 | BB13: =$BA13-IF(ISNA(MATCH($F13,TaxCode,0))=TRUE,$S13*($W13>0),MAX(($S13*($W13>0))-(($S13-SUMIFS(TransCRes,TransAsset,$A13,TransIDDate,$M13))*(IF($W13<=11,0,MIN(SUM(OFFSET('Set-up'!$D$37,MATCH($F13,TaxCode,0),0,1,MATCH($W13,TaxCumMonth,1)))+MAX(TRUNC(($W13-60)/12)*SUM(OFFSET('Set-up'!$H$37,MATCH($F13,TaxCode,0),0,1,1)),0%),100%))))-(($S13-SUMIFS(TransCRes,TransAsset,$A13,TransIDDate,$M13))*OFFSET('Set-up'!$D$37,MATCH($F13,TaxCode,0),MATCH($W13,TaxCurMonth,1)-1,1,1)*IF(AND($W13-(TRUNC($W13/12)*12)<>0,OFFSET('Set-up'!$J$37,MATCH($F13,TaxCode,0),0,1,1)=0),1,(($W13-(TRUNC($W13/12)*12))/12))),SUMIFS(TransCRes,TransAsset,$A13,TransIDDate,$M13)*($W13>0))) -> 0 | BC13: =IF(ISNUMBER('Set-up'!$C$9)=FALSE,0,IF($F13="J",0,ROUND(($AU13-$AY13)*'Set-up'!$C$9,2))) -> 5506.67 | BD13: -5040 | BE13: =IF(ISNUMBER('Set-up'!$C$9)=FALSE,0,IF($F13="J",0,ROUND(($AW13-$BA13)*'Set-up'!$C$9,2))) -> 466.67 | BF13: =IF(ISNUMBER('Set-up'!$C$9)=FALSE,0,IF($F13="J",0,ROUND(($AX13-$BB13)*'Set-up'!$C$9,2))) -> -420
A14: PP-00009 | B14: 13763761 | C14: Supertec Cnc Angular Wheel Grinder | D14: Owned | E14: PPM01 | F14: B | G14: =IF(COUNTIF(AssetCode,$A14)>1,"E1",IF(ISNA(VLOOKUP($E14,CatAll,1,0))=TRUE,"E2",IF(AND($I14="add!",$J14<>"add!"),"E10",IF(ISNA(VLOOKUP($F14,TaxCode,1,0))=TRUE,"E11","-")))) -> - | H14: PM | I14: =IF(ISERROR(LARGE(IF(TransAsset=$A14,IF(TransType="ACQ",TransIDDate,"add!"),"add!"),1)),"add!",LARGE(IF(TransAsset=$A14,IF(TransType="ACQ",TransIDDate,"add!"),"add!"),1)) -> 2015-07-20T00:00:22 | J14: =IF(ISERROR(LARGE(IF(TransAsset=$A14,TransIDDate,"add!"),1)),"add!",LARGE(IF(TransAsset=$A14,TransIDDate,"add!"),1)) -> 2020-03-01T00:01:00 | K14: =IF(ISERROR(LARGE(IF(TransAsset=$A14,IF(TransDate<($I$2+1),TransIDDate,"-"),"-"),1)),"-",LARGE(IF(TransAsset=$A14,IF(TransDate<($I$2+1),TransIDDate,"-"),"-"),1)) -> 2020-03-01T00:01:00 | L14: =IF(ISERROR(LARGE(IF(TransAsset=$A14,IF(TransDate<$H$2,TransIDDate,"-"),"-"),1)),"-",LARGE(IF(TransAsset=$A14,IF(TransDate<$H$2,TransIDDate,"-"),"-"),1)) -> 2015-07-20T00:00:22 | M14: =IF(ISERROR(LARGE(IF(TransAsset=$A14,IF(TransDate<$J$2,TransIDDate,"-"),"-"),1)),"-",LARGE(IF(TransAsset=$A14,IF(TransDate<$J$2,TransIDDate,"-"),"-"),1)) -> 2020-03-01T00:01:00 | N14: =IF(ISERROR(LARGE(IF(TransAsset=$A14,IF(TransType="DIS",TransIDDate,"-"),"-"),1)),"-",LARGE(IF(TransAsset=$A14,IF(TransType="DIS",TransIDDate,"-"),"-"),1)) -> - | O14: =IF($N14<=$I$2,SUMIFS(TransProceeds,TransAsset,$A14,TransType,"DIS"),0) -> 0 | P14: =IF($I14<=($I$2+1),SUMIFS(TransHCost,TransAsset,$A14,TransIDDate,$J14),0) -> 750000 | Q14: 5 | R14: 0 | S14: 750000 | T14: =IF(ISNA(MATCH($F14,TaxCode,0))=TRUE,"code?",OFFSET('Set-up'!$D$37,MATCH($F14,TaxCode,0),MATCH($V14,TaxCurMonth,1)-1,1,1)) -> 0 | U14: 56 | V14: 68 | W14: 67 | X14: 750000 | Y14: 0 | Z14: -520000 | AA14: 0 | AB14: 0 | AC14: 230000 | AD14: =IF($L14=0,0,IF(SUMIFS(TransCLife,TransAsset,$A14,TransIDDate,$L14)=0,0,IF(($X14-(SUMIFS(TransCRes,TransAsset,$A14,TransIDDate,$L14)))/(SUMIFS(TransCLife,TransAsset,$A14,TransIDDate,$L14)*12)*(((YEAR($H$2)*12)+MONTH($H$2))-((YEAR($L14)*12)+MONTH($L14)))>=($X14-SUMIFS(TransCRes,TransAsset,$A14,TransIDDate,$L14)),$X14-SUMIFS(TransCRes,TransAsset,$A14,TransIDDate,$L14),($X14-(SUMIFS(TransCRes,TransAsset,$A14,TransIDDate,$L14)))/(SUMIFS(TransCLife,TransAsset,$A14,TransIDDate,$L14)*12)*(((YEAR($H$2)*12)+MONTH($H$2))-((YEAR($L14)*12)+MONTH($L14)))))) -> 700000 | AE14: 46000 | AF14: 0 | AG14: 46000 | AH14: -700000 | AI14: 0 | AJ14: 46000 | AK14: 184000 | AL14: 0 | AM14: 180000 | AN14: 0 | AO14: 180000 | AP14: 0 | AQ14: 0 | AR14: 3833.333333 | AS14: 0 | AT14: 3833.333333 | AU14: =IF($I14<$H$2,IF(AND($N14<>"-",$N14<$H$2),0,SUMIFS(TransHCost,TransAsset,$A14,TransIDDate,$J14)-SUMIFS(TransPCAccDep,TransAsset,$A14)-SUMIFS(TransImpair,TransAsset,$A14,TransIDDate,"<"&$H$2,TransType,"REV")),0) -> 50000 | AV14: -46000 | AW14: 4000 | AX14: =$AW14-IF($I14<$J$2,IF(AND($N14<>"-",$N14<$J$2),0,SUMIFS(TransHCost,TransAsset,$A14,TransIDDate,$J14)-SUMIFS(TransPMAccDep,TransAsset,$A14)-SUMIFS(TransImpair,TransAsset,$A14,TransIDDate,"<"&$J$2,TransType,"REV")),0) -> -3833.333333 | AY14: =IF(ISNA(MATCH($F14,TaxCode,0))=TRUE,$S14*($U14>0),MAX(($S14*($U14>0))-(($S14-SUMIFS(TransCRes,TransAsset,$A14,TransIDDate,$L14))*(IF($U14<=11,0,MIN(SUM(OFFSET('Set-up'!$D$37,MATCH($F14,TaxCode,0),0,1,MATCH($U14,TaxCumMonth,1)))+MAX(TRUNC(($U14-60)/12)*SUM(OFFSET('Set-up'!$H$37,MATCH($F14,TaxCode,0),0,1,1)),0%),100%))))-(($S14-SUMIFS(TransCRes,TransAsset,$A14,TransIDDate,$L14))*OFFSET('Set-up'!$D$37,MATCH($F14,TaxCode,0),MATCH($U14,TaxCurMonth,1)-1,1,1)*IF(AND($U14-(TRUNC($U14/12)*12)<>0,OFFSET('Set-up'!$J$37,MATCH($F14,TaxCode,0),0,1,1)=0),1,(($U14-(TRUNC($U14/12)*12))/12))),SUMIFS(TransCRes,TransAsset,$A14,TransIDDate,$L14))) -> 0 | AZ14: 0 | BA14: =IF(ISNA(MATCH($F14,TaxCode,0))=TRUE,$S14*($V14>0),MAX(($S14*($V14>0))-(($S14-$R14)*(IF($V14<=11,0,MIN(SUM(OFFSET('Set-up'!$D$37,MATCH($F14,TaxCode,0),0,1,MATCH($V14,TaxCumMonth,1)))+MAX(TRUNC(($V14-60)/12)*SUM(OFFSET('Set-up'!$H$37,MATCH($F14,TaxCode,0),0,1,1)),0%),100%))))-(($S14-$R14)*OFFSET('Set-up'!$D$37,MATCH($F14,TaxCode,0),MATCH($V14,TaxCurMonth,1)-1,1,1)*IF(AND($V14-(TRUNC($V14/12)*12)<>0,OFFSET('Set-up'!$J$37,MATCH($F14,TaxCode,0),0,1,1)=0),1,(($V14-(TRUNC($V14/12)*12))/12))),$R14*($V14>0))) -> 0 | BB14: =$BA14-IF(ISNA(MATCH($F14,TaxCode,0))=TRUE,$S14*($W14>0),MAX(($S14*($W14>0))-(($S14-SUMIFS(TransCRes,TransAsset,$A14,TransIDDate,$M14))*(IF($W14<=11,0,MIN(SUM(OFFSET('Set-up'!$D$37,MATCH($F14,TaxCode,0),0,1,MATCH($W14,TaxCumMonth,1)))+MAX(TRUNC(($W14-60)/12)*SUM(OFFSET('Set-up'!$H$37,MATCH($F14,TaxCode,0),0,1,1)),0%),100%))))-(($S14-SUMIFS(TransCRes,TransAsset,$A14,TransIDDate,$M14))*OFFSET('Set-up'!$D$37,MATCH($F14,TaxCode,0),MATCH($W14,TaxCurMonth,1)-1,1,1)*IF(AND($W14-(TRUNC($W14/12)*12)<>0,OFFSET('Set-up'!$J$37,MATCH($F14,TaxCode,0),0,1,1)=0),1,(($W14-(TRUNC($W14/12)*12))/12))),SUMIFS(TransCRes,TransAsset,$A14,TransIDDate,$M14)*($W14>0))) -> 0 | BC14: =IF(ISNUMBER('Set-up'!$C$9)=FALSE,0,IF($F14="J",0,ROUND(($AU14-$AY14)*'Set-up'!$C$9,2))) -> 14000 | BD14: -12880 | BE14: =IF(ISNUMBER('Set-up'!$C$9)=FALSE,0,IF($F14="J",0,ROUND(($AW14-$BA14)*'Set-up'!$C$9,2))) -> 1120 | BF14: =IF(ISNUMBER('Set-up'!$C$9)=FALSE,0,IF($F14="J",0,ROUND(($AX14-$BB14)*'Set-up'!$C$9,2))) -> -1073.33
A15: PP-00010 | B15: 31837864 | C15: Aquino T7 CNC Machine | D15: Owned | E15: PPM01 | F15: B | G15: =IF(COUNTIF(AssetCode,$A15)>1,"E1",IF(ISNA(VLOOKUP($E15,CatAll,1,0))=TRUE,"E2",IF(AND($I15="add!",$J15<>"add!"),"E10",IF(ISNA(VLOOKUP($F15,TaxCode,1,0))=TRUE,"E11","-")))) -> - | H15: PM | I15: =IF(ISERROR(LARGE(IF(TransAsset=$A15,IF(TransType="ACQ",TransIDDate,"add!"),"add!"),1)),"add!",LARGE(IF(TransAsset=$A15,IF(TransType="ACQ",TransIDDate,"add!"),"add!"),1)) -> 2015-07-20T00:00:23 | J15: =IF(ISERROR(LARGE(IF(TransAsset=$A15,TransIDDate,"add!"),1)),"add!",LARGE(IF(TransAsset=$A15,TransIDDate,"add!"),1)) -> 2020-03-01T00:01:01 | K15: =IF(ISERROR(LARGE(IF(TransAsset=$A15,IF(TransDate<($I$2+1),TransIDDate,"-"),"-"),1)),"-",LARGE(IF(TransAsset=$A15,IF(TransDate<($I$2+1),TransIDDate,"-"),"-"),1)) -> 2020-03-01T00:01:01 | L15: =IF(ISERROR(LARGE(IF(TransAsset=$A15,IF(TransDate<$H$2,TransIDDate,"-"),"-"),1)),"-",LARGE(IF(TransAsset=$A15,IF(TransDate<$H$2,TransIDDate,"-"),"-"),1)) -> 2015-07-20T00:00:23 | M15: =IF(ISERROR(LARGE(IF(TransAsset=$A15,IF(TransDate<$J$2,TransIDDate,"-"),"-"),1)),"-",LARGE(IF(TransAsset=$A15,IF(TransDate<$J$2,TransIDDate,"-"),"-"),1)) -> 2020-03-01T00:01:01 | N15: =IF(ISERROR(LARGE(IF(TransAsset=$A15,IF(TransType="DIS",TransIDDate,"-"),"-"),1)),"-",LARGE(IF(TransAsset=$A15,IF(TransType="DIS",TransIDDate,"-"),"-"),1)) -> - | O15: =IF($N15<=$I$2,SUMIFS(TransProceeds,TransAsset,$A15,TransType,"DIS"),0) -> 0 | P15: =IF($I15<=($I$2+1),SUMIFS(TransHCost,TransAsset,$A15,TransIDDate,$J15),0) -> 422200 | Q15: 5 | R15: 0 | S15: 422200 | T15: =IF(ISNA(MATCH($F15,TaxCode,0))=TRUE,"code?",OFFSET('Set-up'!$D$37,MATCH($F15,TaxCode,0),MATCH($V15,TaxCurMonth,1)-1,1,1)) -> 0 | U15: 56 | V15: 68 | W15: 67 | X15: 422200 | Y15: 0 | Z15: -302200 | AA15: 0 | AB15: 0 | AC15: 120000 | AD15: =IF($L15=0,0,IF(SUMIFS(TransCLife,TransAsset,$A15,TransIDDate,$L15)=0,0,IF(($X15-(SUMIFS(TransCRes,TransAsset,$A15,TransIDDate,$L15)))/(SUMIFS(TransCLife,TransAsset,$A15,TransIDDate,$L15)*12)*(((YEAR($H$2)*12)+MONTH($H$2))-((YEAR($L15)*12)+MONTH($L15)))>=($X15-SUMIFS(TransCRes,TransAsset,$A15,TransIDDate,$L15)),$X15-SUMIFS(TransCRes,TransAsset,$A15,TransIDDate,$L15),($X15-(SUMIFS(TransCRes,TransAsset,$A15,TransIDDate,$L15)))/(SUMIFS(TransCLife,TransAsset,$A15,TransIDDate,$L15)*12)*(((YEAR($H$2)*12)+MONTH($H$2))-((YEAR($L15)*12)+MONTH($L15)))))) -> 394053.3333 | AE15: 24000 | AF15: 0 | AG15: 24000 | AH15: -394053.3333 | AI15: 0 | AJ15: 24000 | AK15: 96000 | AL15: 0 | AM15: 91853.33333 | AN15: 0 | AO15: 91853.33333 | AP15: 0 | AQ15: 0 | AR15: 2000 | AS15: 0 | AT15: 2000 | AU15: =IF($I15<$H$2,IF(AND($N15<>"-",$N15<$H$2),0,SUMIFS(TransHCost,TransAsset,$A15,TransIDDate,$J15)-SUMIFS(TransPCAccDep,TransAsset,$A15)-SUMIFS(TransImpair,TransAsset,$A15,TransIDDate,"<"&$H$2,TransType,"REV")),0) -> 28146.66667 | AV15: -24000 | AW15: 4146.666667 | AX15: =$AW15-IF($I15<$J$2,IF(AND($N15<>"-",$N15<$J$2),0,SUMIFS(TransHCost,TransAsset,$A15,TransIDDate,$J15)-SUMIFS(TransPMAccDep,TransAsset,$A15)-SUMIFS(TransImpair,TransAsset,$A15,TransIDDate,"<"&$J$2,TransType,"REV")),0) -> -2000 | AY15: =IF(ISNA(MATCH($F15,TaxCode,0))=TRUE,$S15*($U15>0),MAX(($S15*($U15>0))-(($S15-SUMIFS(TransCRes,TransAsset,$A15,TransIDDate,$L15))*(IF($U15<=11,0,MIN(SUM(OFFSET('Set-up'!$D$37,MATCH($F15,TaxCode,0),0,1,MATCH($U15,TaxCumMonth,1)))+MAX(TRUNC(($U15-60)/12)*SUM(OFFSET('Set-up'!$H$37,MATCH($F15,TaxCode,0),0,1,1)),0%),100%))))-(($S15-SUMIFS(TransCRes,TransAsset,$A15,TransIDDate,$L15))*OFFSET('Set-up'!$D$37,MATCH($F15,TaxCode,0),MATCH($U15,TaxCurMonth,1)-1,1,1)*IF(AND($U15-(TRUNC($U15/12)*12)<>0,OFFSET('Set-up'!$J$37,MATCH($F15,TaxCode,0),0,1,1)=0),1,(($U15-(TRUNC($U15/12)*12))/12))),SUMIFS(TransCRes,TransAsset,$A15,TransIDDate,$L15))) -> 0 | AZ15: 0 | BA15: =IF(ISNA(MATCH($F15,TaxCode,0))=TRUE,$S15*($V15>0),MAX(($S15*($V15>0))-(($S15-$R15)*(IF($V15<=11,0,MIN(SUM(OFFSET('Set-up'!$D$37,MATCH($F15,TaxCode,0),0,1,MATCH($V15,TaxCumMonth,1)))+MAX(TRUNC(($V15-60)/12)*SUM(OFFSET('Set-up'!$H$37,MATCH($F15,TaxCode,0),0,1,1)),0%),100%))))-(($S15-$R15)*OFFSET('Set-up'!$D$37,MATCH($F15,TaxCode,0),MATCH($V15,TaxCurMonth,1)-1,1,1)*IF(AND($V15-(TRUNC($V15/12)*12)<>0,OFFSET('Set-up'!$J$37,MATCH($F15,TaxCode,0),0,1,1)=0),1,(($V15-(TRUNC($V15/12)*12))/12))),$R15*($V15>0))) -> 0 | BB15: =$BA15-IF(ISNA(MATCH($F15,TaxCode,0))=TRUE,$S15*($W15>0),MAX(($S15*($W15>0))-(($S15-SUMIFS(TransCRes,TransAsset,$A15,TransIDDate,$M15))*(IF($W15<=11,0,MIN(SUM(OFFSET('Set-up'!$D$37,MATCH($F15,TaxCode,0),0,1,MATCH($W15,TaxCumMonth,1)))+MAX(TRUNC(($W15-60)/12)*SUM(OFFSET('Set-up'!$H$37,MATCH($F15,TaxCode,0),0,1,1)),0%),100%))))-(($S15-SUMIFS(TransCRes,TransAsset,$A15,TransIDDate,$M15))*OFFSET('Set-up'!$D$37,MATCH($F15,TaxCode,0),MATCH($W15,TaxCurMonth,1)-1,1,1)*IF(AND($W15-(TRUNC($W15/12)*12)<>0,OFFSET('Set-up'!$J$37,MATCH($F15,TaxCode,0),0,1,1)=0),1,(($W15-(TRUNC($W15/12)*12))/12))),SUMIFS(TransCRes,TransAsset,$A15,TransIDDate,$M15)*($W15>0))) -> 0 | BC15: =IF(ISNUMBER('Set-up'!$C$9)=FALSE,0,IF($F15="J",0,ROUND(($AU15-$AY15)*'Set-up'!$C$9,2))) -> 7881.07 | BD15: -6720 | BE15: =IF(ISNUMBER('Set-up'!$C$9)=FALSE,0,IF($F15="J",0,ROUND(($AW15-$BA15)*'Set-up'!$C$9,2))) -> 1161.07 | BF15: =IF(ISNUMBER('Set-up'!$C$9)=FALSE,0,IF($F15="J",0,ROUND(($AX15-$BB15)*'Set-up'!$C$9,2))) -> -560
A16: PP-00011 | B16: 19837364 | C16: Aquino T7M | D16: Owned | E16: PPM01 | F16: B | G16: =IF(COUNTIF(AssetCode,$A16)>1,"E1",IF(ISNA(VLOOKUP($E16,CatAll,1,0))=TRUE,"E2",IF(AND($I16="add!",$J16<>"add!"),"E10",IF(ISNA(VLOOKUP($F16,TaxCode,1,0))=TRUE,"E11","-")))) -> - | H16: PM | I16: =IF(ISERROR(LARGE(IF(TransAsset=$A16,IF(TransType="ACQ",TransIDDate,"add!"),"add!"),1)),"add!",LARGE(IF(TransAsset=$A16,IF(TransType="ACQ",TransIDDate,"add!"),"add!"),1)) -> 2015-07-20T00:00:24 | J16: =IF(ISERROR(LARGE(IF(TransAsset=$A16,TransIDDate,"add!"),1)),"add!",LARGE(IF(TransAsset=$A16,TransIDDate,"add!"),1)) -> 2021-02-12T00:01:22 | K16: =IF(ISERROR(LARGE(IF(TransAsset=$A16,IF(TransDate<($I$2+1),TransIDDate,"-"),"-"),1)),"-",LARGE(IF(TransAsset=$A16,IF(TransDate<($I$2+1),TransIDDate,"-"),"-"),1)) -> 2021-02-12T00:01:22 | L16: =IF(ISERROR(LARGE(IF(TransAsset=$A16,IF(TransDate<$H$2,TransIDDate,"-"),"-"),1)),"-",LARGE(IF(TransAsset=$A16,IF(TransDate<$H$2,TransIDDate,"-"),"-"),1)) -> 2015-07-20T00:00:24 | M16: =IF(ISERROR(LARGE(IF(TransAsset=$A16,IF(TransDate<$J$2,TransIDDate,"-"),"-"),1)),"-",LARGE(IF(TransAsset=$A16,IF(TransDate<$J$2,TransIDDate,"-"),"-"),1)) -> 2020-03-01T00:01:02 | N16: =IF(ISERROR(LARGE(IF(TransAsset=$A16,IF(TransType="DIS",TransIDDate,"-"),"-"),1)),"-",LARGE(IF(TransAsset=$A16,IF(TransType="DIS",TransIDDate,"-"),"-"),1)) -> 2021-02-12T00:01:22 | O16: =IF($N16<=$I$2,SUMIFS(TransProceeds,TransAsset,$A16,TransType,"DIS"),0) -> 150000 | P16: =IF($I16<=($I$2+1),SUMIFS(TransHCost,TransAsset,$A16,TransIDDate,$J16),0) -> 660450 | Q16: 0 | R16: 0 | S16: 660450 | T16: =IF(ISNA(MATCH($F16,TaxCode,0))=TRUE,"code?",OFFSET('Set-up'!$D$37,MATCH($F16,TaxCode,0),MATCH($V16,TaxCurMonth,1)-1,1,1)) -> 0.5 | U16: 56 | V16: 0 | W16: 67 | X16: 660450 | Y16: 0 | Z16: -470450 | AA16: -190000 | AB16: 0 | AC16: 0 | AD16: =IF($L16=0,0,IF(SUMIFS(TransCLife,TransAsset,$A16,TransIDDate,$L16)=0,0,IF(($X16-(SUMIFS(TransCRes,TransAsset,$A16,TransIDDate,$L16)))/(SUMIFS(TransCLife,TransAsset,$A16,TransIDDate,$L16)*12)*(((YEAR($H$2)*12)+MONTH($H$2))-((YEAR($L16)*12)+MONTH($L16)))>=($X16-SUMIFS(TransCRes,TransAsset,$A16,TransIDDate,$L16)),$X16-SUMIFS(TransCRes,TransAsset,$A16,TransIDDate,$L16),($X16-(SUMIFS(TransCRes,TransAsset,$A16,TransIDDate,$L16)))/(SUMIFS(TransCLife,TransAsset,$A16,TransIDDate,$L16)*12)*(((YEAR($H$2)*12)+MONTH($H$2))-((YEAR($L16)*12)+MONTH($L16)))))) -> 616420 | AE16: 34833.33333 | AF16: 0 | AG16: 34833.33333 | AH16: -616420 | AI16: -34833.33333 | AJ16: 0 | AK16: 0 | AL16: 0 | AM16: 0 | AN16: 0 | AO16: 0 | AP16: 0 | AQ16: 140803.3333 | AR16: 0 | AS16: 0 | AT16: 0 | AU16: =IF($I16<$H$2,IF(AND($N16<>"-",$N16<$H$2),0,SUMIFS(TransHCost,TransAsset,$A16,TransIDDate,$J16)-SUMIFS(TransPCAccDep,TransAsset,$A16)-SUMIFS(TransImpair,TransAsset,$A16,TransIDDate,"<"&$H$2,TransType,"REV")),0) -> 44030 | AV16: -44030 | AW16: 0 | AX16: =$AW16-IF($I16<$J$2,IF(AND($N16<>"-",$N16<$J$2),0,SUMIFS(TransHCost,TransAsset,$A16,TransIDDate,$J16)-SUMIFS(TransPMAccDep,TransAsset,$A16)-SUMIFS(TransImpair,TransAsset,$A16,TransIDDate,"<"&$J$2,TransType,"REV")),0) -> -9196.666667 | AY16: =IF(ISNA(MATCH($F16,TaxCode,0))=TRUE,$S16*($U16>0),MAX(($S16*($U16>0))-(($S16-SUMIFS(TransCRes,TransAsset,$A16,TransIDDate,$L16))*(IF($U16<=11,0,MIN(SUM(OFFSET('Set-up'!$D$37,MATCH($F16,TaxCode,0),0,1,MATCH($U16,TaxCumMonth,1)))+MAX(TRUNC(($U16-60)/12)*SUM(OFFSET('Set-up'!$H$37,MATCH($F16,TaxCode,0),0,1,1)),0%),100%))))-(($S16-SUMIFS(TransCRes,TransAsset,$A16,TransIDDate,$L16))*OFFSET('Set-up'!$D$37,MATCH($F16,TaxCode,0),MATCH($U16,TaxCurMonth,1)-1,1,1)*IF(AND($U16-(TRUNC($U16/12)*12)<>0,OFFSET('Set-up'!$J$37,MATCH($F16,TaxCode,0),0,1,1)=0),1,(($U16-(TRUNC($U16/12)*12))/12))),SUMIFS(TransCRes,TransAsset,$A16,TransIDDate,$L16))) -> 0 | AZ16: 0 | BA16: =IF(ISNA(MATCH($F16,TaxCode,0))=TRUE,$S16*($V16>0),MAX(($S16*($V16>0))-(($S16-$R16)*(IF($V16<=11,0,MIN(SUM(OFFSET('Set-up'!$D$37,MATCH($F16,TaxCode,0),0,1,MATCH($V16,TaxCumMonth,1)))+MAX(TRUNC(($V16-60)/12)*SUM(OFFSET('Set-up'!$H$37,MATCH($F16,TaxCode,0),0,1,1)),0%),100%))))-(($S16-$R16)*OFFSET('Set-up'!$D$37,MATCH($F16,TaxCode,0),MATCH($V16,TaxCurMonth,1)-1,1,1)*IF(AND($V16-(TRUNC($V16/12)*12)<>0,OFFSET('Set-up'!$J$37,MATCH($F16,TaxCode,0),0,1,1)=0),1,(($V16-(TRUNC($V16/12)*12))/12))),$R16*($V16>0))) -> 0 | BB16: =$BA16-IF(ISNA(MATCH($F16,TaxCode,0))=TRUE,$S16*($W16>0),MAX(($S16*($W16>0))-(($S16-SUMIFS(TransCRes,TransAsset,$A16,TransIDDate,$M16))*(IF($W16<=11,0,MIN(SUM(OFFSET('Set-up'!$D$37,MATCH($F16,TaxCode,0),0,1,MATCH($W16,TaxCumMonth,1)))+MAX(TRUNC(($W16-60)/12)*SUM(OFFSET('Set-up'!$H$37,MATCH($F16,TaxCode,0),0,1,1)),0%),100%))))-(($S16-SUMIFS(TransCRes,TransAsset,$A16,TransIDDate,$M16))*OFFSET('Set-up'!$D$37,MATCH($F16,TaxCode,0),MATCH($W16,TaxCurMonth,1)-1,1,1)*IF(AND($W16-(TRUNC($W16/12)*12)<>0,OFFSET('Set-up'!$J$37,MATCH($F16,TaxCode,0),0,1,1)=0),1,(($W16-(TRUNC($W16/12)*12))/12))),SUMIFS(TransCRes,TransAsset,$A16,TransIDDate,$M16)*($W16>0))) -> 0 | BC16: =IF(ISNUMBER('Set-up'!$C$9)=FALSE,0,IF($F16="J",0,ROUND(($AU16-$AY16)*'Set-up'!$C$9,2))) -> 12328.4 | BD16: -12328.4 | BE16: =IF(ISNUMBER('Set-up'!$C$9)=FALSE,0,IF($F16="J",0,ROUND(($AW16-$BA16)*'Set-up'!$C$9,2))) -> 0 | BF16: =IF(ISNUMBER('Set-up'!$C$9)=FALSE,0,IF($F16="J",0,ROUND(($AX16-$BB16)*'Set-up'!$C$9,2))) -> -2575.07
A17: PP-00012 | B17: 13565135 | C17: Briquetting Press | D17: Owned | E17: PPM01 | F17: B | G17: =IF(COUNTIF(AssetCode,$A17)>1,"E1",IF(ISNA(VLOOKUP($E17,CatAll,1,0))=TRUE,"E2",IF(AND($I17="add!",$J17<>"add!"),"E10",IF(ISNA(VLOOKUP($F17,TaxCode,1,0))=TRUE,"E11","-")))) -> - | H17: PM | I17: =IF(ISERROR(LARGE(IF(TransAsset=$A17,IF(TransType="ACQ",TransIDDate,"add!"),"add!"),1)),"add!",LARGE(IF(TransAsset=$A17,IF(TransType="ACQ",TransIDDate,"add!"),"add!"),1)) -> 2015-07-20T00:00:25 | J17: =IF(ISERROR(LARGE(IF(TransAsset=$A17,TransIDDate,"add!"),1)),"add!",LARGE(IF(TransAsset=$A17,TransIDDate,"add!"),1)) -> 2020-03-01T00:01:03 | K17: =IF(ISERROR(LARGE(IF(TransAsset=$A17,IF(TransDate<($I$2+1),TransIDDate,"-"),"-"),1)),"-",LARGE(IF(TransAsset=$A17,IF(TransDate<($I$2+1),TransIDDate,"-"),"-"),1)) -> 2020-03-01T00:01:03 | L17: =IF(ISERROR(LARGE(IF(TransAsset=$A17,IF(TransDate<$H$2,TransIDDate,"-"),"-"),1)),"-",LARGE(IF(TransAsset=$A17,IF(TransDate<$H$2,TransIDDate,"-"),"-"),1)) -> 2015-07-20T00:00:25 | M17: =IF(ISERROR(LARGE(IF(TransAsset=$A17,IF(TransDate<$J$2,TransIDDate,"-"),"-"),1)),"-",LARGE(IF(TransAsset=$A17,IF(TransDate<$J$2,TransIDDate,"-"),"-"),1)) -> 2020-03-01T00:01:03 | N17: =IF(ISERROR(LARGE(IF(TransAsset=$A17,IF(TransType="DIS",TransIDDate,"-"),"-"),1)),"-",LARGE(IF(TransAsset=$A17,IF(TransType="DIS",TransIDDate,"-"),"-"),1)) -> - | O17: =IF($N17<=$I$2,SUMIFS(TransProceeds,TransAsset,$A17,TransType,"DIS"),0) -> 0 | P17: =IF($I17<=($I$2+1),SUMIFS(TransHCost,TransAsset,$A17,TransIDDate,$J17),0) -> 354600 | Q17: 5 | R17: 0 | S17: 354600 | T17: =IF(ISNA(MATCH($F17,TaxCode,0))=TRUE,"code?",OFFSET('Set-up'!$D$37,MATCH($F17,TaxCode,0),MATCH($V17,TaxCurMonth,1)-1,1,1)) -> 0 | U17: 56 | V17: 68 | W17: 67 | X17: 354600 | Y17: 0 | Z17: -254130 | AA17: 0 | AB17: 0 | AC17: 100470 | AD17: =IF($L17=0,0,IF(SUMIFS(TransCLife,TransAsset,$A17,TransIDDate,$L17)=0,0,IF(($X17-(SUMIFS(TransCRes,TransAsset,$A17,TransIDDate,$L17)))/(SUMIFS(TransCLife,TransAsset,$A17,TransIDDate,$L17)*12)*(((YEAR($H$2)*12)+MONTH($H$2))-((YEAR($L17)*12)+MONTH($L17)))>=($X17-SUMIFS(TransCRes,TransAsset,$A17,TransIDDate,$L17)),$X17-SUMIFS(TransCRes,TransAsset,$A17,TransIDDate,$L17),($X17-(SUMIFS(TransCRes,TransAsset,$A17,TransIDDate,$L17)))/(SUMIFS(TransCLife,TransAsset,$A17,TransIDDate,$L17)*12)*(((YEAR($H$2)*12)+MONTH($H$2))-((YEAR($L17)*12)+MONTH($L17)))))) -> 330960 | AE17: 20094 | AF17: 0 | AG17: 20094 | AH17: -330960 | AI17: 0 | AJ17: 20094 | AK17: 80376 | AL17: 0 | AM17: 76830 | AN17: 0 | AO17: 76830 | AP17: 0 | AQ17: 0 | AR17: 1674.5 | AS17: 0 | AT17: 1674.5 | AU17: =IF($I17<$H$2,IF(AND($N17<>"-",$N17<$H$2),0,SUMIFS(TransHCost,TransAsset,$A17,TransIDDate,$J17)-SUMIFS(TransPCAccDep,TransAsset,$A17)-SUMIFS(TransImpair,TransAsset,$A17,TransIDDate,"<"&$H$2,TransType,"REV")),0) -> 23640 | AV17: -20094 | AW17: 3546 | AX17: =$AW17-IF($I17<$J$2,IF(AND($N17<>"-",$N17<$J$2),0,SUMIFS(TransHCost,TransAsset,$A17,TransIDDate,$J17)-SUMIFS(TransPMAccDep,TransAsset,$A17)-SUMIFS(TransImpair,TransAsset,$A17,TransIDDate,"<"&$J$2,TransType,"REV")),0) -> -1674.5 | AY17: =IF(ISNA(MATCH($F17,TaxCode,0))=TRUE,$S17*($U17>0),MAX(($S17*($U17>0))-(($S17-SUMIFS(TransCRes,TransAsset,$A17,TransIDDate,$L17))*(IF($U17<=11,0,MIN(SUM(OFFSET('Set-up'!$D$37,MATCH($F17,TaxCode,0),0,1,MATCH($U17,TaxCumMonth,1)))+MAX(TRUNC(($U17-60)/12)*SUM(OFFSET('Set-up'!$H$37,MATCH($F17,TaxCode,0),0,1,1)),0%),100%))))-(($S17-SUMIFS(TransCRes,TransAsset,$A17,TransIDDate,$L17))*OFFSET('Set-up'!$D$37,MATCH($F17,TaxCode,0),MATCH($U17,TaxCurMonth,1)-1,1,1)*IF(AND($U17-(TRUNC($U17/12)*12)<>0,OFFSET('Set-up'!$J$37,MATCH($F17,TaxCode,0),0,1,1)=0),1,(($U17-(TRUNC($U17/12)*12))/12))),SUMIFS(TransCRes,TransAsset,$A17,TransIDDate,$L17))) -> 0 | AZ17: 0 | BA17: =IF(ISNA(MATCH($F17,TaxCode,0))=TRUE,$S17*($V17>0),MAX(($S17*($V17>0))-(($S17-$R17)*(IF($V17<=11,0,MIN(SUM(OFFSET('Set-up'!$D$37,MATCH($F17,TaxCode,0),0,1,MATCH($V17,TaxCumMonth,1)))+MAX(TRUNC(($V17-60)/12)*SUM(OFFSET('Set-up'!$H$37,MATCH($F17,TaxCode,0),0,1,1)),0%),100%))))-(($S17-$R17)*OFFSET('Set-up'!$D$37,MATCH($F17,TaxCode,0),MATCH($V17,TaxCurMonth,1)-1,1,1)*IF(AND($V17-(TRUNC($V17/12)*12)<>0,OFFSET('Set-up'!$J$37,MATCH($F17,TaxCode,0),0,1,1)=0),1,(($V17-(TRUNC($V17/12)*12))/12))),$R17*($V17>0))) -> 0 | BB17: =$BA17-IF(ISNA(MATCH($F17,TaxCode,0))=TRUE,$S17*($W17>0),MAX(($S17*($W17>0))-(($S17-SUMIFS(TransCRes,TransAsset,$A17,TransIDDate,$M17))*(IF($W17<=11,0,MIN(SUM(OFFSET('Set-up'!$D$37,MATCH($F17,TaxCode,0),0,1,MATCH($W17,TaxCumMonth,1)))+MAX(TRUNC(($W17-60)/12)*SUM(OFFSET('Set-up'!$H$37,MATCH($F17,TaxCode,0),0,1,1)),0%),100%))))-(($S17-SUMIFS(TransCRes,TransAsset,$A17,TransIDDate,$M17))*OFFSET('Set-up'!$D$37,MATCH($F17,TaxCode,0),MATCH($W17,TaxCurMonth,1)-1,1,1)*IF(AND($W17-(TRUNC($W17/12)*12)<>0,OFFSET('Set-up'!$J$37,MATCH($F17,TaxCode,0),0,1,1)=0),1,(($W17-(TRUNC($W17/12)*12))/12))),SUMIFS(TransCRes,TransAsset,$A17,TransIDDate,$M17)*($W17>0))) -> 0 | BC17: =IF(ISNUMBER('Set-up'!$C$9)=FALSE,0,IF($F17="J",0,ROUND(($AU17-$AY17)*'Set-up'!$C$9,2))) -> 6619.2 | BD17: -5626.32 | BE17: =IF(ISNUMBER('Set-up'!$C$9)=FALSE,0,IF($F17="J",0,ROUND(($AW17-$BA17)*'Set-up'!$C$9,2))) -> 992.88 | BF17: =IF(ISNUMBER('Set-up'!$C$9)=FALSE,0,IF($F17="J",0,ROUND(($AX17-$BB17)*'Set-up'!$C$9,2))) -> -468.86
A18: PP-00013 | B18: 65645278 | C18: Starrag -Triple Copy Mill | D18: Owned | E18: PPM01 | F18: B | G18: =IF(COUNTIF(AssetCode,$A18)>1,"E1",IF(ISNA(VLOOKUP($E18,CatAll,1,0))=TRUE,"E2",IF(AND($I18="add!",$J18<>"add!"),"E10",IF(ISNA(VLOOKUP($F18,TaxCode,1,0))=TRUE,"E11","-")))) -> - | H18: PM | I18: =IF(ISERROR(LARGE(IF(TransAsset=$A18,IF(TransType="ACQ",TransIDDate,"add!"),"add!"),1)),"add!",LARGE(IF(TransAsset=$A18,IF(TransType="ACQ",TransIDDate,"add!"),"add!"),1)) -> 2016-09-10T00:00:33 | J18: =IF(ISERROR(LARGE(IF(TransAsset=$A18,TransIDDate,"add!"),1)),"add!",LARGE(IF(TransAsset=$A18,TransIDDate,"add!"),1)) -> 2020-03-01T00:01:04 | K18: =IF(ISERROR(LARGE(IF(TransAsset=$A18,IF(TransDate<($I$2+1),TransIDDate,"-"),"-"),1)),"-",LARGE(IF(TransAsset=$A18,IF(TransDate<($I$2+1),TransIDDate,"-"),"-"),1)) -> 2020-03-01T00:01:04 | L18: =IF(ISERROR(LARGE(IF(TransAsset=$A18,IF(TransDate<$H$2,TransIDDate,"-"),"-"),1)),"-",LARGE(IF(TransAsset=$A18,IF(TransDate<$H$2,TransIDDate,"-"),"-"),1)) -> 2016-09-10T00:00:33 | M18: =IF(ISERROR(LARGE(IF(TransAsset=$A18,IF(TransDate<$J$2,TransIDDate,"-"),"-"),1)),"-",LARGE(IF(TransAsset=$A18,IF(TransDate<$J$2,TransIDDate,"-"),"-"),1)) -> 2020-03-01T00:01:04 | N18: =IF(ISERROR(LARGE(IF(TransAsset=$A18,IF(TransType="DIS",TransIDDate,"-"),"-"),1)),"-",LARGE(IF(TransAsset=$A18,IF(TransType="DIS",TransIDDate,"-"),"-"),1)) -> - | O18: =IF($N18<=$I$2,SUMIFS(TransProceeds,TransAsset,$A18,TransType,"DIS"),0) -> 0 | P18: =IF($I18<=($I$2+1),SUMIFS(TransHCost,TransAsset,$A18,TransIDDate,$J18),0) -> 12500 | Q18: 5 | R18: 0 | S18: 12500 | T18: =IF(ISNA(MATCH($F18,TaxCode,0))=TRUE,"code?",OFFSET('Set-up'!$D$37,MATCH($F18,TaxCode,0),MATCH($V18,TaxCurMonth,1)-1,1,1)) -> 0 | U18: 42 | V18: 54 | W18: 53 | X18: 12500 | Y18: 0 | Z18: -2500 | AA18: 0 | AB18: 0 | AC18: 10000 | AD18: =IF($L18=0,0,IF(SUMIFS(TransCLife,TransAsset,$A18,TransIDDate,$L18)=0,0,IF(($X18-(SUMIFS(TransCRes,TransAsset,$A18,TransIDDate,$L18)))/(SUMIFS(TransCLife,TransAsset,$A18,TransIDDate,$L18)*12)*(((YEAR($H$2)*12)+MONTH($H$2))-((YEAR($L18)*12)+MONTH($L18)))>=($X18-SUMIFS(TransCRes,TransAsset,$A18,TransIDDate,$L18)),$X18-SUMIFS(TransCRes,TransAsset,$A18,TransIDDate,$L18),($X18-(SUMIFS(TransCRes,TransAsset,$A18,TransIDDate,$L18)))/(SUMIFS(TransCLife,TransAsset,$A18,TransIDDate,$L18)*12)*(((YEAR($H$2)*12)+MONTH($H$2))-((YEAR($L18)*12)+MONTH($L18)))))) -> 8750 | AE18: 2000 | AF18: 0 | AG18: 2000 | AH18: -8750 | AI18: 0 | AJ18: 2000 | AK18: 8000 | AL18: 0 | AM18: 6250 | AN18: 0 | AO18: 6250 | AP18: 0 | AQ18: 0 | AR18: 166.6666667 | AS18: 0 | AT18: 166.6666667 | AU18: =IF($I18<$H$2,IF(AND($N18<>"-",$N18<$H$2),0,SUMIFS(TransHCost,TransAsset,$A18,TransIDDate,$J18)-SUMIFS(TransPCAccDep,TransAsset,$A18)-SUMIFS(TransImpair,TransAsset,$A18,TransIDDate,"<"&$H$2,TransType,"REV")),0) -> 3750 | AV18: -2000 | AW18: 1750 | AX18: =$AW18-IF($I18<$J$2,IF(AND($N18<>"-",$N18<$J$2),0,SUMIFS(TransHCost,TransAsset,$A18,TransIDDate,$J18)-SUMIFS(TransPMAccDep,TransAsset,$A18)-SUMIFS(TransImpair,TransAsset,$A18,TransIDDate,"<"&$J$2,TransType,"REV")),0) -> -166.6666667 | AY18: =IF(ISNA(MATCH($F18,TaxCode,0))=TRUE,$S18*($U18>0),MAX(($S18*($U18>0))-(($S18-SUMIFS(TransCRes,TransAsset,$A18,TransIDDate,$L18))*(IF($U18<=11,0,MIN(SUM(OFFSET('Set-up'!$D$37,MATCH($F18,TaxCode,0),0,1,MATCH($U18,TaxCumMonth,1)))+MAX(TRUNC(($U18-60)/12)*SUM(OFFSET('Set-up'!$H$37,MATCH($F18,TaxCode,0),0,1,1)),0%),100%))))-(($S18-SUMIFS(TransCRes,TransAsset,$A18,TransIDDate,$L18))*OFFSET('Set-up'!$D$37,MATCH($F18,TaxCode,0),MATCH($U18,TaxCurMonth,1)-1,1,1)*IF(AND($U18-(TRUNC($U18/12)*12)<>0,OFFSET('Set-up'!$J$37,MATCH($F18,TaxCode,0),0,1,1)=0),1,(($U18-(TRUNC($U18/12)*12))/12))),SUMIFS(TransCRes,TransAsset,$A18,TransIDDate,$L18))) -> 0 | AZ18: 0 | BA18: =IF(ISNA(MATCH($F18,TaxCode,0))=TRUE,$S18*($V18>0),MAX(($S18*($V18>0))-(($S18-$R18)*(IF($V18<=11,0,MIN(SUM(OFFSET('Set-up'!$D$37,MATCH($F18,TaxCode,0),0,1,MATCH($V18,TaxCumMonth,1)))+MAX(TRUNC(($V18-60)/12)*SUM(OFFSET('Set-up'!$H$37,MATCH($F18,TaxCode,0),0,1,1)),0%),100%))))-(($S18-$R18)*OFFSET('Set-up'!$D$37,MATCH($F18,TaxCode,0),MATCH($V18,TaxCurMonth,1)-1,1,1)*IF(AND($V18-(TRUNC($V18/12)*12)<>0,OFFSET('Set-up'!$J$37,MATCH($F18,TaxCode,0),0,1,1)=0),1,(($V18-(TRUNC($V18/12)*12))/12))),$R18*($V18>0))) -> 0 | BB18: =$BA18-IF(ISNA(MATCH($F18,TaxCode,0))=TRUE,$S18*($W18>0),MAX(($S18*($W18>0))-(($S18-SUMIFS(TransCRes,TransAsset,$A18,TransIDDate,$M18))*(IF($W18<=11,0,MIN(SUM(OFFSET('Set-up'!$D$37,MATCH($F18,TaxCode,0),0,1,MATCH($W18,TaxCumMonth,1)))+MAX(TRUNC(($W18-60)/12)*SUM(OFFSET('Set-up'!$H$37,MATCH($F18,TaxCode,0),0,1,1)),0%),100%))))-(($S18-SUMIFS(TransCRes,TransAsset,$A18,TransIDDate,$M18))*OFFSET('Set-up'!$D$37,MATCH($F18,TaxCode,0),MATCH($W18,TaxCurMonth,1)-1,1,1)*IF(AND($W18-(TRUNC($W18/12)*12)<>0,OFFSET('Set-up'!$J$37,MATCH($F18,TaxCode,0),0,1,1)=0),1,(($W18-(TRUNC($W18/12)*12))/12))),SUMIFS(TransCRes,TransAsset,$A18,TransIDDate,$M18)*($W18>0))) -> 0 | BC18: =IF(ISNUMBER('Set-up'!$C$9)=FALSE,0,IF($F18="J",0,ROUND(($AU18-$AY18)*'Set-up'!$C$9,2))) -> 1050 | BD18: -560 | BE18: =IF(ISNUMBER('Set-up'!$C$9)=FALSE,0,IF($F18="J",0,ROUND(($AW18-$BA18)*'Set-up'!$C$9,2))) -> 490 | BF18: =IF(ISNUMBER('Set-up'!$C$9)=FALSE,0,IF($F18="J",0,ROUND(($AX18-$BB18)*'Set-up'!$C$9,2))) -> -46.67
A19: PP-00014 | B19: 98290098 | C19: Churchill - RH8 Shaver | D19: Owned | E19: PPM01 | F19: B | G19: =IF(COUNTIF(AssetCode,$A19)>1,"E1",IF(ISNA(VLOOKUP($E19,CatAll,1,0))=TRUE,"E2",IF(AND($I19="add!",$J19<>"add!"),"E10",IF(ISNA(VLOOKUP($F19,TaxCode,1,0))=TRUE,"E11","-")))) -> - | H19: PM | I19: =IF(ISERROR(LARGE(IF(TransAsset=$A19,IF(TransType="ACQ",TransIDDate,"add!"),"add!"),1)),"add!",LARGE(IF(TransAsset=$A19,IF(TransType="ACQ",TransIDDate,"add!"),"add!"),1)) -> 2017-03-17T00:00:35 | J19: =IF(ISERROR(LARGE(IF(TransAsset=$A19,TransIDDate,"add!"),1)),"add!",LARGE(IF(TransAsset=$A19,TransIDDate,"add!"),1)) -> 2020-03-01T00:01:05 | K19: =IF(ISERROR(LARGE(IF(TransAsset=$A19,IF(TransDate<($I$2+1),TransIDDate,"-"),"-"),1)),"-",LARGE(IF(TransAsset=$A19,IF(TransDate<($I$2+1),TransIDDate,"-"),"-"),1)) -> 2020-03-01T00:01:05 | L19: =IF(ISERROR(LARGE(IF(TransAsset=$A19,IF(TransDate<$H$2,TransIDDate,"-"),"-"),1)),"-",LARGE(IF(TransAsset=$A19,IF(TransDate<$H$2,TransIDDate,"-"),"-"),1)) -> 2017-03-17T00:00:35 | M19: =IF(ISERROR(LARGE(IF(TransAsset=$A19,IF(TransDate<$J$2,TransIDDate,"-"),"-"),1)),"-",LARGE(IF(TransAsset=$A19,IF(TransDate<$J$2,TransIDDate,"-"),"-"),1)) -> 2020-03-01T00:01:05 | N19: =IF(ISERROR(LARGE(IF(TransAsset=$A19,IF(TransType="DIS",TransIDDate,"-"),"-"),1)),"-",LARGE(IF(TransAsset=$A19,IF(TransType="DIS",TransIDDate,"-"),"-"),1)) -> - | O19: =IF($N19<=$I$2,SUMIFS(TransProceeds,TransAsset,$A19,TransType,"DIS"),0) -> 0 | P19: =IF($I19<=($I$2+1),SUMIFS(TransHCost,TransAsset,$A19,TransIDDate,$J19),0) -> 70000 | Q19: 5 | R19: 0 | S19: 70000 | T19: =IF(ISNA(MATCH($F19,TaxCode,0))=TRUE,"code?",OFFSET('Set-up'!$D$37,MATCH($F19,TaxCode,0),MATCH($V19,TaxCurMonth,1)-1,1,1)) -> 0 | U19: 36 | V19: 48 | W19: 47 | X19: 70000 | Y19: 0 | Z19: -20000 | AA19: 0 | AB19: 0 | AC19: 50000 | AD19: =IF($L19=0,0,IF(SUMIFS(TransCLife,TransAsset,$A19,TransIDDate,$L19)=0,0,IF(($X19-(SUMIFS(TransCRes,TransAsset,$A19,TransIDDate,$L19)))/(SUMIFS(TransCLife,TransAsset,$A19,TransIDDate,$L19)*12)*(((YEAR($H$2)*12)+MONTH($H$2))-((YEAR($L19)*12)+MONTH($L19)))>=($X19-SUMIFS(TransCRes,TransAsset,$A19,TransIDDate,$L19)),$X19-SUMIFS(TransCRes,TransAsset,$A19,TransIDDate,$L19),($X19-(SUMIFS(TransCRes,TransAsset,$A19,TransIDDate,$L19)))/(SUMIFS(TransCLife,TransAsset,$A19,TransIDDate,$L19)*12)*(((YEAR($H$2)*12)+MONTH($H$2))-((YEAR($L19)*12)+MONTH($L19)))))) -> 42000 | AE19: 10000 | AF19: 0 | AG19: 10000 | AH19: -42000 | AI19: 0 | AJ19: 10000 | AK19: 40000 | AL19: 0 | AM19: 22000 | AN19: 0 | AO19: 22000 | AP19: 0 | AQ19: 0 | AR19: 833.3333333 | AS19: 0 | AT19: 833.3333333 | AU19: =IF($I19<$H$2,IF(AND($N19<>"-",$N19<$H$2),0,SUMIFS(TransHCost,TransAsset,$A19,TransIDDate,$J19)-SUMIFS(TransPCAccDep,TransAsset,$A19)-SUMIFS(TransImpair,TransAsset,$A19,TransIDDate,"<"&$H$2,TransType,"REV")),0) -> 28000 | AV19: -10000 | AW19: 18000 | AX19: =$AW19-IF($I19<$J$2,IF(AND($N19<>"-",$N19<$J$2),0,SUMIFS(TransHCost,TransAsset,$A19,TransIDDate,$J19)-SUMIFS(TransPMAccDep,TransAsset,$A19)-SUMIFS(TransImpair,TransAsset,$A19,TransIDDate,"<"&$J$2,TransType,"REV")),0) -> -833.3333333 | AY19: =IF(ISNA(MATCH($F19,TaxCode,0))=TRUE,$S19*($U19>0),MAX(($S19*($U19>0))-(($S19-SUMIFS(TransCRes,TransAsset,$A19,TransIDDate,$L19))*(IF($U19<=11,0,MIN(SUM(OFFSET('Set-up'!$D$37,MATCH($F19,TaxCode,0),0,1,MATCH($U19,TaxCumMonth,1)))+MAX(TRUNC(($U19-60)/12)*SUM(OFFSET('Set-up'!$H$37,MATCH($F19,TaxCode,0),0,1,1)),0%),100%))))-(($S19-SUMIFS(TransCRes,TransAsset,$A19,TransIDDate,$L19))*OFFSET('Set-up'!$D$37,MATCH($F19,TaxCode,0),MATCH($U19,TaxCurMonth,1)-1,1,1)*IF(AND($U19-(TRUNC($U19/12)*12)<>0,OFFSET('Set-up'!$J$37,MATCH($F19,TaxCode,0),0,1,1)=0),1,(($U19-(TRUNC($U19/12)*12))/12))),SUMIFS(TransCRes,TransAsset,$A19,TransIDDate,$L19))) -> 0 | AZ19: 0 | BA19: =IF(ISNA(MATCH($F19,TaxCode,0))=TRUE,$S19*($V19>0),MAX(($S19*($V19>0))-(($S19-$R19)*(IF($V19<=11,0,MIN(SUM(OFFSET('Set-up'!$D$37,MATCH($F19,TaxCode,0),0,1,MATCH($V19,TaxCumMonth,1)))+MAX(TRUNC(($V19-60)/12)*SUM(OFFSET('Set-up'!$H$37,MATCH($F19,TaxCode,0),0,1,1)),0%),100%))))-(($S19-$R19)*OFFSET('Set-up'!$D$37,MATCH($F19,TaxCode,0),MATCH($V19,TaxCurMonth,1)-1,1,1)*IF(AND($V19-(TRUNC($V19/12)*12)<>0,OFFSET('Set-up'!$J$37,MATCH($F19,TaxCode,0),0,1,1)=0),1,(($V19-(TRUNC($V19/12)*12))/12))),$R19*($V19>0))) -> 0 | BB19: =$BA19-IF(ISNA(MATCH($F19,TaxCode,0))=TRUE,$S19*($W19>0),MAX(($S19*($W19>0))-(($S19-SUMIFS(TransCRes,TransAsset,$A19,TransIDDate,$M19))*(IF($W19<=11,0,MIN(SUM(OFFSET('Set-up'!$D$37,MATCH($F19,TaxCode,0),0,1,MATCH($W19,TaxCumMonth,1)))+MAX(TRUNC(($W19-60)/12)*SUM(OFFSET('Set-up'!$H$37,MATCH($F19,TaxCode,0),0,1,1)),0%),100%))))-(($S19-SUMIFS(TransCRes,TransAsset,$A19,TransIDDate,$M19))*OFFSET('Set-up'!$D$37,MATCH($F19,TaxCode,0),MATCH($W19,TaxCurMonth,1)-1,1,1)*IF(AND($W19-(TRUNC($W19/12)*12)<>0,OFFSET('Set-up'!$J$37,MATCH($F19,TaxCode,0),0,1,1)=0),1,(($W19-(TRUNC($W19/12)*12))/12))),SUMIFS(TransCRes,TransAsset,$A19,TransIDDate,$M19)*($W19>0))) -> 0 | BC19: =IF(ISNUMBER('Set-up'!$C$9)=FALSE,0,IF($F19="J",0,ROUND(($AU19-$AY19)*'Set-up'!$C$9,2))) -> 7840 | BD19: -2800 | BE19: =IF(ISNUMBER('Set-up'!$C$9)=FALSE,0,IF($F19="J",0,ROUND(($AW19-$BA19)*'Set-up'!$C$9,2))) -> 5040 | BF19: =IF(ISNUMBER('Set-up'!$C$9)=FALSE,0,IF($F19="J",0,ROUND(($AX19-$BB19)*'Set-up'!$C$9,2))) -> -233.33
A20: PP-00015 | B20: 64267464 | C20: Sandmill | D20: Owned | E20: PPM01 | F20: B | G20: =IF(COUNTIF(AssetCode,$A20)>1,"E1",IF(ISNA(VLOOKUP($E20,CatAll,1,0))=TRUE,"E2",IF(AND($I20="add!",$J20<>"add!"),"E10",IF(ISNA(VLOOKUP($F20,TaxCode,1,0))=TRUE,"E11","-")))) -> - | H20: PM | I20: =IF(ISERROR(LARGE(IF(TransAsset=$A20,IF(TransType="ACQ",TransIDDate,"add!"),"add!"),1)),"add!",LARGE(IF(TransAsset=$A20,IF(TransType="ACQ",TransIDDate,"add!"),"add!"),1)) -> 2018-06-12T00:00:39 | J20: =IF(ISERROR(LARGE(IF(TransAsset=$A20,TransIDDate,"add!"),1)),"add!",LARGE(IF(TransAsset=$A20,TransIDDate,"add!"),1)) -> 2020-03-01T00:01:06 | K20: =IF(ISERROR(LARGE(IF(TransAsset=$A20,IF(TransDate<($I$2+1),TransIDDate,"-"),"-"),1)),"-",LARGE(IF(TransAsset=$A20,IF(TransDate<($I$2+1),TransIDDate,"-"),"-"),1)) -> 2020-03-01T00:01:06 | L20: =IF(ISERROR(LARGE(IF(TransAsset=$A20,IF(TransDate<$H$2,TransIDDate,"-"),"-"),1)),"-",LARGE(IF(TransAsset=$A20,IF(TransDate<$H$2,TransIDDate,"-"),"-"),1)) -> 2018-06-12T00:00:39 | M20: =IF(ISERROR(LARGE(IF(TransAsset=$A20,IF(TransDate<$J$2,TransIDDate,"-"),"-"),1)),"-",LARGE(IF(TransAsset=$A20,IF(TransDate<$J$2,TransIDDate,"-"),"-"),1)) -> 2020-03-01T00:01:06 | N20: =IF(ISERROR(LARGE(IF(TransAsset=$A20,IF(TransType="DIS",TransIDDate,"-"),"-"),1)),"-",LARGE(IF(TransAsset=$A20,IF(TransType="DIS",TransIDDate,"-"),"-"),1)) -> - | O20: =IF($N20<=$I$2,SUMIFS(TransProceeds,TransAsset,$A20,TransType,"DIS"),0) -> 0 | P20: =IF($I20<=($I$2+1),SUMIFS(TransHCost,TransAsset,$A20,TransIDDate,$J20),0) -> 15000 | Q20: 5 | R20: 0 | S20: 15000 | T20: =IF(ISNA(MATCH($F20,TaxCode,0))=TRUE,"code?",OFFSET('Set-up'!$D$37,MATCH($F20,TaxCode,0),MATCH($V20,TaxCurMonth,1)-1,1,1)) -> 0.2 | U20: 21 | V20: 33 | W20: 32 | X20: 15000 | Y20: 0 | Z20: 5000 | AA20: 0 | AB20: 0 | AC20: 20000 | AD20: =IF($L20=0,0,IF(SUMIFS(TransCLife,TransAsset,$A20,TransIDDate,$L20)=0,0,IF(($X20-(SUMIFS(TransCRes,TransAsset,$A20,TransIDDate,$L20)))/(SUMIFS(TransCLife,TransAsset,$A20,TransIDDate,$L20)*12)*(((YEAR($H$2)*12)+MONTH($H$2))-((YEAR($L20)*12)+MONTH($L20)))>=($X20-SUMIFS(TransCRes,TransAsset,$A20,TransIDDate,$L20)),$X20-SUMIFS(TransCRes,TransAsset,$A20,TransIDDate,$L20),($X20-(SUMIFS(TransCRes,TransAsset,$A20,TransIDDate,$L20)))/(SUMIFS(TransCLife,TransAsset,$A20,TransIDDate,$L20)*12)*(((YEAR($H$2)*12)+MONTH($H$2))-((YEAR($L20)*12)+MONTH($L20)))))) -> 5250 | AE20: 3000 | AF20: 1000 | AG20: 4000 | AH20: -5250 | AI20: 0 | AJ20: 4000 | AK20: 16000 | AL20: 0 | AM20: 10250 | AN20: -1000 | AO20: 9250 | AP20: 0 | AQ20: 0 | AR20: 250 | AS20: 83.33333333 | AT20: 333.3333333 | AU20: =IF($I20<$H$2,IF(AND($N20<>"-",$N20<$H$2),0,SUMIFS(TransHCost,TransAsset,$A20,TransIDDate,$J20)-SUMIFS(TransPCAccDep,TransAsset,$A20)-SUMIFS(TransImpair,TransAsset,$A20,TransIDDate,"<"&$H$2,TransType,"REV")),0) -> 9750 | AV20: -3000 | AW20: 6750 | AX20: =$AW20-IF($I20<$J$2,IF(AND($N20<>"-",$N20<$J$2),0,SUMIFS(TransHCost,TransAsset,$A20,TransIDDate,$J20)-SUMIFS(TransPMAccDep,TransAsset,$A20)-SUMIFS(TransImpair,TransAsset,$A20,TransIDDate,"<"&$J$2,TransType,"REV")),0) -> -250 | AY20: =IF(ISNA(MATCH($F20,TaxCode,0))=TRUE,$S20*($U20>0),MAX(($S20*($U20>0))-(($S20-SUMIFS(TransCRes,TransAsset,$A20,TransIDDate,$L20))*(IF($U20<=11,0,MIN(SUM(OFFSET('Set-up'!$D$37,MATCH($F20,TaxCode,0),0,1,MATCH($U20,TaxCumMonth,1)))+MAX(TRUNC(($U20-60)/12)*SUM(OFFSET('Set-up'!$H$37,MATCH($F20,TaxCode,0),0,1,1)),0%),100%))))-(($S20-SUMIFS(TransCRes,TransAsset,$A20,TransIDDate,$L20))*OFFSET('Set-up'!$D$37,MATCH($F20,TaxCode,0),MATCH($U20,TaxCurMonth,1)-1,1,1)*IF(AND($U20-(TRUNC($U20/12)*12)<>0,OFFSET('Set-up'!$J$37,MATCH($F20,TaxCode,0),0,1,1)=0),1,(($U20-(TRUNC($U20/12)*12))/12))),SUMIFS(TransCRes,TransAsset,$A20,TransIDDate,$L20))) -> 3000 | AZ20: -3000 | BA20: =IF(ISNA(MATCH($F20,TaxCode,0))=TRUE,$S20*($V20>0),MAX(($S20*($V20>0))-(($S20-$R20)*(IF($V20<=11,0,MIN(SUM(OFFSET('Set-up'!$D$37,MATCH($F20,TaxCode,0),0,1,MATCH($V20,TaxCumMonth,1)))+MAX(TRUNC(($V20-60)/12)*SUM(OFFSET('Set-up'!$H$37,MATCH($F20,TaxCode,0),0,1,1)),0%),100%))))-(($S20-$R20)*OFFSET('Set-up'!$D$37,MATCH($F20,TaxCode,0),MATCH($V20,TaxCurMonth,1)-1,1,1)*IF(AND($V20-(TRUNC($V20/12)*12)<>0,OFFSET('Set-up'!$J$37,MATCH($F20,TaxCode,0),0,1,1)=0),1,(($V20-(TRUNC($V20/12)*12))/12))),$R20*($V20>0))) -> 0 | BB20: =$BA20-IF(ISNA(MATCH($F20,TaxCode,0))=TRUE,$S20*($W20>0),MAX(($S20*($W20>0))-(($S20-SUMIFS(TransCRes,TransAsset,$A20,TransIDDate,$M20))*(IF($W20<=11,0,MIN(SUM(OFFSET('Set-up'!$D$37,MATCH($F20,TaxCode,0),0,1,MATCH($W20,TaxCumMonth,1)))+MAX(TRUNC(($W20-60)/12)*SUM(OFFSET('Set-up'!$H$37,MATCH($F20,TaxCode,0),0,1,1)),0%),100%))))-(($S20-SUMIFS(TransCRes,TransAsset,$A20,TransIDDate,$M20))*OFFSET('Set-up'!$D$37,MATCH($F20,TaxCode,0),MATCH($W20,TaxCurMonth,1)-1,1,1)*IF(AND($W20-(TRUNC($W20/12)*12)<>0,OFFSET('Set-up'!$J$37,MATCH($F20,TaxCode,0),0,1,1)=0),1,(($W20-(TRUNC($W20/12)*12))/12))),SUMIFS(TransCRes,TransAsset,$A20,TransIDDate,$M20)*($W20>0))) -> 0 | BC20: =IF(ISNUMBER('Set-up'!$C$9)=FALSE,0,IF($F20="J",0,ROUND(($AU20-$AY20)*'Set-up'!$C$9,2))) -> 1890 | BD20: 0 | BE20: =IF(ISNUMBER('Set-up'!$C$9)=FALSE,0,IF($F20="J",0,ROUND(($AW20-$BA20)*'Set-up'!$C$9,2))) -> 1890 | BF20: =IF(ISNUMBER('Set-up'!$C$9)=FALSE,0,IF($F20="J",0,ROUND(($AX20-$BB20)*'Set-up'!$C$9,2))) -> -70
A21: PP-00016 | B21: 92849829 | C21: Collet Chuck | D21: Owned | E21: PPM01 | F21: B | G21: =IF(COUNTIF(AssetCode,$A21)>1,"E1",IF(ISNA(VLOOKUP($E21,CatAll,1,0))=TRUE,"E2",IF(AND($I21="add!",$J21<>"add!"),"E10",IF(ISNA(VLOOKUP($F21,TaxCode,1,0))=TRUE,"E11","-")))) -> - | H21: PM | I21: =IF(ISERROR(LARGE(IF(TransAsset=$A21,IF(TransType="ACQ",TransIDDate,"add!"),"add!"),1)),"add!",LARGE(IF(TransAsset=$A21,IF(TransType="ACQ",TransIDDate,"add!"),"add!"),1)) -> 2020-08-15T00:01:19 | J21: =IF(ISERROR(LARGE(IF(TransAsset=$A21,TransIDDate,"add!"),1)),"add!",LARGE(IF(TransAsset=$A21,TransIDDate,"add!"),1)) -> 2020-08-15T00:01:19 | K21: =IF(ISERROR(LARGE(IF(TransAsset=$A21,IF(TransDate<($I$2+1),TransIDDate,"-"),"-"),1)),"-",LARGE(IF(TransAsset=$A21,IF(TransDate<($I$2+1),TransIDDate,"-"),"-"),1)) -> 2020-08-15T00:01:19 | L21: =IF(ISERROR(LARGE(IF(TransAsset=$A21,IF(TransDate<$H$2,TransIDDate,"-"),"-"),1)),"-",LARGE(IF(TransAsset=$A21,IF(TransDate<$H$2,TransIDDate,"-"),"-"),1)) -> - | M21: =IF(ISERROR(LARGE(IF(TransAsset=$A21,IF(TransDate<$J$2,TransIDDate,"-"),"-"),1)),"-",LARGE(IF(TransAsset=$A21,IF(TransDate<$J$2,TransIDDate,"-"),"-"),1)) -> 2020-08-15T00:01:19 | N21: =IF(ISERROR(LARGE(IF(TransAsset=$A21,IF(TransType="DIS",TransIDDate,"-"),"-"),1)),"-",LARGE(IF(TransAsset=$A21,IF(TransType="DIS",TransIDDate,"-"),"-"),1)) -> - | O21: =IF($N21<=$I$2,SUMIFS(TransProceeds,TransAsset,$A21,TransType,"DIS"),0) -> 0 | P21: =IF($I21<=($I$2+1),SUMIFS(TransHCost,TransAsset,$A21,TransIDDate,$J21),0) -> 3420 | Q21: 5 | R21: 0 | S21: 3420 | T21: =IF(ISNA(MATCH($F21,TaxCode,0))=TRUE,"code?",OFFSET('Set-up'!$D$37,MATCH($F21,TaxCode,0),MATCH($V21,TaxCurMonth,1)-1,1,1)) -> 0.5 | U21: 0 | V21: 7 | W21: 6 | X21: 0 | Y21: 3420 | Z21: 0 | AA21: 0 | AB21: 0 | AC21: 3420 | AD21: =IF($L21=0,0,IF(SUMIFS(TransCLife,TransAsset,$A21,TransIDDate,$L21)=0,0,IF(($X21-(SUMIFS(TransCRes,TransAsset,$A21,TransIDDate,$L21)))/(SUMIFS(TransCLife,TransAsset,$A21,TransIDDate,$L21)*12)*(((YEAR($H$2)*12)+MONTH($H$2))-((YEAR($L21)*12)+MONTH($L21)))>=($X21-SUMIFS(TransCRes,TransAsset,$A21,TransIDDate,$L21)),$X21-SUMIFS(TransCRes,TransAsset,$A21,TransIDDate,$L21),($X21-(SUMIFS(TransCRes,TransAsset,$A21,TransIDDate,$L21)))/(SUMIFS(TransCLife,TransAsset,$A21,TransIDDate,$L21)*12)*(((YEAR($H$2)*12)+MONTH($H$2))-((YEAR($L21)*12)+MONTH($L21)))))) -> 0 | AE21: 399 | AF21: 0 | AG21: 399 | AH21: 0 | AI21: 0 | AJ21: 399 | AK21: 3021 | AL21: 0 | AM21: 0 | AN21: 0 | AO21: 0 | AP21: 0 | AQ21: 0 | AR21: 57 | AS21: 0 | AT21: 57 | AU21: =IF($I21<$H$2,IF(AND($N21<>"-",$N21<$H$2),0,SUMIFS(TransHCost,TransAsset,$A21,TransIDDate,$J21)-SUMIFS(TransPCAccDep,TransAsset,$A21)-SUMIFS(TransImpair,TransAsset,$A21,TransIDDate,"<"&$H$2,TransType,"REV")),0) -> 0 | AV21: 3021 | AW21: 3021 | AX21: =$AW21-IF($I21<$J$2,IF(AND($N21<>"-",$N21<$J$2),0,SUMIFS(TransHCost,TransAsset,$A21,TransIDDate,$J21)-SUMIFS(TransPMAccDep,TransAsset,$A21)-SUMIFS(TransImpair,TransAsset,$A21,TransIDDate,"<"&$J$2,TransType,"REV")),0) -> -57 | AY21: =IF(ISNA(MATCH($F21,TaxCode,0))=TRUE,$S21*($U21>0),MAX(($S21*($U21>0))-(($S21-SUMIFS(TransCRes,TransAsset,$A21,TransIDDate,$L21))*(IF($U21<=11,0,MIN(SUM(OFFSET('Set-up'!$D$37,MATCH($F21,TaxCode,0),0,1,MATCH($U21,TaxCumMonth,1)))+MAX(TRUNC(($U21-60)/12)*SUM(OFFSET('Set-up'!$H$37,MATCH($F21,TaxCode,0),0,1,1)),0%),100%))))-(($S21-SUMIFS(TransCRes,TransAsset,$A21,TransIDDate,$L21))*OFFSET('Set-up'!$D$37,MATCH($F21,TaxCode,0),MATCH($U21,TaxCurMonth,1)-1,1,1)*IF(AND($U21-(TRUNC($U21/12)*12)<>0,OFFSET('Set-up'!$J$37,MATCH($F21,TaxCode,0),0,1,1)=0),1,(($U21-(TRUNC($U21/12)*12))/12))),SUMIFS(TransCRes,TransAsset,$A21,TransIDDate,$L21))) -> 0 | AZ21: 1710 | BA21: =IF(ISNA(MATCH($F21,TaxCode,0))=TRUE,$S21*($V21>0),MAX(($S21*($V21>0))-(($S21-$R21)*(IF($V21<=11,0,MIN(SUM(OFFSET('Set-up'!$D$37,MATCH($F21,TaxCode,0),0,1,MATCH($V21,TaxCumMonth,1)))+MAX(TRUNC(($V21-60)/12)*SUM(OFFSET('Set-up'!$H$37,MATCH($F21,TaxCode,0),0,1,1)),0%),100%))))-(($S21-$R21)*OFFSET('Set-up'!$D$37,MATCH($F21,TaxCode,0),MATCH($V21,TaxCurMonth,1)-1,1,1)*IF(AND($V21-(TRUNC($V21/12)*12)<>0,OFFSET('Set-up'!$J$37,MATCH($F21,TaxCode,0),0,1,1)=0),1,(($V21-(TRUNC($V21/12)*12))/12))),$R21*($V21>0))) -> 1710 | BB21: =$BA21-IF(ISNA(MATCH($F21,TaxCode,0))=TRUE,$S21*($W21>0),MAX(($S21*($W21>0))-(($S21-SUMIFS(TransCRes,TransAsset,$A21,TransIDDate,$M21))*(IF($W21<=11,0,MIN(SUM(OFFSET('Set-up'!$D$37,MATCH($F21,TaxCode,0),0,1,MATCH($W21,TaxCumMonth,1)))+MAX(TRUNC(($W21-60)/12)*SUM(OFFSET('Set-up'!$H$37,MATCH($F21,TaxCode,0),0,1,1)),0%),100%))))-(($S21-SUMIFS(TransCRes,TransAsset,$A21,TransIDDate,$M21))*OFFSET('Set-up'!$D$37,MATCH($F21,TaxCode,0),MATCH($W21,TaxCurMonth,1)-1,1,1)*IF(AND($W21-(TRUNC($W21/12)*12)<>0,OFFSET('Set-up'!$J$37,MATCH($F21,TaxCode,0),0,1,1)=0),1,(($W21-(TRUNC($W21/12)*12))/12))),SUMIFS(TransCRes,TransAsset,$A21,TransIDDate,$M21)*($W21>0))) -> 0 | BC21: =IF(ISNUMBER('Set-up'!$C$9)=FALSE,0,IF($F21="J",0,ROUND(($AU21-$AY21)*'Set-up'!$C$9,2))) -> 0 | BD21: 367.08 | BE21: =IF(ISNUMBER('Set-up'!$C$9)=FALSE,0,IF($F21="J",0,ROUND(($AW21-$BA21)*'Set-up'!$C$9,2))) -> 367.08 | BF21: =IF(ISNUMBER('Set-up'!$C$9)=FALSE,0,IF($F21="J",0,ROUND(($AX21-$BB21)*'Set-up'!$C$9,2))) -> -15.96
A22: PP-00017 | B22: 902942 | C22: Toyota FG 1.8 Ton Forklift | D22: Leased | E22: PPM01 | F22: B | G22: =IF(COUNTIF(AssetCode,$A22)>1,"E1",IF(ISNA(VLOOKUP($E22,CatAll,1,0))=TRUE,"E2",IF(AND($I22="add!",$J22<>"add!"),"E10",IF(ISNA(VLOOKUP($F22,TaxCode,1,0))=TRUE,"E11","-")))) -> - | H22: PM | I22: =IF(ISERROR(LARGE(IF(TransAsset=$A22,IF(TransType="ACQ",TransIDDate,"add!"),"add!"),1)),"add!",LARGE(IF(TransAsset=$A22,IF(TransType="ACQ",TransIDDate,"add!"),"add!"),1)) -> 2021-01-20T00:01:21 | J22: =IF(ISERROR(LARGE(IF(TransAsset=$A22,TransIDDate,"add!"),1)),"add!",LARGE(IF(TransAsset=$A22,TransIDDate,"add!"),1)) -> 2021-01-20T00:01:21 | K22: =IF(ISERROR(LARGE(IF(TransAsset=$A22,IF(TransDate<($I$2+1),TransIDDate,"-"),"-"),1)),"-",LARGE(IF(TransAsset=$A22,IF(TransDate<($I$2+1),TransIDDate,"-"),"-"),1)) -> 2021-01-20T00:01:21 | L22: =IF(ISERROR(LARGE(IF(TransAsset=$A22,IF(TransDate<$H$2,TransIDDate,"-"),"-"),1)),"-",LARGE(IF(TransAsset=$A22,IF(TransDate<$H$2,TransIDDate,"-"),"-"),1)) -> - | M22: =IF(ISERROR(LARGE(IF(TransAsset=$A22,IF(TransDate<$J$2,TransIDDate,"-"),"-"),1)),"-",LARGE(IF(TransAsset=$A22,IF(TransDate<$J$2,TransIDDate,"-"),"-"),1)) -> 2021-01-20T00:01:21 | N22: =IF(ISERROR(LARGE(IF(TransAsset=$A22,IF(TransType="DIS",TransIDDate,"-"),"-"),1)),"-",LARGE(IF(TransAsset=$A22,IF(TransType="DIS",TransIDDate,"-"),"-"),1)) -> - | O22: =IF($N22<=$I$2,SUMIFS(TransProceeds,TransAsset,$A22,TransType,"DIS"),0) -> 0 | P22: =IF($I22<=($I$2+1),SUMIFS(TransHCost,TransAsset,$A22,TransIDDate,$J22),0) -> 65000 | Q22: 5 | R22: 5000 | S22: 65000 | T22: =IF(ISNA(MATCH($F22,TaxCode,0))=TRUE,"code?",OFFSET('Set-up'!$D$37,MATCH($F22,TaxCode,0),MATCH($V22,TaxCurMonth,1)-1,1,1)) -> 0.5 | U22: 0 | V22: 2 | W22: 1 | X22: 0 | Y22: 65000 | Z22: 0 | AA22: 0 | AB22: 0 | AC22: 65000 | AD22: =IF($L22=0,0,IF(SUMIFS(TransCLife,TransAsset,$A22,TransIDDate,$L22)=0,0,IF(($X22-(SUMIFS(TransCRes,TransAsset,$A22,TransIDDate,$L22)))/(SUMIFS(TransCLife,TransAsset,$A22,TransIDDate,$L22)*12)*(((YEAR($H$2)*12)+MONTH($H$2))-((YEAR($L22)*12)+MONTH($L22)))>=($X22-SUMIFS(TransCRes,TransAsset,$A22,TransIDDate,$L22)),$X22-SUMIFS(TransCRes,TransAsset,$A22,TransIDDate,$L22),($X22-(SUMIFS(TransCRes,TransAsset,$A22,TransIDDate,$L22)))/(SUMIFS(TransCLife,TransAsset,$A22,TransIDDate,$L22)*12)*(((YEAR($H$2)*12)+MONTH($H$2))-((YEAR($L22)*12)+MONTH($L22)))))) -> 0 | AE22: 2000 | AF22: 0 | AG22: 2000 | AH22: 0 | AI22: 0 | AJ22: 2000 | AK22: 63000 | AL22: 0 | AM22: 0 | AN22: 0 | AO22: 0 | AP22: 0 | AQ22: 0 | AR22: 1000 | AS22: 0 | AT22: 1000 | AU22: =IF($I22<$H$2,IF(AND($N22<>"-",$N22<$H$2),0,SUMIFS(TransHCost,TransAsset,$A22,TransIDDate,$J22)-SUMIFS(TransPCAccDep,TransAsset,$A22)-SUMIFS(TransImpair,TransAsset,$A22,TransIDDate,"<"&$H$2,TransType,"REV")),0) -> 0 | AV22: 63000 | AW22: 63000 | AX22: =$AW22-IF($I22<$J$2,IF(AND($N22<>"-",$N22<$J$2),0,SUMIFS(TransHCost,TransAsset,$A22,TransIDDate,$J22)-SUMIFS(TransPMAccDep,TransAsset,$A22)-SUMIFS(TransImpair,TransAsset,$A22,TransIDDate,"<"&$J$2,TransType,"REV")),0) -> -1000 | AY22: =IF(ISNA(MATCH($F22,TaxCode,0))=TRUE,$S22*($U22>0),MAX(($S22*($U22>0))-(($S22-SUMIFS(TransCRes,TransAsset,$A22,TransIDDate,$L22))*(IF($U22<=11,0,MIN(SUM(OFFSET('Set-up'!$D$37,MATCH($F22,TaxCode,0),0,1,MATCH($U22,TaxCumMonth,1)))+MAX(TRUNC(($U22-60)/12)*SUM(OFFSET('Set-up'!$H$37,MATCH($F22,TaxCode,0),0,1,1)),0%),100%))))-(($S22-SUMIFS(TransCRes,TransAsset,$A22,TransIDDate,$L22))*OFFSET('Set-up'!$D$37,MATCH($F22,TaxCode,0),MATCH($U22,TaxCurMonth,1)-1,1,1)*IF(AND($U22-(TRUNC($U22/12)*12)<>0,OFFSET('Set-up'!$J$37,MATCH($F22,TaxCode,0),0,1,1)=0),1,(($U22-(TRUNC($U22/12)*12))/12))),SUMIFS(TransCRes,TransAsset,$A22,TransIDDate,$L22))) -> 0 | AZ22: 35000 | BA22: =IF(ISNA(MATCH($F22,TaxCode,0))=TRUE,$S22*($V22>0),MAX(($S22*($V22>0))-(($S22-$R22)*(IF($V22<=11,0,MIN(SUM(OFFSET('Set-up'!$D$37,MATCH($F22,TaxCode,0),0,1,MATCH($V22,TaxCumMonth,1)))+MAX(TRUNC(($V22-60)/12)*SUM(OFFSET('Set-up'!$H$37,MATCH($F22,TaxCode,0),0,1,1)),0%),100%))))-(($S22-$R22)*OFFSET('Set-up'!$D$37,MATCH($F22,TaxCode,0),MATCH($V22,TaxCurMonth,1)-1,1,1)*IF(AND($V22-(TRUNC($V22/12)*12)<>0,OFFSET('Set-up'!$J$37,MATCH($F22,TaxCode,0),0,1,1)=0),1,(($V22-(TRUNC($V22/12)*12))/12))),$R22*($V22>0))) -> 35000 | BB22: =$BA22-IF(ISNA(MATCH($F22,TaxCode,0))=TRUE,$S22*($W22>0),MAX(($S22*($W22>0))-(($S22-SUMIFS(TransCRes,TransAsset,$A22,TransIDDate,$M22))*(IF($W22<=11,0,MIN(SUM(OFFSET('Set-up'!$D$37,MATCH($F22,TaxCode,0),0,1,MATCH($W22,TaxCumMonth,1)))+MAX(TRUNC(($W22-60)/12)*SUM(OFFSET('Set-up'!$H$37,MATCH($F22,TaxCode,0),0,1,1)),0%),100%))))-(($S22-SUMIFS(TransCRes,TransAsset,$A22,TransIDDate,$M22))*OFFSET('Set-up'!$D$37,MATCH($F22,TaxCode,0),MATCH($W22,TaxCurMonth,1)-1,1,1)*IF(AND($W22-(TRUNC($W22/12)*12)<>0,OFFSET('Set-up'!$J$37,MATCH($F22,TaxCode,0),0,1,1)=0),1,(($W22-(TRUNC($W22/12)*12))/12))),SUMIFS(TransCRes,TransAsset,$A22,TransIDDate,$M22)*($W22>0))) -> 0 | BC22: =IF(ISNUMBER('Set-up'!$C$9)=FALSE,0,IF($F22="J",0,ROUND(($AU22-$AY22)*'Set-up'!$C$9,2))) -> 0 | BD22: 7840 | BE22: =IF(ISNUMBER('Set-up'!$C$9)=FALSE,0,IF($F22="J",0,ROUND(($AW22-$BA22)*'Set-up'!$C$9,2))) -> 7840 | BF22: =IF(ISNUMBER('Set-up'!$C$9)=FALSE,0,IF($F22="J",0,ROUND(($AX22-$BB22)*'Set-up'!$C$9,2))) -> -280
A23: PQ-00001 | B23: 783642 | C23: Hydrovane 170 Air Compressor | D23: Owned | E23: EQP01 | F23: A | G23: =IF(COUNTIF(AssetCode,$A23)>1,"E1",IF(ISNA(VLOOKUP($E23,CatAll,1,0))=TRUE,"E2",IF(AND($I23="add!",$J23<>"add!"),"E10",IF(ISNA(VLOOKUP($F23,TaxCode,1,0))=TRUE,"E11","-")))) -> - | H23: PM | I23: =IF(ISERROR(LARGE(IF(TransAsset=$A23,IF(TransType="ACQ",TransIDDate,"add!"),"add!"),1)),"add!",LARGE(IF(TransAsset=$A23,IF(TransType="ACQ",TransIDDate,"add!"),"add!"),1)) -> 2015-07-20T00:00:26 | J23: =IF(ISERROR(LARGE(IF(TransAsset=$A23,TransIDDate,"add!"),1)),"add!",LARGE(IF(TransAsset=$A23,TransIDDate,"add!"),1)) -> 2020-03-01T00:01:07 | K23: =IF(ISERROR(LARGE(IF(TransAsset=$A23,IF(TransDate<($I$2+1),TransIDDate,"-"),"-"),1)),"-",LARGE(IF(TransAsset=$A23,IF(TransDate<($I$2+1),TransIDDate,"-"),"-"),1)) -> 2020-03-01T00:01:07 | L23: =IF(ISERROR(LARGE(IF(TransAsset=$A23,IF(TransDate<$H$2,TransIDDate,"-"),"-"),1)),"-",LARGE(IF(TransAsset=$A23,IF(TransDate<$H$2,TransIDDate,"-"),"-"),1)) -> 2015-07-20T00:00:26 | M23: =IF(ISERROR(LARGE(IF(TransAsset=$A23,IF(TransDate<$J$2,TransIDDate,"-"),"-"),1)),"-",LARGE(IF(TransAsset=$A23,IF(TransDate<$J$2,TransIDDate,"-"),"-"),1)) -> 2020-03-01T00:01:07 | N23: =IF(ISERROR(LARGE(IF(TransAsset=$A23,IF(TransType="DIS",TransIDDate,"-"),"-"),1)),"-",LARGE(IF(TransAsset=$A23,IF(TransType="DIS",TransIDDate,"-"),"-"),1)) -> - | O23: =IF($N23<=$I$2,SUMIFS(TransProceeds,TransAsset,$A23,TransType,"DIS"),0) -> 0 | P23: =IF($I23<=($I$2+1),SUMIFS(TransHCost,TransAsset,$A23,TransIDDate,$J23),0) -> 15000 | Q23: 5 | R23: 0 | S23: 15000 | T23: =IF(ISNA(MATCH($F23,TaxCode,0))=TRUE,"code?",OFFSET('Set-up'!$D$37,MATCH($F23,TaxCode,0),MATCH($V23,TaxCurMonth,1)-1,1,1)) -> 0.2 | U23: 56 | V23: 68 | W23: 67 | X23: 15000 | Y23: 0 | Z23: -10000 | AA23: 0 | AB23: 0 | AC23: 5000 | AD23: =IF($L23=0,0,IF(SUMIFS(TransCLife,TransAsset,$A23,TransIDDate,$L23)=0,0,IF(($X23-(SUMIFS(TransCRes,TransAsset,$A23,TransIDDate,$L23)))/(SUMIFS(TransCLife,TransAsset,$A23,TransIDDate,$L23)*12)*(((YEAR($H$2)*12)+MONTH($H$2))-((YEAR($L23)*12)+MONTH($L23)))>=($X23-SUMIFS(TransCRes,TransAsset,$A23,TransIDDate,$L23)),$X23-SUMIFS(TransCRes,TransAsset,$A23,TransIDDate,$L23),($X23-(SUMIFS(TransCRes,TransAsset,$A23,TransIDDate,$L23)))/(SUMIFS(TransCLife,TransAsset,$A23,TransIDDate,$L23)*12)*(((YEAR($H$2)*12)+MONTH($H$2))-((YEAR($L23)*12)+MONTH($L23)))))) -> 14000 | AE23: 1000 | AF23: 0 | AG23: 1000 | AH23: -14000 | AI23: 0 | AJ23: 1000 | AK23: 4000 | AL23: 0 | AM23: 4000 | AN23: 0 | AO23: 4000 | AP23: 0 | AQ23: 0 | AR23: 83.33333333 | AS23: 0 | AT23: 83.33333333 | AU23: =IF($I23<$H$2,IF(AND($N23<>"-",$N23<$H$2),0,SUMIFS(TransHCost,TransAsset,$A23,TransIDDate,$J23)-SUMIFS(TransPCAccDep,TransAsset,$A23)-SUMIFS(TransImpair,TransAsset,$A23,TransIDDate,"<"&$H$2,TransType,"REV")),0) -> 1000 | AV23: -1000 | AW23: 0 | AX23: =$AW23-IF($I23<$J$2,IF(AND($N23<>"-",$N23<$J$2),0,SUMIFS(TransHCost,TransAsset,$A23,TransIDDate,$J23)-SUMIFS(TransPMAccDep,TransAsset,$A23)-SUMIFS(TransImpair,TransAsset,$A23,TransIDDate,"<"&$J$2,TransType,"REV")),0) -> -83.33333333 | AY23: =IF(ISNA(MATCH($F23,TaxCode,0))=TRUE,$S23*($U23>0),MAX(($S23*($U23>0))-(($S23-SUMIFS(TransCRes,TransAsset,$A23,TransIDDate,$L23))*(IF($U23<=11,0,MIN(SUM(OFFSET('Set-up'!$D$37,MATCH($F23,TaxCode,0),0,1,MATCH($U23,TaxCumMonth,1)))+MAX(TRUNC(($U23-60)/12)*SUM(OFFSET('Set-up'!$H$37,MATCH($F23,TaxCode,0),0,1,1)),0%),100%))))-(($S23-SUMIFS(TransCRes,TransAsset,$A23,TransIDDate,$L23))*OFFSET('Set-up'!$D$37,MATCH($F23,TaxCode,0),MATCH($U23,TaxCurMonth,1)-1,1,1)*IF(AND($U23-(TRUNC($U23/12)*12)<>0,OFFSET('Set-up'!$J$37,MATCH($F23,TaxCode,0),0,1,1)=0),1,(($U23-(TRUNC($U23/12)*12))/12))),SUMIFS(TransCRes,TransAsset,$A23,TransIDDate,$L23))) -> 1000 | AZ23: -1000 | BA23: =IF(ISNA(MATCH($F23,TaxCode,0))=TRUE,$S23*($V23>0),MAX(($S23*($V23>0))-(($S23-$R23)*(IF($V23<=11,0,MIN(SUM(OFFSET('Set-up'!$D$37,MATCH($F23,TaxCode,0),0,1,MATCH($V23,TaxCumMonth,1)))+MAX(TRUNC(($V23-60)/12)*SUM(OFFSET('Set-up'!$H$37,MATCH($F23,TaxCode,0),0,1,1)),0%),100%))))-(($S23-$R23)*OFFSET('Set-up'!$D$37,MATCH($F23,TaxCode,0),MATCH($V23,TaxCurMonth,1)-1,1,1)*IF(AND($V23-(TRUNC($V23/12)*12)<>0,OFFSET('Set-up'!$J$37,MATCH($F23,TaxCode,0),0,1,1)=0),1,(($V23-(TRUNC($V23/12)*12))/12))),$R23*($V23>0))) -> 0 | BB23: =$BA23-IF(ISNA(MATCH($F23,TaxCode,0))=TRUE,$S23*($W23>0),MAX(($S23*($W23>0))-(($S23-SUMIFS(TransCRes,TransAsset,$A23,TransIDDate,$M23))*(IF($W23<=11,0,MIN(SUM(OFFSET('Set-up'!$D$37,MATCH($F23,TaxCode,0),0,1,MATCH($W23,TaxCumMonth,1)))+MAX(TRUNC(($W23-60)/12)*SUM(OFFSET('Set-up'!$H$37,MATCH($F23,TaxCode,0),0,1,1)),0%),100%))))-(($S23-SUMIFS(TransCRes,TransAsset,$A23,TransIDDate,$M23))*OFFSET('Set-up'!$D$37,MATCH($F23,TaxCode,0),MATCH($W23,TaxCurMonth,1)-1,1,1)*IF(AND($W23-(TRUNC($W23/12)*12)<>0,OFFSET('Set-up'!$J$37,MATCH($F23,TaxCode,0),0,1,1)=0),1,(($W23-(TRUNC($W23/12)*12))/12))),SUMIFS(TransCRes,TransAsset,$A23,TransIDDate,$M23)*($W23>0))) -> 0 | BC23: =IF(ISNUMBER('Set-up'!$C$9)=FALSE,0,IF($F23="J",0,ROUND(($AU23-$AY23)*'Set-up'!$C$9,2))) -> 0 | BD23: 0 | BE23: =IF(ISNUMBER('Set-up'!$C$9)=FALSE,0,IF($F23="J",0,ROUND(($AW23-$BA23)*'Set-up'!$C$9,2))) -> 0 | BF23: =IF(ISNUMBER('Set-up'!$C$9)=FALSE,0,IF($F23="J",0,ROUND(($AX23-$BB23)*'Set-up'!$C$9,2))) -> -23.33
A24: PQ-00002 | B24: 998239 | C24: Kraft Vertical Bandsaw | D24: Owned | E24: EQP01 | F24: A | G24: =IF(COUNTIF(AssetCode,$A24)>1,"E1",IF(ISNA(VLOOKUP($E24,CatAll,1,0))=TRUE,"E2",IF(AND($I24="add!",$J24<>"add!"),"E10",IF(ISNA(VLOOKUP($F24,TaxCode,1,0))=TRUE,"E11","-")))) -> - | H24: PM | I24: =IF(ISERROR(LARGE(IF(TransAsset=$A24,IF(TransType="ACQ",TransIDDate,"add!"),"add!"),1)),"add!",LARGE(IF(TransAsset=$A24,IF(TransType="ACQ",TransIDDate,"add!"),"add!"),1)) -> 2015-07-20T00:00:27 | J24: =IF(ISERROR(LARGE(IF(TransAsset=$A24,TransIDDate,"add!"),1)),"add!",LARGE(IF(TransAsset=$A24,TransIDDate,"add!"),1)) -> 2020-03-01T00:01:08 | K24: =IF(ISERROR(LARGE(IF(TransAsset=$A24,IF(TransDate<($I$2+1),TransIDDate,"-"),"-"),1)),"-",LARGE(IF(TransAsset=$A24,IF(TransDate<($I$2+1),TransIDDate,"-"),"-"),1)) -> 2020-03-01T00:01:08 | L24: =IF(ISERROR(LARGE(IF(TransAsset=$A24,IF(TransDate<$H$2,TransIDDate,"-"),"-"),1)),"-",LARGE(IF(TransAsset=$A24,IF(TransDate<$H$2,TransIDDate,"-"),"-"),1)) -> 2015-07-20T00:00:27 | M24: =IF(ISERROR(LARGE(IF(TransAsset=$A24,IF(TransDate<$J$2,TransIDDate,"-"),"-"),1)),"-",LARGE(IF(TransAsset=$A24,IF(TransDate<$J$2,TransIDDate,"-"),"-"),1)) -> 2020-03-01T00:01:08 | N24: =IF(ISERROR(LARGE(IF(TransAsset=$A24,IF(TransType="DIS",TransIDDate,"-"),"-"),1)),"-",LARGE(IF(TransAsset=$A24,IF(TransType="DIS",TransIDDate,"-"),"-"),1)) -> - | O24: =IF($N24<=$I$2,SUMIFS(TransProceeds,TransAsset,$A24,TransType,"DIS"),0) -> 0 | P24: =IF($I24<=($I$2+1),SUMIFS(TransHCost,TransAsset,$A24,TransIDDate,$J24),0) -> 1500 | Q24: 5 | R24: 0 | S24: 1500 | T24: =IF(ISNA(MATCH($F24,TaxCode,0))=TRUE,"code?",OFFSET('Set-up'!$D$37,MATCH($F24,TaxCode,0),MATCH($V24,TaxCurMonth,1)-1,1,1)) -> 0.2 | U24: 56 | V24: 68 | W24: 67 | X24: 1500 | Y24: 0 | Z24: 1500 | AA24: 0 | AB24: 0 | AC24: 3000 | AD24: =IF($L24=0,0,IF(SUMIFS(TransCLife,TransAsset,$A24,TransIDDate,$L24)=0,0,IF(($X24-(SUMIFS(TransCRes,TransAsset,$A24,TransIDDate,$L24)))/(SUMIFS(TransCLife,TransAsset,$A24,TransIDDate,$L24)*12)*(((YEAR($H$2)*12)+MONTH($H$2))-((YEAR($L24)*12)+MONTH($L24)))>=($X24-SUMIFS(TransCRes,TransAsset,$A24,TransIDDate,$L24)),$X24-SUMIFS(TransCRes,TransAsset,$A24,TransIDDate,$L24),($X24-(SUMIFS(TransCRes,TransAsset,$A24,TransIDDate,$L24)))/(SUMIFS(TransCLife,TransAsset,$A24,TransIDDate,$L24)*12)*(((YEAR($H$2)*12)+MONTH($H$2))-((YEAR($L24)*12)+MONTH($L24)))))) -> 1400 | AE24: 100 | AF24: 500 | AG24: 600 | AH24: -1400 | AI24: 0 | AJ24: 600 | AK24: 2400 | AL24: 0 | AM24: 2900 | AN24: -500 | AO24: 2400 | AP24: 0 | AQ24: 0 | AR24: 0 | AS24: 50 | AT24: 50 | AU24: =IF($I24<$H$2,IF(AND($N24<>"-",$N24<$H$2),0,SUMIFS(TransHCost,TransAsset,$A24,TransIDDate,$J24)-SUMIFS(TransPCAccDep,TransAsset,$A24)-SUMIFS(TransImpair,TransAsset,$A24,TransIDDate,"<"&$H$2,TransType,"REV")),0) -> 100 | AV24: -100 | AW24: 0 | AX24: =$AW24-IF($I24<$J$2,IF(AND($N24<>"-",$N24<$J$2),0,SUMIFS(TransHCost,TransAsset,$A24,TransIDDate,$J24)-SUMIFS(TransPMAccDep,TransAsset,$A24)-SUMIFS(TransImpair,TransAsset,$A24,TransIDDate,"<"&$J$2,TransType,"REV")),0) -> 0 | AY24: =IF(ISNA(MATCH($F24,TaxCode,0))=TRUE,$S24*($U24>0),MAX(($S24*($U24>0))-(($S24-SUMIFS(TransCRes,TransAsset,$A24,TransIDDate,$L24))*(IF($U24<=11,0,MIN(SUM(OFFSET('Set-up'!$D$37,MATCH($F24,TaxCode,0),0,1,MATCH($U24,TaxCumMonth,1)))+MAX(TRUNC(($U24-60)/12)*SUM(OFFSET('Set-up'!$H$37,MATCH($F24,TaxCode,0),0,1,1)),0%),100%))))-(($S24-SUMIFS(TransCRes,TransAsset,$A24,TransIDDate,$L24))*OFFSET('Set-up'!$D$37,MATCH($F24,TaxCode,0),MATCH($U24,TaxCurMonth,1)-1,1,1)*IF(AND($U24-(TRUNC($U24/12)*12)<>0,OFFSET('Set-up'!$J$37,MATCH($F24,TaxCode,0),0,1,1)=0),1,(($U24-(TRUNC($U24/12)*12))/12))),SUMIFS(TransCRes,TransAsset,$A24,TransIDDate,$L24))) -> 100 | AZ24: -100 | BA24: =IF(ISNA(MATCH($F24,TaxCode,0))=TRUE,$S24*($V24>0),MAX(($S24*($V24>0))-(($S24-$R24)*(IF($V24<=11,0,MIN(SUM(OFFSET('Set-up'!$D$37,MATCH($F24,TaxCode,0),0,1,MATCH($V24,TaxCumMonth,1)))+MAX(TRUNC(($V24-60)/12)*SUM(OFFSET('Set-up'!$H$37,MATCH($F24,TaxCode,0),0,1,1)),0%),100%))))-(($S24-$R24)*OFFSET('Set-up'!$D$37,MATCH($F24,TaxCode,0),MATCH($V24,TaxCurMonth,1)-1,1,1)*IF(AND($V24-(TRUNC($V24/12)*12)<>0,OFFSET('Set-up'!$J$37,MATCH($F24,TaxCode,0),0,1,1)=0),1,(($V24-(TRUNC($V24/12)*12))/12))),$R24*($V24>0))) -> 0 | BB24: =$BA24-IF(ISNA(MATCH($F24,TaxCode,0))=TRUE,$S24*($W24>0),MAX(($S24*($W24>0))-(($S24-SUMIFS(TransCRes,TransAsset,$A24,TransIDDate,$M24))*(IF($W24<=11,0,MIN(SUM(OFFSET('Set-up'!$D$37,MATCH($F24,TaxCode,0),0,1,MATCH($W24,TaxCumMonth,1)))+MAX(TRUNC(($W24-60)/12)*SUM(OFFSET('Set-up'!$H$37,MATCH($F24,TaxCode,0),0,1,1)),0%),100%))))-(($S24-SUMIFS(TransCRes,TransAsset,$A24,TransIDDate,$M24))*OFFSET('Set-up'!$D$37,MATCH($F24,TaxCode,0),MATCH($W24,TaxCurMonth,1)-1,1,1)*IF(AND($W24-(TRUNC($W24/12)*12)<>0,OFFSET('Set-up'!$J$37,MATCH($F24,TaxCode,0),0,1,1)=0),1,(($W24-(TRUNC($W24/12)*12))/12))),SUMIFS(TransCRes,TransAsset,$A24,TransIDDate,$M24)*($W24>0))) -> 0 | BC24: =IF(ISNUMBER('Set-up'!$C$9)=FALSE,0,IF($F24="J",0,ROUND(($AU24-$AY24)*'Set-up'!$C$9,2))) -> 0 | BD24: 0 | BE24: =IF(ISNUMBER('Set-up'!$C$9)=FALSE,0,IF($F24="J",0,ROUND(($AW24-$BA24)*'Set-up'!$C$9,2))) -> 0 | BF24: =IF(ISNUMBER('Set-up'!$C$9)=FALSE,0,IF($F24="J",0,ROUND(($AX24-$BB24)*'Set-up'!$C$9,2))) -> 0
A25: PQ-00003 | B25: 367627 | C25: Surface Grinder | D25: Owned | E25: EQP01 | F25: A | G25: =IF(COUNTIF(AssetCode,$A25)>1,"E1",IF(ISNA(VLOOKUP($E25,CatAll,1,0))=TRUE,"E2",IF(AND($I25="add!",$J25<>"add!"),"E10",IF(ISNA(VLOOKUP($F25,TaxCode,1,0))=TRUE,"E11","-")))) -> - | H25: PM | I25: =IF(ISERROR(LARGE(IF(TransAsset=$A25,IF(TransType="ACQ",TransIDDate,"add!"),"add!"),1)),"add!",LARGE(IF(TransAsset=$A25,IF(TransType="ACQ",TransIDDate,"add!"),"add!"),1)) -> 2015-07-20T00:00:28 | J25: =IF(ISERROR(LARGE(IF(TransAsset=$A25,TransIDDate,"add!"),1)),"add!",LARGE(IF(TransAsset=$A25,TransIDDate,"add!"),1)) -> 2020-03-01T00:01:09 | K25: =IF(ISERROR(LARGE(IF(TransAsset=$A25,IF(TransDate<($I$2+1),TransIDDate,"-"),"-"),1)),"-",LARGE(IF(TransAsset=$A25,IF(TransDate<($I$2+1),TransIDDate,"-"),"-"),1)) -> 2020-03-01T00:01:09 | L25: =IF(ISERROR(LARGE(IF(TransAsset=$A25,IF(TransDate<$H$2,TransIDDate,"-"),"-"),1)),"-",LARGE(IF(TransAsset=$A25,IF(TransDate<$H$2,TransIDDate,"-"),"-"),1)) -> 2015-07-20T00:00:28 | M25: =IF(ISERROR(LARGE(IF(TransAsset=$A25,IF(TransDate<$J$2,TransIDDate,"-"),"-"),1)),"-",LARGE(IF(TransAsset=$A25,IF(TransDate<$J$2,TransIDDate,"-"),"-"),1)) -> 2020-03-01T00:01:09 | N25: =IF(ISERROR(LARGE(IF(TransAsset=$A25,IF(TransType="DIS",TransIDDate,"-"),"-"),1)),"-",LARGE(IF(TransAsset=$A25,IF(TransType="DIS",TransIDDate,"-"),"-"),1)) -> - | O25: =IF($N25<=$I$2,SUMIFS(TransProceeds,TransAsset,$A25,TransType,"DIS"),0) -> 0 | P25: =IF($I25<=($I$2+1),SUMIFS(TransHCost,TransAsset,$A25,TransIDDate,$J25),0) -> 42200 | Q25: 5 | R25: 0 | S25: 42200 | T25: =IF(ISNA(MATCH($F25,TaxCode,0))=TRUE,"code?",OFFSET('Set-up'!$D$37,MATCH($F25,TaxCode,0),MATCH($V25,TaxCurMonth,1)-1,1,1)) -> 0.2 | U25: 56 | V25: 68 | W25: 67 | X25: 42200 | Y25: 0 | Z25: -27700 | AA25: 0 | AB25: 0 | AC25: 14500 | AD25: =IF($L25=0,0,IF(SUMIFS(TransCLife,TransAsset,$A25,TransIDDate,$L25)=0,0,IF(($X25-(SUMIFS(TransCRes,TransAsset,$A25,TransIDDate,$L25)))/(SUMIFS(TransCLife,TransAsset,$A25,TransIDDate,$L25)*12)*(((YEAR($H$2)*12)+MONTH($H$2))-((YEAR($L25)*12)+MONTH($L25)))>=($X25-SUMIFS(TransCRes,TransAsset,$A25,TransIDDate,$L25)),$X25-SUMIFS(TransCRes,TransAsset,$A25,TransIDDate,$L25),($X25-(SUMIFS(TransCRes,TransAsset,$A25,TransIDDate,$L25)))/(SUMIFS(TransCLife,TransAsset,$A25,TransIDDate,$L25)*12)*(((YEAR($H$2)*12)+MONTH($H$2))-((YEAR($L25)*12)+MONTH($L25)))))) -> 39386.66667 | AE25: 2813.333333 | AF25: 86.66666667 | AG25: 2900 | AH25: -39386.66667 | AI25: 0 | AJ25: 2900 | AK25: 11600 | AL25: 0 | AM25: 11686.66667 | AN25: -86.66666667 | AO25: 11600 | AP25: 0 | AQ25: 0 | AR25: 155 | AS25: 86.66666667 | AT25: 241.6666667 | AU25: =IF($I25<$H$2,IF(AND($N25<>"-",$N25<$H$2),0,SUMIFS(TransHCost,TransAsset,$A25,TransIDDate,$J25)-SUMIFS(TransPCAccDep,TransAsset,$A25)-SUMIFS(TransImpair,TransAsset,$A25,TransIDDate,"<"&$H$2,TransType,"REV")),0) -> 2813.333333 | AV25: -2813.333333 | AW25: 0 | AX25: =$AW25-IF($I25<$J$2,IF(AND($N25<>"-",$N25<$J$2),0,SUMIFS(TransHCost,TransAsset,$A25,TransIDDate,$J25)-SUMIFS(TransPMAccDep,TransAsset,$A25)-SUMIFS(TransImpair,TransAsset,$A25,TransIDDate,"<"&$J$2,TransType,"REV")),0) -> -155 | AY25: =IF(ISNA(MATCH($F25,TaxCode,0))=TRUE,$S25*($U25>0),MAX(($S25*($U25>0))-(($S25-SUMIFS(TransCRes,TransAsset,$A25,TransIDDate,$L25))*(IF($U25<=11,0,MIN(SUM(OFFSET('Set-up'!$D$37,MATCH($F25,TaxCode,0),0,1,MATCH($U25,TaxCumMonth,1)))+MAX(TRUNC(($U25-60)/12)*SUM(OFFSET('Set-up'!$H$37,MATCH($F25,TaxCode,0),0,1,1)),0%),100%))))-(($S25-SUMIFS(TransCRes,TransAsset,$A25,TransIDDate,$L25))*OFFSET('Set-up'!$D$37,MATCH($F25,TaxCode,0),MATCH($U25,TaxCurMonth,1)-1,1,1)*IF(AND($U25-(TRUNC($U25/12)*12)<>0,OFFSET('Set-up'!$J$37,MATCH($F25,TaxCode,0),0,1,1)=0),1,(($U25-(TRUNC($U25/12)*12))/12))),SUMIFS(TransCRes,TransAsset,$A25,TransIDDate,$L25))) -> 2813.333333 | AZ25: -2813.333333 | BA25: =IF(ISNA(MATCH($F25,TaxCode,0))=TRUE,$S25*($V25>0),MAX(($S25*($V25>0))-(($S25-$R25)*(IF($V25<=11,0,MIN(SUM(OFFSET('Set-up'!$D$37,MATCH($F25,TaxCode,0),0,1,MATCH($V25,TaxCumMonth,1)))+MAX(TRUNC(($V25-60)/12)*SUM(OFFSET('Set-up'!$H$37,MATCH($F25,TaxCode,0),0,1,1)),0%),100%))))-(($S25-$R25)*OFFSET('Set-up'!$D$37,MATCH($F25,TaxCode,0),MATCH($V25,TaxCurMonth,1)-1,1,1)*IF(AND($V25-(TRUNC($V25/12)*12)<>0,OFFSET('Set-up'!$J$37,MATCH($F25,TaxCode,0),0,1,1)=0),1,(($V25-(TRUNC($V25/12)*12))/12))),$R25*($V25>0))) -> 0 | BB25: =$BA25-IF(ISNA(MATCH($F25,TaxCode,0))=TRUE,$S25*($W25>0),MAX(($S25*($W25>0))-(($S25-SUMIFS(TransCRes,TransAsset,$A25,TransIDDate,$M25))*(IF($W25<=11,0,MIN(SUM(OFFSET('Set-up'!$D$37,MATCH($F25,TaxCode,0),0,1,MATCH($W25,TaxCumMonth,1)))+MAX(TRUNC(($W25-60)/12)*SUM(OFFSET('Set-up'!$H$37,MATCH($F25,TaxCode,0),0,1,1)),0%),100%))))-(($S25-SUMIFS(TransCRes,TransAsset,$A25,TransIDDate,$M25))*OFFSET('Set-up'!$D$37,MATCH($F25,TaxCode,0),MATCH($W25,TaxCurMonth,1)-1,1,1)*IF(AND($W25-(TRUNC($W25/12)*12)<>0,OFFSET('Set-up'!$J$37,MATCH($F25,TaxCode,0),0,1,1)=0),1,(($W25-(TRUNC($W25/12)*12))/12))),SUMIFS(TransCRes,TransAsset,$A25,TransIDDate,$M25)*($W25>0))) -> 0 | BC25: =IF(ISNUMBER('Set-up'!$C$9)=FALSE,0,IF($F25="J",0,ROUND(($AU25-$AY25)*'Set-up'!$C$9,2))) -> 0 | BD25: 0 | BE25: =IF(ISNUMBER('Set-up'!$C$9)=FALSE,0,IF($F25="J",0,ROUND(($AW25-$BA25)*'Set-up'!$C$9,2))) -> 0 | BF25: =IF(ISNUMBER('Set-up'!$C$9)=FALSE,0,IF($F25="J",0,ROUND(($AX25-$BB25)*'Set-up'!$C$9,2))) -> -43.4
A26: PQ-00004 | B26: 636489 | C26: IM4 Engraver | D26: Owned | E26: EQP01 | F26: A | G26: =IF(COUNTIF(AssetCode,$A26)>1,"E1",IF(ISNA(VLOOKUP($E26,CatAll,1,0))=TRUE,"E2",IF(AND($I26="add!",$J26<>"add!"),"E10",IF(ISNA(VLOOKUP($F26,TaxCode,1,0))=TRUE,"E11","-")))) -> - | H26: PM | I26: =IF(ISERROR(LARGE(IF(TransAsset=$A26,IF(TransType="ACQ",TransIDDate,"add!"),"add!"),1)),"add!",LARGE(IF(TransAsset=$A26,IF(TransType="ACQ",TransIDDate,"add!"),"add!"),1)) -> 2015-07-20T00:00:29 | J26: =IF(ISERROR(LARGE(IF(TransAsset=$A26,TransIDDate,"add!"),1)),"add!",LARGE(IF(TransAsset=$A26,TransIDDate,"add!"),1)) -> 2020-03-01T00:01:10 | K26: =IF(ISERROR(LARGE(IF(TransAsset=$A26,IF(TransDate<($I$2+1),TransIDDate,"-"),"-"),1)),"-",LARGE(IF(TransAsset=$A26,IF(TransDate<($I$2+1),TransIDDate,"-"),"-"),1)) -> 2020-03-01T00:01:10 | L26: =IF(ISERROR(LARGE(IF(TransAsset=$A26,IF(TransDate<$H$2,TransIDDate,"-"),"-"),1)),"-",LARGE(IF(TransAsset=$A26,IF(TransDate<$H$2,TransIDDate,"-"),"-"),1)) -> 2015-07-20T00:00:29 | M26: =IF(ISERROR(LARGE(IF(TransAsset=$A26,IF(TransDate<$J$2,TransIDDate,"-"),"-"),1)),"-",LARGE(IF(TransAsset=$A26,IF(TransDate<$J$2,TransIDDate,"-"),"-"),1)) -> 2020-03-01T00:01:10 | N26: =IF(ISERROR(LARGE(IF(TransAsset=$A26,IF(TransType="DIS",TransIDDate,"-"),"-"),1)),"-",LARGE(IF(TransAsset=$A26,IF(TransType="DIS",TransIDDate,"-"),"-"),1)) -> - | O26: =IF($N26<=$I$2,SUMIFS(TransProceeds,TransAsset,$A26,TransType,"DIS"),0) -> 0 | P26: =IF($I26<=($I$2+1),SUMIFS(TransHCost,TransAsset,$A26,TransIDDate,$J26),0) -> 36900 | Q26: 5 | R26: 0 | S26: 36900 | T26: =IF(ISNA(MATCH($F26,TaxCode,0))=TRUE,"code?",OFFSET('Set-up'!$D$37,MATCH($F26,TaxCode,0),MATCH($V26,TaxCurMonth,1)-1,1,1)) -> 0.2 | U26: 56 | V26: 68 | W26: 67 | X26: 36900 | Y26: 0 | Z26: -26445 | AA26: 0 | AB26: 0 | AC26: 10455 | AD26: =IF($L26=0,0,IF(SUMIFS(TransCLife,TransAsset,$A26,TransIDDate,$L26)=0,0,IF(($X26-(SUMIFS(TransCRes,TransAsset,$A26,TransIDDate,$L26)))/(SUMIFS(TransCLife,TransAsset,$A26,TransIDDate,$L26)*12)*(((YEAR($H$2)*12)+MONTH($H$2))-((YEAR($L26)*12)+MONTH($L26)))>=($X26-SUMIFS(TransCRes,TransAsset,$A26,TransIDDate,$L26)),$X26-SUMIFS(TransCRes,TransAsset,$A26,TransIDDate,$L26),($X26-(SUMIFS(TransCRes,TransAsset,$A26,TransIDDate,$L26)))/(SUMIFS(TransCLife,TransAsset,$A26,TransIDDate,$L26)*12)*(((YEAR($H$2)*12)+MONTH($H$2))-((YEAR($L26)*12)+MONTH($L26)))))) -> 34440 | AE26: 2091 | AF26: 0 | AG26: 2091 | AH26: -34440 | AI26: 0 | AJ26: 2091 | AK26: 8364 | AL26: 0 | AM26: 7995 | AN26: 0 | AO26: 7995 | AP26: 0 | AQ26: 0 | AR26: 174.25 | AS26: 0 | AT26: 174.25 | AU26: =IF($I26<$H$2,IF(AND($N26<>"-",$N26<$H$2),0,SUMIFS(TransHCost,TransAsset,$A26,TransIDDate,$J26)-SUMIFS(TransPCAccDep,TransAsset,$A26)-SUMIFS(TransImpair,TransAsset,$A26,TransIDDate,"<"&$H$2,TransType,"REV")),0) -> 2460 | AV26: -2091 | AW26: 369 | AX26: =$AW26-IF($I26<$J$2,IF(AND($N26<>"-",$N26<$J$2),0,SUMIFS(TransHCost,TransAsset,$A26,TransIDDate,$J26)-SUMIFS(TransPMAccDep,TransAsset,$A26)-SUMIFS(TransImpair,TransAsset,$A26,TransIDDate,"<"&$J$2,TransType,"REV")),0) -> -174.25 | AY26: =IF(ISNA(MATCH($F26,TaxCode,0))=TRUE,$S26*($U26>0),MAX(($S26*($U26>0))-(($S26-SUMIFS(TransCRes,TransAsset,$A26,TransIDDate,$L26))*(IF($U26<=11,0,MIN(SUM(OFFSET('Set-up'!$D$37,MATCH($F26,TaxCode,0),0,1,MATCH($U26,TaxCumMonth,1)))+MAX(TRUNC(($U26-60)/12)*SUM(OFFSET('Set-up'!$H$37,MATCH($F26,TaxCode,0),0,1,1)),0%),100%))))-(($S26-SUMIFS(TransCRes,TransAsset,$A26,TransIDDate,$L26))*OFFSET('Set-up'!$D$37,MATCH($F26,TaxCode,0),MATCH($U26,TaxCurMonth,1)-1,1,1)*IF(AND($U26-(TRUNC($U26/12)*12)<>0,OFFSET('Set-up'!$J$37,MATCH($F26,TaxCode,0),0,1,1)=0),1,(($U26-(TRUNC($U26/12)*12))/12))),SUMIFS(TransCRes,TransAsset,$A26,TransIDDate,$L26))) -> 2460 | AZ26: -2460 | BA26: =IF(ISNA(MATCH($F26,TaxCode,0))=TRUE,$S26*($V26>0),MAX(($S26*($V26>0))-(($S26-$R26)*(IF($V26<=11,0,MIN(SUM(OFFSET('Set-up'!$D$37,MATCH($F26,TaxCode,0),0,1,MATCH($V26,TaxCumMonth,1)))+MAX(TRUNC(($V26-60)/12)*SUM(OFFSET('Set-up'!$H$37,MATCH($F26,TaxCode,0),0,1,1)),0%),100%))))-(($S26-$R26)*OFFSET('Set-up'!$D$37,MATCH($F26,TaxCode,0),MATCH($V26,TaxCurMonth,1)-1,1,1)*IF(AND($V26-(TRUNC($V26/12)*12)<>0,OFFSET('Set-up'!$J$37,MATCH($F26,TaxCode,0),0,1,1)=0),1,(($V26-(TRUNC($V26/12)*12))/12))),$R26*($V26>0))) -> 0 | BB26: =$BA26-IF(ISNA(MATCH($F26,TaxCode,0))=TRUE,$S26*($W26>0),MAX(($S26*($W26>0))-(($S26-SUMIFS(TransCRes,TransAsset,$A26,TransIDDate,$M26))*(IF($W26<=11,0,MIN(SUM(OFFSET('Set-up'!$D$37,MATCH($F26,TaxCode,0),0,1,MATCH($W26,TaxCumMonth,1)))+MAX(TRUNC(($W26-60)/12)*SUM(OFFSET('Set-up'!$H$37,MATCH($F26,TaxCode,0),0,1,1)),0%),100%))))-(($S26-SUMIFS(TransCRes,TransAsset,$A26,TransIDDate,$M26))*OFFSET('Set-up'!$D$37,MATCH($F26,TaxCode,0),MATCH($W26,TaxCurMonth,1)-1,1,1)*IF(AND($W26-(TRUNC($W26/12)*12)<>0,OFFSET('Set-up'!$J$37,MATCH($F26,TaxCode,0),0,1,1)=0),1,(($W26-(TRUNC($W26/12)*12))/12))),SUMIFS(TransCRes,TransAsset,$A26,TransIDDate,$M26)*($W26>0))) -> 0 | BC26: =IF(ISNUMBER('Set-up'!$C$9)=FALSE,0,IF($F26="J",0,ROUND(($AU26-$AY26)*'Set-up'!$C$9,2))) -> 0 | BD26: 103.32 | BE26: =IF(ISNUMBER('Set-up'!$C$9)=FALSE,0,IF($F26="J",0,ROUND(($AW26-$BA26)*'Set-up'!$C$9,2))) -> 103.32 | BF26: =IF(ISNUMBER('Set-up'!$C$9)=FALSE,0,IF($F26="J",0,ROUND(($AX26-$BB26)*'Set-up'!$C$9,2))) -> -48.79
A27: PQ-00005 | B27: 226563 | C27: Yun Shuen 4Hkv Std Milling Machine | D27: Owned | E27: EQP01 | F27: A | G27: =IF(COUNTIF(AssetCode,$A27)>1,"E1",IF(ISNA(VLOOKUP($E27,CatAll,1,0))=TRUE,"E2",IF(AND($I27="add!",$J27<>"add!"),"E10",IF(ISNA(VLOOKUP($F27,TaxCode,1,0))=TRUE,"E11","-")))) -> - | H27: PM | I27: =IF(ISERROR(LARGE(IF(TransAsset=$A27,IF(TransType="ACQ",TransIDDate,"add!"),"add!"),1)),"add!",LARGE(IF(TransAsset=$A27,IF(TransType="ACQ",TransIDDate,"add!"),"add!"),1)) -> 2015-07-20T00:00:30 | J27: =IF(ISERROR(LARGE(IF(TransAsset=$A27,TransIDDate,"add!"),1)),"add!",LARGE(IF(TransAsset=$A27,TransIDDate,"add!"),1)) -> 2020-03-01T00:01:11 | K27: =IF(ISERROR(LARGE(IF(TransAsset=$A27,IF(TransDate<($I$2+1),TransIDDate,"-"),"-"),1)),"-",LARGE(IF(TransAsset=$A27,IF(TransDate<($I$2+1),TransIDDate,"-"),"-"),1)) -> 2020-03-01T00:01:11 | L27: =IF(ISERROR(LARGE(IF(TransAsset=$A27,IF(TransDate<$H$2,TransIDDate,"-"),"-"),1)),"-",LARGE(IF(TransAsset=$A27,IF(TransDate<$H$2,TransIDDate,"-"),"-"),1)) -> 2015-07-20T00:00:30 | M27: =IF(ISERROR(LARGE(IF(TransAsset=$A27,IF(TransDate<$J$2,TransIDDate,"-"),"-"),1)),"-",LARGE(IF(TransAsset=$A27,IF(TransDate<$J$2,TransIDDate,"-"),"-"),1)) -> 2020-03-01T00:01:11 | N27: =IF(ISERROR(LARGE(IF(TransAsset=$A27,IF(TransType="DIS",TransIDDate,"-"),"-"),1)),"-",LARGE(IF(TransAsset=$A27,IF(TransType="DIS",TransIDDate,"-"),"-"),1)) -> - | O27: =IF($N27<=$I$2,SUMIFS(TransProceeds,TransAsset,$A27,TransType,"DIS"),0) -> 0 | P27: =IF($I27<=($I$2+1),SUMIFS(TransHCost,TransAsset,$A27,TransIDDate,$J27),0) -> 49950 | Q27: 5 | R27: 0 | S27: 49950 | T27: =IF(ISNA(MATCH($F27,TaxCode,0))=TRUE,"code?",OFFSET('Set-up'!$D$37,MATCH($F27,TaxCode,0),MATCH($V27,TaxCurMonth,1)-1,1,1)) -> 0.2 | U27: 56 | V27: 68 | W27: 67 | X27: 49950 | Y27: 0 | Z27: -34950 | AA27: 0 | AB27: 0 | AC27: 15000 | AD27: =IF($L27=0,0,IF(SUMIFS(TransCLife,TransAsset,$A27,TransIDDate,$L27)=0,0,IF(($X27-(SUMIFS(TransCRes,TransAsset,$A27,TransIDDate,$L27)))/(SUMIFS(TransCLife,TransAsset,$A27,TransIDDate,$L27)*12)*(((YEAR($H$2)*12)+MONTH($H$2))-((YEAR($L27)*12)+MONTH($L27)))>=($X27-SUMIFS(TransCRes,TransAsset,$A27,TransIDDate,$L27)),$X27-SUMIFS(TransCRes,TransAsset,$A27,TransIDDate,$L27),($X27-(SUMIFS(TransCRes,TransAsset,$A27,TransIDDate,$L27)))/(SUMIFS(TransCLife,TransAsset,$A27,TransIDDate,$L27)*12)*(((YEAR($H$2)*12)+MONTH($H$2))-((YEAR($L27)*12)+MONTH($L27)))))) -> 46620 | AE27: 3000 | AF27: 0 | AG27: 3000 | AH27: -46620 | AI27: 0 | AJ27: 3000 | AK27: 12000 | AL27: 0 | AM27: 11670 | AN27: 0 | AO27: 11670 | AP27: 0 | AQ27: 0 | AR27: 250 | AS27: 0 | AT27: 250 | AU27: =IF($I27<$H$2,IF(AND($N27<>"-",$N27<$H$2),0,SUMIFS(TransHCost,TransAsset,$A27,TransIDDate,$J27)-SUMIFS(TransPCAccDep,TransAsset,$A27)-SUMIFS(TransImpair,TransAsset,$A27,TransIDDate,"<"&$H$2,TransType,"REV")),0) -> 3330 | AV27: -3000 | AW27: 330 | AX27: =$AW27-IF($I27<$J$2,IF(AND($N27<>"-",$N27<$J$2),0,SUMIFS(TransHCost,TransAsset,$A27,TransIDDate,$J27)-SUMIFS(TransPMAccDep,TransAsset,$A27)-SUMIFS(TransImpair,TransAsset,$A27,TransIDDate,"<"&$J$2,TransType,"REV")),0) -> -250 | AY27: =IF(ISNA(MATCH($F27,TaxCode,0))=TRUE,$S27*($U27>0),MAX(($S27*($U27>0))-(($S27-SUMIFS(TransCRes,TransAsset,$A27,TransIDDate,$L27))*(IF($U27<=11,0,MIN(SUM(OFFSET('Set-up'!$D$37,MATCH($F27,TaxCode,0),0,1,MATCH($U27,TaxCumMonth,1)))+MAX(TRUNC(($U27-60)/12)*SUM(OFFSET('Set-up'!$H$37,MATCH($F27,TaxCode,0),0,1,1)),0%),100%))))-(($S27-SUMIFS(TransCRes,TransAsset,$A27,TransIDDate,$L27))*OFFSET('Set-up'!$D$37,MATCH($F27,TaxCode,0),MATCH($U27,TaxCurMonth,1)-1,1,1)*IF(AND($U27-(TRUNC($U27/12)*12)<>0,OFFSET('Set-up'!$J$37,MATCH($F27,TaxCode,0),0,1,1)=0),1,(($U27-(TRUNC($U27/12)*12))/12))),SUMIFS(TransCRes,TransAsset,$A27,TransIDDate,$L27))) -> 3330 | AZ27: -3330 | BA27: =IF(ISNA(MATCH($F27,TaxCode,0))=TRUE,$S27*($V27>0),MAX(($S27*($V27>0))-(($S27-$R27)*(IF($V27<=11,0,MIN(SUM(OFFSET('Set-up'!$D$37,MATCH($F27,TaxCode,0),0,1,MATCH($V27,TaxCumMonth,1)))+MAX(TRUNC(($V27-60)/12)*SUM(OFFSET('Set-up'!$H$37,MATCH($F27,TaxCode,0),0,1,1)),0%),100%))))-(($S27-$R27)*OFFSET('Set-up'!$D$37,MATCH($F27,TaxCode,0),MATCH($V27,TaxCurMonth,1)-1,1,1)*IF(AND($V27-(TRUNC($V27/12)*12)<>0,OFFSET('Set-up'!$J$37,MATCH($F27,TaxCode,0),0,1,1)=0),1,(($V27-(TRUNC($V27/12)*12))/12))),$R27*($V27>0))) -> 0 | BB27: =$BA27-IF(ISNA(MATCH($F27,TaxCode,0))=TRUE,$S27*($W27>0),MAX(($S27*($W27>0))-(($S27-SUMIFS(TransCRes,TransAsset,$A27,TransIDDate,$M27))*(IF($W27<=11,0,MIN(SUM(OFFSET('Set-up'!$D$37,MATCH($F27,TaxCode,0),0,1,MATCH($W27,TaxCumMonth,1)))+MAX(TRUNC(($W27-60)/12)*SUM(OFFSET('Set-up'!$H$37,MATCH($F27,TaxCode,0),0,1,1)),0%),100%))))-(($S27-SUMIFS(TransCRes,TransAsset,$A27,TransIDDate,$M27))*OFFSET('Set-up'!$D$37,MATCH($F27,TaxCode,0),MATCH($W27,TaxCurMonth,1)-1,1,1)*IF(AND($W27-(TRUNC($W27/12)*12)<>0,OFFSET('Set-up'!$J$37,MATCH($F27,TaxCode,0),0,1,1)=0),1,(($W27-(TRUNC($W27/12)*12))/12))),SUMIFS(TransCRes,TransAsset,$A27,TransIDDate,$M27)*($W27>0))) -> 0 | BC27: =IF(ISNUMBER('Set-up'!$C$9)=FALSE,0,IF($F27="J",0,ROUND(($AU27-$AY27)*'Set-up'!$C$9,2))) -> 0 | BD27: 92.4 | BE27: =IF(ISNUMBER('Set-up'!$C$9)=FALSE,0,IF($F27="J",0,ROUND(($AW27-$BA27)*'Set-up'!$C$9,2))) -> 92.4 | BF27: =IF(ISNUMBER('Set-up'!$C$9)=FALSE,0,IF($F27="J",0,ROUND(($AX27-$BB27)*'Set-up'!$C$9,2))) -> -70
A28: PQ-00006 | B28: 287484 | C28: 37KV Compressor | D28: Owned | E28: EQP01 | F28: A | G28: =IF(COUNTIF(AssetCode,$A28)>1,"E1",IF(ISNA(VLOOKUP($E28,CatAll,1,0))=TRUE,"E2",IF(AND($I28="add!",$J28<>"add!"),"E10",IF(ISNA(VLOOKUP($F28,TaxCode,1,0))=TRUE,"E11","-")))) -> - | H28: PM | I28: =IF(ISERROR(LARGE(IF(TransAsset=$A28,IF(TransType="ACQ",TransIDDate,"add!"),"add!"),1)),"add!",LARGE(IF(TransAsset=$A28,IF(TransType="ACQ",TransIDDate,"add!"),"add!"),1)) -> 2015-07-20T00:00:31 | J28: =IF(ISERROR(LARGE(IF(TransAsset=$A28,TransIDDate,"add!"),1)),"add!",LARGE(IF(TransAsset=$A28,TransIDDate,"add!"),1)) -> 2020-03-01T00:01:12 | K28: =IF(ISERROR(LARGE(IF(TransAsset=$A28,IF(TransDate<($I$2+1),TransIDDate,"-"),"-"),1)),"-",LARGE(IF(TransAsset=$A28,IF(TransDate<($I$2+1),TransIDDate,"-"),"-"),1)) -> 2020-03-01T00:01:12 | L28: =IF(ISERROR(LARGE(IF(TransAsset=$A28,IF(TransDate<$H$2,TransIDDate,"-"),"-"),1)),"-",LARGE(IF(TransAsset=$A28,IF(TransDate<$H$2,TransIDDate,"-"),"-"),1)) -> 2015-07-20T00:00:31 | M28: =IF(ISERROR(LARGE(IF(TransAsset=$A28,IF(TransDate<$J$2,TransIDDate,"-"),"-"),1)),"-",LARGE(IF(TransAsset=$A28,IF(TransDate<$J$2,TransIDDate,"-"),"-"),1)) -> 2020-03-01T00:01:12 | N28: =IF(ISERROR(LARGE(IF(TransAsset=$A28,IF(TransType="DIS",TransIDDate,"-"),"-"),1)),"-",LARGE(IF(TransAsset=$A28,IF(TransType="DIS",TransIDDate,"-"),"-"),1)) -> - | O28: =IF($N28<=$I$2,SUMIFS(TransProceeds,TransAsset,$A28,TransType,"DIS"),0) -> 0 | P28: =IF($I28<=($I$2+1),SUMIFS(TransHCost,TransAsset,$A28,TransIDDate,$J28),0) -> 113130 | Q28: 5 | R28: 0 | S28: 113130 | T28: =IF(ISNA(MATCH($F28,TaxCode,0))=TRUE,"code?",OFFSET('Set-up'!$D$37,MATCH($F28,TaxCode,0),MATCH($V28,TaxCurMonth,1)-1,1,1)) -> 0.2 | U28: 56 | V28: 68 | W28: 67 | X28: 113130 | Y28: 0 | Z28: -80630 | AA28: 0 | AB28: 0 | AC28: 32500 | AD28: =IF($L28=0,0,IF(SUMIFS(TransCLife,TransAsset,$A28,TransIDDate,$L28)=0,0,IF(($X28-(SUMIFS(TransCRes,TransAsset,$A28,TransIDDate,$L28)))/(SUMIFS(TransCLife,TransAsset,$A28,TransIDDate,$L28)*12)*(((YEAR($H$2)*12)+MONTH($H$2))-((YEAR($L28)*12)+MONTH($L28)))>=($X28-SUMIFS(TransCRes,TransAsset,$A28,TransIDDate,$L28)),$X28-SUMIFS(TransCRes,TransAsset,$A28,TransIDDate,$L28),($X28-(SUMIFS(TransCRes,TransAsset,$A28,TransIDDate,$L28)))/(SUMIFS(TransCLife,TransAsset,$A28,TransIDDate,$L28)*12)*(((YEAR($H$2)*12)+MONTH($H$2))-((YEAR($L28)*12)+MONTH($L28)))))) -> 105588 | AE28: 6500 | AF28: 0 | AG28: 6500 | AH28: -105588 | AI28: 0 | AJ28: 6500 | AK28: 26000 | AL28: 0 | AM28: 24958 | AN28: 0 | AO28: 24958 | AP28: 0 | AQ28: 0 | AR28: 541.6666667 | AS28: 0 | AT28: 541.6666667 | AU28: =IF($I28<$H$2,IF(AND($N28<>"-",$N28<$H$2),0,SUMIFS(TransHCost,TransAsset,$A28,TransIDDate,$J28)-SUMIFS(TransPCAccDep,TransAsset,$A28)-SUMIFS(TransImpair,TransAsset,$A28,TransIDDate,"<"&$H$2,TransType,"REV")),0) -> 7542 | AV28: -6500 | AW28: 1042 | AX28: =$AW28-IF($I28<$J$2,IF(AND($N28<>"-",$N28<$J$2),0,SUMIFS(TransHCost,TransAsset,$A28,TransIDDate,$J28)-SUMIFS(TransPMAccDep,TransAsset,$A28)-SUMIFS(TransImpair,TransAsset,$A28,TransIDDate,"<"&$J$2,TransType,"REV")),0) -> -541.6666667 | AY28: =IF(ISNA(MATCH($F28,TaxCode,0))=TRUE,$S28*($U28>0),MAX(($S28*($U28>0))-(($S28-SUMIFS(TransCRes,TransAsset,$A28,TransIDDate,$L28))*(IF($U28<=11,0,MIN(SUM(OFFSET('Set-up'!$D$37,MATCH($F28,TaxCode,0),0,1,MATCH($U28,TaxCumMonth,1)))+MAX(TRUNC(($U28-60)/12)*SUM(OFFSET('Set-up'!$H$37,MATCH($F28,TaxCode,0),0,1,1)),0%),100%))))-(($S28-SUMIFS(TransCRes,TransAsset,$A28,TransIDDate,$L28))*OFFSET('Set-up'!$D$37,MATCH($F28,TaxCode,0),MATCH($U28,TaxCurMonth,1)-1,1,1)*IF(AND($U28-(TRUNC($U28/12)*12)<>0,OFFSET('Set-up'!$J$37,MATCH($F28,TaxCode,0),0,1,1)=0),1,(($U28-(TRUNC($U28/12)*12))/12))),SUMIFS(TransCRes,TransAsset,$A28,TransIDDate,$L28))) -> 7542 | AZ28: -7542 | BA28: =IF(ISNA(MATCH($F28,TaxCode,0))=TRUE,$S28*($V28>0),MAX(($S28*($V28>0))-(($S28-$R28)*(IF($V28<=11,0,MIN(SUM(OFFSET('Set-up'!$D$37,MATCH($F28,TaxCode,0),0,1,MATCH($V28,TaxCumMonth,1)))+MAX(TRUNC(($V28-60)/12)*SUM(OFFSET('Set-up'!$H$37,MATCH($F28,TaxCode,0),0,1,1)),0%),100%))))-(($S28-$R28)*OFFSET('Set-up'!$D$37,MATCH($F28,TaxCode,0),MATCH($V28,TaxCurMonth,1)-1,1,1)*IF(AND($V28-(TRUNC($V28/12)*12)<>0,OFFSET('Set-up'!$J$37,MATCH($F28,TaxCode,0),0,1,1)=0),1,(($V28-(TRUNC($V28/12)*12))/12))),$R28*($V28>0))) -> 0 | BB28: =$BA28-IF(ISNA(MATCH($F28,TaxCode,0))=TRUE,$S28*($W28>0),MAX(($S28*($W28>0))-(($S28-SUMIFS(TransCRes,TransAsset,$A28,TransIDDate,$M28))*(IF($W28<=11,0,MIN(SUM(OFFSET('Set-up'!$D$37,MATCH($F28,TaxCode,0),0,1,MATCH($W28,TaxCumMonth,1)))+MAX(TRUNC(($W28-60)/12)*SUM(OFFSET('Set-up'!$H$37,MATCH($F28,TaxCode,0),0,1,1)),0%),100%))))-(($S28-SUMIFS(TransCRes,TransAsset,$A28,TransIDDate,$M28))*OFFSET('Set-up'!$D$37,MATCH($F28,TaxCode,0),MATCH($W28,TaxCurMonth,1)-1,1,1)*IF(AND($W28-(TRUNC($W28/12)*12)<>0,OFFSET('Set-up'!$J$37,MATCH($F28,TaxCode,0),0,1,1)=0),1,(($W28-(TRUNC($W28/12)*12))/12))),SUMIFS(TransCRes,TransAsset,$A28,TransIDDate,$M28)*($W28>0))) -> 0 | BC28: =IF(ISNUMBER('Set-up'!$C$9)=FALSE,0,IF($F28="J",0,ROUND(($AU28-$AY28)*'Set-up'!$C$9,2))) -> 0 | BD28: 291.76 | BE28: =IF(ISNUMBER('Set-up'!$C$9)=FALSE,0,IF($F28="J",0,ROUND(($AW28-$BA28)*'Set-up'!$C$9,2))) -> 291.76 | BF28: =IF(ISNUMBER('Set-up'!$C$9)=FALSE,0,IF($F28="J",0,ROUND(($AX28-$BB28)*'Set-up'!$C$9,2))) -> -151.67
A29: PQ-00007 | B29: 878347 | C29: Pollard 8 Spindle | D29: Owned | E29: EQP01 | F29: A | G29: =IF(COUNTIF(AssetCode,$A29)>1,"E1",IF(ISNA(VLOOKUP($E29,CatAll,1,0))=TRUE,"E2",IF(AND($I29="add!",$J29<>"add!"),"E10",IF(ISNA(VLOOKUP($F29,TaxCode,1,0))=TRUE,"E11","-")))) -> - | H29: PM | I29: =IF(ISERROR(LARGE(IF(TransAsset=$A29,IF(TransType="ACQ",TransIDDate,"add!"),"add!"),1)),"add!",LARGE(IF(TransAsset=$A29,IF(TransType="ACQ",TransIDDate,"add!"),"add!"),1)) -> 2016-10-12T00:00:34 | J29: =IF(ISERROR(LARGE(IF(TransAsset=$A29,TransIDDate,"add!"),1)),"add!",LARGE(IF(TransAsset=$A29,TransIDDate,"add!"),1)) -> 2020-03-01T00:01:13 | K29: =IF(ISERROR(LARGE(IF(TransAsset=$A29,IF(TransDate<($I$2+1),TransIDDate,"-"),"-"),1)),"-",LARGE(IF(TransAsset=$A29,IF(TransDate<($I$2+1),TransIDDate,"-"),"-"),1)) -> 2020-03-01T00:01:13 | L29: =IF(ISERROR(LARGE(IF(TransAsset=$A29,IF(TransDate<$H$2,TransIDDate,"-"),"-"),1)),"-",LARGE(IF(TransAsset=$A29,IF(TransDate<$H$2,TransIDDate,"-"),"-"),1)) -> 2016-10-12T00:00:34 | M29: =IF(ISERROR(LARGE(IF(TransAsset=$A29,IF(TransDate<$J$2,TransIDDate,"-"),"-"),1)),"-",LARGE(IF(TransAsset=$A29,IF(TransDate<$J$2,TransIDDate,"-"),"-"),1)) -> 2020-03-01T00:01:13 | N29: =IF(ISERROR(LARGE(IF(TransAsset=$A29,IF(TransType="DIS",TransIDDate,"-"),"-"),1)),"-",LARGE(IF(TransAsset=$A29,IF(TransType="DIS",TransIDDate,"-"),"-"),1)) -> - | O29: =IF($N29<=$I$2,SUMIFS(TransProceeds,TransAsset,$A29,TransType,"DIS"),0) -> 0 | P29: =IF($I29<=($I$2+1),SUMIFS(TransHCost,TransAsset,$A29,TransIDDate,$J29),0) -> 6890 | Q29: 5 | R29: 0 | S29: 6890 | T29: =IF(ISNA(MATCH($F29,TaxCode,0))=TRUE,"code?",OFFSET('Set-up'!$D$37,MATCH($F29,TaxCode,0),MATCH($V29,TaxCurMonth,1)-1,1,1)) -> 0.2 | U29: 41 | V29: 53 | W29: 52 | X29: 6890 | Y29: 0 | Z29: 110 | AA29: 0 | AB29: 0 | AC29: 7000 | AD29: =IF($L29=0,0,IF(SUMIFS(TransCLife,TransAsset,$A29,TransIDDate,$L29)=0,0,IF(($X29-(SUMIFS(TransCRes,TransAsset,$A29,TransIDDate,$L29)))/(SUMIFS(TransCLife,TransAsset,$A29,TransIDDate,$L29)*12)*(((YEAR($H$2)*12)+MONTH($H$2))-((YEAR($L29)*12)+MONTH($L29)))>=($X29-SUMIFS(TransCRes,TransAsset,$A29,TransIDDate,$L29)),$X29-SUMIFS(TransCRes,TransAsset,$A29,TransIDDate,$L29),($X29-(SUMIFS(TransCRes,TransAsset,$A29,TransIDDate,$L29)))/(SUMIFS(TransCLife,TransAsset,$A29,TransIDDate,$L29)*12)*(((YEAR($H$2)*12)+MONTH($H$2))-((YEAR($L29)*12)+MONTH($L29)))))) -> 4708.166667 | AE29: 1378 | AF29: 22 | AG29: 1400 | AH29: -4708.166667 | AI29: 0 | AJ29: 1400 | AK29: 5600 | AL29: 0 | AM29: 4818.166667 | AN29: -22 | AO29: 4796.166667 | AP29: 0 | AQ29: 0 | AR29: 114.8333333 | AS29: 1.833333333 | AT29: 116.6666667 | AU29: =IF($I29<$H$2,IF(AND($N29<>"-",$N29<$H$2),0,SUMIFS(TransHCost,TransAsset,$A29,TransIDDate,$J29)-SUMIFS(TransPCAccDep,TransAsset,$A29)-SUMIFS(TransImpair,TransAsset,$A29,TransIDDate,"<"&$H$2,TransType,"REV")),0) -> 2181.833333 | AV29: -1378 | AW29: 803.8333333 | AX29: =$AW29-IF($I29<$J$2,IF(AND($N29<>"-",$N29<$J$2),0,SUMIFS(TransHCost,TransAsset,$A29,TransIDDate,$J29)-SUMIFS(TransPMAccDep,TransAsset,$A29)-SUMIFS(TransImpair,TransAsset,$A29,TransIDDate,"<"&$J$2,TransType,"REV")),0) -> -114.8333333 | AY29: =IF(ISNA(MATCH($F29,TaxCode,0))=TRUE,$S29*($U29>0),MAX(($S29*($U29>0))-(($S29-SUMIFS(TransCRes,TransAsset,$A29,TransIDDate,$L29))*(IF($U29<=11,0,MIN(SUM(OFFSET('Set-up'!$D$37,MATCH($F29,TaxCode,0),0,1,MATCH($U29,TaxCumMonth,1)))+MAX(TRUNC(($U29-60)/12)*SUM(OFFSET('Set-up'!$H$37,MATCH($F29,TaxCode,0),0,1,1)),0%),100%))))-(($S29-SUMIFS(TransCRes,TransAsset,$A29,TransIDDate,$L29))*OFFSET('Set-up'!$D$37,MATCH($F29,TaxCode,0),MATCH($U29,TaxCurMonth,1)-1,1,1)*IF(AND($U29-(TRUNC($U29/12)*12)<>0,OFFSET('Set-up'!$J$37,MATCH($F29,TaxCode,0),0,1,1)=0),1,(($U29-(TRUNC($U29/12)*12))/12))),SUMIFS(TransCRes,TransAsset,$A29,TransIDDate,$L29))) -> 2181.833333 | AZ29: -1378 | BA29: =IF(ISNA(MATCH($F29,TaxCode,0))=TRUE,$S29*($V29>0),MAX(($S29*($V29>0))-(($S29-$R29)*(IF($V29<=11,0,MIN(SUM(OFFSET('Set-up'!$D$37,MATCH($F29,TaxCode,0),0,1,MATCH($V29,TaxCumMonth,1)))+MAX(TRUNC(($V29-60)/12)*SUM(OFFSET('Set-up'!$H$37,MATCH($F29,TaxCode,0),0,1,1)),0%),100%))))-(($S29-$R29)*OFFSET('Set-up'!$D$37,MATCH($F29,TaxCode,0),MATCH($V29,TaxCurMonth,1)-1,1,1)*IF(AND($V29-(TRUNC($V29/12)*12)<>0,OFFSET('Set-up'!$J$37,MATCH($F29,TaxCode,0),0,1,1)=0),1,(($V29-(TRUNC($V29/12)*12))/12))),$R29*($V29>0))) -> 803.8333333 | BB29: =$BA29-IF(ISNA(MATCH($F29,TaxCode,0))=TRUE,$S29*($W29>0),MAX(($S29*($W29>0))-(($S29-SUMIFS(TransCRes,TransAsset,$A29,TransIDDate,$M29))*(IF($W29<=11,0,MIN(SUM(OFFSET('Set-up'!$D$37,MATCH($F29,TaxCode,0),0,1,MATCH($W29,TaxCumMonth,1)))+MAX(TRUNC(($W29-60)/12)*SUM(OFFSET('Set-up'!$H$37,MATCH($F29,TaxCode,0),0,1,1)),0%),100%))))-(($S29-SUMIFS(TransCRes,TransAsset,$A29,TransIDDate,$M29))*OFFSET('Set-up'!$D$37,MATCH($F29,TaxCode,0),MATCH($W29,TaxCurMonth,1)-1,1,1)*IF(AND($W29-(TRUNC($W29/12)*12)<>0,OFFSET('Set-up'!$J$37,MATCH($F29,TaxCode,0),0,1,1)=0),1,(($W29-(TRUNC($W29/12)*12))/12))),SUMIFS(TransCRes,TransAsset,$A29,TransIDDate,$M29)*($W29>0))) -> -114.8333333 | BC29: =IF(ISNUMBER('Set-up'!$C$9)=FALSE,0,IF($F29="J",0,ROUND(($AU29-$AY29)*'Set-up'!$C$9,2))) -> 0 | BD29: 0 | BE29: =IF(ISNUMBER('Set-up'!$C$9)=FALSE,0,IF($F29="J",0,ROUND(($AW29-$BA29)*'Set-up'!$C$9,2))) -> 0 | BF29: =IF(ISNUMBER('Set-up'!$C$9)=FALSE,0,IF($F29="J",0,ROUND(($AX29-$BB29)*'Set-up'!$C$9,2))) -> 0
A30: PQ-00008 | B30: 2-09847 | C30: Centre Bore | D30: Owned | E30: EQP01 | F30: A | G30: =IF(COUNTIF(AssetCode,$A30)>1,"E1",IF(ISNA(VLOOKUP($E30,CatAll,1,0))=TRUE,"E2",IF(AND($I30="add!",$J30<>"add!"),"E10",IF(ISNA(VLOOKUP($F30,TaxCode,1,0))=TRUE,"E11","-")))) -> - | H30: PM | I30: =IF(ISERROR(LARGE(IF(TransAsset=$A30,IF(TransType="ACQ",TransIDDate,"add!"),"add!"),1)),"add!",LARGE(IF(TransAsset=$A30,IF(TransType="ACQ",TransIDDate,"add!"),"add!"),1)) -> 2017-11-23T00:00:36 | J30: =IF(ISERROR(LARGE(IF(TransAsset=$A30,TransIDDate,"add!"),1)),"add!",LARGE(IF(TransAsset=$A30,TransIDDate,"add!"),1)) -> 2020-03-01T00:01:14 | K30: =IF(ISERROR(LARGE(IF(TransAsset=$A30,IF(TransDate<($I$2+1),TransIDDate,"-"),"-"),1)),"-",LARGE(IF(TransAsset=$A30,IF(TransDate<($I$2+1),TransIDDate,"-"),"-"),1)) -> 2020-03-01T00:01:14 | L30: =IF(ISERROR(LARGE(IF(TransAsset=$A30,IF(TransDate<$H$2,TransIDDate,"-"),"-"),1)),"-",LARGE(IF(TransAsset=$A30,IF(TransDate<$H$2,TransIDDate,"-"),"-"),1)) -> 2017-11-23T00:00:36 | M30: =IF(ISERROR(LARGE(IF(TransAsset=$A30,IF(TransDate<$J$2,TransIDDate,"-"),"-"),1)),"-",LARGE(IF(TransAsset=$A30,IF(TransDate<$J$2,TransIDDate,"-"),"-"),1)) -> 2020-03-01T00:01:14 | N30: =IF(ISERROR(LARGE(IF(TransAsset=$A30,IF(TransType="DIS",TransIDDate,"-"),"-"),1)),"-",LARGE(IF(TransAsset=$A30,IF(TransType="DIS",TransIDDate,"-"),"-"),1)) -> - | O30: =IF($N30<=$I$2,SUMIFS(TransProceeds,TransAsset,$A30,TransType,"DIS"),0) -> 0 | P30: =IF($I30<=($I$2+1),SUMIFS(TransHCost,TransAsset,$A30,TransIDDate,$J30),0) -> 19100 | Q30: 5 | R30: 0 | S30: 19100 | T30: =IF(ISNA(MATCH($F30,TaxCode,0))=TRUE,"code?",OFFSET('Set-up'!$D$37,MATCH($F30,TaxCode,0),MATCH($V30,TaxCurMonth,1)-1,1,1)) -> 0.2 | U30: 28 | V30: 40 | W30: 39 | X30: 19100 | Y30: 0 | Z30: -4775 | AA30: 0 | AB30: 0 | AC30: 14325 | AD30: =IF($L30=0,0,IF(SUMIFS(TransCLife,TransAsset,$A30,TransIDDate,$L30)=0,0,IF(($X30-(SUMIFS(TransCRes,TransAsset,$A30,TransIDDate,$L30)))/(SUMIFS(TransCLife,TransAsset,$A30,TransIDDate,$L30)*12)*(((YEAR($H$2)*12)+MONTH($H$2))-((YEAR($L30)*12)+MONTH($L30)))>=($X30-SUMIFS(TransCRes,TransAsset,$A30,TransIDDate,$L30)),$X30-SUMIFS(TransCRes,TransAsset,$A30,TransIDDate,$L30),($X30-(SUMIFS(TransCRes,TransAsset,$A30,TransIDDate,$L30)))/(SUMIFS(TransCLife,TransAsset,$A30,TransIDDate,$L30)*12)*(((YEAR($H$2)*12)+MONTH($H$2))-((YEAR($L30)*12)+MONTH($L30)))))) -> 8913.333333 | AE30: 2865 | AF30: 0 | AG30: 2865 | AH30: -8913.333333 | AI30: 0 | AJ30: 2865 | AK30: 11460 | AL30: 0 | AM30: 4138.333333 | AN30: 0 | AO30: 4138.333333 | AP30: 0 | AQ30: 0 | AR30: 238.75 | AS30: 0 | AT30: 238.75 | AU30: =IF($I30<$H$2,IF(AND($N30<>"-",$N30<$H$2),0,SUMIFS(TransHCost,TransAsset,$A30,TransIDDate,$J30)-SUMIFS(TransPCAccDep,TransAsset,$A30)-SUMIFS(TransImpair,TransAsset,$A30,TransIDDate,"<"&$H$2,TransType,"REV")),0) -> 10186.66667 | AV30: -2865 | AW30: 7321.666667 | AX30: =$AW30-IF($I30<$J$2,IF(AND($N30<>"-",$N30<$J$2),0,SUMIFS(TransHCost,TransAsset,$A30,TransIDDate,$J30)-SUMIFS(TransPMAccDep,TransAsset,$A30)-SUMIFS(TransImpair,TransAsset,$A30,TransIDDate,"<"&$J$2,TransType,"REV")),0) -> -238.75 | AY30: =IF(ISNA(MATCH($F30,TaxCode,0))=TRUE,$S30*($U30>0),MAX(($S30*($U30>0))-(($S30-SUMIFS(TransCRes,TransAsset,$A30,TransIDDate,$L30))*(IF($U30<=11,0,MIN(SUM(OFFSET('Set-up'!$D$37,MATCH($F30,TaxCode,0),0,1,MATCH($U30,TaxCumMonth,1)))+MAX(TRUNC(($U30-60)/12)*SUM(OFFSET('Set-up'!$H$37,MATCH($F30,TaxCode,0),0,1,1)),0%),100%))))-(($S30-SUMIFS(TransCRes,TransAsset,$A30,TransIDDate,$L30))*OFFSET('Set-up'!$D$37,MATCH($F30,TaxCode,0),MATCH($U30,TaxCurMonth,1)-1,1,1)*IF(AND($U30-(TRUNC($U30/12)*12)<>0,OFFSET('Set-up'!$J$37,MATCH($F30,TaxCode,0),0,1,1)=0),1,(($U30-(TRUNC($U30/12)*12))/12))),SUMIFS(TransCRes,TransAsset,$A30,TransIDDate,$L30))) -> 10186.66667 | AZ30: -3820 | BA30: =IF(ISNA(MATCH($F30,TaxCode,0))=TRUE,$S30*($V30>0),MAX(($S30*($V30>0))-(($S30-$R30)*(IF($V30<=11,0,MIN(SUM(OFFSET('Set-up'!$D$37,MATCH($F30,TaxCode,0),0,1,MATCH($V30,TaxCumMonth,1)))+MAX(TRUNC(($V30-60)/12)*SUM(OFFSET('Set-up'!$H$37,MATCH($F30,TaxCode,0),0,1,1)),0%),100%))))-(($S30-$R30)*OFFSET('Set-up'!$D$37,MATCH($F30,TaxCode,0),MATCH($V30,TaxCurMonth,1)-1,1,1)*IF(AND($V30-(TRUNC($V30/12)*12)<>0,OFFSET('Set-up'!$J$37,MATCH($F30,TaxCode,0),0,1,1)=0),1,(($V30-(TRUNC($V30/12)*12))/12))),$R30*($V30>0))) -> 6366.666667 | BB30: =$BA30-IF(ISNA(MATCH($F30,TaxCode,0))=TRUE,$S30*($W30>0),MAX(($S30*($W30>0))-(($S30-SUMIFS(TransCRes,TransAsset,$A30,TransIDDate,$M30))*(IF($W30<=11,0,MIN(SUM(OFFSET('Set-up'!$D$37,MATCH($F30,TaxCode,0),0,1,MATCH($W30,TaxCumMonth,1)))+MAX(TRUNC(($W30-60)/12)*SUM(OFFSET('Set-up'!$H$37,MATCH($F30,TaxCode,0),0,1,1)),0%),100%))))-(($S30-SUMIFS(TransCRes,TransAsset,$A30,TransIDDate,$M30))*OFFSET('Set-up'!$D$37,MATCH($F30,TaxCode,0),MATCH($W30,TaxCurMonth,1)-1,1,1)*IF(AND($W30-(TRUNC($W30/12)*12)<>0,OFFSET('Set-up'!$J$37,MATCH($F30,TaxCode,0),0,1,1)=0),1,(($W30-(TRUNC($W30/12)*12))/12))),SUMIFS(TransCRes,TransAsset,$A30,TransIDDate,$M30)*($W30>0))) -> -318.3333333 | BC30: =IF(ISNUMBER('Set-up'!$C$9)=FALSE,0,IF($F30="J",0,ROUND(($AU30-$AY30)*'Set-up'!$C$9,2))) -> 0 | BD30: 267.4 | BE30: =IF(ISNUMBER('Set-up'!$C$9)=FALSE,0,IF($F30="J",0,ROUND(($AW30-$BA30)*'Set-up'!$C$9,2))) -> 267.4 | BF30: =IF(ISNUMBER('Set-up'!$C$9)=FALSE,0,IF($F30="J",0,ROUND(($AX30-$BB30)*'Set-up'!$C$9,2))) -> 22.28
A31: PQ-00009 | B31: 187381 | C31: IM4 Engraver | D31: Owned | E31: EQP01 | F31: A | G31: =IF(COUNTIF(AssetCode,$A31)>1,"E1",IF(ISNA(VLOOKUP($E31,CatAll,1,0))=TRUE,"E2",IF(AND($I31="add!",$J31<>"add!"),"E10",IF(ISNA(VLOOKUP($F31,TaxCode,1,0))=TRUE,"E11","-")))) -> - | H31: PM | I31: =IF(ISERROR(LARGE(IF(TransAsset=$A31,IF(TransType="ACQ",TransIDDate,"add!"),"add!"),1)),"add!",LARGE(IF(TransAsset=$A31,IF(TransType="ACQ",TransIDDate,"add!"),"add!"),1)) -> 2018-02-20T00:00:37 | J31: =IF(ISERROR(LARGE(IF(TransAsset=$A31,TransIDDate,"add!"),1)),"add!",LARGE(IF(TransAsset=$A31,TransIDDate,"add!"),1)) -> 2020-03-01T00:01:15 | K31: =IF(ISERROR(LARGE(IF(TransAsset=$A31,IF(TransDate<($I$2+1),TransIDDate,"-"),"-"),1)),"-",LARGE(IF(TransAsset=$A31,IF(TransDate<($I$2+1),TransIDDate,"-"),"-"),1)) -> 2020-03-01T00:01:15 | L31: =IF(ISERROR(LARGE(IF(TransAsset=$A31,IF(TransDate<$H$2,TransIDDate,"-"),"-"),1)),"-",LARGE(IF(TransAsset=$A31,IF(TransDate<$H$2,TransIDDate,"-"),"-"),1)) -> 2018-02-20T00:00:37 | M31: =IF(ISERROR(LARGE(IF(TransAsset=$A31,IF(TransDate<$J$2,TransIDDate,"-"),"-"),1)),"-",LARGE(IF(TransAsset=$A31,IF(TransDate<$J$2,TransIDDate,"-"),"-"),1)) -> 2020-03-01T00:01:15 | N31: =IF(ISERROR(LARGE(IF(TransAsset=$A31,IF(TransType="DIS",TransIDDate,"-"),"-"),1)),"-",LARGE(IF(TransAsset=$A31,IF(TransType="DIS",TransIDDate,"-"),"-"),1)) -> - | O31: =IF($N31<=$I$2,SUMIFS(TransProceeds,TransAsset,$A31,TransType,"DIS"),0) -> 0 | P31: =IF($I31<=($I$2+1),SUMIFS(TransHCost,TransAsset,$A31,TransIDDate,$J31),0) -> 36900 | Q31: 5 | R31: 0 | S31: 36900 | T31: =IF(ISNA(MATCH($F31,TaxCode,0))=TRUE,"code?",OFFSET('Set-up'!$D$37,MATCH($F31,TaxCode,0),MATCH($V31,TaxCurMonth,1)-1,1,1)) -> 0.2 | U31: 25 | V31: 37 | W31: 36 | X31: 36900 | Y31: 0 | Z31: -7380 | AA31: 0 | AB31: 0 | AC31: 29520 | AD31: =IF($L31=0,0,IF(SUMIFS(TransCLife,TransAsset,$A31,TransIDDate,$L31)=0,0,IF(($X31-(SUMIFS(TransCRes,TransAsset,$A31,TransIDDate,$L31)))/(SUMIFS(TransCLife,TransAsset,$A31,TransIDDate,$L31)*12)*(((YEAR($H$2)*12)+MONTH($H$2))-((YEAR($L31)*12)+MONTH($L31)))>=($X31-SUMIFS(TransCRes,TransAsset,$A31,TransIDDate,$L31)),$X31-SUMIFS(TransCRes,TransAsset,$A31,TransIDDate,$L31),($X31-(SUMIFS(TransCRes,TransAsset,$A31,TransIDDate,$L31)))/(SUMIFS(TransCLife,TransAsset,$A31,TransIDDate,$L31)*12)*(((YEAR($H$2)*12)+MONTH($H$2))-((YEAR($L31)*12)+MONTH($L31)))))) -> 15375 | AE31: 5904 | AF31: 0 | AG31: 5904 | AH31: -15375 | AI31: 0 | AJ31: 5904 | AK31: 23616 | AL31: 0 | AM31: 7995 | AN31: 0 | AO31: 7995 | AP31: 0 | AQ31: 0 | AR31: 492 | AS31: 0 | AT31: 492 | AU31: =IF($I31<$H$2,IF(AND($N31<>"-",$N31<$H$2),0,SUMIFS(TransHCost,TransAsset,$A31,TransIDDate,$J31)-SUMIFS(TransPCAccDep,TransAsset,$A31)-SUMIFS(TransImpair,TransAsset,$A31,TransIDDate,"<"&$H$2,TransType,"REV")),0) -> 21525 | AV31: -5904 | AW31: 15621 | AX31: =$AW31-IF($I31<$J$2,IF(AND($N31<>"-",$N31<$J$2),0,SUMIFS(TransHCost,TransAsset,$A31,TransIDDate,$J31)-SUMIFS(TransPMAccDep,TransAsset,$A31)-SUMIFS(TransImpair,TransAsset,$A31,TransIDDate,"<"&$J$2,TransType,"REV")),0) -> -492 | AY31: =IF(ISNA(MATCH($F31,TaxCode,0))=TRUE,$S31*($U31>0),MAX(($S31*($U31>0))-(($S31-SUMIFS(TransCRes,TransAsset,$A31,TransIDDate,$L31))*(IF($U31<=11,0,MIN(SUM(OFFSET('Set-up'!$D$37,MATCH($F31,TaxCode,0),0,1,MATCH($U31,TaxCumMonth,1)))+MAX(TRUNC(($U31-60)/12)*SUM(OFFSET('Set-up'!$H$37,MATCH($F31,TaxCode,0),0,1,1)),0%),100%))))-(($S31-SUMIFS(TransCRes,TransAsset,$A31,TransIDDate,$L31))*OFFSET('Set-up'!$D$37,MATCH($F31,TaxCode,0),MATCH($U31,TaxCurMonth,1)-1,1,1)*IF(AND($U31-(TRUNC($U31/12)*12)<>0,OFFSET('Set-up'!$J$37,MATCH($F31,TaxCode,0),0,1,1)=0),1,(($U31-(TRUNC($U31/12)*12))/12))),SUMIFS(TransCRes,TransAsset,$A31,TransIDDate,$L31))) -> 21525 | AZ31: -7380 | BA31: =IF(ISNA(MATCH($F31,TaxCode,0))=TRUE,$S31*($V31>0),MAX(($S31*($V31>0))-(($S31-$R31)*(IF($V31<=11,0,MIN(SUM(OFFSET('Set-up'!$D$37,MATCH($F31,TaxCode,0),0,1,MATCH($V31,TaxCumMonth,1)))+MAX(TRUNC(($V31-60)/12)*SUM(OFFSET('Set-up'!$H$37,MATCH($F31,TaxCode,0),0,1,1)),0%),100%))))-(($S31-$R31)*OFFSET('Set-up'!$D$37,MATCH($F31,TaxCode,0),MATCH($V31,TaxCurMonth,1)-1,1,1)*IF(AND($V31-(TRUNC($V31/12)*12)<>0,OFFSET('Set-up'!$J$37,MATCH($F31,TaxCode,0),0,1,1)=0),1,(($V31-(TRUNC($V31/12)*12))/12))),$R31*($V31>0))) -> 14145 | BB31: =$BA31-IF(ISNA(MATCH($F31,TaxCode,0))=TRUE,$S31*($W31>0),MAX(($S31*($W31>0))-(($S31-SUMIFS(TransCRes,TransAsset,$A31,TransIDDate,$M31))*(IF($W31<=11,0,MIN(SUM(OFFSET('Set-up'!$D$37,MATCH($F31,TaxCode,0),0,1,MATCH($W31,TaxCumMonth,1)))+MAX(TRUNC(($W31-60)/12)*SUM(OFFSET('Set-up'!$H$37,MATCH($F31,TaxCode,0),0,1,1)),0%),100%))))-(($S31-SUMIFS(TransCRes,TransAsset,$A31,TransIDDate,$M31))*OFFSET('Set-up'!$D$37,MATCH($F31,TaxCode,0),MATCH($W31,TaxCurMonth,1)-1,1,1)*IF(AND($W31-(TRUNC($W31/12)*12)<>0,OFFSET('Set-up'!$J$37,MATCH($F31,TaxCode,0),0,1,1)=0),1,(($W31-(TRUNC($W31/12)*12))/12))),SUMIFS(TransCRes,TransAsset,$A31,TransIDDate,$M31)*($W31>0))) -> -615 | BC31: =IF(ISNUMBER('Set-up'!$C$9)=FALSE,0,IF($F31="J",0,ROUND(($AU31-$AY31)*'Set-up'!$C$9,2))) -> 0 | BD31: 413.28 | BE31: =IF(ISNUMBER('Set-up'!$C$9)=FALSE,0,IF($F31="J",0,ROUND(($AW31-$BA31)*'Set-up'!$C$9,2))) -> 413.28 | BF31: =IF(ISNUMBER('Set-up'!$C$9)=FALSE,0,IF($F31="J",0,ROUND(($AX31-$BB31)*'Set-up'!$C$9,2))) -> 34.44
A32: PQ-00010 | B32: 535624 | C32: RH8 Hobbing Machine (ex CME) | D32: Owned | E32: EQP01 | F32: A | G32: =IF(COUNTIF(AssetCode,$A32)>1,"E1",IF(ISNA(VLOOKUP($E32,CatAll,1,0))=TRUE,"E2",IF(AND($I32="add!",$J32<>"add!"),"E10",IF(ISNA(VLOOKUP($F32,TaxCode,1,0))=TRUE,"E11","-")))) -> - | H32: PM | I32: =IF(ISERROR(LARGE(IF(TransAsset=$A32,IF(TransType="ACQ",TransIDDate,"add!"),"add!"),1)),"add!",LARGE(IF(TransAsset=$A32,IF(TransType="ACQ",TransIDDate,"add!"),"add!"),1)) -> 2018-08-15T00:00:40 | J32: =IF(ISERROR(LARGE(IF(TransAsset=$A32,TransIDDate,"add!"),1)),"add!",LARGE(IF(TransAsset=$A32,TransIDDate,"add!"),1)) -> 2020-03-01T00:01:16 | K32: =IF(ISERROR(LARGE(IF(TransAsset=$A32,IF(TransDate<($I$2+1),TransIDDate,"-"),"-"),1)),"-",LARGE(IF(TransAsset=$A32,IF(TransDate<($I$2+1),TransIDDate,"-"),"-"),1)) -> 2020-03-01T00:01:16 | L32: =IF(ISERROR(LARGE(IF(TransAsset=$A32,IF(TransDate<$H$2,TransIDDate,"-"),"-"),1)),"-",LARGE(IF(TransAsset=$A32,IF(TransDate<$H$2,TransIDDate,"-"),"-"),1)) -> 2018-08-15T00:00:40 | M32: =IF(ISERROR(LARGE(IF(TransAsset=$A32,IF(TransDate<$J$2,TransIDDate,"-"),"-"),1)),"-",LARGE(IF(TransAsset=$A32,IF(TransDate<$J$2,TransIDDate,"-"),"-"),1)) -> 2020-03-01T00:01:16 | N32: =IF(ISERROR(LARGE(IF(TransAsset=$A32,IF(TransType="DIS",TransIDDate,"-"),"-"),1)),"-",LARGE(IF(TransAsset=$A32,IF(TransType="DIS",TransIDDate,"-"),"-"),1)) -> - | O32: =IF($N32<=$I$2,SUMIFS(TransProceeds,TransAsset,$A32,TransType,"DIS"),0) -> 0 | P32: =IF($I32<=($I$2+1),SUMIFS(TransHCost,TransAsset,$A32,TransIDDate,$J32),0) -> 40000 | Q32: 5 | R32: 0 | S32: 40000 | T32: =IF(ISNA(MATCH($F32,TaxCode,0))=TRUE,"code?",OFFSET('Set-up'!$D$37,MATCH($F32,TaxCode,0),MATCH($V32,TaxCurMonth,1)-1,1,1)) -> 0.2 | U32: 19 | V32: 31 | W32: 30 | X32: 40000 | Y32: 0 | Z32: 0 | AA32: 0 | AB32: 0 | AC32: 40000 | AD32: =IF($L32=0,0,IF(SUMIFS(TransCLife,TransAsset,$A32,TransIDDate,$L32)=0,0,IF(($X32-(SUMIFS(TransCRes,TransAsset,$A32,TransIDDate,$L32)))/(SUMIFS(TransCLife,TransAsset,$A32,TransIDDate,$L32)*12)*(((YEAR($H$2)*12)+MONTH($H$2))-((YEAR($L32)*12)+MONTH($L32)))>=($X32-SUMIFS(TransCRes,TransAsset,$A32,TransIDDate,$L32)),$X32-SUMIFS(TransCRes,TransAsset,$A32,TransIDDate,$L32),($X32-(SUMIFS(TransCRes,TransAsset,$A32,TransIDDate,$L32)))/(SUMIFS(TransCLife,TransAsset,$A32,TransIDDate,$L32)*12)*(((YEAR($H$2)*12)+MONTH($H$2))-((YEAR($L32)*12)+MONTH($L32)))))) -> 12666.66667 | AE32: 8000 | AF32: 0 | AG32: 8000 | AH32: -12666.66667 | AI32: 0 | AJ32: 8000 | AK32: 32000 | AL32: 0 | AM32: 12666.66667 | AN32: 0 | AO32: 12666.66667 | AP32: 0 | AQ32: 0 | AR32: 666.6666667 | AS32: 0 | AT32: 666.6666667 | AU32: =IF($I32<$H$2,IF(AND($N32<>"-",$N32<$H$2),0,SUMIFS(TransHCost,TransAsset,$A32,TransIDDate,$J32)-SUMIFS(TransPCAccDep,TransAsset,$A32)-SUMIFS(TransImpair,TransAsset,$A32,TransIDDate,"<"&$H$2,TransType,"REV")),0) -> 27333.33333 | AV32: -8000 | AW32: 19333.33333 | AX32: =$AW32-IF($I32<$J$2,IF(AND($N32<>"-",$N32<$J$2),0,SUMIFS(TransHCost,TransAsset,$A32,TransIDDate,$J32)-SUMIFS(TransPMAccDep,TransAsset,$A32)-SUMIFS(TransImpair,TransAsset,$A32,TransIDDate,"<"&$J$2,TransType,"REV")),0) -> -666.6666667 | AY32: =IF(ISNA(MATCH($F32,TaxCode,0))=TRUE,$S32*($U32>0),MAX(($S32*($U32>0))-(($S32-SUMIFS(TransCRes,TransAsset,$A32,TransIDDate,$L32))*(IF($U32<=11,0,MIN(SUM(OFFSET('Set-up'!$D$37,MATCH($F32,TaxCode,0),0,1,MATCH($U32,TaxCumMonth,1)))+MAX(TRUNC(($U32-60)/12)*SUM(OFFSET('Set-up'!$H$37,MATCH($F32,TaxCode,0),0,1,1)),0%),100%))))-(($S32-SUMIFS(TransCRes,TransAsset,$A32,TransIDDate,$L32))*OFFSET('Set-up'!$D$37,MATCH($F32,TaxCode,0),MATCH($U32,TaxCurMonth,1)-1,1,1)*IF(AND($U32-(TRUNC($U32/12)*12)<>0,OFFSET('Set-up'!$J$37,MATCH($F32,TaxCode,0),0,1,1)=0),1,(($U32-(TRUNC($U32/12)*12))/12))),SUMIFS(TransCRes,TransAsset,$A32,TransIDDate,$L32))) -> 27333.33333 | AZ32: -8000 | BA32: =IF(ISNA(MATCH($F32,TaxCode,0))=TRUE,$S32*($V32>0),MAX(($S32*($V32>0))-(($S32-$R32)*(IF($V32<=11,0,MIN(SUM(OFFSET('Set-up'!$D$37,MATCH($F32,TaxCode,0),0,1,MATCH($V32,TaxCumMonth,1)))+MAX(TRUNC(($V32-60)/12)*SUM(OFFSET('Set-up'!$H$37,MATCH($F32,TaxCode,0),0,1,1)),0%),100%))))-(($S32-$R32)*OFFSET('Set-up'!$D$37,MATCH($F32,TaxCode,0),MATCH($V32,TaxCurMonth,1)-1,1,1)*IF(AND($V32-(TRUNC($V32/12)*12)<>0,OFFSET('Set-up'!$J$37,MATCH($F32,TaxCode,0),0,1,1)=0),1,(($V32-(TRUNC($V32/12)*12))/12))),$R32*($V32>0))) -> 19333.33333 | BB32: =$BA32-IF(ISNA(MATCH($F32,TaxCode,0))=TRUE,$S32*($W32>0),MAX(($S32*($W32>0))-(($S32-SUMIFS(TransCRes,TransAsset,$A32,TransIDDate,$M32))*(IF($W32<=11,0,MIN(SUM(OFFSET('Set-up'!$D$37,MATCH($F32,TaxCode,0),0,1,MATCH($W32,TaxCumMonth,1)))+MAX(TRUNC(($W32-60)/12)*SUM(OFFSET('Set-up'!$H$37,MATCH($F32,TaxCode,0),0,1,1)),0%),100%))))-(($S32-SUMIFS(TransCRes,TransAsset,$A32,TransIDDate,$M32))*OFFSET('Set-up'!$D$37,MATCH($F32,TaxCode,0),MATCH($W32,TaxCurMonth,1)-1,1,1)*IF(AND($W32-(TRUNC($W32/12)*12)<>0,OFFSET('Set-up'!$J$37,MATCH($F32,TaxCode,0),0,1,1)=0),1,(($W32-(TRUNC($W32/12)*12))/12))),SUMIFS(TransCRes,TransAsset,$A32,TransIDDate,$M32)*($W32>0))) -> -666.6666667 | BC32: =IF(ISNUMBER('Set-up'!$C$9)=FALSE,0,IF($F32="J",0,ROUND(($AU32-$AY32)*'Set-up'!$C$9,2))) -> 0 | BD32: 0 | BE32: =IF(ISNUMBER('Set-up'!$C$9)=FALSE,0,IF($F32="J",0,ROUND(($AW32-$BA32)*'Set-up'!$C$9,2))) -> 0 | BF32: =IF(ISNUMBER('Set-up'!$C$9)=FALSE,0,IF($F32="J",0,ROUND(($AX32-$BB32)*'Set-up'!$C$9,2))) -> 0
A33: PQ-00011 | B33: 892946 | C33: ST Drill Sharp Slib8n 4-30 | D33: Owned | E33: EQP01 | F33: A | G33: =IF(COUNTIF(AssetCode,$A33)>1,"E1",IF(ISNA(VLOOKUP($E33,CatAll,1,0))=TRUE,"E2",IF(AND($I33="add!",$J33<>"add!"),"E10",IF(ISNA(VLOOKUP($F33,TaxCode,1,0))=TRUE,"E11","-")))) -> - | H33: PM | I33: =IF(ISERROR(LARGE(IF(TransAsset=$A33,IF(TransType="ACQ",TransIDDate,"add!"),"add!"),1)),"add!",LARGE(IF(TransAsset=$A33,IF(TransType="ACQ",TransIDDate,"add!"),"add!"),1)) -> 2020-12-20T00:01:20 | J33: =IF(ISERROR(LARGE(IF(TransAsset=$A33,TransIDDate,"add!"),1)),"add!",LARGE(IF(TransAsset=$A33,TransIDDate,"add!"),1)) -> 2020-12-20T00:01:20 | K33: =IF(ISERROR(LARGE(IF(TransAsset=$A33,IF(TransDate<($I$2+1),TransIDDate,"-"),"-"),1)),"-",LARGE(IF(TransAsset=$A33,IF(TransDate<($I$2+1),TransIDDate,"-"),"-"),1)) -> 2020-12-20T00:01:20 | L33: =IF(ISERROR(LARGE(IF(TransAsset=$A33,IF(TransDate<$H$2,TransIDDate,"-"),"-"),1)),"-",LARGE(IF(TransAsset=$A33,IF(TransDate<$H$2,TransIDDate,"-"),"-"),1)) -> - | M33: =IF(ISERROR(LARGE(IF(TransAsset=$A33,IF(TransDate<$J$2,TransIDDate,"-"),"-"),1)),"-",LARGE(IF(TransAsset=$A33,IF(TransDate<$J$2,TransIDDate,"-"),"-"),1)) -> 2020-12-20T00:01:20 | N33: =IF(ISERROR(LARGE(IF(TransAsset=$A33,IF(TransType="DIS",TransIDDate,"-"),"-"),1)),"-",LARGE(IF(TransAsset=$A33,IF(TransType="DIS",TransIDDate,"-"),"-"),1)) -> - | O33: =IF($N33<=$I$2,SUMIFS(TransProceeds,TransAsset,$A33,TransType,"DIS"),0) -> 0 | P33: =IF($I33<=($I$2+1),SUMIFS(TransHCost,TransAsset,$A33,TransIDDate,$J33),0) -> 18999 | Q33: 5 | R33: 0 | S33: 18999 | T33: =IF(ISNA(MATCH($F33,TaxCode,0))=TRUE,"code?",OFFSET('Set-up'!$D$37,MATCH($F33,TaxCode,0),MATCH($V33,TaxCurMonth,1)-1,1,1)) -> 0.2 | U33: 0 | V33: 3 | W33: 2 | X33: 0 | Y33: 18999 | Z33: 0 | AA33: 0 | AB33: 0 | AC33: 18999 | AD33: =IF($L33=0,0,IF(SUMIFS(TransCLife,TransAsset,$A33,TransIDDate,$L33)=0,0,IF(($X33-(SUMIFS(TransCRes,TransAsset,$A33,TransIDDate,$L33)))/(SUMIFS(TransCLife,TransAsset,$A33,TransIDDate,$L33)*12)*(((YEAR($H$2)*12)+MONTH($H$2))-((YEAR($L33)*12)+MONTH($L33)))>=($X33-SUMIFS(TransCRes,TransAsset,$A33,TransIDDate,$L33)),$X33-SUMIFS(TransCRes,TransAsset,$A33,TransIDDate,$L33),($X33-(SUMIFS(TransCRes,TransAsset,$A33,TransIDDate,$L33)))/(SUMIFS(TransCLife,TransAsset,$A33,TransIDDate,$L33)*12)*(((YEAR($H$2)*12)+MONTH($H$2))-((YEAR($L33)*12)+MONTH($L33)))))) -> 0 | AE33: 949.95 | AF33: 0 | AG33: 949.95 | AH33: 0 | AI33: 0 | AJ33: 949.95 | AK33: 18049.05 | AL33: 0 | AM33: 0 | AN33: 0 | AO33: 0 | AP33: 0 | AQ33: 0 | AR33: 316.65 | AS33: 0 | AT33: 316.65 | AU33: =IF($I33<$H$2,IF(AND($N33<>"-",$N33<$H$2),0,SUMIFS(TransHCost,TransAsset,$A33,TransIDDate,$J33)-SUMIFS(TransPCAccDep,TransAsset,$A33)-SUMIFS(TransImpair,TransAsset,$A33,TransIDDate,"<"&$H$2,TransType,"REV")),0) -> 0 | AV33: 18049.05 | AW33: 18049.05 | AX33: =$AW33-IF($I33<$J$2,IF(AND($N33<>"-",$N33<$J$2),0,SUMIFS(TransHCost,TransAsset,$A33,TransIDDate,$J33)-SUMIFS(TransPMAccDep,TransAsset,$A33)-SUMIFS(TransImpair,TransAsset,$A33,TransIDDate,"<"&$J$2,TransType,"REV")),0) -> -316.65 | AY33: =IF(ISNA(MATCH($F33,TaxCode,0))=TRUE,$S33*($U33>0),MAX(($S33*($U33>0))-(($S33-SUMIFS(TransCRes,TransAsset,$A33,TransIDDate,$L33))*(IF($U33<=11,0,MIN(SUM(OFFSET('Set-up'!$D$37,MATCH($F33,TaxCode,0),0,1,MATCH($U33,TaxCumMonth,1)))+MAX(TRUNC(($U33-60)/12)*SUM(OFFSET('Set-up'!$H$37,MATCH($F33,TaxCode,0),0,1,1)),0%),100%))))-(($S33-SUMIFS(TransCRes,TransAsset,$A33,TransIDDate,$L33))*OFFSET('Set-up'!$D$37,MATCH($F33,TaxCode,0),MATCH($U33,TaxCurMonth,1)-1,1,1)*IF(AND($U33-(TRUNC($U33/12)*12)<>0,OFFSET('Set-up'!$J$37,MATCH($F33,TaxCode,0),0,1,1)=0),1,(($U33-(TRUNC($U33/12)*12))/12))),SUMIFS(TransCRes,TransAsset,$A33,TransIDDate,$L33))) -> 0 | AZ33: 18049.05 | BA33: =IF(ISNA(MATCH($F33,TaxCode,0))=TRUE,$S33*($V33>0),MAX(($S33*($V33>0))-(($S33-$R33)*(IF($V33<=11,0,MIN(SUM(OFFSET('Set-up'!$D$37,MATCH($F33,TaxCode,0),0,1,MATCH($V33,TaxCumMonth,1)))+MAX(TRUNC(($V33-60)/12)*SUM(OFFSET('Set-up'!$H$37,MATCH($F33,TaxCode,0),0,1,1)),0%),100%))))-(($S33-$R33)*OFFSET('Set-up'!$D$37,MATCH($F33,TaxCode,0),MATCH($V33,TaxCurMonth,1)-1,1,1)*IF(AND($V33-(TRUNC($V33/12)*12)<>0,OFFSET('Set-up'!$J$37,MATCH($F33,TaxCode,0),0,1,1)=0),1,(($V33-(TRUNC($V33/12)*12))/12))),$R33*($V33>0))) -> 18049.05 | BB33: =$BA33-IF(ISNA(MATCH($F33,TaxCode,0))=TRUE,$S33*($W33>0),MAX(($S33*($W33>0))-(($S33-SUMIFS(TransCRes,TransAsset,$A33,TransIDDate,$M33))*(IF($W33<=11,0,MIN(SUM(OFFSET('Set-up'!$D$37,MATCH($F33,TaxCode,0),0,1,MATCH($W33,TaxCumMonth,1)))+MAX(TRUNC(($W33-60)/12)*SUM(OFFSET('Set-up'!$H$37,MATCH($F33,TaxCode,0),0,1,1)),0%),100%))))-(($S33-SUMIFS(TransCRes,TransAsset,$A33,TransIDDate,$M33))*OFFSET('Set-up'!$D$37,MATCH($F33,TaxCode,0),MATCH($W33,TaxCurMonth,1)-1,1,1)*IF(AND($W33-(TRUNC($W33/12)*12)<>0,OFFSET('Set-up'!$J$37,MATCH($F33,TaxCode,0),0,1,1)=0),1,(($W33-(TRUNC($W33/12)*12))/12))),SUMIFS(TransCRes,TransAsset,$A33,TransIDDate,$M33)*($W33>0))) -> -316.65 | BC33: =IF(ISNUMBER('Set-up'!$C$9)=FALSE,0,IF($F33="J",0,ROUND(($AU33-$AY33)*'Set-up'!$C$9,2))) -> 0 | BD33: 0 | BE33: =IF(ISNUMBER('Set-up'!$C$9)=FALSE,0,IF($F33="J",0,ROUND(($AW33-$BA33)*'Set-up'!$C$9,2))) -> 0 | BF33: =IF(ISNUMBER('Set-up'!$C$9)=FALSE,0,IF($F33="J",0,ROUND(($AX33-$BB33)*'Set-up'!$C$9,2))) -> 0
A34: FF-00001 | B34: FF-01 | C34: Office Chairs (5) | D34: Owned | E34: FFX01 | F34: H | G34: =IF(COUNTIF(AssetCode,$A34)>1,"E1",IF(ISNA(VLOOKUP($E34,CatAll,1,0))=TRUE,"E2",IF(AND($I34="add!",$J34<>"add!"),"E10",IF(ISNA(VLOOKUP($F34,TaxCode,1,0))=TRUE,"E11","-")))) -> - | H34: FF | I34: =IF(ISERROR(LARGE(IF(TransAsset=$A34,IF(TransType="ACQ",TransIDDate,"add!"),"add!"),1)),"add!",LARGE(IF(TransAsset=$A34,IF(TransType="ACQ",TransIDDate,"add!"),"add!"),1)) -> 2015-07-20T00:00:08 | J34: =IF(ISERROR(LARGE(IF(TransAsset=$A34,TransIDDate,"add!"),1)),"add!",LARGE(IF(TransAsset=$A34,TransIDDate,"add!"),1)) -> 2020-03-01T00:00:45 | K34: =IF(ISERROR(LARGE(IF(TransAsset=$A34,IF(TransDate<($I$2+1),TransIDDate,"-"),"-"),1)),"-",LARGE(IF(TransAsset=$A34,IF(TransDate<($I$2+1),TransIDDate,"-"),"-"),1)) -> 2020-03-01T00:00:45 | L34: =IF(ISERROR(LARGE(IF(TransAsset=$A34,IF(TransDate<$H$2,TransIDDate,"-"),"-"),1)),"-",LARGE(IF(TransAsset=$A34,IF(TransDate<$H$2,TransIDDate,"-"),"-"),1)) -> 2015-07-20T00:00:08 | M34: =IF(ISERROR(LARGE(IF(TransAsset=$A34,IF(TransDate<$J$2,TransIDDate,"-"),"-"),1)),"-",LARGE(IF(TransAsset=$A34,IF(TransDate<$J$2,TransIDDate,"-"),"-"),1)) -> 2020-03-01T00:00:45 | N34: =IF(ISERROR(LARGE(IF(TransAsset=$A34,IF(TransType="DIS",TransIDDate,"-"),"-"),1)),"-",LARGE(IF(TransAsset=$A34,IF(TransType="DIS",TransIDDate,"-"),"-"),1)) -> - | O34: =IF($N34<=$I$2,SUMIFS(TransProceeds,TransAsset,$A34,TransType,"DIS"),0) -> 0 | P34: =IF($I34<=($I$2+1),SUMIFS(TransHCost,TransAsset,$A34,TransIDDate,$J34),0) -> 3600 | Q34: 6 | R34: 0 | S34: 3600 | T34: =IF(ISNA(MATCH($F34,TaxCode,0))=TRUE,"code?",OFFSET('Set-up'!$D$37,MATCH($F34,TaxCode,0),MATCH($V34,TaxCurMonth,1)-1,1,1)) -> 0.1666666667 | U34: 56 | V34: 68 | W34: 67 | X34: 3600 | Y34: 0 | Z34: -2150 | AA34: 0 | AB34: 0 | AC34: 1450 | AD34: =IF($L34=0,0,IF(SUMIFS(TransCLife,TransAsset,$A34,TransIDDate,$L34)=0,0,IF(($X34-(SUMIFS(TransCRes,TransAsset,$A34,TransIDDate,$L34)))/(SUMIFS(TransCLife,TransAsset,$A34,TransIDDate,$L34)*12)*(((YEAR($H$2)*12)+MONTH($H$2))-((YEAR($L34)*12)+MONTH($L34)))>=($X34-SUMIFS(TransCRes,TransAsset,$A34,TransIDDate,$L34)),$X34-SUMIFS(TransCRes,TransAsset,$A34,TransIDDate,$L34),($X34-(SUMIFS(TransCRes,TransAsset,$A34,TransIDDate,$L34)))/(SUMIFS(TransCLife,TransAsset,$A34,TransIDDate,$L34)*12)*(((YEAR($H$2)*12)+MONTH($H$2))-((YEAR($L34)*12)+MONTH($L34)))))) -> 2800 | AE34: 241.6666667 | AF34: 0 | AG34: 241.6666667 | AH34: -2800 | AI34: 0 | AJ34: 241.6666667 | AK34: 1208.333333 | AL34: 0 | AM34: 650 | AN34: 0 | AO34: 650 | AP34: 0 | AQ34: 0 | AR34: 20.13888889 | AS34: 0 | AT34: 20.13888889 | AU34: =IF($I34<$H$2,IF(AND($N34<>"-",$N34<$H$2),0,SUMIFS(TransHCost,TransAsset,$A34,TransIDDate,$J34)-SUMIFS(TransPCAccDep,TransAsset,$A34)-SUMIFS(TransImpair,TransAsset,$A34,TransIDDate,"<"&$H$2,TransType,"REV")),0) -> 800 | AV34: -241.6666667 | AW34: 558.3333333 | AX34: =$AW34-IF($I34<$J$2,IF(AND($N34<>"-",$N34<$J$2),0,SUMIFS(TransHCost,TransAsset,$A34,TransIDDate,$J34)-SUMIFS(TransPMAccDep,TransAsset,$A34)-SUMIFS(TransImpair,TransAsset,$A34,TransIDDate,"<"&$J$2,TransType,"REV")),0) -> -20.13888889 | AY34: =IF(ISNA(MATCH($F34,TaxCode,0))=TRUE,$S34*($U34>0),MAX(($S34*($U34>0))-(($S34-SUMIFS(TransCRes,TransAsset,$A34,TransIDDate,$L34))*(IF($U34<=11,0,MIN(SUM(OFFSET('Set-up'!$D$37,MATCH($F34,TaxCode,0),0,1,MATCH($U34,TaxCumMonth,1)))+MAX(TRUNC(($U34-60)/12)*SUM(OFFSET('Set-up'!$H$37,MATCH($F34,TaxCode,0),0,1,1)),0%),100%))))-(($S34-SUMIFS(TransCRes,TransAsset,$A34,TransIDDate,$L34))*OFFSET('Set-up'!$D$37,MATCH($F34,TaxCode,0),MATCH($U34,TaxCurMonth,1)-1,1,1)*IF(AND($U34-(TRUNC($U34/12)*12)<>0,OFFSET('Set-up'!$J$37,MATCH($F34,TaxCode,0),0,1,1)=0),1,(($U34-(TRUNC($U34/12)*12))/12))),SUMIFS(TransCRes,TransAsset,$A34,TransIDDate,$L34))) -> 800 | AZ34: -600 | BA34: =IF(ISNA(MATCH($F34,TaxCode,0))=TRUE,$S34*($V34>0),MAX(($S34*($V34>0))-(($S34-$R34)*(IF($V34<=11,0,MIN(SUM(OFFSET('Set-up'!$D$37,MATCH($F34,TaxCode,0),0,1,MATCH($V34,TaxCumMonth,1)))+MAX(TRUNC(($V34-60)/12)*SUM(OFFSET('Set-up'!$H$37,MATCH($F34,TaxCode,0),0,1,1)),0%),100%))))-(($S34-$R34)*OFFSET('Set-up'!$D$37,MATCH($F34,TaxCode,0),MATCH($V34,TaxCurMonth,1)-1,1,1)*IF(AND($V34-(TRUNC($V34/12)*12)<>0,OFFSET('Set-up'!$J$37,MATCH($F34,TaxCode,0),0,1,1)=0),1,(($V34-(TRUNC($V34/12)*12))/12))),$R34*($V34>0))) -> 200 | BB34: =$BA34-IF(ISNA(MATCH($F34,TaxCode,0))=TRUE,$S34*($W34>0),MAX(($S34*($W34>0))-(($S34-SUMIFS(TransCRes,TransAsset,$A34,TransIDDate,$M34))*(IF($W34<=11,0,MIN(SUM(OFFSET('Set-up'!$D$37,MATCH($F34,TaxCode,0),0,1,MATCH($W34,TaxCumMonth,1)))+MAX(TRUNC(($W34-60)/12)*SUM(OFFSET('Set-up'!$H$37,MATCH($F34,TaxCode,0),0,1,1)),0%),100%))))-(($S34-SUMIFS(TransCRes,TransAsset,$A34,TransIDDate,$M34))*OFFSET('Set-up'!$D$37,MATCH($F34,TaxCode,0),MATCH($W34,TaxCurMonth,1)-1,1,1)*IF(AND($W34-(TRUNC($W34/12)*12)<>0,OFFSET('Set-up'!$J$37,MATCH($F34,TaxCode,0),0,1,1)=0),1,(($W34-(TRUNC($W34/12)*12))/12))),SUMIFS(TransCRes,TransAsset,$A34,TransIDDate,$M34)*($W34>0))) -> -50 | BC34: =IF(ISNUMBER('Set-up'!$C$9)=FALSE,0,IF($F34="J",0,ROUND(($AU34-$AY34)*'Set-up'!$C$9,2))) -> 0 | BD34: 100.33 | BE34: =IF(ISNUMBER('Set-up'!$C$9)=FALSE,0,IF($F34="J",0,ROUND(($AW34-$BA34)*'Set-up'!$C$9,2))) -> 100.33 | BF34: =IF(ISNUMBER('Set-up'!$C$9)=FALSE,0,IF($F34="J",0,ROUND(($AX34-$BB34)*'Set-up'!$C$9,2))) -> 8.36
A35: FF-00002 | B35: FF-02 | C35: Office Desks (5) | D35: Owned | E35: FFX01 | F35: H | G35: =IF(COUNTIF(AssetCode,$A35)>1,"E1",IF(ISNA(VLOOKUP($E35,CatAll,1,0))=TRUE,"E2",IF(AND($I35="add!",$J35<>"add!"),"E10",IF(ISNA(VLOOKUP($F35,TaxCode,1,0))=TRUE,"E11","-")))) -> - | H35: FF | I35: =IF(ISERROR(LARGE(IF(TransAsset=$A35,IF(TransType="ACQ",TransIDDate,"add!"),"add!"),1)),"add!",LARGE(IF(TransAsset=$A35,IF(TransType="ACQ",TransIDDate,"add!"),"add!"),1)) -> 2015-07-20T00:00:09 | J35: =IF(ISERROR(LARGE(IF(TransAsset=$A35,TransIDDate,"add!"),1)),"add!",LARGE(IF(TransAsset=$A35,TransIDDate,"add!"),1)) -> 2020-03-01T00:00:46 | K35: =IF(ISERROR(LARGE(IF(TransAsset=$A35,IF(TransDate<($I$2+1),TransIDDate,"-"),"-"),1)),"-",LARGE(IF(TransAsset=$A35,IF(TransDate<($I$2+1),TransIDDate,"-"),"-"),1)) -> 2020-03-01T00:00:46 | L35: =IF(ISERROR(LARGE(IF(TransAsset=$A35,IF(TransDate<$H$2,TransIDDate,"-"),"-"),1)),"-",LARGE(IF(TransAsset=$A35,IF(TransDate<$H$2,TransIDDate,"-"),"-"),1)) -> 2015-07-20T00:00:09 | M35: =IF(ISERROR(LARGE(IF(TransAsset=$A35,IF(TransDate<$J$2,TransIDDate,"-"),"-"),1)),"-",LARGE(IF(TransAsset=$A35,IF(TransDate<$J$2,TransIDDate,"-"),"-"),1)) -> 2020-03-01T00:00:46 | N35: =IF(ISERROR(LARGE(IF(TransAsset=$A35,IF(TransType="DIS",TransIDDate,"-"),"-"),1)),"-",LARGE(IF(TransAsset=$A35,IF(TransType="DIS",TransIDDate,"-"),"-"),1)) -> - | O35: =IF($N35<=$I$2,SUMIFS(TransProceeds,TransAsset,$A35,TransType,"DIS"),0) -> 0 | P35: =IF($I35<=($I$2+1),SUMIFS(TransHCost,TransAsset,$A35,TransIDDate,$J35),0) -> 12400 | Q35: 6 | R35: 0 | S35: 12400 | T35: =IF(ISNA(MATCH($F35,TaxCode,0))=TRUE,"code?",OFFSET('Set-up'!$D$37,MATCH($F35,TaxCode,0),MATCH($V35,TaxCurMonth,1)-1,1,1)) -> 0.1666666667 | U35: 56 | V35: 68 | W35: 67 | X35: 12400 | Y35: 0 | Z35: -7400 | AA35: 0 | AB35: 0 | AC35: 5000 | AD35: =IF($L35=0,0,IF(SUMIFS(TransCLife,TransAsset,$A35,TransIDDate,$L35)=0,0,IF(($X35-(SUMIFS(TransCRes,TransAsset,$A35,TransIDDate,$L35)))/(SUMIFS(TransCLife,TransAsset,$A35,TransIDDate,$L35)*12)*(((YEAR($H$2)*12)+MONTH($H$2))-((YEAR($L35)*12)+MONTH($L35)))>=($X35-SUMIFS(TransCRes,TransAsset,$A35,TransIDDate,$L35)),$X35-SUMIFS(TransCRes,TransAsset,$A35,TransIDDate,$L35),($X35-(SUMIFS(TransCRes,TransAsset,$A35,TransIDDate,$L35)))/(SUMIFS(TransCLife,TransAsset,$A35,TransIDDate,$L35)*12)*(((YEAR($H$2)*12)+MONTH($H$2))-((YEAR($L35)*12)+MONTH($L35)))))) -> 9644.444444 | AE35: 833.3333333 | AF35: 0 | AG35: 833.3333333 | AH35: -9644.444444 | AI35: 0 | AJ35: 833.3333333 | AK35: 4166.666667 | AL35: 0 | AM35: 2244.444444 | AN35: 0 | AO35: 2244.444444 | AP35: 0 | AQ35: 0 | AR35: 69.44444444 | AS35: 0 | AT35: 69.44444444 | AU35: =IF($I35<$H$2,IF(AND($N35<>"-",$N35<$H$2),0,SUMIFS(TransHCost,TransAsset,$A35,TransIDDate,$J35)-SUMIFS(TransPCAccDep,TransAsset,$A35)-SUMIFS(TransImpair,TransAsset,$A35,TransIDDate,"<"&$H$2,TransType,"REV")),0) -> 2755.555556 | AV35: -833.3333333 | AW35: 1922.222222 | AX35: =$AW35-IF($I35<$J$2,IF(AND($N35<>"-",$N35<$J$2),0,SUMIFS(TransHCost,TransAsset,$A35,TransIDDate,$J35)-SUMIFS(TransPMAccDep,TransAsset,$A35)-SUMIFS(TransImpair,TransAsset,$A35,TransIDDate,"<"&$J$2,TransType,"REV")),0) -> -69.44444444 | AY35: =IF(ISNA(MATCH($F35,TaxCode,0))=TRUE,$S35*($U35>0),MAX(($S35*($U35>0))-(($S35-SUMIFS(TransCRes,TransAsset,$A35,TransIDDate,$L35))*(IF($U35<=11,0,MIN(SUM(OFFSET('Set-up'!$D$37,MATCH($F35,TaxCode,0),0,1,MATCH($U35,TaxCumMonth,1)))+MAX(TRUNC(($U35-60)/12)*SUM(OFFSET('Set-up'!$H$37,MATCH($F35,TaxCode,0),0,1,1)),0%),100%))))-(($S35-SUMIFS(TransCRes,TransAsset,$A35,TransIDDate,$L35))*OFFSET('Set-up'!$D$37,MATCH($F35,TaxCode,0),MATCH($U35,TaxCurMonth,1)-1,1,1)*IF(AND($U35-(TRUNC($U35/12)*12)<>0,OFFSET('Set-up'!$J$37,MATCH($F35,TaxCode,0),0,1,1)=0),1,(($U35-(TRUNC($U35/12)*12))/12))),SUMIFS(TransCRes,TransAsset,$A35,TransIDDate,$L35))) -> 2755.555556 | AZ35: -2066.666667 | BA35: =IF(ISNA(MATCH($F35,TaxCode,0))=TRUE,$S35*($V35>0),MAX(($S35*($V35>0))-(($S35-$R35)*(IF($V35<=11,0,MIN(SUM(OFFSET('Set-up'!$D$37,MATCH($F35,TaxCode,0),0,1,MATCH($V35,TaxCumMonth,1)))+MAX(TRUNC(($V35-60)/12)*SUM(OFFSET('Set-up'!$H$37,MATCH($F35,TaxCode,0),0,1,1)),0%),100%))))-(($S35-$R35)*OFFSET('Set-up'!$D$37,MATCH($F35,TaxCode,0),MATCH($V35,TaxCurMonth,1)-1,1,1)*IF(AND($V35-(TRUNC($V35/12)*12)<>0,OFFSET('Set-up'!$J$37,MATCH($F35,TaxCode,0),0,1,1)=0),1,(($V35-(TRUNC($V35/12)*12))/12))),$R35*($V35>0))) -> 688.8888889 | BB35: =$BA35-IF(ISNA(MATCH($F35,TaxCode,0))=TRUE,$S35*($W35>0),MAX(($S35*($W35>0))-(($S35-SUMIFS(TransCRes,TransAsset,$A35,TransIDDate,$M35))*(IF($W35<=11,0,MIN(SUM(OFFSET('Set-up'!$D$37,MATCH($F35,TaxCode,0),0,1,MATCH($W35,TaxCumMonth,1)))+MAX(TRUNC(($W35-60)/12)*SUM(OFFSET('Set-up'!$H$37,MATCH($F35,TaxCode,0),0,1,1)),0%),100%))))-(($S35-SUMIFS(TransCRes,TransAsset,$A35,TransIDDate,$M35))*OFFSET('Set-up'!$D$37,MATCH($F35,TaxCode,0),MATCH($W35,TaxCurMonth,1)-1,1,1)*IF(AND($W35-(TRUNC($W35/12)*12)<>0,OFFSET('Set-up'!$J$37,MATCH($F35,TaxCode,0),0,1,1)=0),1,(($W35-(TRUNC($W35/12)*12))/12))),SUMIFS(TransCRes,TransAsset,$A35,TransIDDate,$M35)*($W35>0))) -> -172.2222222 | BC35: =IF(ISNUMBER('Set-up'!$C$9)=FALSE,0,IF($F35="J",0,ROUND(($AU35-$AY35)*'Set-up'!$C$9,2))) -> 0 | BD35: 345.33 | BE35: =IF(ISNUMBER('Set-up'!$C$9)=FALSE,0,IF($F35="J",0,ROUND(($AW35-$BA35)*'Set-up'!$C$9,2))) -> 345.33 | BF35: =IF(ISNUMBER('Set-up'!$C$9)=FALSE,0,IF($F35="J",0,ROUND(($AX35-$BB35)*'Set-up'!$C$9,2))) -> 28.78
A36: FF-00003 | B36: FF-03 | C36: Air conditioner Panasonic | D36: Owned | E36: FFX01 | F36: H | G36: =IF(COUNTIF(AssetCode,$A36)>1,"E1",IF(ISNA(VLOOKUP($E36,CatAll,1,0))=TRUE,"E2",IF(AND($I36="add!",$J36<>"add!"),"E10",IF(ISNA(VLOOKUP($F36,TaxCode,1,0))=TRUE,"E11","-")))) -> - | H36: FF | I36: =IF(ISERROR(LARGE(IF(TransAsset=$A36,IF(TransType="ACQ",TransIDDate,"add!"),"add!"),1)),"add!",LARGE(IF(TransAsset=$A36,IF(TransType="ACQ",TransIDDate,"add!"),"add!"),1)) -> 2015-07-20T00:00:10 | J36: =IF(ISERROR(LARGE(IF(TransAsset=$A36,TransIDDate,"add!"),1)),"add!",LARGE(IF(TransAsset=$A36,TransIDDate,"add!"),1)) -> 2020-03-01T00:00:47 | K36: =IF(ISERROR(LARGE(IF(TransAsset=$A36,IF(TransDate<($I$2+1),TransIDDate,"-"),"-"),1)),"-",LARGE(IF(TransAsset=$A36,IF(TransDate<($I$2+1),TransIDDate,"-"),"-"),1)) -> 2020-03-01T00:00:47 | L36: =IF(ISERROR(LARGE(IF(TransAsset=$A36,IF(TransDate<$H$2,TransIDDate,"-"),"-"),1)),"-",LARGE(IF(TransAsset=$A36,IF(TransDate<$H$2,TransIDDate,"-"),"-"),1)) -> 2015-07-20T00:00:10 | M36: =IF(ISERROR(LARGE(IF(TransAsset=$A36,IF(TransDate<$J$2,TransIDDate,"-"),"-"),1)),"-",LARGE(IF(TransAsset=$A36,IF(TransDate<$J$2,TransIDDate,"-"),"-"),1)) -> 2020-03-01T00:00:47 | N36: =IF(ISERROR(LARGE(IF(TransAsset=$A36,IF(TransType="DIS",TransIDDate,"-"),"-"),1)),"-",LARGE(IF(TransAsset=$A36,IF(TransType="DIS",TransIDDate,"-"),"-"),1)) -> - | O36: =IF($N36<=$I$2,SUMIFS(TransProceeds,TransAsset,$A36,TransType,"DIS"),0) -> 0 | P36: =IF($I36<=($I$2+1),SUMIFS(TransHCost,TransAsset,$A36,TransIDDate,$J36),0) -> 5100 | Q36: 6 | R36: 0 | S36: 5100 | T36: =IF(ISNA(MATCH($F36,TaxCode,0))=TRUE,"code?",OFFSET('Set-up'!$D$37,MATCH($F36,TaxCode,0),MATCH($V36,TaxCurMonth,1)-1,1,1)) -> 0.1666666667 | U36: 56 | V36: 68 | W36: 67 | X36: 5100 | Y36: 0 | Z36: -2100 | AA36: 0 | AB36: 0 | AC36: 3000 | AD36: =IF($L36=0,0,IF(SUMIFS(TransCLife,TransAsset,$A36,TransIDDate,$L36)=0,0,IF(($X36-(SUMIFS(TransCRes,TransAsset,$A36,TransIDDate,$L36)))/(SUMIFS(TransCLife,TransAsset,$A36,TransIDDate,$L36)*12)*(((YEAR($H$2)*12)+MONTH($H$2))-((YEAR($L36)*12)+MONTH($L36)))>=($X36-SUMIFS(TransCRes,TransAsset,$A36,TransIDDate,$L36)),$X36-SUMIFS(TransCRes,TransAsset,$A36,TransIDDate,$L36),($X36-(SUMIFS(TransCRes,TransAsset,$A36,TransIDDate,$L36)))/(SUMIFS(TransCLife,TransAsset,$A36,TransIDDate,$L36)*12)*(((YEAR($H$2)*12)+MONTH($H$2))-((YEAR($L36)*12)+MONTH($L36)))))) -> 3966.666667 | AE36: 500 | AF36: 0 | AG36: 500 | AH36: -3966.666667 | AI36: 0 | AJ36: 500 | AK36: 2500 | AL36: 0 | AM36: 1866.666667 | AN36: 0 | AO36: 1866.666667 | AP36: 0 | AQ36: 0 | AR36: 41.66666667 | AS36: 0 | AT36: 41.66666667 | AU36: =IF($I36<$H$2,IF(AND($N36<>"-",$N36<$H$2),0,SUMIFS(TransHCost,TransAsset,$A36,TransIDDate,$J36)-SUMIFS(TransPCAccDep,TransAsset,$A36)-SUMIFS(TransImpair,TransAsset,$A36,TransIDDate,"<"&$H$2,TransType,"REV")),0) -> 1133.333333 | AV36: -500 | AW36: 633.3333333 | AX36: =$AW36-IF($I36<$J$2,IF(AND($N36<>"-",$N36<$J$2),0,SUMIFS(TransHCost,TransAsset,$A36,TransIDDate,$J36)-SUMIFS(TransPMAccDep,TransAsset,$A36)-SUMIFS(TransImpair,TransAsset,$A36,TransIDDate,"<"&$J$2,TransType,"REV")),0) -> -41.66666667 | AY36: =IF(ISNA(MATCH($F36,TaxCode,0))=TRUE,$S36*($U36>0),MAX(($S36*($U36>0))-(($S36-SUMIFS(TransCRes,TransAsset,$A36,TransIDDate,$L36))*(IF($U36<=11,0,MIN(SUM(OFFSET('Set-up'!$D$37,MATCH($F36,TaxCode,0),0,1,MATCH($U36,TaxCumMonth,1)))+MAX(TRUNC(($U36-60)/12)*SUM(OFFSET('Set-up'!$H$37,MATCH($F36,TaxCode,0),0,1,1)),0%),100%))))-(($S36-SUMIFS(TransCRes,TransAsset,$A36,TransIDDate,$L36))*OFFSET('Set-up'!$D$37,MATCH($F36,TaxCode,0),MATCH($U36,TaxCurMonth,1)-1,1,1)*IF(AND($U36-(TRUNC($U36/12)*12)<>0,OFFSET('Set-up'!$J$37,MATCH($F36,TaxCode,0),0,1,1)=0),1,(($U36-(TRUNC($U36/12)*12))/12))),SUMIFS(TransCRes,TransAsset,$A36,TransIDDate,$L36))) -> 1133.333333 | AZ36: -850 | BA36: =IF(ISNA(MATCH($F36,TaxCode,0))=TRUE,$S36*($V36>0),MAX(($S36*($V36>0))-(($S36-$R36)*(IF($V36<=11,0,MIN(SUM(OFFSET('Set-up'!$D$37,MATCH($F36,TaxCode,0),0,1,MATCH($V36,TaxCumMonth,1)))+MAX(TRUNC(($V36-60)/12)*SUM(OFFSET('Set-up'!$H$37,MATCH($F36,TaxCode,0),0,1,1)),0%),100%))))-(($S36-$R36)*OFFSET('Set-up'!$D$37,MATCH($F36,TaxCode,0),MATCH($V36,TaxCurMonth,1)-1,1,1)*IF(AND($V36-(TRUNC($V36/12)*12)<>0,OFFSET('Set-up'!$J$37,MATCH($F36,TaxCode,0),0,1,1)=0),1,(($V36-(TRUNC($V36/12)*12))/12))),$R36*($V36>0))) -> 283.3333333 | BB36: =$BA36-IF(ISNA(MATCH($F36,TaxCode,0))=TRUE,$S36*($W36>0),MAX(($S36*($W36>0))-(($S36-SUMIFS(TransCRes,TransAsset,$A36,TransIDDate,$M36))*(IF($W36<=11,0,MIN(SUM(OFFSET('Set-up'!$D$37,MATCH($F36,TaxCode,0),0,1,MATCH($W36,TaxCumMonth,1)))+MAX(TRUNC(($W36-60)/12)*SUM(OFFSET('Set-up'!$H$37,MATCH($F36,TaxCode,0),0,1,1)),0%),100%))))-(($S36-SUMIFS(TransCRes,TransAsset,$A36,TransIDDate,$M36))*OFFSET('Set-up'!$D$37,MATCH($F36,TaxCode,0),MATCH($W36,TaxCurMonth,1)-1,1,1)*IF(AND($W36-(TRUNC($W36/12)*12)<>0,OFFSET('Set-up'!$J$37,MATCH($F36,TaxCode,0),0,1,1)=0),1,(($W36-(TRUNC($W36/12)*12))/12))),SUMIFS(TransCRes,TransAsset,$A36,TransIDDate,$M36)*($W36>0))) -> -70.83333333 | BC36: =IF(ISNUMBER('Set-up'!$C$9)=FALSE,0,IF($F36="J",0,ROUND(($AU36-$AY36)*'Set-up'!$C$9,2))) -> 0 | BD36: 98 | BE36: =IF(ISNUMBER('Set-up'!$C$9)=FALSE,0,IF($F36="J",0,ROUND(($AW36-$BA36)*'Set-up'!$C$9,2))) -> 98 | BF36: =IF(ISNUMBER('Set-up'!$C$9)=FALSE,0,IF($F36="J",0,ROUND(($AX36-$BB36)*'Set-up'!$C$9,2))) -> 8.17
A37: CH-00001 | B37: CH-01 | C37: Dell Desktops (5) | D37: Owned | E37: CHW01 | F37: E | G37: =IF(COUNTIF(AssetCode,$A37)>1,"E1",IF(ISNA(VLOOKUP($E37,CatAll,1,0))=TRUE,"E2",IF(AND($I37="add!",$J37<>"add!"),"E10",IF(ISNA(VLOOKUP($F37,TaxCode,1,0))=TRUE,"E11","-")))) -> - | H37: CE | I37: =IF(ISERROR(LARGE(IF(TransAsset=$A37,IF(TransType="ACQ",TransIDDate,"add!"),"add!"),1)),"add!",LARGE(IF(TransAsset=$A37,IF(TransType="ACQ",TransIDDate,"add!"),"add!"),1)) -> 2015-07-20T00:00:05 | J37: =IF(ISERROR(LARGE(IF(TransAsset=$A37,TransIDDate,"add!"),1)),"add!",LARGE(IF(TransAsset=$A37,TransIDDate,"add!"),1)) -> 2020-03-01T00:00:41 | K37: =IF(ISERROR(LARGE(IF(TransAsset=$A37,IF(TransDate<($I$2+1),TransIDDate,"-"),"-"),1)),"-",LARGE(IF(TransAsset=$A37,IF(TransDate<($I$2+1),TransIDDate,"-"),"-"),1)) -> 2020-03-01T00:00:41 | L37: =IF(ISERROR(LARGE(IF(TransAsset=$A37,IF(TransDate<$H$2,TransIDDate,"-"),"-"),1)),"-",LARGE(IF(TransAsset=$A37,IF(TransDate<$H$2,TransIDDate,"-"),"-"),1)) -> 2015-07-20T00:00:05 | M37: =IF(ISERROR(LARGE(IF(TransAsset=$A37,IF(TransDate<$J$2,TransIDDate,"-"),"-"),1)),"-",LARGE(IF(TransAsset=$A37,IF(TransDate<$J$2,TransIDDate,"-"),"-"),1)) -> 2020-03-01T00:00:41 | N37: =IF(ISERROR(LARGE(IF(TransAsset=$A37,IF(TransType="DIS",TransIDDate,"-"),"-"),1)),"-",LARGE(IF(TransAsset=$A37,IF(TransType="DIS",TransIDDate,"-"),"-"),1)) -> - | O37: =IF($N37<=$I$2,SUMIFS(TransProceeds,TransAsset,$A37,TransType,"DIS"),0) -> 0 | P37: =IF($I37<=($I$2+1),SUMIFS(TransHCost,TransAsset,$A37,TransIDDate,$J37),0) -> 8200 | Q37: 3 | R37: 0 | S37: 8200 | T37: =IF(ISNA(MATCH($F37,TaxCode,0))=TRUE,"code?",OFFSET('Set-up'!$D$37,MATCH($F37,TaxCode,0),MATCH($V37,TaxCurMonth,1)-1,1,1)) -> 0 | U37: 56 | V37: 68 | W37: 67 | X37: 8200 | Y37: 0 | Z37: -6700 | AA37: 0 | AB37: 0 | AC37: 1500 | AD37: =IF($L37=0,0,IF(SUMIFS(TransCLife,TransAsset,$A37,TransIDDate,$L37)=0,0,IF(($X37-(SUMIFS(TransCRes,TransAsset,$A37,TransIDDate,$L37)))/(SUMIFS(TransCLife,TransAsset,$A37,TransIDDate,$L37)*12)*(((YEAR($H$2)*12)+MONTH($H$2))-((YEAR($L37)*12)+MONTH($L37)))>=($X37-SUMIFS(TransCRes,TransAsset,$A37,TransIDDate,$L37)),$X37-SUMIFS(TransCRes,TransAsset,$A37,TransIDDate,$L37),($X37-(SUMIFS(TransCRes,TransAsset,$A37,TransIDDate,$L37)))/(SUMIFS(TransCLife,TransAsset,$A37,TransIDDate,$L37)*12)*(((YEAR($H$2)*12)+MONTH($H$2))-((YEAR($L37)*12)+MONTH($L37)))))) -> 8200 | AE37: 0 | AF37: 500 | AG37: 500 | AH37: -8200 | AI37: 0 | AJ37: 500 | AK37: 1000 | AL37: 0 | AM37: 1500 | AN37: -500 | AO37: 1000 | AP37: 0 | AQ37: 0 | AR37: 0 | AS37: 41.66666667 | AT37: 41.66666667 | AU37: =IF($I37<$H$2,IF(AND($N37<>"-",$N37<$H$2),0,SUMIFS(TransHCost,TransAsset,$A37,TransIDDate,$J37)-SUMIFS(TransPCAccDep,TransAsset,$A37)-SUMIFS(TransImpair,TransAsset,$A37,TransIDDate,"<"&$H$2,TransType,"REV")),0) -> 0 | AV37: 0 | AW37: 0 | AX37: =$AW37-IF($I37<$J$2,IF(AND($N37<>"-",$N37<$J$2),0,SUMIFS(TransHCost,TransAsset,$A37,TransIDDate,$J37)-SUMIFS(TransPMAccDep,TransAsset,$A37)-SUMIFS(TransImpair,TransAsset,$A37,TransIDDate,"<"&$J$2,TransType,"REV")),0) -> 0 | AY37: =IF(ISNA(MATCH($F37,TaxCode,0))=TRUE,$S37*($U37>0),MAX(($S37*($U37>0))-(($S37-SUMIFS(TransCRes,TransAsset,$A37,TransIDDate,$L37))*(IF($U37<=11,0,MIN(SUM(OFFSET('Set-up'!$D$37,MATCH($F37,TaxCode,0),0,1,MATCH($U37,TaxCumMonth,1)))+MAX(TRUNC(($U37-60)/12)*SUM(OFFSET('Set-up'!$H$37,MATCH($F37,TaxCode,0),0,1,1)),0%),100%))))-(($S37-SUMIFS(TransCRes,TransAsset,$A37,TransIDDate,$L37))*OFFSET('Set-up'!$D$37,MATCH($F37,TaxCode,0),MATCH($U37,TaxCurMonth,1)-1,1,1)*IF(AND($U37-(TRUNC($U37/12)*12)<>0,OFFSET('Set-up'!$J$37,MATCH($F37,TaxCode,0),0,1,1)=0),1,(($U37-(TRUNC($U37/12)*12))/12))),SUMIFS(TransCRes,TransAsset,$A37,TransIDDate,$L37))) -> 0 | AZ37: 0 | BA37: =IF(ISNA(MATCH($F37,TaxCode,0))=TRUE,$S37*($V37>0),MAX(($S37*($V37>0))-(($S37-$R37)*(IF($V37<=11,0,MIN(SUM(OFFSET('Set-up'!$D$37,MATCH($F37,TaxCode,0),0,1,MATCH($V37,TaxCumMonth,1)))+MAX(TRUNC(($V37-60)/12)*SUM(OFFSET('Set-up'!$H$37,MATCH($F37,TaxCode,0),0,1,1)),0%),100%))))-(($S37-$R37)*OFFSET('Set-up'!$D$37,MATCH($F37,TaxCode,0),MATCH($V37,TaxCurMonth,1)-1,1,1)*IF(AND($V37-(TRUNC($V37/12)*12)<>0,OFFSET('Set-up'!$J$37,MATCH($F37,TaxCode,0),0,1,1)=0),1,(($V37-(TRUNC($V37/12)*12))/12))),$R37*($V37>0))) -> 0 | BB37: =$BA37-IF(ISNA(MATCH($F37,TaxCode,0))=TRUE,$S37*($W37>0),MAX(($S37*($W37>0))-(($S37-SUMIFS(TransCRes,TransAsset,$A37,TransIDDate,$M37))*(IF($W37<=11,0,MIN(SUM(OFFSET('Set-up'!$D$37,MATCH($F37,TaxCode,0),0,1,MATCH($W37,TaxCumMonth,1)))+MAX(TRUNC(($W37-60)/12)*SUM(OFFSET('Set-up'!$H$37,MATCH($F37,TaxCode,0),0,1,1)),0%),100%))))-(($S37-SUMIFS(TransCRes,TransAsset,$A37,TransIDDate,$M37))*OFFSET('Set-up'!$D$37,MATCH($F37,TaxCode,0),MATCH($W37,TaxCurMonth,1)-1,1,1)*IF(AND($W37-(TRUNC($W37/12)*12)<>0,OFFSET('Set-up'!$J$37,MATCH($F37,TaxCode,0),0,1,1)=0),1,(($W37-(TRUNC($W37/12)*12))/12))),SUMIFS(TransCRes,TransAsset,$A37,TransIDDate,$M37)*($W37>0))) -> 0 | BC37: =IF(ISNUMBER('Set-up'!$C$9)=FALSE,0,IF($F37="J",0,ROUND(($AU37-$AY37)*'Set-up'!$C$9,2))) -> 0 | BD37: 0 | BE37: =IF(ISNUMBER('Set-up'!$C$9)=FALSE,0,IF($F37="J",0,ROUND(($AW37-$BA37)*'Set-up'!$C$9,2))) -> 0 | BF37: =IF(ISNUMBER('Set-up'!$C$9)=FALSE,0,IF($F37="J",0,ROUND(($AX37-$BB37)*'Set-up'!$C$9,2))) -> 0
A38: CH-00002 | B38: CH-02 | C38: Dell Laptop | D38: Owned | E38: CHW01 | F38: E | G38: =IF(COUNTIF(AssetCode,$A38)>1,"E1",IF(ISNA(VLOOKUP($E38,CatAll,1,0))=TRUE,"E2",IF(AND($I38="add!",$J38<>"add!"),"E10",IF(ISNA(VLOOKUP($F38,TaxCode,1,0))=TRUE,"E11","-")))) -> - | H38: CE | I38: =IF(ISERROR(LARGE(IF(TransAsset=$A38,IF(TransType="ACQ",TransIDDate,"add!"),"add!"),1)),"add!",LARGE(IF(TransAsset=$A38,IF(TransType="ACQ",TransIDDate,"add!"),"add!"),1)) -> 2015-07-20T00:00:06 | J38: =IF(ISERROR(LARGE(IF(TransAsset=$A38,TransIDDate,"add!"),1)),"add!",LARGE(IF(TransAsset=$A38,TransIDDate,"add!"),1)) -> 2020-03-01T00:00:42 | K38: =IF(ISERROR(LARGE(IF(TransAsset=$A38,IF(TransDate<($I$2+1),TransIDDate,"-"),"-"),1)),"-",LARGE(IF(TransAsset=$A38,IF(TransDate<($I$2+1),TransIDDate,"-"),"-"),1)) -> 2020-03-01T00:00:42 | L38: =IF(ISERROR(LARGE(IF(TransAsset=$A38,IF(TransDate<$H$2,TransIDDate,"-"),"-"),1)),"-",LARGE(IF(TransAsset=$A38,IF(TransDate<$H$2,TransIDDate,"-"),"-"),1)) -> 2015-07-20T00:00:06 | M38: =IF(ISERROR(LARGE(IF(TransAsset=$A38,IF(TransDate<$J$2,TransIDDate,"-"),"-"),1)),"-",LARGE(IF(TransAsset=$A38,IF(TransDate<$J$2,TransIDDate,"-"),"-"),1)) -> 2020-03-01T00:00:42 | N38: =IF(ISERROR(LARGE(IF(TransAsset=$A38,IF(TransType="DIS",TransIDDate,"-"),"-"),1)),"-",LARGE(IF(TransAsset=$A38,IF(TransType="DIS",TransIDDate,"-"),"-"),1)) -> - | O38: =IF($N38<=$I$2,SUMIFS(TransProceeds,TransAsset,$A38,TransType,"DIS"),0) -> 0 | P38: =IF($I38<=($I$2+1),SUMIFS(TransHCost,TransAsset,$A38,TransIDDate,$J38),0) -> 6600 | Q38: 3 | R38: 0 | S38: 6600 | T38: =IF(ISNA(MATCH($F38,TaxCode,0))=TRUE,"code?",OFFSET('Set-up'!$D$37,MATCH($F38,TaxCode,0),MATCH($V38,TaxCurMonth,1)-1,1,1)) -> 0 | U38: 56 | V38: 68 | W38: 67 | X38: 6600 | Y38: 0 | Z38: -4800 | AA38: 0 | AB38: 0 | AC38: 1800 | AD38: =IF($L38=0,0,IF(SUMIFS(TransCLife,TransAsset,$A38,TransIDDate,$L38)=0,0,IF(($X38-(SUMIFS(TransCRes,TransAsset,$A38,TransIDDate,$L38)))/(SUMIFS(TransCLife,TransAsset,$A38,TransIDDate,$L38)*12)*(((YEAR($H$2)*12)+MONTH($H$2))-((YEAR($L38)*12)+MONTH($L38)))>=($X38-SUMIFS(TransCRes,TransAsset,$A38,TransIDDate,$L38)),$X38-SUMIFS(TransCRes,TransAsset,$A38,TransIDDate,$L38),($X38-(SUMIFS(TransCRes,TransAsset,$A38,TransIDDate,$L38)))/(SUMIFS(TransCLife,TransAsset,$A38,TransIDDate,$L38)*12)*(((YEAR($H$2)*12)+MONTH($H$2))-((YEAR($L38)*12)+MONTH($L38)))))) -> 6600 | AE38: 0 | AF38: 600 | AG38: 600 | AH38: -6600 | AI38: 0 | AJ38: 600 | AK38: 1200 | AL38: 0 | AM38: 1800 | AN38: -600 | AO38: 1200 | AP38: 0 | AQ38: 0 | AR38: 0 | AS38: 50 | AT38: 50 | AU38: =IF($I38<$H$2,IF(AND($N38<>"-",$N38<$H$2),0,SUMIFS(TransHCost,TransAsset,$A38,TransIDDate,$J38)-SUMIFS(TransPCAccDep,TransAsset,$A38)-SUMIFS(TransImpair,TransAsset,$A38,TransIDDate,"<"&$H$2,TransType,"REV")),0) -> 0 | AV38: 0 | AW38: 0 | AX38: =$AW38-IF($I38<$J$2,IF(AND($N38<>"-",$N38<$J$2),0,SUMIFS(TransHCost,TransAsset,$A38,TransIDDate,$J38)-SUMIFS(TransPMAccDep,TransAsset,$A38)-SUMIFS(TransImpair,TransAsset,$A38,TransIDDate,"<"&$J$2,TransType,"REV")),0) -> 0 | AY38: =IF(ISNA(MATCH($F38,TaxCode,0))=TRUE,$S38*($U38>0),MAX(($S38*($U38>0))-(($S38-SUMIFS(TransCRes,TransAsset,$A38,TransIDDate,$L38))*(IF($U38<=11,0,MIN(SUM(OFFSET('Set-up'!$D$37,MATCH($F38,TaxCode,0),0,1,MATCH($U38,TaxCumMonth,1)))+MAX(TRUNC(($U38-60)/12)*SUM(OFFSET('Set-up'!$H$37,MATCH($F38,TaxCode,0),0,1,1)),0%),100%))))-(($S38-SUMIFS(TransCRes,TransAsset,$A38,TransIDDate,$L38))*OFFSET('Set-up'!$D$37,MATCH($F38,TaxCode,0),MATCH($U38,TaxCurMonth,1)-1,1,1)*IF(AND($U38-(TRUNC($U38/12)*12)<>0,OFFSET('Set-up'!$J$37,MATCH($F38,TaxCode,0),0,1,1)=0),1,(($U38-(TRUNC($U38/12)*12))/12))),SUMIFS(TransCRes,TransAsset,$A38,TransIDDate,$L38))) -> 0 | AZ38: 0 | BA38: =IF(ISNA(MATCH($F38,TaxCode,0))=TRUE,$S38*($V38>0),MAX(($S38*($V38>0))-(($S38-$R38)*(IF($V38<=11,0,MIN(SUM(OFFSET('Set-up'!$D$37,MATCH($F38,TaxCode,0),0,1,MATCH($V38,TaxCumMonth,1)))+MAX(TRUNC(($V38-60)/12)*SUM(OFFSET('Set-up'!$H$37,MATCH($F38,TaxCode,0),0,1,1)),0%),100%))))-(($S38-$R38)*OFFSET('Set-up'!$D$37,MATCH($F38,TaxCode,0),MATCH($V38,TaxCurMonth,1)-1,1,1)*IF(AND($V38-(TRUNC($V38/12)*12)<>0,OFFSET('Set-up'!$J$37,MATCH($F38,TaxCode,0),0,1,1)=0),1,(($V38-(TRUNC($V38/12)*12))/12))),$R38*($V38>0))) -> 0 | BB38: =$BA38-IF(ISNA(MATCH($F38,TaxCode,0))=TRUE,$S38*($W38>0),MAX(($S38*($W38>0))-(($S38-SUMIFS(TransCRes,TransAsset,$A38,TransIDDate,$M38))*(IF($W38<=11,0,MIN(SUM(OFFSET('Set-up'!$D$37,MATCH($F38,TaxCode,0),0,1,MATCH($W38,TaxCumMonth,1)))+MAX(TRUNC(($W38-60)/12)*SUM(OFFSET('Set-up'!$H$37,MATCH($F38,TaxCode,0),0,1,1)),0%),100%))))-(($S38-SUMIFS(TransCRes,TransAsset,$A38,TransIDDate,$M38))*OFFSET('Set-up'!$D$37,MATCH($F38,TaxCode,0),MATCH($W38,TaxCurMonth,1)-1,1,1)*IF(AND($W38-(TRUNC($W38/12)*12)<>0,OFFSET('Set-up'!$J$37,MATCH($F38,TaxCode,0),0,1,1)=0),1,(($W38-(TRUNC($W38/12)*12))/12))),SUMIFS(TransCRes,TransAsset,$A38,TransIDDate,$M38)*($W38>0))) -> 0 | BC38: =IF(ISNUMBER('Set-up'!$C$9)=FALSE,0,IF($F38="J",0,ROUND(($AU38-$AY38)*'Set-up'!$C$9,2))) -> 0 | BD38: 0 | BE38: =IF(ISNUMBER('Set-up'!$C$9)=FALSE,0,IF($F38="J",0,ROUND(($AW38-$BA38)*'Set-up'!$C$9,2))) -> 0 | BF38: =IF(ISNUMBER('Set-up'!$C$9)=FALSE,0,IF($F38="J",0,ROUND(($AX38-$BB38)*'Set-up'!$C$9,2))) -> 0
A39: CH-00003 | B39: CH-03 | C39: HP Laser Printer | D39: Owned | E39: CHW01 | F39: E | G39: =IF(COUNTIF(AssetCode,$A39)>1,"E1",IF(ISNA(VLOOKUP($E39,CatAll,1,0))=TRUE,"E2",IF(AND($I39="add!",$J39<>"add!"),"E10",IF(ISNA(VLOOKUP($F39,TaxCode,1,0))=TRUE,"E11","-")))) -> - | H39: CE | I39: =IF(ISERROR(LARGE(IF(TransAsset=$A39,IF(TransType="ACQ",TransIDDate,"add!"),"add!"),1)),"add!",LARGE(IF(TransAsset=$A39,IF(TransType="ACQ",TransIDDate,"add!"),"add!"),1)) -> 2015-07-20T00:00:07 | J39: =IF(ISERROR(LARGE(IF(TransAsset=$A39,TransIDDate,"add!"),1)),"add!",LARGE(IF(TransAsset=$A39,TransIDDate,"add!"),1)) -> 2020-03-01T00:00:43 | K39: =IF(ISERROR(LARGE(IF(TransAsset=$A39,IF(TransDate<($I$2+1),TransIDDate,"-"),"-"),1)),"-",LARGE(IF(TransAsset=$A39,IF(TransDate<($I$2+1),TransIDDate,"-"),"-"),1)) -> 2020-03-01T00:00:43 | L39: =IF(ISERROR(LARGE(IF(TransAsset=$A39,IF(TransDate<$H$2,TransIDDate,"-"),"-"),1)),"-",LARGE(IF(TransAsset=$A39,IF(TransDate<$H$2,TransIDDate,"-"),"-"),1)) -> 2015-07-20T00:00:07 | M39: =IF(ISERROR(LARGE(IF(TransAsset=$A39,IF(TransDate<$J$2,TransIDDate,"-"),"-"),1)),"-",LARGE(IF(TransAsset=$A39,IF(TransDate<$J$2,TransIDDate,"-"),"-"),1)) -> 2020-03-01T00:00:43 | N39: =IF(ISERROR(LARGE(IF(TransAsset=$A39,IF(TransType="DIS",TransIDDate,"-"),"-"),1)),"-",LARGE(IF(TransAsset=$A39,IF(TransType="DIS",TransIDDate,"-"),"-"),1)) -> - | O39: =IF($N39<=$I$2,SUMIFS(TransProceeds,TransAsset,$A39,TransType,"DIS"),0) -> 0 | P39: =IF($I39<=($I$2+1),SUMIFS(TransHCost,TransAsset,$A39,TransIDDate,$J39),0) -> 2100 | Q39: 3 | R39: 0 | S39: 2100 | T39: =IF(ISNA(MATCH($F39,TaxCode,0))=TRUE,"code?",OFFSET('Set-up'!$D$37,MATCH($F39,TaxCode,0),MATCH($V39,TaxCurMonth,1)-1,1,1)) -> 0 | U39: 56 | V39: 68 | W39: 67 | X39: 2100 | Y39: 0 | Z39: 1900 | AA39: 0 | AB39: 0 | AC39: 4000 | AD39: =IF($L39=0,0,IF(SUMIFS(TransCLife,TransAsset,$A39,TransIDDate,$L39)=0,0,IF(($X39-(SUMIFS(TransCRes,TransAsset,$A39,TransIDDate,$L39)))/(SUMIFS(TransCLife,TransAsset,$A39,TransIDDate,$L39)*12)*(((YEAR($H$2)*12)+MONTH($H$2))-((YEAR($L39)*12)+MONTH($L39)))>=($X39-SUMIFS(TransCRes,TransAsset,$A39,TransIDDate,$L39)),$X39-SUMIFS(TransCRes,TransAsset,$A39,TransIDDate,$L39),($X39-(SUMIFS(TransCRes,TransAsset,$A39,TransIDDate,$L39)))/(SUMIFS(TransCLife,TransAsset,$A39,TransIDDate,$L39)*12)*(((YEAR($H$2)*12)+MONTH($H$2))-((YEAR($L39)*12)+MONTH($L39)))))) -> 2100 | AE39: 0 | AF39: 1333.333333 | AG39: 1333.333333 | AH39: -2100 | AI39: 0 | AJ39: 1333.333333 | AK39: 2666.666667 | AL39: 0 | AM39: 4000 | AN39: -1333.333333 | AO39: 2666.666667 | AP39: 0 | AQ39: 0 | AR39: 0 | AS39: 111.1111111 | AT39: 111.1111111 | AU39: =IF($I39<$H$2,IF(AND($N39<>"-",$N39<$H$2),0,SUMIFS(TransHCost,TransAsset,$A39,TransIDDate,$J39)-SUMIFS(TransPCAccDep,TransAsset,$A39)-SUMIFS(TransImpair,TransAsset,$A39,TransIDDate,"<"&$H$2,TransType,"REV")),0) -> 0 | AV39: 0 | AW39: 0 | AX39: =$AW39-IF($I39<$J$2,IF(AND($N39<>"-",$N39<$J$2),0,SUMIFS(TransHCost,TransAsset,$A39,TransIDDate,$J39)-SUMIFS(TransPMAccDep,TransAsset,$A39)-SUMIFS(TransImpair,TransAsset,$A39,TransIDDate,"<"&$J$2,TransType,"REV")),0) -> 0 | AY39: =IF(ISNA(MATCH($F39,TaxCode,0))=TRUE,$S39*($U39>0),MAX(($S39*($U39>0))-(($S39-SUMIFS(TransCRes,TransAsset,$A39,TransIDDate,$L39))*(IF($U39<=11,0,MIN(SUM(OFFSET('Set-up'!$D$37,MATCH($F39,TaxCode,0),0,1,MATCH($U39,TaxCumMonth,1)))+MAX(TRUNC(($U39-60)/12)*SUM(OFFSET('Set-up'!$H$37,MATCH($F39,TaxCode,0),0,1,1)),0%),100%))))-(($S39-SUMIFS(TransCRes,TransAsset,$A39,TransIDDate,$L39))*OFFSET('Set-up'!$D$37,MATCH($F39,TaxCode,0),MATCH($U39,TaxCurMonth,1)-1,1,1)*IF(AND($U39-(TRUNC($U39/12)*12)<>0,OFFSET('Set-up'!$J$37,MATCH($F39,TaxCode,0),0,1,1)=0),1,(($U39-(TRUNC($U39/12)*12))/12))),SUMIFS(TransCRes,TransAsset,$A39,TransIDDate,$L39))) -> 0 | AZ39: 0 | BA39: =IF(ISNA(MATCH($F39,TaxCode,0))=TRUE,$S39*($V39>0),MAX(($S39*($V39>0))-(($S39-$R39)*(IF($V39<=11,0,MIN(SUM(OFFSET('Set-up'!$D$37,MATCH($F39,TaxCode,0),0,1,MATCH($V39,TaxCumMonth,1)))+MAX(TRUNC(($V39-60)/12)*SUM(OFFSET('Set-up'!$H$37,MATCH($F39,TaxCode,0),0,1,1)),0%),100%))))-(($S39-$R39)*OFFSET('Set-up'!$D$37,MATCH($F39,TaxCode,0),MATCH($V39,TaxCurMonth,1)-1,1,1)*IF(AND($V39-(TRUNC($V39/12)*12)<>0,OFFSET('Set-up'!$J$37,MATCH($F39,TaxCode,0),0,1,1)=0),1,(($V39-(TRUNC($V39/12)*12))/12))),$R39*($V39>0))) -> 0 | BB39: =$BA39-IF(ISNA(MATCH($F39,TaxCode,0))=TRUE,$S39*($W39>0),MAX(($S39*($W39>0))-(($S39-SUMIFS(TransCRes,TransAsset,$A39,TransIDDate,$M39))*(IF($W39<=11,0,MIN(SUM(OFFSET('Set-up'!$D$37,MATCH($F39,TaxCode,0),0,1,MATCH($W39,TaxCumMonth,1)))+MAX(TRUNC(($W39-60)/12)*SUM(OFFSET('Set-up'!$H$37,MATCH($F39,TaxCode,0),0,1,1)),0%),100%))))-(($S39-SUMIFS(TransCRes,TransAsset,$A39,TransIDDate,$M39))*OFFSET('Set-up'!$D$37,MATCH($F39,TaxCode,0),MATCH($W39,TaxCurMonth,1)-1,1,1)*IF(AND($W39-(TRUNC($W39/12)*12)<>0,OFFSET('Set-up'!$J$37,MATCH($F39,TaxCode,0),0,1,1)=0),1,(($W39-(TRUNC($W39/12)*12))/12))),SUMIFS(TransCRes,TransAsset,$A39,TransIDDate,$M39)*($W39>0))) -> 0 | BC39: =IF(ISNUMBER('Set-up'!$C$9)=FALSE,0,IF($F39="J",0,ROUND(($AU39-$AY39)*'Set-up'!$C$9,2))) -> 0 | BD39: 0 | BE39: =IF(ISNUMBER('Set-up'!$C$9)=FALSE,0,IF($F39="J",0,ROUND(($AW39-$BA39)*'Set-up'!$C$9,2))) -> 0 | BF39: =IF(ISNUMBER('Set-up'!$C$9)=FALSE,0,IF($F39="J",0,ROUND(($AX39-$BB39)*'Set-up'!$C$9,2))) -> 0
A40: OE-00001 | B40: OE-01 | C40: Nashua Copier | D40: Owned | E40: OFE01 | F40: G | G40: =IF(COUNTIF(AssetCode,$A40)>1,"E1",IF(ISNA(VLOOKUP($E40,CatAll,1,0))=TRUE,"E2",IF(AND($I40="add!",$J40<>"add!"),"E10",IF(ISNA(VLOOKUP($F40,TaxCode,1,0))=TRUE,"E11","-")))) -> - | H40: OE | I40: =IF(ISERROR(LARGE(IF(TransAsset=$A40,IF(TransType="ACQ",TransIDDate,"add!"),"add!"),1)),"add!",LARGE(IF(TransAsset=$A40,IF(TransType="ACQ",TransIDDate,"add!"),"add!"),1)) -> 2015-07-20T00:00:13 | J40: =IF(ISERROR(LARGE(IF(TransAsset=$A40,TransIDDate,"add!"),1)),"add!",LARGE(IF(TransAsset=$A40,TransIDDate,"add!"),1)) -> 2020-03-01T00:00:50 | K40: =IF(ISERROR(LARGE(IF(TransAsset=$A40,IF(TransDate<($I$2+1),TransIDDate,"-"),"-"),1)),"-",LARGE(IF(TransAsset=$A40,IF(TransDate<($I$2+1),TransIDDate,"-"),"-"),1)) -> 2020-03-01T00:00:50 | L40: =IF(ISERROR(LARGE(IF(TransAsset=$A40,IF(TransDate<$H$2,TransIDDate,"-"),"-"),1)),"-",LARGE(IF(TransAsset=$A40,IF(TransDate<$H$2,TransIDDate,"-"),"-"),1)) -> 2015-07-20T00:00:13 | M40: =IF(ISERROR(LARGE(IF(TransAsset=$A40,IF(TransDate<$J$2,TransIDDate,"-"),"-"),1)),"-",LARGE(IF(TransAsset=$A40,IF(TransDate<$J$2,TransIDDate,"-"),"-"),1)) -> 2020-03-01T00:00:50 | N40: =IF(ISERROR(LARGE(IF(TransAsset=$A40,IF(TransType="DIS",TransIDDate,"-"),"-"),1)),"-",LARGE(IF(TransAsset=$A40,IF(TransType="DIS",TransIDDate,"-"),"-"),1)) -> - | O40: =IF($N40<=$I$2,SUMIFS(TransProceeds,TransAsset,$A40,TransType,"DIS"),0) -> 0 | P40: =IF($I40<=($I$2+1),SUMIFS(TransHCost,TransAsset,$A40,TransIDDate,$J40),0) -> 3400 | Q40: 4 | R40: 0 | S40: 3400 | T40: =IF(ISNA(MATCH($F40,TaxCode,0))=TRUE,"code?",OFFSET('Set-up'!$D$37,MATCH($F40,TaxCode,0),MATCH($V40,TaxCurMonth,1)-1,1,1)) -> 0 | U40: 56 | V40: 68 | W40: 67 | X40: 3400 | Y40: 0 | Z40: -2200 | AA40: 0 | AB40: 0 | AC40: 1200 | AD40: =IF($L40=0,0,IF(SUMIFS(TransCLife,TransAsset,$A40,TransIDDate,$L40)=0,0,IF(($X40-(SUMIFS(TransCRes,TransAsset,$A40,TransIDDate,$L40)))/(SUMIFS(TransCLife,TransAsset,$A40,TransIDDate,$L40)*12)*(((YEAR($H$2)*12)+MONTH($H$2))-((YEAR($L40)*12)+MONTH($L40)))>=($X40-SUMIFS(TransCRes,TransAsset,$A40,TransIDDate,$L40)),$X40-SUMIFS(TransCRes,TransAsset,$A40,TransIDDate,$L40),($X40-(SUMIFS(TransCRes,TransAsset,$A40,TransIDDate,$L40)))/(SUMIFS(TransCLife,TransAsset,$A40,TransIDDate,$L40)*12)*(((YEAR($H$2)*12)+MONTH($H$2))-((YEAR($L40)*12)+MONTH($L40)))))) -> 3400 | AE40: 0 | AF40: 300 | AG40: 300 | AH40: -3400 | AI40: 0 | AJ40: 300 | AK40: 900 | AL40: 0 | AM40: 1200 | AN40: -300 | AO40: 900 | AP40: 0 | AQ40: 0 | AR40: 0 | AS40: 25 | AT40: 25 | AU40: =IF($I40<$H$2,IF(AND($N40<>"-",$N40<$H$2),0,SUMIFS(TransHCost,TransAsset,$A40,TransIDDate,$J40)-SUMIFS(TransPCAccDep,TransAsset,$A40)-SUMIFS(TransImpair,TransAsset,$A40,TransIDDate,"<"&$H$2,TransType,"REV")),0) -> 0 | AV40: 0 | AW40: 0 | AX40: =$AW40-IF($I40<$J$2,IF(AND($N40<>"-",$N40<$J$2),0,SUMIFS(TransHCost,TransAsset,$A40,TransIDDate,$J40)-SUMIFS(TransPMAccDep,TransAsset,$A40)-SUMIFS(TransImpair,TransAsset,$A40,TransIDDate,"<"&$J$2,TransType,"REV")),0) -> 0 | AY40: =IF(ISNA(MATCH($F40,TaxCode,0))=TRUE,$S40*($U40>0),MAX(($S40*($U40>0))-(($S40-SUMIFS(TransCRes,TransAsset,$A40,TransIDDate,$L40))*(IF($U40<=11,0,MIN(SUM(OFFSET('Set-up'!$D$37,MATCH($F40,TaxCode,0),0,1,MATCH($U40,TaxCumMonth,1)))+MAX(TRUNC(($U40-60)/12)*SUM(OFFSET('Set-up'!$H$37,MATCH($F40,TaxCode,0),0,1,1)),0%),100%))))-(($S40-SUMIFS(TransCRes,TransAsset,$A40,TransIDDate,$L40))*OFFSET('Set-up'!$D$37,MATCH($F40,TaxCode,0),MATCH($U40,TaxCurMonth,1)-1,1,1)*IF(AND($U40-(TRUNC($U40/12)*12)<>0,OFFSET('Set-up'!$J$37,MATCH($F40,TaxCode,0),0,1,1)=0),1,(($U40-(TRUNC($U40/12)*12))/12))),SUMIFS(TransCRes,TransAsset,$A40,TransIDDate,$L40))) -> 0 | AZ40: 0 | BA40: =IF(ISNA(MATCH($F40,TaxCode,0))=TRUE,$S40*($V40>0),MAX(($S40*($V40>0))-(($S40-$R40)*(IF($V40<=11,0,MIN(SUM(OFFSET('Set-up'!$D$37,MATCH($F40,TaxCode,0),0,1,MATCH($V40,TaxCumMonth,1)))+MAX(TRUNC(($V40-60)/12)*SUM(OFFSET('Set-up'!$H$37,MATCH($F40,TaxCode,0),0,1,1)),0%),100%))))-(($S40-$R40)*OFFSET('Set-up'!$D$37,MATCH($F40,TaxCode,0),MATCH($V40,TaxCurMonth,1)-1,1,1)*IF(AND($V40-(TRUNC($V40/12)*12)<>0,OFFSET('Set-up'!$J$37,MATCH($F40,TaxCode,0),0,1,1)=0),1,(($V40-(TRUNC($V40/12)*12))/12))),$R40*($V40>0))) -> 0 | BB40: =$BA40-IF(ISNA(MATCH($F40,TaxCode,0))=TRUE,$S40*($W40>0),MAX(($S40*($W40>0))-(($S40-SUMIFS(TransCRes,TransAsset,$A40,TransIDDate,$M40))*(IF($W40<=11,0,MIN(SUM(OFFSET('Set-up'!$D$37,MATCH($F40,TaxCode,0),0,1,MATCH($W40,TaxCumMonth,1)))+MAX(TRUNC(($W40-60)/12)*SUM(OFFSET('Set-up'!$H$37,MATCH($F40,TaxCode,0),0,1,1)),0%),100%))))-(($S40-SUMIFS(TransCRes,TransAsset,$A40,TransIDDate,$M40))*OFFSET('Set-up'!$D$37,MATCH($F40,TaxCode,0),MATCH($W40,TaxCurMonth,1)-1,1,1)*IF(AND($W40-(TRUNC($W40/12)*12)<>0,OFFSET('Set-up'!$J$37,MATCH($F40,TaxCode,0),0,1,1)=0),1,(($W40-(TRUNC($W40/12)*12))/12))),SUMIFS(TransCRes,TransAsset,$A40,TransIDDate,$M40)*($W40>0))) -> 0 | BC40: =IF(ISNUMBER('Set-up'!$C$9)=FALSE,0,IF($F40="J",0,ROUND(($AU40-$AY40)*'Set-up'!$C$9,2))) -> 0 | BD40: 0 | BE40: =IF(ISNUMBER('Set-up'!$C$9)=FALSE,0,IF($F40="J",0,ROUND(($AW40-$BA40)*'Set-up'!$C$9,2))) -> 0 | BF40: =IF(ISNUMBER('Set-up'!$C$9)=FALSE,0,IF($F40="J",0,ROUND(($AX40-$BB40)*'Set-up'!$C$9,2))) -> 0
A41: OE-00002 | B41: OE-02 | C41: Nashua Copier | D41: Owned | E41: OFE01 | F41: G | G41: =IF(COUNTIF(AssetCode,$A41)>1,"E1",IF(ISNA(VLOOKUP($E41,CatAll,1,0))=TRUE,"E2",IF(AND($I41="add!",$J41<>"add!"),"E10",IF(ISNA(VLOOKUP($F41,TaxCode,1,0))=TRUE,"E11","-")))) -> - | H41: OE | I41: =IF(ISERROR(LARGE(IF(TransAsset=$A41,IF(TransType="ACQ",TransIDDate,"add!"),"add!"),1)),"add!",LARGE(IF(TransAsset=$A41,IF(TransType="ACQ",TransIDDate,"add!"),"add!"),1)) -> 2018-05-30T00:00:38 | J41: =IF(ISERROR(LARGE(IF(TransAsset=$A41,TransIDDate,"add!"),1)),"add!",LARGE(IF(TransAsset=$A41,TransIDDate,"add!"),1)) -> 2020-03-01T00:00:51 | K41: =IF(ISERROR(LARGE(IF(TransAsset=$A41,IF(TransDate<($I$2+1),TransIDDate,"-"),"-"),1)),"-",LARGE(IF(TransAsset=$A41,IF(TransDate<($I$2+1),TransIDDate,"-"),"-"),1)) -> 2020-03-01T00:00:51 | L41: =IF(ISERROR(LARGE(IF(TransAsset=$A41,IF(TransDate<$H$2,TransIDDate,"-"),"-"),1)),"-",LARGE(IF(TransAsset=$A41,IF(TransDate<$H$2,TransIDDate,"-"),"-"),1)) -> 2018-05-30T00:00:38 | M41: =IF(ISERROR(LARGE(IF(TransAsset=$A41,IF(TransDate<$J$2,TransIDDate,"-"),"-"),1)),"-",LARGE(IF(TransAsset=$A41,IF(TransDate<$J$2,TransIDDate,"-"),"-"),1)) -> 2020-03-01T00:00:51 | N41: =IF(ISERROR(LARGE(IF(TransAsset=$A41,IF(TransType="DIS",TransIDDate,"-"),"-"),1)),"-",LARGE(IF(TransAsset=$A41,IF(TransType="DIS",TransIDDate,"-"),"-"),1)) -> - | O41: =IF($N41<=$I$2,SUMIFS(TransProceeds,TransAsset,$A41,TransType,"DIS"),0) -> 0 | P41: =IF($I41<=($I$2+1),SUMIFS(TransHCost,TransAsset,$A41,TransIDDate,$J41),0) -> 5150 | Q41: 4 | R41: 0 | S41: 5150 | T41: =IF(ISNA(MATCH($F41,TaxCode,0))=TRUE,"code?",OFFSET('Set-up'!$D$37,MATCH($F41,TaxCode,0),MATCH($V41,TaxCurMonth,1)-1,1,1)) -> 0.25 | U41: 22 | V41: 34 | W41: 33 | X41: 5150 | Y41: 0 | Z41: 850 | AA41: 0 | AB41: 0 | AC41: 6000 | AD41: =IF($L41=0,0,IF(SUMIFS(TransCLife,TransAsset,$A41,TransIDDate,$L41)=0,0,IF(($X41-(SUMIFS(TransCRes,TransAsset,$A41,TransIDDate,$L41)))/(SUMIFS(TransCLife,TransAsset,$A41,TransIDDate,$L41)*12)*(((YEAR($H$2)*12)+MONTH($H$2))-((YEAR($L41)*12)+MONTH($L41)))>=($X41-SUMIFS(TransCRes,TransAsset,$A41,TransIDDate,$L41)),$X41-SUMIFS(TransCRes,TransAsset,$A41,TransIDDate,$L41),($X41-(SUMIFS(TransCRes,TransAsset,$A41,TransIDDate,$L41)))/(SUMIFS(TransCLife,TransAsset,$A41,TransIDDate,$L41)*12)*(((YEAR($H$2)*12)+MONTH($H$2))-((YEAR($L41)*12)+MONTH($L41)))))) -> 2360.416667 | AE41: 1287.5 | AF41: 212.5 | AG41: 1500 | AH41: -2360.416667 | AI41: 0 | AJ41: 1500 | AK41: 4500 | AL41: 0 | AM41: 3210.416667 | AN41: -212.5 | AO41: 2997.916667 | AP41: 0 | AQ41: 0 | AR41: 107.2916667 | AS41: 17.70833333 | AT41: 125 | AU41: =IF($I41<$H$2,IF(AND($N41<>"-",$N41<$H$2),0,SUMIFS(TransHCost,TransAsset,$A41,TransIDDate,$J41)-SUMIFS(TransPCAccDep,TransAsset,$A41)-SUMIFS(TransImpair,TransAsset,$A41,TransIDDate,"<"&$H$2,TransType,"REV")),0) -> 2789.583333 | AV41: -1287.5 | AW41: 1502.083333 | AX41: =$AW41-IF($I41<$J$2,IF(AND($N41<>"-",$N41<$J$2),0,SUMIFS(TransHCost,TransAsset,$A41,TransIDDate,$J41)-SUMIFS(TransPMAccDep,TransAsset,$A41)-SUMIFS(TransImpair,TransAsset,$A41,TransIDDate,"<"&$J$2,TransType,"REV")),0) -> -107.2916667 | AY41: =IF(ISNA(MATCH($F41,TaxCode,0))=TRUE,$S41*($U41>0),MAX(($S41*($U41>0))-(($S41-SUMIFS(TransCRes,TransAsset,$A41,TransIDDate,$L41))*(IF($U41<=11,0,MIN(SUM(OFFSET('Set-up'!$D$37,MATCH($F41,TaxCode,0),0,1,MATCH($U41,TaxCumMonth,1)))+MAX(TRUNC(($U41-60)/12)*SUM(OFFSET('Set-up'!$H$37,MATCH($F41,TaxCode,0),0,1,1)),0%),100%))))-(($S41-SUMIFS(TransCRes,TransAsset,$A41,TransIDDate,$L41))*OFFSET('Set-up'!$D$37,MATCH($F41,TaxCode,0),MATCH($U41,TaxCurMonth,1)-1,1,1)*IF(AND($U41-(TRUNC($U41/12)*12)<>0,OFFSET('Set-up'!$J$37,MATCH($F41,TaxCode,0),0,1,1)=0),1,(($U41-(TRUNC($U41/12)*12))/12))),SUMIFS(TransCRes,TransAsset,$A41,TransIDDate,$L41))) -> 2789.583333 | AZ41: -1287.5 | BA41: =IF(ISNA(MATCH($F41,TaxCode,0))=TRUE,$S41*($V41>0),MAX(($S41*($V41>0))-(($S41-$R41)*(IF($V41<=11,0,MIN(SUM(OFFSET('Set-up'!$D$37,MATCH($F41,TaxCode,0),0,1,MATCH($V41,TaxCumMonth,1)))+MAX(TRUNC(($V41-60)/12)*SUM(OFFSET('Set-up'!$H$37,MATCH($F41,TaxCode,0),0,1,1)),0%),100%))))-(($S41-$R41)*OFFSET('Set-up'!$D$37,MATCH($F41,TaxCode,0),MATCH($V41,TaxCurMonth,1)-1,1,1)*IF(AND($V41-(TRUNC($V41/12)*12)<>0,OFFSET('Set-up'!$J$37,MATCH($F41,TaxCode,0),0,1,1)=0),1,(($V41-(TRUNC($V41/12)*12))/12))),$R41*($V41>0))) -> 1502.083333 | BB41: =$BA41-IF(ISNA(MATCH($F41,TaxCode,0))=TRUE,$S41*($W41>0),MAX(($S41*($W41>0))-(($S41-SUMIFS(TransCRes,TransAsset,$A41,TransIDDate,$M41))*(IF($W41<=11,0,MIN(SUM(OFFSET('Set-up'!$D$37,MATCH($F41,TaxCode,0),0,1,MATCH($W41,TaxCumMonth,1)))+MAX(TRUNC(($W41-60)/12)*SUM(OFFSET('Set-up'!$H$37,MATCH($F41,TaxCode,0),0,1,1)),0%),100%))))-(($S41-SUMIFS(TransCRes,TransAsset,$A41,TransIDDate,$M41))*OFFSET('Set-up'!$D$37,MATCH($F41,TaxCode,0),MATCH($W41,TaxCurMonth,1)-1,1,1)*IF(AND($W41-(TRUNC($W41/12)*12)<>0,OFFSET('Set-up'!$J$37,MATCH($F41,TaxCode,0),0,1,1)=0),1,(($W41-(TRUNC($W41/12)*12))/12))),SUMIFS(TransCRes,TransAsset,$A41,TransIDDate,$M41)*($W41>0))) -> -107.2916667 | BC41: =IF(ISNUMBER('Set-up'!$C$9)=FALSE,0,IF($F41="J",0,ROUND(($AU41-$AY41)*'Set-up'!$C$9,2))) -> 0 | BD41: 0 | BE41: =IF(ISNUMBER('Set-up'!$C$9)=FALSE,0,IF($F41="J",0,ROUND(($AW41-$BA41)*'Set-up'!$C$9,2))) -> 0 | BF41: =IF(ISNUMBER('Set-up'!$C$9)=FALSE,0,IF($F41="J",0,ROUND(($AX41-$BB41)*'Set-up'!$C$9,2))) -> 0
A42: CS-00001 | B42: CS-01 | C42: Microsoft Office 2010 | D42: Owned | E42: CSW01 | F42: F | G42: =IF(COUNTIF(AssetCode,$A42)>1,"E1",IF(ISNA(VLOOKUP($E42,CatAll,1,0))=TRUE,"E2",IF(AND($I42="add!",$J42<>"add!"),"E10",IF(ISNA(VLOOKUP($F42,TaxCode,1,0))=TRUE,"E11","-")))) -> - | H42: CE | I42: =IF(ISERROR(LARGE(IF(TransAsset=$A42,IF(TransType="ACQ",TransIDDate,"add!"),"add!"),1)),"add!",LARGE(IF(TransAsset=$A42,IF(TransType="ACQ",TransIDDate,"add!"),"add!"),1)) -> 2015-08-02T00:00:32 | J42: =IF(ISERROR(LARGE(IF(TransAsset=$A42,TransIDDate,"add!"),1)),"add!",LARGE(IF(TransAsset=$A42,TransIDDate,"add!"),1)) -> 2020-03-01T00:00:44 | K42: =IF(ISERROR(LARGE(IF(TransAsset=$A42,IF(TransDate<($I$2+1),TransIDDate,"-"),"-"),1)),"-",LARGE(IF(TransAsset=$A42,IF(TransDate<($I$2+1),TransIDDate,"-"),"-"),1)) -> 2020-03-01T00:00:44 | L42: =IF(ISERROR(LARGE(IF(TransAsset=$A42,IF(TransDate<$H$2,TransIDDate,"-"),"-"),1)),"-",LARGE(IF(TransAsset=$A42,IF(TransDate<$H$2,TransIDDate,"-"),"-"),1)) -> 2015-08-02T00:00:32 | M42: =IF(ISERROR(LARGE(IF(TransAsset=$A42,IF(TransDate<$J$2,TransIDDate,"-"),"-"),1)),"-",LARGE(IF(TransAsset=$A42,IF(TransDate<$J$2,TransIDDate,"-"),"-"),1)) -> 2020-03-01T00:00:44 | N42: =IF(ISERROR(LARGE(IF(TransAsset=$A42,IF(TransType="DIS",TransIDDate,"-"),"-"),1)),"-",LARGE(IF(TransAsset=$A42,IF(TransType="DIS",TransIDDate,"-"),"-"),1)) -> - | O42: =IF($N42<=$I$2,SUMIFS(TransProceeds,TransAsset,$A42,TransType,"DIS"),0) -> 0 | P42: =IF($I42<=($I$2+1),SUMIFS(TransHCost,TransAsset,$A42,TransIDDate,$J42),0) -> 12800 | Q42: 2 | R42: 0 | S42: 12800 | T42: =IF(ISNA(MATCH($F42,TaxCode,0))=TRUE,"code?",OFFSET('Set-up'!$D$37,MATCH($F42,TaxCode,0),MATCH($V42,TaxCurMonth,1)-1,1,1)) -> 0 | U42: 55 | V42: 67 | W42: 66 | X42: 12800 | Y42: 0 | Z42: -4600 | AA42: 0 | AB42: 0 | AC42: 8200 | AD42: =IF($L42=0,0,IF(SUMIFS(TransCLife,TransAsset,$A42,TransIDDate,$L42)=0,0,IF(($X42-(SUMIFS(TransCRes,TransAsset,$A42,TransIDDate,$L42)))/(SUMIFS(TransCLife,TransAsset,$A42,TransIDDate,$L42)*12)*(((YEAR($H$2)*12)+MONTH($H$2))-((YEAR($L42)*12)+MONTH($L42)))>=($X42-SUMIFS(TransCRes,TransAsset,$A42,TransIDDate,$L42)),$X42-SUMIFS(TransCRes,TransAsset,$A42,TransIDDate,$L42),($X42-(SUMIFS(TransCRes,TransAsset,$A42,TransIDDate,$L42)))/(SUMIFS(TransCLife,TransAsset,$A42,TransIDDate,$L42)*12)*(((YEAR($H$2)*12)+MONTH($H$2))-((YEAR($L42)*12)+MONTH($L42)))))) -> 12800 | AE42: 0 | AF42: 4100 | AG42: 4100 | AH42: -12800 | AI42: 0 | AJ42: 4100 | AK42: 4100 | AL42: 0 | AM42: 8200 | AN42: -4100 | AO42: 4100 | AP42: 0 | AQ42: 0 | AR42: 0 | AS42: 341.6666667 | AT42: 341.6666667 | AU42: =IF($I42<$H$2,IF(AND($N42<>"-",$N42<$H$2),0,SUMIFS(TransHCost,TransAsset,$A42,TransIDDate,$J42)-SUMIFS(TransPCAccDep,TransAsset,$A42)-SUMIFS(TransImpair,TransAsset,$A42,TransIDDate,"<"&$H$2,TransType,"REV")),0) -> 0 | AV42: 0 | AW42: 0 | AX42: =$AW42-IF($I42<$J$2,IF(AND($N42<>"-",$N42<$J$2),0,SUMIFS(TransHCost,TransAsset,$A42,TransIDDate,$J42)-SUMIFS(TransPMAccDep,TransAsset,$A42)-SUMIFS(TransImpair,TransAsset,$A42,TransIDDate,"<"&$J$2,TransType,"REV")),0) -> 0 | AY42: =IF(ISNA(MATCH($F42,TaxCode,0))=TRUE,$S42*($U42>0),MAX(($S42*($U42>0))-(($S42-SUMIFS(TransCRes,TransAsset,$A42,TransIDDate,$L42))*(IF($U42<=11,0,MIN(SUM(OFFSET('Set-up'!$D$37,MATCH($F42,TaxCode,0),0,1,MATCH($U42,TaxCumMonth,1)))+MAX(TRUNC(($U42-60)/12)*SUM(OFFSET('Set-up'!$H$37,MATCH($F42,TaxCode,0),0,1,1)),0%),100%))))-(($S42-SUMIFS(TransCRes,TransAsset,$A42,TransIDDate,$L42))*OFFSET('Set-up'!$D$37,MATCH($F42,TaxCode,0),MATCH($U42,TaxCurMonth,1)-1,1,1)*IF(AND($U42-(TRUNC($U42/12)*12)<>0,OFFSET('Set-up'!$J$37,MATCH($F42,TaxCode,0),0,1,1)=0),1,(($U42-(TRUNC($U42/12)*12))/12))),SUMIFS(TransCRes,TransAsset,$A42,TransIDDate,$L42))) -> 0 | AZ42: 0 | BA42: =IF(ISNA(MATCH($F42,TaxCode,0))=TRUE,$S42*($V42>0),MAX(($S42*($V42>0))-(($S42-$R42)*(IF($V42<=11,0,MIN(SUM(OFFSET('Set-up'!$D$37,MATCH($F42,TaxCode,0),0,1,MATCH($V42,TaxCumMonth,1)))+MAX(TRUNC(($V42-60)/12)*SUM(OFFSET('Set-up'!$H$37,MATCH($F42,TaxCode,0),0,1,1)),0%),100%))))-(($S42-$R42)*OFFSET('Set-up'!$D$37,MATCH($F42,TaxCode,0),MATCH($V42,TaxCurMonth,1)-1,1,1)*IF(AND($V42-(TRUNC($V42/12)*12)<>0,OFFSET('Set-up'!$J$37,MATCH($F42,TaxCode,0),0,1,1)=0),1,(($V42-(TRUNC($V42/12)*12))/12))),$R42*($V42>0))) -> 0 | BB42: =$BA42-IF(ISNA(MATCH($F42,TaxCode,0))=TRUE,$S42*($W42>0),MAX(($S42*($W42>0))-(($S42-SUMIFS(TransCRes,TransAsset,$A42,TransIDDate,$M42))*(IF($W42<=11,0,MIN(SUM(OFFSET('Set-up'!$D$37,MATCH($F42,TaxCode,0),0,1,MATCH($W42,TaxCumMonth,1)))+MAX(TRUNC(($W42-60)/12)*SUM(OFFSET('Set-up'!$H$37,MATCH($F42,TaxCode,0),0,1,1)),0%),100%))))-(($S42-SUMIFS(TransCRes,TransAsset,$A42,TransIDDate,$M42))*OFFSET('Set-up'!$D$37,MATCH($F42,TaxCode,0),MATCH($W42,TaxCurMonth,1)-1,1,1)*IF(AND($W42-(TRUNC($W42/12)*12)<>0,OFFSET('Set-up'!$J$37,MATCH($F42,TaxCode,0),0,1,1)=0),1,(($W42-(TRUNC($W42/12)*12))/12))),SUMIFS(TransCRes,TransAsset,$A42,TransIDDate,$M42)*($W42>0))) -> 0 | BC42: =IF(ISNUMBER('Set-up'!$C$9)=FALSE,0,IF($F42="J",0,ROUND(($AU42-$AY42)*'Set-up'!$C$9,2))) -> 0 | BD42: 0 | BE42: =IF(ISNUMBER('Set-up'!$C$9)=FALSE,0,IF($F42="J",0,ROUND(($AW42-$BA42)*'Set-up'!$C$9,2))) -> 0 | BF42: =IF(ISNUMBER('Set-up'!$C$9)=FALSE,0,IF($F42="J",0,ROUND(($AX42-$BB42)*'Set-up'!$C$9,2))) -> 0
A43: MV-00001 | B43: 34543552 | C43: Colt Rodeo 3.0(1) | D43: Leased | E43: MVH01 | F43: I | G43: =IF(COUNTIF(AssetCode,$A43)>1,"E1",IF(ISNA(VLOOKUP($E43,CatAll,1,0))=TRUE,"E2",IF(AND($I43="add!",$J43<>"add!"),"E10",IF(ISNA(VLOOKUP($F43,TaxCode,1,0))=TRUE,"E11","-")))) -> - | H43: MV | I43: =IF(ISERROR(LARGE(IF(TransAsset=$A43,IF(TransType="ACQ",TransIDDate,"add!"),"add!"),1)),"add!",LARGE(IF(TransAsset=$A43,IF(TransType="ACQ",TransIDDate,"add!"),"add!"),1)) -> 2015-07-20T00:00:12 | J43: =IF(ISERROR(LARGE(IF(TransAsset=$A43,TransIDDate,"add!"),1)),"add!",LARGE(IF(TransAsset=$A43,TransIDDate,"add!"),1)) -> 2020-05-30T00:01:17 | K43: =IF(ISERROR(LARGE(IF(TransAsset=$A43,IF(TransDate<($I$2+1),TransIDDate,"-"),"-"),1)),"-",LARGE(IF(TransAsset=$A43,IF(TransDate<($I$2+1),TransIDDate,"-"),"-"),1)) -> 2020-05-30T00:01:17 | L43: =IF(ISERROR(LARGE(IF(TransAsset=$A43,IF(TransDate<$H$2,TransIDDate,"-"),"-"),1)),"-",LARGE(IF(TransAsset=$A43,IF(TransDate<$H$2,TransIDDate,"-"),"-"),1)) -> 2015-07-20T00:00:12 | M43: =IF(ISERROR(LARGE(IF(TransAsset=$A43,IF(TransDate<$J$2,TransIDDate,"-"),"-"),1)),"-",LARGE(IF(TransAsset=$A43,IF(TransDate<$J$2,TransIDDate,"-"),"-"),1)) -> 2020-05-30T00:01:17 | N43: =IF(ISERROR(LARGE(IF(TransAsset=$A43,IF(TransType="DIS",TransIDDate,"-"),"-"),1)),"-",LARGE(IF(TransAsset=$A43,IF(TransType="DIS",TransIDDate,"-"),"-"),1)) -> 2020-05-30T00:01:17 | O43: =IF($N43<=$I$2,SUMIFS(TransProceeds,TransAsset,$A43,TransType,"DIS"),0) -> 41000 | P43: =IF($I43<=($I$2+1),SUMIFS(TransHCost,TransAsset,$A43,TransIDDate,$J43),0) -> 252200 | Q43: 0 | R43: 0 | S43: 252200 | T43: =IF(ISNA(MATCH($F43,TaxCode,0))=TRUE,"code?",OFFSET('Set-up'!$D$37,MATCH($F43,TaxCode,0),MATCH($V43,TaxCurMonth,1)-1,1,1)) -> 0.2 | U43: 56 | V43: 0 | W43: 0 | X43: 252200 | Y43: 0 | Z43: -207200 | AA43: -45000 | AB43: 0 | AC43: 0 | AD43: =IF($L43=0,0,IF(SUMIFS(TransCLife,TransAsset,$A43,TransIDDate,$L43)=0,0,IF(($X43-(SUMIFS(TransCRes,TransAsset,$A43,TransIDDate,$L43)))/(SUMIFS(TransCLife,TransAsset,$A43,TransIDDate,$L43)*12)*(((YEAR($H$2)*12)+MONTH($H$2))-((YEAR($L43)*12)+MONTH($L43)))>=($X43-SUMIFS(TransCRes,TransAsset,$A43,TransIDDate,$L43)),$X43-SUMIFS(TransCRes,TransAsset,$A43,TransIDDate,$L43),($X43-(SUMIFS(TransCRes,TransAsset,$A43,TransIDDate,$L43)))/(SUMIFS(TransCLife,TransAsset,$A43,TransIDDate,$L43)*12)*(((YEAR($H$2)*12)+MONTH($H$2))-((YEAR($L43)*12)+MONTH($L43)))))) -> 221386.6667 | AE43: 1000 | AF43: 0 | AG43: 1000 | AH43: -221386.6667 | AI43: -1000 | AJ43: 0 | AK43: 0 | AL43: 0 | AM43: 0 | AN43: 0 | AO43: 0 | AP43: 0 | AQ43: 11186.66667 | AR43: 0 | AS43: 0 | AT43: 0 | AU43: =IF($I43<$H$2,IF(AND($N43<>"-",$N43<$H$2),0,SUMIFS(TransHCost,TransAsset,$A43,TransIDDate,$J43)-SUMIFS(TransPCAccDep,TransAsset,$A43)-SUMIFS(TransImpair,TransAsset,$A43,TransIDDate,"<"&$H$2,TransType,"REV")),0) -> 30813.33333 | AV43: -30813.33333 | AW43: 0 | AX43: =$AW43-IF($I43<$J$2,IF(AND($N43<>"-",$N43<$J$2),0,SUMIFS(TransHCost,TransAsset,$A43,TransIDDate,$J43)-SUMIFS(TransPMAccDep,TransAsset,$A43)-SUMIFS(TransImpair,TransAsset,$A43,TransIDDate,"<"&$J$2,TransType,"REV")),0) -> 0 | AY43: =IF(ISNA(MATCH($F43,TaxCode,0))=TRUE,$S43*($U43>0),MAX(($S43*($U43>0))-(($S43-SUMIFS(TransCRes,TransAsset,$A43,TransIDDate,$L43))*(IF($U43<=11,0,MIN(SUM(OFFSET('Set-up'!$D$37,MATCH($F43,TaxCode,0),0,1,MATCH($U43,TaxCumMonth,1)))+MAX(TRUNC(($U43-60)/12)*SUM(OFFSET('Set-up'!$H$37,MATCH($F43,TaxCode,0),0,1,1)),0%),100%))))-(($S43-SUMIFS(TransCRes,TransAsset,$A43,TransIDDate,$L43))*OFFSET('Set-up'!$D$37,MATCH($F43,TaxCode,0),MATCH($U43,TaxCurMonth,1)-1,1,1)*IF(AND($U43-(TRUNC($U43/12)*12)<>0,OFFSET('Set-up'!$J$37,MATCH($F43,TaxCode,0),0,1,1)=0),1,(($U43-(TRUNC($U43/12)*12))/12))),SUMIFS(TransCRes,TransAsset,$A43,TransIDDate,$L43))) -> 30813.33333 | AZ43: -30813.33333 | BA43: =IF(ISNA(MATCH($F43,TaxCode,0))=TRUE,$S43*($V43>0),MAX(($S43*($V43>0))-(($S43-$R43)*(IF($V43<=11,0,MIN(SUM(OFFSET('Set-up'!$D$37,MATCH($F43,TaxCode,0),0,1,MATCH($V43,TaxCumMonth,1)))+MAX(TRUNC(($V43-60)/12)*SUM(OFFSET('Set-up'!$H$37,MATCH($F43,TaxCode,0),0,1,1)),0%),100%))))-(($S43-$R43)*OFFSET('Set-up'!$D$37,MATCH($F43,TaxCode,0),MATCH($V43,TaxCurMonth,1)-1,1,1)*IF(AND($V43-(TRUNC($V43/12)*12)<>0,OFFSET('Set-up'!$J$37,MATCH($F43,TaxCode,0),0,1,1)=0),1,(($V43-(TRUNC($V43/12)*12))/12))),$R43*($V43>0))) -> 0 | BB43: =$BA43-IF(ISNA(MATCH($F43,TaxCode,0))=TRUE,$S43*($W43>0),MAX(($S43*($W43>0))-(($S43-SUMIFS(TransCRes,TransAsset,$A43,TransIDDate,$M43))*(IF($W43<=11,0,MIN(SUM(OFFSET('Set-up'!$D$37,MATCH($F43,TaxCode,0),0,1,MATCH($W43,TaxCumMonth,1)))+MAX(TRUNC(($W43-60)/12)*SUM(OFFSET('Set-up'!$H$37,MATCH($F43,TaxCode,0),0,1,1)),0%),100%))))-(($S43-SUMIFS(TransCRes,TransAsset,$A43,TransIDDate,$M43))*OFFSET('Set-up'!$D$37,MATCH($F43,TaxCode,0),MATCH($W43,TaxCurMonth,1)-1,1,1)*IF(AND($W43-(TRUNC($W43/12)*12)<>0,OFFSET('Set-up'!$J$37,MATCH($F43,TaxCode,0),0,1,1)=0),1,(($W43-(TRUNC($W43/12)*12))/12))),SUMIFS(TransCRes,TransAsset,$A43,TransIDDate,$M43)*($W43>0))) -> 0 | BC43: =IF(ISNUMBER('Set-up'!$C$9)=FALSE,0,IF($F43="J",0,ROUND(($AU43-$AY43)*'Set-up'!$C$9,2))) -> 0 | BD43: 0 | BE43: =IF(ISNUMBER('Set-up'!$C$9)=FALSE,0,IF($F43="J",0,ROUND(($AW43-$BA43)*'Set-up'!$C$9,2))) -> 0 | BF43: =IF(ISNUMBER('Set-up'!$C$9)=FALSE,0,IF($F43="J",0,ROUND(($AX43-$BB43)*'Set-up'!$C$9,2))) -> 0
A44: MV-00002 | B44: 872837829 | C44: Toyota Hilux 3.0 | D44: Leased | E44: MVH01 | F44: I | G44: =IF(COUNTIF(AssetCode,$A44)>1,"E1",IF(ISNA(VLOOKUP($E44,CatAll,1,0))=TRUE,"E2",IF(AND($I44="add!",$J44<>"add!"),"E10",IF(ISNA(VLOOKUP($F44,TaxCode,1,0))=TRUE,"E11","-")))) -> - | H44: MV | I44: =IF(ISERROR(LARGE(IF(TransAsset=$A44,IF(TransType="ACQ",TransIDDate,"add!"),"add!"),1)),"add!",LARGE(IF(TransAsset=$A44,IF(TransType="ACQ",TransIDDate,"add!"),"add!"),1)) -> 2020-06-20T00:01:18 | J44: =IF(ISERROR(LARGE(IF(TransAsset=$A44,TransIDDate,"add!"),1)),"add!",LARGE(IF(TransAsset=$A44,TransIDDate,"add!"),1)) -> 2020-06-20T00:01:18 | K44: =IF(ISERROR(LARGE(IF(TransAsset=$A44,IF(TransDate<($I$2+1),TransIDDate,"-"),"-"),1)),"-",LARGE(IF(TransAsset=$A44,IF(TransDate<($I$2+1),TransIDDate,"-"),"-"),1)) -> 2020-06-20T00:01:18 | L44: =IF(ISERROR(LARGE(IF(TransAsset=$A44,IF(TransDate<$H$2,TransIDDate,"-"),"-"),1)),"-",LARGE(IF(TransAsset=$A44,IF(TransDate<$H$2,TransIDDate,"-"),"-"),1)) -> - | M44: =IF(ISERROR(LARGE(IF(TransAsset=$A44,IF(TransDate<$J$2,TransIDDate,"-"),"-"),1)),"-",LARGE(IF(TransAsset=$A44,IF(TransDate<$J$2,TransIDDate,"-"),"-"),1)) -> 2020-06-20T00:01:18 | N44: =IF(ISERROR(LARGE(IF(TransAsset=$A44,IF(TransType="DIS",TransIDDate,"-"),"-"),1)),"-",LARGE(IF(TransAsset=$A44,IF(TransType="DIS",TransIDDate,"-"),"-"),1)) -> - | O44: =IF($N44<=$I$2,SUMIFS(TransProceeds,TransAsset,$A44,TransType,"DIS"),0) -> 0 | P44: =IF($I44<=($I$2+1),SUMIFS(TransHCost,TransAsset,$A44,TransIDDate,$J44),0) -> 288500 | Q44: 5 | R44: 22000 | S44: 288500 | T44: =IF(ISNA(MATCH($F44,TaxCode,0))=TRUE,"code?",OFFSET('Set-up'!$D$37,MATCH($F44,TaxCode,0),MATCH($V44,TaxCurMonth,1)-1,1,1)) -> 0.2 | U44: 0 | V44: 9 | W44: 8 | X44: 0 | Y44: 288500 | Z44: 0 | AA44: 0 | AB44: 0 | AC44: 288500 | AD44: =IF($L44=0,0,IF(SUMIFS(TransCLife,TransAsset,$A44,TransIDDate,$L44)=0,0,IF(($X44-(SUMIFS(TransCRes,TransAsset,$A44,TransIDDate,$L44)))/(SUMIFS(TransCLife,TransAsset,$A44,TransIDDate,$L44)*12)*(((YEAR($H$2)*12)+MONTH($H$2))-((YEAR($L44)*12)+MONTH($L44)))>=($X44-SUMIFS(TransCRes,TransAsset,$A44,TransIDDate,$L44)),$X44-SUMIFS(TransCRes,TransAsset,$A44,TransIDDate,$L44),($X44-(SUMIFS(TransCRes,TransAsset,$A44,TransIDDate,$L44)))/(SUMIFS(TransCLife,TransAsset,$A44,TransIDDate,$L44)*12)*(((YEAR($H$2)*12)+MONTH($H$2))-((YEAR($L44)*12)+MONTH($L44)))))) -> 0 | AE44: 39975 | AF44: 0 | AG44: 39975 | AH44: 0 | AI44: 0 | AJ44: 39975 | AK44: 248525 | AL44: 0 | AM44: 0 | AN44: 0 | AO44: 0 | AP44: 0 | AQ44: 0 | AR44: 4441.666667 | AS44: 0 | AT44: 4441.666667 | AU44: =IF($I44<$H$2,IF(AND($N44<>"-",$N44<$H$2),0,SUMIFS(TransHCost,TransAsset,$A44,TransIDDate,$J44)-SUMIFS(TransPCAccDep,TransAsset,$A44)-SUMIFS(TransImpair,TransAsset,$A44,TransIDDate,"<"&$H$2,TransType,"REV")),0) -> 0 | AV44: 248525 | AW44: 248525 | AX44: =$AW44-IF($I44<$J$2,IF(AND($N44<>"-",$N44<$J$2),0,SUMIFS(TransHCost,TransAsset,$A44,TransIDDate,$J44)-SUMIFS(TransPMAccDep,TransAsset,$A44)-SUMIFS(TransImpair,TransAsset,$A44,TransIDDate,"<"&$J$2,TransType,"REV")),0) -> -4441.666667 | AY44: =IF(ISNA(MATCH($F44,TaxCode,0))=TRUE,$S44*($U44>0),MAX(($S44*($U44>0))-(($S44-SUMIFS(TransCRes,TransAsset,$A44,TransIDDate,$L44))*(IF($U44<=11,0,MIN(SUM(OFFSET('Set-up'!$D$37,MATCH($F44,TaxCode,0),0,1,MATCH($U44,TaxCumMonth,1)))+MAX(TRUNC(($U44-60)/12)*SUM(OFFSET('Set-up'!$H$37,MATCH($F44,TaxCode,0),0,1,1)),0%),100%))))-(($S44-SUMIFS(TransCRes,TransAsset,$A44,TransIDDate,$L44))*OFFSET('Set-up'!$D$37,MATCH($F44,TaxCode,0),MATCH($U44,TaxCurMonth,1)-1,1,1)*IF(AND($U44-(TRUNC($U44/12)*12)<>0,OFFSET('Set-up'!$J$37,MATCH($F44,TaxCode,0),0,1,1)=0),1,(($U44-(TRUNC($U44/12)*12))/12))),SUMIFS(TransCRes,TransAsset,$A44,TransIDDate,$L44))) -> 0 | AZ44: 248525 | BA44: =IF(ISNA(MATCH($F44,TaxCode,0))=TRUE,$S44*($V44>0),MAX(($S44*($V44>0))-(($S44-$R44)*(IF($V44<=11,0,MIN(SUM(OFFSET('Set-up'!$D$37,MATCH($F44,TaxCode,0),0,1,MATCH($V44,TaxCumMonth,1)))+MAX(TRUNC(($V44-60)/12)*SUM(OFFSET('Set-up'!$H$37,MATCH($F44,TaxCode,0),0,1,1)),0%),100%))))-(($S44-$R44)*OFFSET('Set-up'!$D$37,MATCH($F44,TaxCode,0),MATCH($V44,TaxCurMonth,1)-1,1,1)*IF(AND($V44-(TRUNC($V44/12)*12)<>0,OFFSET('Set-up'!$J$37,MATCH($F44,TaxCode,0),0,1,1)=0),1,(($V44-(TRUNC($V44/12)*12))/12))),$R44*($V44>0))) -> 248525 | BB44: =$BA44-IF(ISNA(MATCH($F44,TaxCode,0))=TRUE,$S44*($W44>0),MAX(($S44*($W44>0))-(($S44-SUMIFS(TransCRes,TransAsset,$A44,TransIDDate,$M44))*(IF($W44<=11,0,MIN(SUM(OFFSET('Set-up'!$D$37,MATCH($F44,TaxCode,0),0,1,MATCH($W44,TaxCumMonth,1)))+MAX(TRUNC(($W44-60)/12)*SUM(OFFSET('Set-up'!$H$37,MATCH($F44,TaxCode,0),0,1,1)),0%),100%))))-(($S44-SUMIFS(TransCRes,TransAsset,$A44,TransIDDate,$M44))*OFFSET('Set-up'!$D$37,MATCH($F44,TaxCode,0),MATCH($W44,TaxCurMonth,1)-1,1,1)*IF(AND($W44-(TRUNC($W44/12)*12)<>0,OFFSET('Set-up'!$J$37,MATCH($F44,TaxCode,0),0,1,1)=0),1,(($W44-(TRUNC($W44/12)*12))/12))),SUMIFS(TransCRes,TransAsset,$A44,TransIDDate,$M44)*($W44>0))) -> -4441.666667 | BC44: =IF(ISNUMBER('Set-up'!$C$9)=FALSE,0,IF($F44="J",0,ROUND(($AU44-$AY44)*'Set-up'!$C$9,2))) -> 0 | BD44: 0 | BE44: =IF(ISNUMBER('Set-up'!$C$9)=FALSE,0,IF($F44="J",0,ROUND(($AW44-$BA44)*'Set-up'!$C$9,2))) -> 0 | BF44: =IF(ISNUMBER('Set-up'!$C$9)=FALSE,0,IF($F44="J",0,ROUND(($AX44-$BB44)*'Set-up'!$C$9,2))) -> 0

Sheet Transact (hidden)
A1: ='Set-up'!$C$5 -> Example (Pty) Ltd
A2: Asset Transactions
A3: © www.excel-skills.com | AK3: =SUBTOTAL(109,OFFSET(AK$4,1,0,TransCount,1)) -> 399819.6167 | AM3: =SUBTOTAL(109,OFFSET(AM$4,1,0,TransCount,1)) -> 391165.1167 | AQ3: =SUBTOTAL(109,OFFSET(AQ$4,1,0,TransCount,1)) -> 32537.17778 | AT3: =SUBTOTAL(109,OFFSET(AT$4,1,0,TransCount,1)) -> 31728.19167
A4: Transaction Date | B4: Transaction Type | C4: Asset Number | D4: Supplier | E4: Document Number | F4: Amount | G4: Lifetime in Years | H4: Residual Value | I4: Proceeds on Sale | J4: Error Code | K4: Category | L4: Transaction Date ID | M4: Previous Trn Date | N4: Next Trn Date | O4: Depr End Date | P4: Depr YTD From Date | Q4: Depr YTD To Date | R4: Depr YTD Months | S4: Transaction Amount | T4: Asset Historical Cost | U4: Current Lifetime | V4: Current Residual | W4: Previous Deemed Cost | X4: Previous Residual Value | Y4: Previous Lifetime | Z4: Current Accum Depr | AA4: Current Carrying Value | AB4: Accum Depr: Cost | AC4: Accum Depr: Revaluation | AD4: Accum Depr: Rev <PY | AE4: Previous Revaluation | AF4: Revaluation Surplus | AG4: Current Revaluation | AH4: Previous Impairment | AI4: Impairment Value | AJ4: Profit / (Loss) on Disposal | AK4: YTD Total Depreciation | AL4: YTD Total Depr at Cost | AM4: YTD Cost Depreciation | AN4: Accum Depr at PY Cost Bal | AO4: Accum Depr at Cost PY | AP4: Depr: Cost by Transaction | AQ4: MTD Total Depreciation | AR4: Accum Depr Total at PM | AS4: MTD Total Depr at Cost | AT4: MTD Cost Depreciation | AU4: Accum Depr Cost at PM
A5: 2015-07-20 | B5: ACQ | C5: CH-00001 | D5: ABC Incorporated | E5: P/Agreement | F5: 8200 | G5: 3 | H5: 0 | I5: 0 | J5: =IF(ISNA(VLOOKUP($C5,AssetCode,1,0))=TRUE,"E3",IF(OR(ISBLANK($B5)=TRUE,SUMPRODUCT((TransAsset=$C5)*(TransIDDate<$L5)*(TransType="DIS")*(1))>0),"E4",IF(SUMPRODUCT((TransAsset=$C5)*(TransType="ACQ")*(1))>1,"E5",IF(OR($F5<0,AND(TransType="DIS",$F5<>0)=TRUE),"E6",IF(OR(AND($G5<0,TransType<>"DIS")=TRUE,AND(TransType="DIS",$G5<>0)=TRUE),"E7",IF(OR($H5<0,AND(TransType="DIS",$H5<>0)=TRUE,$H5>$F5),"E8",IF($I5<0,"E9","-"))))))) -> - | K5: =IF(ISNA(VLOOKUP($C5,AssetAll,COLUMN(Assets!$E$4),0))=TRUE,"add!",VLOOKUP($C5,AssetAll,COLUMN(Assets!$E$4),0)) -> CHW01 | L5: =IF(OR(ISBLANK($A5)=TRUE,ISNUMBER($A5)=FALSE),TODAY()+(ROW($A5)/86400),$A5+(ROW($A5)/86400)) -> 2015-07-20T00:00:05 | M5: =IF(ISBLANK($C5)=TRUE,0,LARGE(IF(TransAsset=$C5,IF(TransIDDate<$L5,TransIDDate,0),0),1)) -> 00:00:00 | N5: =IF(ISBLANK($C5)=TRUE,0,SMALL(IF(TransAsset=$C5,IF(TransIDDate>$L5,TransIDDate,(Assets!$I$2+1)),(Assets!$I$2+1)),1)) -> 2020-03-01T00:00:41 | O5: =DATE(YEAR($L5),MONTH($L5)+(U5*12),0) -> 2018-06-30 | P5: =IF(OR($N5<Assets!$H$2,$O5<Assets!$H$2,$L5>(Assets!$I$2+1)),0,IF($B5="DIS",IF($L5<Assets!$H$2,0,IF($L5<(Assets!$I$2+1),DATE(YEAR($L5),MONTH($L5),0),Assets!$H$2)),IF($L5<Assets!$H$2,Assets!$H$2,DATE(YEAR($L5),MONTH($L5),1)))) -> 00:00:00 | Q5: =IF($P5=0,0,IF($B5="DIS",IF($L5>(Assets!$I$2+1),MIN(Assets!$I$2,$O5),MIN($L5,$O5)),IF($N5<(Assets!$I$2+1),MIN(IF(DATE(YEAR($N5),MONTH($N5),0)<$P5,$P5,DATE(YEAR($N5),MONTH($N5),0)),$O5),MIN(Assets!$I$2,$O5)))) -> 00:00:00 | R5: =IF($P5=0,0,IF($Q5=$P5,0,((YEAR($Q5)*12)+MONTH($Q5))-((YEAR($P5)*12)+MONTH($P5)-1))) -> 0 | S5: =IF(ISBLANK($B5)=FALSE,IF(ISNUMBER($F5)=TRUE,$F5,0),0) -> 8200 | T5: =IF(ISBLANK($B5)=FALSE,SUMIFS(TransAmount,TransAsset,$C5,TransType,"ACQ"),0) -> 8200 | U5: =IF(ISBLANK($B5)=FALSE,IF(ISNUMBER($G5)=TRUE,$G5,0),0) -> 3 | V5: =IF(ISBLANK($B5)=FALSE,IF(ISNUMBER($H5)=TRUE,$H5,0),0) -> 0 | W5: =IF($M5=0,0,OFFSET($L$4,MATCH($M5,TransIDDate,0),COLUMN($S$4)-COLUMN($L$4),1,1)) -> 0 | X5: =IF($M5=0,0,OFFSET($L$4,MATCH($M5,TransIDDate,0),COLUMN($V$4)-COLUMN($L$4),1,1)) -> 0 | Y5: =IF($M5=0,0,OFFSET($L$4,MATCH($M5,TransIDDate,0),COLUMN($U$4)-COLUMN($L$4),1,1)) -> 0 | Z5: =IF($M5=0,0,IF($Y5=0,0,IF(($W5-$X5)/($Y5*12)*(((YEAR($A5)*12)+MONTH($A5))-((YEAR($M5)*12)+MONTH($M5)))>($W5-$X5),$W5-$X5,($W5-$X5)/($Y5*12)*(((YEAR($A5)*12)+MONTH($A5))-((YEAR($M5)*12)+MONTH($M5)))))) -> 0 | AA5: =W5-Z5 -> 0 | AB5: =IF(SUMIFS(TransTDCost,TransAsset,$C5,TransDate,"<="&$L5)>($T5-$X5),($T5-$X5),SUMIFS(TransTDCost,TransAsset,$C5,TransDate,"<="&$L5)) -> 0 | AC5: =SUMIFS(TransCAccDep,TransAsset,$C5,TransDate,"<="&$L5)-AB5 -> 0 | AD5: =IF($L5=LARGE(IF(TransAsset=$C5,IF(TransIDDate<Assets!$H$2,TransIDDate,0),0),1),IF($B5="DIS",$AC5,SUMIFS(TransCAccDep,TransAsset,$C5,TransDate,"<="&$L5)+IF($U5=0,0,MIN(($S5-$V5)/($U5*12)*(((YEAR(Assets!$H$2)*12)+MONTH(Assets!$H$2)-1)-((YEAR($L5)*12)+MONTH($L5)-1)),$S5-$V5))),0)-$AO5 -> 0 | AE5: =SUMIFS(TransRSurplus,TransAsset,$C5,TransDate,"<"&$M5)-AC5 -> 0 | AF5: =IF($B5="REV",IF($S5>=$AA5,IF($AH5>0,IF($S5-$AA5-$AH5<0,0,$S5-$AA5-$AH5),$S5-$AA5),IF($S5-$AA5+$AE5<0,-$AE5,$F5-$AA5)),-$AE5) -> 0 | AG5: =SUM(AE5:AF5) -> 0 | AH5: =SUMIFS(TransImpair,TransAsset,$C5,TransDate,"<"&$M5) -> 0 | AI5: =IF($B5="REV",IF($S5-$AA5+$AE5>0,IF(SUMIFS(TransImpair,TransAsset,$C5,TransDate,"<"&$M5)>0,IF(SUMIFS(TransImpair,TransAsset,$C5,TransDate,"<"&$M5)>$S5-$AA5+$AE5,-($S5-$AA5+$AE5),-SUMIFS(TransImpair,TransAsset,$C5,TransDate,"<"&$M5)),0),-($S5-$AA5+$AE5)),0) -> 0 | AJ5: =IF($B5="DIS",IF(ISNUMBER($I5)=FALSE,-($W5-$Z5)+$AE5,$I5-($W5-$Z5)+$AE5),0) -> 0 | AK5: =IF($B5="DIS",IF($Y5=0,0,($W5-$X5)/($Y5*12)*$R5),IF($U5=0,0,($S5-$V5)/($U5*12)*$R5)) -> 0 | AL5: =IF($B5="DIS",IF($W5<$T5,IF($Y5=0,0,($W5-$X5)/($Y5*12)*$R5),IF($Y5=0,0,($T5-$X5)/($Y5*12)*$R5)),IF($S5<$T5,IF($U5=0,0,($S5-$V5)/($U5*12)*$R5),IF($U5=0,0,($T5-$V5)/($U5*12)*$R5))) -> 0 | AM5: =IF($AN5>($T5-$V5),($T5-$V5)-SUMIFS(TransPCAccDep,TransAsset,$C5,TransDate,"<="&$L5),$AL5) -> 0 | AN5: =IF($AL5=0,0,SUMIFS(TransCCYDep2,TransAsset,$C5,TransDate,"<="&$L5)+SUMIFS(TransPCAccDep,TransAsset,$C5,TransDate,"<="&$L5)) -> 0 | AO5: =IF($L5=LARGE(IF(TransAsset=$C5,IF(TransIDDate<Assets!$H$2,TransIDDate,0),0),1),IF($B5="DIS",0,MIN(SUMIFS(TransTDCost,TransAsset,$C5,TransDate,"<="&$L5)+IF($U5=0,0,MIN(($S5-$V5)/($U5*12)*(((YEAR(Assets!$H$2)*12)+MONTH(Assets!$H$2)-1)-((YEAR($L5)*12)+MONTH($L5)-1)),$S5-$V5)),SUMIFS(TransTDCost,TransAsset,$C5,TransDate,"<="&$L5)+IF($U5=0,0,MIN(($T5-$V5)/($U5*12)*(((YEAR(Assets!$H$2)*12)+MONTH(Assets!$H$2)-1)-((YEAR($L5)*12)+MONTH($L5)-1)),$T5-$V5)),$T5-$V5)),0) -> 8200 | AP5: =IF($M5=0,0,IF($W5<$T5,IF($Y5=0,0,IF(($W5-$X5)/($Y5*12)*(((YEAR($A5)*12)+MONTH($A5))-((YEAR($M5)*12)+MONTH($M5)))>($W5-$X5),$W5-$X5,($W5-$X5)/($Y5*12)*(((YEAR($A5)*12)+MONTH($A5))-((YEAR($M5)*12)+MONTH($M5))))),IF($Y5=0,0,IF(($T5-$X5)/($Y5*12)*(((YEAR($A5)*12)+MONTH($A5))-((YEAR($M5)*12)+MONTH($M5)))>($T5-$X5),$T5-$X5,($T5-$X5)/($Y5*12)*(((YEAR($A5)*12)+MONTH($A5))-((YEAR($M5)*12)+MONTH($M5))))))) -> 0 | AQ5: =IF(SUMPRODUCT((TransAsset=$C5)*(TransType="DIS")*(TransIDDate<(Assets!$I$2+1))*(1))>0,0,IF(AND($AR5=0,DATE(YEAR($L5),MONTH($L5),1)<>DATE(YEAR(Assets!$J$2),MONTH(Assets!$J$2),1)),0,IF(DATE(YEAR($Q5),MONTH($Q5),1)<>DATE(YEAR(Assets!$I$2),MONTH(Assets!$I$2),1),0,IF($AR5=$S5-$V5,0,IF($U5=0,0,MIN(($S5-$V5)/($U5*12),($S5-$V5)-$AR5)))))) -> 0 | AR5: =IF($L5=LARGE(IF(TransAsset=$C5,IF(TransIDDate<Assets!$J$2,TransIDDate,0),0),1),IF($B5="DIS",0,MIN(IF($U5=0,0,(($S5-$V5)/($U5*12)*(((YEAR(Assets!$J$2)*12)+MONTH(Assets!$J$2)-1)-((YEAR($L5)*12)+MONTH($L5)-1)))),($S5-$V5))),0) -> 0 | AS5: =IF($B5="DIS",IF($W5<$T5,IF($Y5=0,0,($W5-$X5)/($Y5*12)),IF($Y5=0,0,($T5-$X5)/($Y5*12))),IF($S5<$T5,IF($U5=0,0,($S5-$V5)/($U5*12)),IF($U5=0,0,($T5-$V5)/($U5*12)))) -> 227.7777778 | AT5: =IF(SUMPRODUCT((TransAsset=$C5)*(TransType="DIS")*(TransIDDate<(Assets!$I$2+1))*(1))>0,0,IF(AND($AU5=0,DATE(YEAR($L5),MONTH($L5),1)<>DATE(YEAR(Assets!$J$2),MONTH(Assets!$J$2),1)),0,IF(DATE(YEAR($Q5),MONTH($Q5),1)<>DATE(YEAR(Assets!$I$2),MONTH(Assets!$I$2),1),0,IF(SUMIFS(TransPMAccDep,TransAsset,$C5)>=($T5-$V5),($T5-$V5)-SUMIFS(TransPMAccDep,TransAsset,$C5),IF($U5=0,0,IF($S5<$T5,MIN(($S5-$V5)/($U5*12),($T5-$V5)-$AU5),MIN(($T5-$V5)/($U5*12),($T5-$V5)-$AU5))))))) -> 0 | AU5: =IF($L5=LARGE(IF(TransAsset=$C5,IF(TransIDDate<Assets!$J$2,TransIDDate,0),0),1),IF($B5="DIS",0,MIN(SUMIFS(TransTDCost,TransAsset,$C5,TransDate,"<="&$L5)+IF($U5=0,0,MIN(($S5-$V5)/($U5*12)*(((YEAR(Assets!$J$2)*12)+MONTH(Assets!$J$2)-1)-((YEAR($L5)*12)+MONTH($L5)-1)),$S5-$V5)),SUMIFS(TransTDCost,TransAsset,$C5,TransDate,"<="&$L5)+IF($U5=0,0,MIN(($T5-$V5)/($U5*12)*(((YEAR(Assets!$J$2)*12)+MONTH(Assets!$J$2)-1)-((YEAR($L5)*12)+MONTH($L5)-1)),$T5-$V5)),$T5-$V5)),0) -> 0
A6: 2015-07-20 | B6: ACQ | C6: CH-00002 | D6: ABC Incorporated | E6: P/Agreement | F6: 6600 | G6: 3 | H6: 0 | I6: 0 | J6: =IF(ISNA(VLOOKUP($C6,AssetCode,1,0))=TRUE,"E3",IF(OR(ISBLANK($B6)=TRUE,SUMPRODUCT((TransAsset=$C6)*(TransIDDate<$L6)*(TransType="DIS")*(1))>0),"E4",IF(SUMPRODUCT((TransAsset=$C6)*(TransType="ACQ")*(1))>1,"E5",IF(OR($F6<0,AND(TransType="DIS",$F6<>0)=TRUE),"E6",IF(OR(AND($G6<0,TransType<>"DIS")=TRUE,AND(TransType="DIS",$G6<>0)=TRUE),"E7",IF(OR($H6<0,AND(TransType="DIS",$H6<>0)=TRUE,$H6>$F6),"E8",IF($I6<0,"E9","-"))))))) -> - | K6: =IF(ISNA(VLOOKUP($C6,AssetAll,COLUMN(Assets!$E$4),0))=TRUE,"add!",VLOOKUP($C6,AssetAll,COLUMN(Assets!$E$4),0)) -> CHW01 | L6: 2015-07-20T00:00:06 | M6: =IF(ISBLANK($C6)=TRUE,0,LARGE(IF(TransAsset=$C6,IF(TransIDDate<$L6,TransIDDate,0),0),1)) -> 00:00:00 | N6: =IF(ISBLANK($C6)=TRUE,0,SMALL(IF(TransAsset=$C6,IF(TransIDDate>$L6,TransIDDate,(Assets!$I$2+1)),(Assets!$I$2+1)),1)) -> 2020-03-01T00:00:42 | O6: 2018-06-30 | P6: =IF(OR($N6<Assets!$H$2,$O6<Assets!$H$2,$L6>(Assets!$I$2+1)),0,IF($B6="DIS",IF($L6<Assets!$H$2,0,IF($L6<(Assets!$I$2+1),DATE(YEAR($L6),MONTH($L6),0),Assets!$H$2)),IF($L6<Assets!$H$2,Assets!$H$2,DATE(YEAR($L6),MONTH($L6),1)))) -> 00:00:00 | Q6: =IF($P6=0,0,IF($B6="DIS",IF($L6>(Assets!$I$2+1),MIN(Assets!$I$2,$O6),MIN($L6,$O6)),IF($N6<(Assets!$I$2+1),MIN(IF(DATE(YEAR($N6),MONTH($N6),0)<$P6,$P6,DATE(YEAR($N6),MONTH($N6),0)),$O6),MIN(Assets!$I$2,$O6)))) -> 00:00:00 | R6: 0 | S6: 6600 | T6: =IF(ISBLANK($B6)=FALSE,SUMIFS(TransAmount,TransAsset,$C6,TransType,"ACQ"),0) -> 6600 | U6: 3 | V6: 0 | W6: 0 | X6: 0 | Y6: 0 | Z6: 0 | AA6: 0 | AB6: =IF(SUMIFS(TransTDCost,TransAsset,$C6,TransDate,"<="&$L6)>($T6-$X6),($T6-$X6),SUMIFS(TransTDCost,TransAsset,$C6,TransDate,"<="&$L6)) -> 0 | AC6: 0 | AD6: =IF($L6=LARGE(IF(TransAsset=$C6,IF(TransIDDate<Assets!$H$2,TransIDDate,0),0),1),IF($B6="DIS",$AC6,SUMIFS(TransCAccDep,TransAsset,$C6,TransDate,"<="&$L6)+IF($U6=0,0,MIN(($S6-$V6)/($U6*12)*(((YEAR(Assets!$H$2)*12)+MONTH(Assets!$H$2)-1)-((YEAR($L6)*12)+MONTH($L6)-1)),$S6-$V6))),0)-$AO6 -> 0 | AE6: 0 | AF6: 0 | AG6: 0 | AH6: 0 | AI6: =IF($B6="REV",IF($S6-$AA6+$AE6>0,IF(SUMIFS(TransImpair,TransAsset,$C6,TransDate,"<"&$M6)>0,IF(SUMIFS(TransImpair,TransAsset,$C6,TransDate,"<"&$M6)>$S6-$AA6+$AE6,-($S6-$AA6+$AE6),-SUMIFS(TransImpair,TransAsset,$C6,TransDate,"<"&$M6)),0),-($S6-$AA6+$AE6)),0) -> 0 | AJ6: 0 | AK6: 0 | AL6: 0 | AM6: =IF($AN6>($T6-$V6),($T6-$V6)-SUMIFS(TransPCAccDep,TransAsset,$C6,TransDate,"<="&$L6),$AL6) -> 0 | AN6: =IF($AL6=0,0,SUMIFS(TransCCYDep2,TransAsset,$C6,TransDate,"<="&$L6)+SUMIFS(TransPCAccDep,TransAsset,$C6,TransDate,"<="&$L6)) -> 0 | AO6: =IF($L6=LARGE(IF(TransAsset=$C6,IF(TransIDDate<Assets!$H$2,TransIDDate,0),0),1),IF($B6="DIS",0,MIN(SUMIFS(TransTDCost,TransAsset,$C6,TransDate,"<="&$L6)+IF($U6=0,0,MIN(($S6-$V6)/($U6*12)*(((YEAR(Assets!$H$2)*12)+MONTH(Assets!$H$2)-1)-((YEAR($L6)*12)+MONTH($L6)-1)),$S6-$V6)),SUMIFS(TransTDCost,TransAsset,$C6,TransDate,"<="&$L6)+IF($U6=0,0,MIN(($T6-$V6)/($U6*12)*(((YEAR(Assets!$H$2)*12)+MONTH(Assets!$H$2)-1)-((YEAR($L6)*12)+MONTH($L6)-1)),$T6-$V6)),$T6-$V6)),0) -> 6600 | AP6: 0 | AQ6: =IF(SUMPRODUCT((TransAsset=$C6)*(TransType="DIS")*(TransIDDate<(Assets!$I$2+1))*(1))>0,0,IF(AND($AR6=0,DATE(YEAR($L6),MONTH($L6),1)<>DATE(YEAR(Assets!$J$2),MONTH(Assets!$J$2),1)),0,IF(DATE(YEAR($Q6),MONTH($Q6),1)<>DATE(YEAR(Assets!$I$2),MONTH(Assets!$I$2),1),0,IF($AR6=$S6-$V6,0,IF($U6=0,0,MIN(($S6-$V6)/($U6*12),($S6-$V6)-$AR6)))))) -> 0 | AR6: =IF($L6=LARGE(IF(TransAsset=$C6,IF(TransIDDate<Assets!$J$2,TransIDDate,0),0),1),IF($B6="DIS",0,MIN(IF($U6=0,0,(($S6-$V6)/($U6*12)*(((YEAR(Assets!$J$2)*12)+MONTH(Assets!$J$2)-1)-((YEAR($L6)*12)+MONTH($L6)-1)))),($S6-$V6))),0) -> 0 | AS6: 183.3333333 | AT6: =IF(SUMPRODUCT((TransAsset=$C6)*(TransType="DIS")*(TransIDDate<(Assets!$I$2+1))*(1))>0,0,IF(AND($AU6=0,DATE(YEAR($L6),MONTH($L6),1)<>DATE(YEAR(Assets!$J$2),MONTH(Assets!$J$2),1)),0,IF(DATE(YEAR($Q6),MONTH($Q6),1)<>DATE(YEAR(Assets!$I$2),MONTH(Assets!$I$2),1),0,IF(SUMIFS(TransPMAccDep,TransAsset,$C6)>=($T6-$V6),($T6-$V6)-SUMIFS(TransPMAccDep,TransAsset,$C6),IF($U6=0,0,IF($S6<$T6,MIN(($S6-$V6)/($U6*12),($T6-$V6)-$AU6),MIN(($T6-$V6)/($U6*12),($T6-$V6)-$AU6))))))) -> 0 | AU6: =IF($L6=LARGE(IF(TransAsset=$C6,IF(TransIDDate<Assets!$J$2,TransIDDate,0),0),1),IF($B6="DIS",0,MIN(SUMIFS(TransTDCost,TransAsset,$C6,TransDate,"<="&$L6)+IF($U6=0,0,MIN(($S6-$V6)/($U6*12)*(((YEAR(Assets!$J$2)*12)+MONTH(Assets!$J$2)-1)-((YEAR($L6)*12)+MONTH($L6)-1)),$S6-$V6)),SUMIFS(TransTDCost,TransAsset,$C6,TransDate,"<="&$L6)+IF($U6=0,0,MIN(($T6-$V6)/($U6*12)*(((YEAR(Assets!$J$2)*12)+MONTH(Assets!$J$2)-1)-((YEAR($L6)*12)+MONTH($L6)-1)),$T6-$V6)),$T6-$V6)),0) -> 0
A7: 2015-07-20 | B7: ACQ | C7: CH-00003 | D7: ABC Incorporated | E7: P/Agreement | F7: 2100 | G7: 3 | H7: 0 | I7: 0 | J7: =IF(ISNA(VLOOKUP($C7,AssetCode,1,0))=TRUE,"E3",IF(OR(ISBLANK($B7)=TRUE,SUMPRODUCT((TransAsset=$C7)*(TransIDDate<$L7)*(TransType="DIS")*(1))>0),"E4",IF(SUMPRODUCT((TransAsset=$C7)*(TransType="ACQ")*(1))>1,"E5",IF(OR($F7<0,AND(TransType="DIS",$F7<>0)=TRUE),"E6",IF(OR(AND($G7<0,TransType<>"DIS")=TRUE,AND(TransType="DIS",$G7<>0)=TRUE),"E7",IF(OR($H7<0,AND(TransType="DIS",$H7<>0)=TRUE,$H7>$F7),"E8",IF($I7<0,"E9","-"))))))) -> - | K7: =IF(ISNA(VLOOKUP($C7,AssetAll,COLUMN(Assets!$E$4),0))=TRUE,"add!",VLOOKUP($C7,AssetAll,COLUMN(Assets!$E$4),0)) -> CHW01 | L7: 2015-07-20T00:00:07 | M7: =IF(ISBLANK($C7)=TRUE,0,LARGE(IF(TransAsset=$C7,IF(TransIDDate<$L7,TransIDDate,0),0),1)) -> 00:00:00 | N7: =IF(ISBLANK($C7)=TRUE,0,SMALL(IF(TransAsset=$C7,IF(TransIDDate>$L7,TransIDDate,(Assets!$I$2+1)),(Assets!$I$2+1)),1)) -> 2020-03-01T00:00:43 | O7: 2018-06-30 | P7: =IF(OR($N7<Assets!$H$2,$O7<Assets!$H$2,$L7>(Assets!$I$2+1)),0,IF($B7="DIS",IF($L7<Assets!$H$2,0,IF($L7<(Assets!$I$2+1),DATE(YEAR($L7),MONTH($L7),0),Assets!$H$2)),IF($L7<Assets!$H$2,Assets!$H$2,DATE(YEAR($L7),MONTH($L7),1)))) -> 00:00:00 | Q7: =IF($P7=0,0,IF($B7="DIS",IF($L7>(Assets!$I$2+1),MIN(Assets!$I$2,$O7),MIN($L7,$O7)),IF($N7<(Assets!$I$2+1),MIN(IF(DATE(YEAR($N7),MONTH($N7),0)<$P7,$P7,DATE(YEAR($N7),MONTH($N7),0)),$O7),MIN(Assets!$I$2,$O7)))) -> 00:00:00 | R7: 0 | S7: 2100 | T7: =IF(ISBLANK($B7)=FALSE,SUMIFS(TransAmount,TransAsset,$C7,TransType,"ACQ"),0) -> 2100 | U7: 3 | V7: 0 | W7: 0 | X7: 0 | Y7: 0 | Z7: 0 | AA7: 0 | AB7: =IF(SUMIFS(TransTDCost,TransAsset,$C7,TransDate,"<="&$L7)>($T7-$X7),($T7-$X7),SUMIFS(TransTDCost,TransAsset,$C7,TransDate,"<="&$L7)) -> 0 | AC7: 0 | AD7: =IF($L7=LARGE(IF(TransAsset=$C7,IF(TransIDDate<Assets!$H$2,TransIDDate,0),0),1),IF($B7="DIS",$AC7,SUMIFS(TransCAccDep,TransAsset,$C7,TransDate,"<="&$L7)+IF($U7=0,0,MIN(($S7-$V7)/($U7*12)*(((YEAR(Assets!$H$2)*12)+MONTH(Assets!$H$2)-1)-((YEAR($L7)*12)+MONTH($L7)-1)),$S7-$V7))),0)-$AO7 -> 0 | AE7: 0 | AF7: 0 | AG7: 0 | AH7: 0 | AI7: =IF($B7="REV",IF($S7-$AA7+$AE7>0,IF(SUMIFS(TransImpair,TransAsset,$C7,TransDate,"<"&$M7)>0,IF(SUMIFS(TransImpair,TransAsset,$C7,TransDate,"<"&$M7)>$S7-$AA7+$AE7,-($S7-$AA7+$AE7),-SUMIFS(TransImpair,TransAsset,$C7,TransDate,"<"&$M7)),0),-($S7-$AA7+$AE7)),0) -> 0 | AJ7: 0 | AK7: 0 | AL7: 0 | AM7: =IF($AN7>($T7-$V7),($T7-$V7)-SUMIFS(TransPCAccDep,TransAsset,$C7,TransDate,"<="&$L7),$AL7) -> 0 | AN7: =IF($AL7=0,0,SUMIFS(TransCCYDep2,TransAsset,$C7,TransDate,"<="&$L7)+SUMIFS(TransPCAccDep,TransAsset,$C7,TransDate,"<="&$L7)) -> 0 | AO7: =IF($L7=LARGE(IF(TransAsset=$C7,IF(TransIDDate<Assets!$H$2,TransIDDate,0),0),1),IF($B7="DIS",0,MIN(SUMIFS(TransTDCost,TransAsset,$C7,TransDate,"<="&$L7)+IF($U7=0,0,MIN(($S7-$V7)/($U7*12)*(((YEAR(Assets!$H$2)*12)+MONTH(Assets!$H$2)-1)-((YEAR($L7)*12)+MONTH($L7)-1)),$S7-$V7)),SUMIFS(TransTDCost,TransAsset,$C7,TransDate,"<="&$L7)+IF($U7=0,0,MIN(($T7-$V7)/($U7*12)*(((YEAR(Assets!$H$2)*12)+MONTH(Assets!$H$2)-1)-((YEAR($L7)*12)+MONTH($L7)-1)),$T7-$V7)),$T7-$V7)),0) -> 2100 | AP7: 0 | AQ7: =IF(SUMPRODUCT((TransAsset=$C7)*(TransType="DIS")*(TransIDDate<(Assets!$I$2+1))*(1))>0,0,IF(AND($AR7=0,DATE(YEAR($L7),MONTH($L7),1)<>DATE(YEAR(Assets!$J$2),MONTH(Assets!$J$2),1)),0,IF(DATE(YEAR($Q7),MONTH($Q7),1)<>DATE(YEAR(Assets!$I$2),MONTH(Assets!$I$2),1),0,IF($AR7=$S7-$V7,0,IF($U7=0,0,MIN(($S7-$V7)/($U7*12),($S7-$V7)-$AR7)))))) -> 0 | AR7: =IF($L7=LARGE(IF(TransAsset=$C7,IF(TransIDDate<Assets!$J$2,TransIDDate,0),0),1),IF($B7="DIS",0,MIN(IF($U7=0,0,(($S7-$V7)/($U7*12)*(((YEAR(Assets!$J$2)*12)+MONTH(Assets!$J$2)-1)-((YEAR($L7)*12)+MONTH($L7)-1)))),($S7-$V7))),0) -> 0 | AS7: 58.33333333 | AT7: =IF(SUMPRODUCT((TransAsset=$C7)*(TransType="DIS")*(TransIDDate<(Assets!$I$2+1))*(1))>0,0,IF(AND($AU7=0,DATE(YEAR($L7),MONTH($L7),1)<>DATE(YEAR(Assets!$J$2),MONTH(Assets!$J$2),1)),0,IF(DATE(YEAR($Q7),MONTH($Q7),1)<>DATE(YEAR(Assets!$I$2),MONTH(Assets!$I$2),1),0,IF(SUMIFS(TransPMAccDep,TransAsset,$C7)>=($T7-$V7),($T7-$V7)-SUMIFS(TransPMAccDep,TransAsset,$C7),IF($U7=0,0,IF($S7<$T7,MIN(($S7-$V7)/($U7*12),($T7-$V7)-$AU7),MIN(($T7-$V7)/($U7*12),($T7-$V7)-$AU7))))))) -> 0 | AU7: =IF($L7=LARGE(IF(TransAsset=$C7,IF(TransIDDate<Assets!$J$2,TransIDDate,0),0),1),IF($B7="DIS",0,MIN(SUMIFS(TransTDCost,TransAsset,$C7,TransDate,"<="&$L7)+IF($U7=0,0,MIN(($S7-$V7)/($U7*12)*(((YEAR(Assets!$J$2)*12)+MONTH(Assets!$J$2)-1)-((YEAR($L7)*12)+MONTH($L7)-1)),$S7-$V7)),SUMIFS(TransTDCost,TransAsset,$C7,TransDate,"<="&$L7)+IF($U7=0,0,MIN(($T7-$V7)/($U7*12)*(((YEAR(Assets!$J$2)*12)+MONTH(Assets!$J$2)-1)-((YEAR($L7)*12)+MONTH($L7)-1)),$T7-$V7)),$T7-$V7)),0) -> 0
